Workbook

Sheet Other QA scope (hidden)
B2: Review that the QA is for | E2: 2026-27 Special Variations
B3: Name of model | E3: <not required for simple spreadsheets if the file name is sufficiently descriptive>
B4: File name(s):
B8: Name of modeller | E8: Daniel Suh
B9: Planned date of QA: | E9: Week of 22 September 2025
B10: Risk rating for the review: | E10: Low
B11: Note: low risk models do not require independent QA, however the modeller should indicate in section 2.3 what steps have been taken to ensure accuracy of results.
B13: 1. PURPOSE OF MODEL
B14: The modeller provides a concise summary of the model's purpose(s)
B15: Update to minor wording changes
B21: 2. CONTEXT AND SCOPE OF QA
B22: The modeller provides information about the context of the QA and the scope of work.
B24: 2.1 The model/spreadsheet is for (context)
B36: 2.2 The scope of the QA is to check
C38: Logic checks | F38: Input checks
B52: * provide details of requirements for "simplified duplication of analysis" and/or "sampling of inputs" in section 2.3 below.
B55: 2.3 Detailed scope of QA
B56: Specify clearly how to identify what needs to be checked (e.g. "check all calculations and inputs highlighted in green on the following worksheets: …")
B57: For "simplified duplications of analysis" (if applicable), specify how you and the QAer have agreed the analysis will be duplicated
B58: For "sampling of inputs" (if applicable), specify how you and the QAer have agreed the inputs will be sampled
B59: Please check new rate peg numbers at '='WS0 - Input data'!$L$272:$M$399
B60: Minor updates to the wording are at: WS0, Overview, WS2, WS4, WS10
B94: 3. QA CHECK LIST
B96: 3.1 Pre-QA check list (for both medium and high risk QAs)
C98: Select an option
C100: Yes | D100: Is the model consistent with good modelling practice? | J100: DO NOT DELETE
C101: Yes | D101: Tables, inputs and outputs are clearly labelled, e.g.: | J101: Yes
D102: – Units e.g. $m, $’000, $ or cents, kL, MWh, GJ, etc | J102: No
D103: – Nominal or real | J103: NA
D104: – Including or excluding GST
C105: Yes | D105: The QAer can easily identify the parts of the model that need to be checked | J105: High
C106: No | D106: The model inputs reflect Tribunal decisions or information from the source documents or related models | J106: Medium
C107: No | D107: The source documents (or references) have all been located and provided to the QAer/s | J107: Low
J108: select
C109: No | D109: Has the QA scope been reviewed by the Chief Modeller? (Only applicable for external models and high risk price determinations)
B112: 3.2 QA check list (for RStudio scripts only)
C114: No | D114: Code was rerun successfully; or an alternative calculation successfully replicated results
C115: No | D115: Code is easy to follow, with comments highlighting different sections in code
C116: No | D116: Variable names are easy to understand
C117: No | D117: Test variables are used to check that data is not duplicated or excluded in error when joining data sources
C118: No | D118: If this QA is an update to an existing RStudio script, changes are highlighted and easy to find (e.g. a text comparison tool is used to compare scripts before and after change)
B121: 4 INDUSTRY TEAM REMINDER – POST QA SIGN OFF IN CM9
B123: Has the post-QA deliverable been CM9ed?
B124: Has the QA been signed off via action tracking in CM9 by the QA analyst and Director?

Sheet Export (hidden)
B3: EXPORT SHEET
B6: ='WS1-Application'!B23 -> Council Name: | E6: =IF(ISBLANK('WS1-Application'!D24),'WS1-Application'!D23,'WS1-Application'!D24) -> North Sydney Council
B7: Type of application | E7: ='WS2-Proposal'!K58 -> s508A
B8: Has existing SV? | E8: ='WS2-Proposal'!K41 -> no
B9: Years SV requested | E9: ='WS2-Proposal'!W62 -> 3
B10: Permanent or temporary? | E10: ='WS2-Proposal'!K60 -> Permanent
B11: No yrs if temporary | E11: ='WS2-Proposal'!K62 -> 0
E16: Expiry date
B17: ='WS2-Proposal'!C44 -> 1st Expiring SV | E17: ='WS2-Proposal'!K44 -> na
B18: ='WS2-Proposal'!C45 -> 2nd Expiring SV | E18: ='WS2-Proposal'!K45 -> na
B23: ='WS2-Proposal'!B68 -> b. Requested annual percentage increases and expiring SV amounts
J24: ='WS2-Proposal'!J72 -> Year 0 | K24: ='WS2-Proposal'!K72 -> Year 1 | L24: ='WS2-Proposal'!L72 -> Year 2 | M24: ='WS2-Proposal'!M72 -> Year 3 | N24: ='WS2-Proposal'!N72 -> Year 4 | O24: ='WS2-Proposal'!O72 -> Year 5 | P24: ='WS2-Proposal'!P72 -> Year 6 | Q24: ='WS2-Proposal'!Q72 -> Year 7
B25: ='WS2-Proposal'!B73 -> Financial year | J25: ='WS2-Proposal'!J73 -> 2025-26 | K25: ='WS2-Proposal'!K73 -> 2026-27 | L25: ='WS2-Proposal'!L73 -> 2027-28 | M25: ='WS2-Proposal'!M73 -> 2028-29 | N25: ='WS2-Proposal'!N73 -> 2029-30 | O25: ='WS2-Proposal'!O73 -> 2030-31 | P25: ='WS2-Proposal'!P73 -> 2031-32 | Q25: ='WS2-Proposal'!Q73 -> 2032-33
B26: ='WS2-Proposal'!B74 -> 1= included in SV period | K26: ='WS2-Proposal'!K74 -> 1 | L26: ='WS2-Proposal'!L74 -> 1 | M26: ='WS2-Proposal'!M74 -> 1 | N26: ='WS2-Proposal'!N74 -> 0 | O26: ='WS2-Proposal'!O74 -> 0 | P26: ='WS2-Proposal'!P74 -> 0 | Q26: ='WS2-Proposal'!Q74 -> 0
B27: ='WS2-Proposal'!B75 -> 0 = beyond temporary SV period | K27: ='WS2-Proposal'!K75 -> 1 | L27: ='WS2-Proposal'!L75 -> 1 | M27: ='WS2-Proposal'!M75 -> 1 | N27: ='WS2-Proposal'!N75 -> 1 | O27: ='WS2-Proposal'!O75 -> 1 | P27: ='WS2-Proposal'!P75 -> 1 | Q27: ='WS2-Proposal'!Q75 -> 1
B28: ='WS2-Proposal'!B76 -> Annual % increases
B29: ='WS2-Proposal'!B77 -> na - leave blank | K29: =IF($E$8="no",0,'WS2-Proposal'!K77) -> 0 | L29: =IF($E$8="no",0,'WS2-Proposal'!L77) -> 0 | M29: =IF($E$8="no",0,'WS2-Proposal'!M77) -> 0 | N29: =IF($E$8="no",0,'WS2-Proposal'!N77) -> 0 | O29: =IF($E$8="no",0,'WS2-Proposal'!O77) -> 0 | P29: =IF($E$8="no",0,'WS2-Proposal'!P77) -> 0 | Q29: =IF($E$8="no",0,'WS2-Proposal'!Q77) -> 0
B31: ='WS2-Proposal'!B80 -> Rate peg only | K31: ='WS2-Proposal'!K80 -> 0.04 | L31: ='WS2-Proposal'!L80 -> 0.03 | M31: ='WS2-Proposal'!M80 -> 0.03 | N31: ='WS2-Proposal'!N80 -> 0.03 | O31: ='WS2-Proposal'!O80 -> 0.03 | P31: ='WS2-Proposal'!P80 -> 0.03 | Q31: ='WS2-Proposal'!Q80 -> 0.03
B32: ='WS2-Proposal'!B81 -> na - No existing SV above rate peg | K32: ='WS2-Proposal'!K81 -> 0 | L32: ='WS2-Proposal'!L81 -> 0 | M32: ='WS2-Proposal'!M81 -> 0 | N32: ='WS2-Proposal'!N81 -> 0 | O32: ='WS2-Proposal'!O81 -> 0 | P32: ='WS2-Proposal'!P81 -> 0 | Q32: ='WS2-Proposal'!Q81 -> 0
B33: ='WS2-Proposal'!B82 -> Percentage above the rate peg | K33: ='WS2-Proposal'!K82 -> 0.19 | L33: ='WS2-Proposal'!L82 -> 0.1158 | M33: ='WS2-Proposal'!M82 -> 0.0532 | N33: ='WS2-Proposal'!N82 -> 0 | O33: ='WS2-Proposal'!O82 -> 0 | P33: ='WS2-Proposal'!P82 -> 0 | Q33: ='WS2-Proposal'!Q82 -> 0
B34: ='WS2-Proposal'!B83 -> Na - ignore this row - Not a combined SV | K34: =CHOOSE('WS2-Proposal'!$W$66,'WS2-Proposal'!K83,0) -> 0 | L34: =CHOOSE('WS2-Proposal'!$W$66,'WS2-Proposal'!L83,0) -> 0 | M34: =CHOOSE('WS2-Proposal'!$W$66,'WS2-Proposal'!M83,0) -> 0 | N34: =CHOOSE('WS2-Proposal'!$W$66,'WS2-Proposal'!N83,0) -> 0 | O34: =CHOOSE('WS2-Proposal'!$W$66,'WS2-Proposal'!O83,0) -> 0 | P34: =CHOOSE('WS2-Proposal'!$W$66,'WS2-Proposal'!P83,0) -> 0 | Q34: =CHOOSE('WS2-Proposal'!$W$66,'WS2-Proposal'!Q83,0) -> 0
B35: ='WS2-Proposal'!B84 -> Crown Land adjustment | K35: ='WS2-Proposal'!K84 -> 0 | L35: ='WS2-Proposal'!L84 -> 0 | M35: ='WS2-Proposal'!M84 -> 0 | N35: ='WS2-Proposal'!N84 -> 0 | O35: ='WS2-Proposal'!O84 -> 0 | P35: ='WS2-Proposal'!P84 -> 0 | Q35: ='WS2-Proposal'!Q84 -> 0
B36: ='WS2-Proposal'!B85 -> Proposed SV | K36: =IF(K27=0,0,IF(K26=0,K31+K32,'WS2-Proposal'!K85)) -> 0.23 | L36: =IF(L27=0,0,IF(L26=0,L31+L32,'WS2-Proposal'!L85)) -> 0.1458 | M36: =IF(M27=0,0,IF(M26=0,M31+M32,'WS2-Proposal'!M85)) -> 0.0832 | N36: =IF(N27=0,0,IF(N26=0,N31+N32,'WS2-Proposal'!N85)) -> 0.03 | O36: =IF(O27=0,0,IF(O26=0,O31+O32,'WS2-Proposal'!O85)) -> 0.03 | P36: =IF(P27=0,0,IF(P26=0,P31+P32,'WS2-Proposal'!P85)) -> 0.03 | Q36: =IF(Q27=0,0,IF(Q26=0,Q31+Q32,'WS2-Proposal'!Q85)) -> 0.03
B37: ='WS2-Proposal'!B86 -> Cumulative % increase
B38: ='WS2-Proposal'!B87 -> Rate peg only | K38: ='WS2-Proposal'!K87 -> 0.04 | L38: ='WS2-Proposal'!L87 -> 0.0712 | M38: ='WS2-Proposal'!M87 -> 0.103336 | N38: ='WS2-Proposal'!N87 -> 0.13643608 | O38: ='WS2-Proposal'!O87 -> 0.1705291624 | P38: ='WS2-Proposal'!P87 -> 0.2056450373 | Q38: ='WS2-Proposal'!Q87 -> 0.2418143884
B39: ='WS2-Proposal'!B88 -> Plus: additional increases | K39: ='WS2-Proposal'!K88 -> 0.19 | L39: ='WS2-Proposal'!L88 -> 0.338134 | M39: ='WS2-Proposal'!M88 -> 0.4232545888 | N39: ='WS2-Proposal'!N88 -> 0 | O39: ='WS2-Proposal'!O88 -> 0 | P39: ='WS2-Proposal'!P88 -> 0 | Q39: ='WS2-Proposal'!Q88 -> 0
B40: ='WS2-Proposal'!B89 -> Proposed SV | K40: ='WS2-Proposal'!K89 -> 0.23 | L40: ='WS2-Proposal'!L89 -> 0.409334 | M40: ='WS2-Proposal'!M89 -> 0.5265905888 | N40: ='WS2-Proposal'!N89 -> 0.5723883065 | O40: ='WS2-Proposal'!O89 -> 0.6195599557 | P40: ='WS2-Proposal'!P89 -> 0.6681467543 | Q40: ='WS2-Proposal'!Q89 -> 0.718191157
B42: ='WS2-Proposal'!B91 -> c. Expiring special variations (ESV)
B43: ='WS2-Proposal'!B92 -> $ value of ESV | K43: ='WS2-Proposal'!K92 -> 0 | L43: ='WS2-Proposal'!L92 -> 0 | M43: ='WS2-Proposal'!M92 -> 0 | N43: ='WS2-Proposal'!N92 -> 0 | O43: ='WS2-Proposal'!O92 -> 0 | P43: ='WS2-Proposal'!P92 -> 0 | Q43: ='WS2-Proposal'!Q92 -> 0
B44: ='WS2-Proposal'!B93 -> % value of ESV | K44: ='WS2-Proposal'!K93 -> 0 | L44: ='WS2-Proposal'!L93 -> 0 | M44: ='WS2-Proposal'!M93 -> 0 | N44: ='WS2-Proposal'!N93 -> 0 | O44: ='WS2-Proposal'!O93 -> 0 | P44: ='WS2-Proposal'!P93 -> 0 | Q44: ='WS2-Proposal'!Q93 -> 0
B45: check = 0 | K45: =K36-SUM(K31:K35) -> 0 | L45: 0 | M45: 0 | N45: 0 | O45: 0 | P45: 0 | Q45: 0
B51: ='WS0 - Input data'!B$54 -> Year number | G51: ='WS0 - Input data'!G$55 -> Hist yr -3 | H51: ='WS0 - Input data'!H$55 -> Hist yr -2 | I51: ='WS0 - Input data'!I$55 -> Hist yr -1 | J51: ='WS0 - Input data'!J$55 -> Year 0 | K51: ='WS0 - Input data'!K$55 -> Year 1 | L51: ='WS0 - Input data'!L$55 -> Year 2 | M51: ='WS0 - Input data'!M$55 -> Year 3 | N51: ='WS0 - Input data'!N$55 -> Year 4 | O51: ='WS0 - Input data'!O$55 -> Year 5 | P51: ='WS0 - Input data'!P$55 -> Year 6 | Q51: ='WS0 - Input data'!Q$55 -> Year 7 | R51: ='WS0 - Input data'!R$55 -> Year 8 | S51: ='WS0 - Input data'!S$55 -> Year 9 | T51: ='WS0 - Input data'!T$55 -> Year 10 | U51: ='WS6 - PGI summary'!R79 -> Total increase | V51: ='WS6 - PGI summary'!S79 -> 0
B52: ='WS0 - Input data'!B$58 -> Financial year | G52: ='WS0 - Input data'!G$58 -> 2022-23 | H52: ='WS0 - Input data'!H$58 -> 2023-24 | I52: ='WS0 - Input data'!I$58 -> 2024-25 | J52: ='WS0 - Input data'!J$58 -> 2025-26 | K52: ='WS0 - Input data'!K$58 -> 2026-27 | L52: ='WS0 - Input data'!L$58 -> 2027-28 | M52: ='WS0 - Input data'!M$58 -> 2028-29 | N52: ='WS0 - Input data'!N$58 -> 2029-30 | O52: ='WS0 - Input data'!O$58 -> 2030-31 | P52: ='WS0 - Input data'!P$58 -> 2031-32 | Q52: ='WS0 - Input data'!Q$58 -> 2032-33 | R52: ='WS0 - Input data'!R$58 -> 2033-34 | S52: ='WS0 - Input data'!S$58 -> 2034-35 | T52: ='WS0 - Input data'!T$58 -> 2035-36 | U52: ='WS6 - PGI summary'!R80 -> $ nominal | V52: ='WS6 - PGI summary'!S80 -> %
B54: ='WS6 - PGI summary'!B84 -> PGI with proposed SV
B55: ='WS6 - PGI summary'!B85 -> Prior year Notional General Income (NGI) | D55: ='WS6 - PGI summary'!D85 -> $ nominal | K55: ='WS6 - PGI summary'!K85 -> 64858353.71 | L55: ='WS6 - PGI summary'!L85 -> 79775209.07 | M55: ='WS6 - PGI summary'!M85 -> 91406434.55 | N55: ='WS6 - PGI summary'!N85 -> 99011449.9 | O55: ='WS6 - PGI summary'!O85 -> 101981793.4 | P55: ='WS6 - PGI summary'!P85 -> 105041247.2 | Q55: ='WS6 - PGI summary'!Q85 -> 108192484.6
B56: ='WS6 - PGI summary'!B86 -> less: expiry of a prior special variation | D56: ='WS6 - PGI summary'!D86 -> $ nominal | K56: ='WS6 - PGI summary'!K86 -> 0 | L56: ='WS6 - PGI summary'!L86 -> 0 | M56: ='WS6 - PGI summary'!M86 -> 0 | N56: ='WS6 - PGI summary'!N86 -> 0 | O56: ='WS6 - PGI summary'!O86 -> 0 | P56: ='WS6 - PGI summary'!P86 -> 0 | Q56: ='WS6 - PGI summary'!Q86 -> 0
B57: ='WS6 - PGI summary'!B87 -> Adjusted Notional General income | D57: ='WS6 - PGI summary'!D87 -> $ nominal | K57: ='WS6 - PGI summary'!K87 -> 64858353.71 | L57: ='WS6 - PGI summary'!L87 -> 79775209.07 | M57: ='WS6 - PGI summary'!M87 -> 91406434.55 | N57: ='WS6 - PGI summary'!N87 -> 99011449.9 | O57: ='WS6 - PGI summary'!O87 -> 101981793.4 | P57: ='WS6 - PGI summary'!P87 -> 105041247.2 | Q57: ='WS6 - PGI summary'!Q87 -> 108192484.6
B59: ='WS6 - PGI summary'!B89 -> plus: rate peg increase | D59: ='WS6 - PGI summary'!D89 -> $ nominal | K59: ='WS6 - PGI summary'!K89 -> 2594334.149 | L59: ='WS6 - PGI summary'!L89 -> 2393256.272 | M59: ='WS6 - PGI summary'!M89 -> 2742193.036 | N59: ='WS6 - PGI summary'!N89 -> 2970343.497 | O59: ='WS6 - PGI summary'!O89 -> 3059453.802 | P59: ='WS6 - PGI summary'!P89 -> 3151237.416 | Q59: ='WS6 - PGI summary'!Q89 -> 3245774.539
B60: ='WS6 - PGI summary'!B90 -> plus: na | D60: ='WS6 - PGI summary'!D90 -> $ nominal | K60: ='WS6 - PGI summary'!K90 -> 0 | L60: ='WS6 - PGI summary'!L90 -> 0 | M60: ='WS6 - PGI summary'!M90 -> 0 | N60: ='WS6 - PGI summary'!N90 -> 0 | O60: ='WS6 - PGI summary'!O90 -> 0 | P60: ='WS6 - PGI summary'!P90 -> 0 | Q60: ='WS6 - PGI summary'!Q90 -> 0
B61: ='WS6 - PGI summary'!B91 -> plus: additional increase | D61: ='WS6 - PGI summary'!D91 -> $ nominal | K61: ='WS6 - PGI summary'!K91 -> 12323087.21 | L61: ='WS6 - PGI summary'!L91 -> 9237969.21 | M61: ='WS6 - PGI summary'!M91 -> 4862822.318 | N61: ='WS6 - PGI summary'!N91 -> 0 | O61: ='WS6 - PGI summary'!O91 -> 0 | P61: ='WS6 - PGI summary'!P91 -> 0 | Q61: ='WS6 - PGI summary'!Q91 -> 0
B62: ='WS6 - PGI summary'!B92 -> plus: na | D62: ='WS6 - PGI summary'!D92 -> $ nominal | K62: ='WS6 - PGI summary'!K92 -> 0 | L62: ='WS6 - PGI summary'!L92 -> 0 | M62: ='WS6 - PGI summary'!M92 -> 0 | N62: ='WS6 - PGI summary'!N92 -> 0 | O62: ='WS6 - PGI summary'!O92 -> 0 | P62: ='WS6 - PGI summary'!P92 -> 0 | Q62: ='WS6 - PGI summary'!Q92 -> 0
B63: ='WS6 - PGI summary'!B93 -> plus: crown land adjustment | D63: ='WS6 - PGI summary'!D93 -> $ nominal | K63: ='WS6 - PGI summary'!K93 -> 0 | L63: ='WS6 - PGI summary'!L93 -> 0 | M63: ='WS6 - PGI summary'!M93 -> 0 | N63: ='WS6 - PGI summary'!N93 -> 0 | O63: ='WS6 - PGI summary'!O93 -> 0 | P63: ='WS6 - PGI summary'!P93 -> 0 | Q63: ='WS6 - PGI summary'!Q93 -> 0
B64: ='WS6 - PGI summary'!B94 -> Total proposed SV | D64: ='WS6 - PGI summary'!D94 -> $ nominal | K64: ='WS6 - PGI summary'!K94 -> 14917421.35 | L64: ='WS6 - PGI summary'!L94 -> 11631225.48 | M64: ='WS6 - PGI summary'!M94 -> 7605015.354 | N64: ='WS6 - PGI summary'!N94 -> 2970343.497 | O64: ='WS6 - PGI summary'!O94 -> 3059453.802 | P64: ='WS6 - PGI summary'!P94 -> 3151237.416 | Q64: ='WS6 - PGI summary'!Q94 -> 3245774.539
B66: ='WS6 - PGI summary'!B96 -> Notional General Income after SV applied | D66: ='WS6 - PGI summary'!D96 -> $ nominal | K66: ='WS6 - PGI summary'!K96 -> 79775775.07 | L66: ='WS6 - PGI summary'!L96 -> 91406434.55 | M66: ='WS6 - PGI summary'!M96 -> 99011449.9 | N66: ='WS6 - PGI summary'!N96 -> 101981793.4 | O66: ='WS6 - PGI summary'!O96 -> 105041247.2 | P66: ='WS6 - PGI summary'!P96 -> 108192484.6 | Q66: ='WS6 - PGI summary'!Q96 -> 111438259.2
B67: ='WS6 - PGI summary'!B97 -> plus: other 1st-year adjustments | D67: ='WS6 - PGI summary'!D97 -> $ nominal | K67: ='WS6 - PGI summary'!K97 -> -566 | L67: ='WS6 - PGI summary'!L97 -> 0 | M67: ='WS6 - PGI summary'!M97 -> 0 | N67: ='WS6 - PGI summary'!N97 -> 0 | O67: ='WS6 - PGI summary'!O97 -> 0 | P67: ='WS6 - PGI summary'!P97 -> 0 | Q67: ='WS6 - PGI summary'!Q97 -> 0
B68: ='WS6 - PGI summary'!B98 -> PGI with proposed SV | D68: ='WS6 - PGI summary'!D98 -> $ nominal | J68: ='WS6 - PGI summary'!J98 -> 64858353.71 | K68: ='WS6 - PGI summary'!K98 -> 79775209.07 | L68: ='WS6 - PGI summary'!L98 -> 91406434.55 | M68: ='WS6 - PGI summary'!M98 -> 99011449.9 | N68: ='WS6 - PGI summary'!N98 -> 101981793.4 | O68: ='WS6 - PGI summary'!O98 -> 105041247.2 | P68: ='WS6 - PGI summary'!P98 -> 108192484.6 | Q68: ='WS6 - PGI summary'!Q98 -> 111438259.2 | U68: ='WS6 - PGI summary'!R98 -> 34153096.19 | V68: ='WS6 - PGI summary'!S98 -> 0.5265797578
B69: check = 0 | K69: =K55-K56+SUM(K59:K63)+K67-K68 -> 0 | L69: =L55-L56+SUM(L59:L63)+L67-L68 -> 0 | M69: 0 | N69: 0 | O69: 0 | P69: 0 | Q69: 0 | U69: =INDEX(J68:Q68,1,$E$9+1)-J68-U68 -> 0
B71: ='WS6 - PGI summary'!B101 -> PGI if only the rate peg applied
B72: ='WS6 - PGI summary'!B102 -> Prior year Notional General Income (NGI) | D72: ='WS6 - PGI summary'!D102 -> $ nominal | K72: ='WS6 - PGI summary'!K102 -> 64858353.71 | L72: ='WS6 - PGI summary'!L102 -> 67452121.86 | M72: ='WS6 - PGI summary'!M102 -> 69475685.52 | N72: ='WS6 - PGI summary'!N102 -> 71559956.08 | O72: ='WS6 - PGI summary'!O102 -> 73706754.77 | P72: ='WS6 - PGI summary'!P102 -> 75917957.41 | Q72: ='WS6 - PGI summary'!Q102 -> 78195496.13
B73: ='WS6 - PGI summary'!B103 -> less: expiry of a prior special variation | D73: ='WS6 - PGI summary'!D103 -> $ nominal | K73: ='WS6 - PGI summary'!K103 -> 0 | L73: ='WS6 - PGI summary'!L103 -> 0 | M73: ='WS6 - PGI summary'!M103 -> 0 | N73: ='WS6 - PGI summary'!N103 -> 0 | O73: ='WS6 - PGI summary'!O103 -> 0 | P73: ='WS6 - PGI summary'!P103 -> 0 | Q73: ='WS6 - PGI summary'!Q103 -> 0
B74: ='WS6 - PGI summary'!B104 -> Adjusted Notional General income | D74: ='WS6 - PGI summary'!D104 -> $ nominal | K74: ='WS6 - PGI summary'!K104 -> 64858353.71 | L74: ='WS6 - PGI summary'!L104 -> 67452121.86 | M74: ='WS6 - PGI summary'!M104 -> 69475685.52 | N74: ='WS6 - PGI summary'!N104 -> 71559956.08 | O74: ='WS6 - PGI summary'!O104 -> 73706754.77 | P74: ='WS6 - PGI summary'!P104 -> 75917957.41 | Q74: ='WS6 - PGI summary'!Q104 -> 78195496.13
B75: ='WS6 - PGI summary'!B105 -> plus: rate peg increase | D75: ='WS6 - PGI summary'!D105 -> $ nominal | K75: ='WS6 - PGI summary'!K105 -> 2594334.149 | L75: ='WS6 - PGI summary'!L105 -> 2023563.656 | M75: ='WS6 - PGI summary'!M105 -> 2084270.566 | N75: ='WS6 - PGI summary'!N105 -> 2146798.682 | O75: ='WS6 - PGI summary'!O105 -> 2211202.643 | P75: ='WS6 - PGI summary'!P105 -> 2277538.722 | Q75: ='WS6 - PGI summary'!Q105 -> 2345864.884
B76: ='WS6 - PGI summary'!B106 -> plus: na | D76: ='WS6 - PGI summary'!D106 -> $ nominal | K76: ='WS6 - PGI summary'!K106 -> 0 | L76: ='WS6 - PGI summary'!L106 -> 0 | M76: ='WS6 - PGI summary'!M106 -> 0 | N76: ='WS6 - PGI summary'!N106 -> 0 | O76: ='WS6 - PGI summary'!O106 -> 0 | P76: ='WS6 - PGI summary'!P106 -> 0 | Q76: ='WS6 - PGI summary'!Q106 -> 0
B77: ='WS6 - PGI summary'!B107 -> plus: crown land adjustment | D77: ='WS6 - PGI summary'!D107 -> $ nominal | K77: ='WS6 - PGI summary'!K107 -> 0 | L77: ='WS6 - PGI summary'!L107 -> 0 | M77: ='WS6 - PGI summary'!M107 -> 0 | N77: ='WS6 - PGI summary'!N107 -> 0 | O77: ='WS6 - PGI summary'!O107 -> 0 | P77: ='WS6 - PGI summary'!P107 -> 0 | Q77: ='WS6 - PGI summary'!Q107 -> 0
B78: ='WS6 - PGI summary'!B108 -> plus: other 1st-year adjustments | D78: ='WS6 - PGI summary'!D108 -> $ nominal | K78: ='WS6 - PGI summary'!K108 -> -566 | L78: ='WS6 - PGI summary'!L108 -> 0 | M78: ='WS6 - PGI summary'!M108 -> 0 | N78: ='WS6 - PGI summary'!N108 -> 0 | O78: ='WS6 - PGI summary'!O108 -> 0 | P78: ='WS6 - PGI summary'!P108 -> 0 | Q78: ='WS6 - PGI summary'!Q108 -> 0
B79: ='WS6 - PGI summary'!B109 -> PGI if only the rate peg applied | D79: ='WS6 - PGI summary'!D109 -> $ nominal | J79: ='WS6 - PGI summary'!J109 -> 64858353.71 | K79: ='WS6 - PGI summary'!K109 -> 67452121.86 | L79: ='WS6 - PGI summary'!L109 -> 69475685.52 | M79: ='WS6 - PGI summary'!M109 -> 71559956.08 | N79: ='WS6 - PGI summary'!N109 -> 73706754.77 | O79: ='WS6 - PGI summary'!O109 -> 75917957.41 | P79: ='WS6 - PGI summary'!P109 -> 78195496.13 | Q79: ='WS6 - PGI summary'!Q109 -> 80541361.01 | U79: ='WS6 - PGI summary'!R109 -> 6701602.37 | V79: ='WS6 - PGI summary'!S109 -> 0.1033267418
B80: check = 0 | K80: =K72-K73+SUM(K75:K78)-K79 -> 0 | L80: 0 | M80: 0 | N80: 0 | O80: 0 | P80: 0 | Q80: 0 | U80: =INDEX(J79:Q79,1,$E$9+1)-J79-U79 -> 0
B95: IMPACT ON AVERAGE RATES
B96: =B$51 -> Year number | G96: =G$51 -> Hist yr -3 | H96: Hist yr -2 | I96: Hist yr -1 | J96: Year 0 | K96: Year 1 | L96: Year 2 | M96: Year 3 | N96: Year 4 | O96: Year 5 | P96: Year 6 | Q96: Year 7 | R96: Year 8 | S96: Year 9 | T96: Year 10
B97: =B$52 -> Financial year | G97: =G$52 -> 2022-23 | H97: 2023-24 | I97: 2024-25 | J97: 2025-26 | K97: 2026-27 | L97: 2027-28 | M97: 2028-29 | N97: 2029-30 | O97: 2030-31 | P97: 2031-32 | Q97: 2032-33 | R97: 2033-34 | S97: 2034-35 | T97: 2035-36
B99: ='WS7 - Impact on Rates'!B25 -> Table 7.1: Minimum Rates - with proposed special variation
B100: ='WS7 - Impact on Rates'!B28 -> Residential | C100: ='WS7 - Impact on Rates'!C28 -> Residential General | D100: ='WS7 - Impact on Rates'!D28 -> $ nominal p.a. | I100: ='WS7 - Impact on Rates'!I28 -> 715.24 | J100: ='WS7 - Impact on Rates'!J28 -> 743.85 | K100: ='WS7 - Impact on Rates'!K28 -> 970.72 | L100: ='WS7 - Impact on Rates'!L28 -> 1116.32 | M100: ='WS7 - Impact on Rates'!M28 -> 1216.79 | N100: ='WS7 - Impact on Rates'!N28 -> 1253.2937 | O100: ='WS7 - Impact on Rates'!O28 -> 1290.892511 | P100: ='WS7 - Impact on Rates'!P28 -> 1329.619286 | Q100: ='WS7 - Impact on Rates'!Q28 -> 1369.507865
B101: ='WS7 - Impact on Rates'!B29 -> Residential | C101: ='WS7 - Impact on Rates'!C29 -> Residential Infrastructure Levy | D101: ='WS7 - Impact on Rates'!D29 -> $ nominal p.a. | I101: ='WS7 - Impact on Rates'!I29 -> 0 | J101: ='WS7 - Impact on Rates'!J29 -> 0 | K101: ='WS7 - Impact on Rates'!K29 -> 0 | L101: ='WS7 - Impact on Rates'!L29 -> 0 | M101: ='WS7 - Impact on Rates'!M29 -> 0 | N101: ='WS7 - Impact on Rates'!N29 -> 0 | O101: ='WS7 - Impact on Rates'!O29 -> 0 | P101: ='WS7 - Impact on Rates'!P29 -> 0 | Q101: ='WS7 - Impact on Rates'!Q29 -> 0
B102: ='WS7 - Impact on Rates'!B30 -> Residential | C102: ='WS7 - Impact on Rates'!C30 -> Residential Enviromental Levy | D102: ='WS7 - Impact on Rates'!D30 -> $ nominal p.a. | I102: ='WS7 - Impact on Rates'!I30 -> 0 | J102: ='WS7 - Impact on Rates'!J30 -> 0 | K102: ='WS7 - Impact on Rates'!K30 -> 0 | L102: ='WS7 - Impact on Rates'!L30 -> 0 | M102: ='WS7 - Impact on Rates'!M30 -> 0 | N102: ='WS7 - Impact on Rates'!N30 -> 0 | O102: ='WS7 - Impact on Rates'!O30 -> 0 | P102: ='WS7 - Impact on Rates'!P30 -> 0 | Q102: ='WS7 - Impact on Rates'!Q30 -> 0
B103: ='WS7 - Impact on Rates'!B31 -> Residential | C103: ='WS7 - Impact on Rates'!C31 ->  | D103: ='WS7 - Impact on Rates'!D31 -> $ nominal p.a. | I103: ='WS7 - Impact on Rates'!I31 -> 0 | J103: ='WS7 - Impact on Rates'!J31 -> 0 | K103: ='WS7 - Impact on Rates'!K31 -> 0 | L103: ='WS7 - Impact on Rates'!L31 -> 0 | M103: ='WS7 - Impact on Rates'!M31 -> 0 | N103: ='WS7 - Impact on Rates'!N31 -> 0 | O103: ='WS7 - Impact on Rates'!O31 -> 0 | P103: ='WS7 - Impact on Rates'!P31 -> 0 | Q103: ='WS7 - Impact on Rates'!Q31 -> 0
B104: ='WS7 - Impact on Rates'!B32 -> Residential | C104: ='WS7 - Impact on Rates'!C32 ->  | D104: ='WS7 - Impact on Rates'!D32 -> $ nominal p.a. | I104: ='WS7 - Impact on Rates'!I32 -> 0 | J104: ='WS7 - Impact on Rates'!J32 -> 0 | K104: ='WS7 - Impact on Rates'!K32 -> 0 | L104: ='WS7 - Impact on Rates'!L32 -> 0 | M104: ='WS7 - Impact on Rates'!M32 -> 0 | N104: ='WS7 - Impact on Rates'!N32 -> 0 | O104: ='WS7 - Impact on Rates'!O32 -> 0 | P104: ='WS7 - Impact on Rates'!P32 -> 0 | Q104: ='WS7 - Impact on Rates'!Q32 -> 0
B105: ='WS7 - Impact on Rates'!B33 -> Residential | C105: ='WS7 - Impact on Rates'!C33 ->  | D105: ='WS7 - Impact on Rates'!D33 -> $ nominal p.a. | I105: ='WS7 - Impact on Rates'!I33 -> 0 | J105: ='WS7 - Impact on Rates'!J33 -> 0 | K105: ='WS7 - Impact on Rates'!K33 -> 0 | L105: ='WS7 - Impact on Rates'!L33 -> 0 | M105: ='WS7 - Impact on Rates'!M33 -> 0 | N105: ='WS7 - Impact on Rates'!N33 -> 0 | O105: ='WS7 - Impact on Rates'!O33 -> 0 | P105: ='WS7 - Impact on Rates'!P33 -> 0 | Q105: ='WS7 - Impact on Rates'!Q33 -> 0
B106: ='WS7 - Impact on Rates'!B34 -> Residential | C106: ='WS7 - Impact on Rates'!C34 ->  | D106: ='WS7 - Impact on Rates'!D34 -> $ nominal p.a. | I106: ='WS7 - Impact on Rates'!I34 -> 0 | J106: ='WS7 - Impact on Rates'!J34 -> 0 | K106: ='WS7 - Impact on Rates'!K34 -> 0 | L106: ='WS7 - Impact on Rates'!L34 -> 0 | M106: ='WS7 - Impact on Rates'!M34 -> 0 | N106: ='WS7 - Impact on Rates'!N34 -> 0 | O106: ='WS7 - Impact on Rates'!O34 -> 0 | P106: ='WS7 - Impact on Rates'!P34 -> 0 | Q106: ='WS7 - Impact on Rates'!Q34 -> 0
B107: ='WS7 - Impact on Rates'!B35 -> Residential | C107: ='WS7 - Impact on Rates'!C35 ->  | D107: ='WS7 - Impact on Rates'!D35 -> $ nominal p.a. | I107: ='WS7 - Impact on Rates'!I35 -> 0 | J107: ='WS7 - Impact on Rates'!J35 -> 0 | K107: ='WS7 - Impact on Rates'!K35 -> 0 | L107: ='WS7 - Impact on Rates'!L35 -> 0 | M107: ='WS7 - Impact on Rates'!M35 -> 0 | N107: ='WS7 - Impact on Rates'!N35 -> 0 | O107: ='WS7 - Impact on Rates'!O35 -> 0 | P107: ='WS7 - Impact on Rates'!P35 -> 0 | Q107: ='WS7 - Impact on Rates'!Q35 -> 0
B108: ='WS7 - Impact on Rates'!B36 -> Residential | C108: ='WS7 - Impact on Rates'!C36 ->  | D108: ='WS7 - Impact on Rates'!D36 -> $ nominal p.a. | I108: ='WS7 - Impact on Rates'!I36 -> 0 | J108: ='WS7 - Impact on Rates'!J36 -> 0 | K108: ='WS7 - Impact on Rates'!K36 -> 0 | L108: ='WS7 - Impact on Rates'!L36 -> 0 | M108: ='WS7 - Impact on Rates'!M36 -> 0 | N108: ='WS7 - Impact on Rates'!N36 -> 0 | O108: ='WS7 - Impact on Rates'!O36 -> 0 | P108: ='WS7 - Impact on Rates'!P36 -> 0 | Q108: ='WS7 - Impact on Rates'!Q36 -> 0
B109: ='WS7 - Impact on Rates'!B37 -> Residential | C109: ='WS7 - Impact on Rates'!C37 ->  | D109: ='WS7 - Impact on Rates'!D37 -> $ nominal p.a. | I109: ='WS7 - Impact on Rates'!I37 -> 0 | J109: ='WS7 - Impact on Rates'!J37 -> 0 | K109: ='WS7 - Impact on Rates'!K37 -> 0 | L109: ='WS7 - Impact on Rates'!L37 -> 0 | M109: ='WS7 - Impact on Rates'!M37 -> 0 | N109: ='WS7 - Impact on Rates'!N37 -> 0 | O109: ='WS7 - Impact on Rates'!O37 -> 0 | P109: ='WS7 - Impact on Rates'!P37 -> 0 | Q109: ='WS7 - Impact on Rates'!Q37 -> 0
B110: ='WS7 - Impact on Rates'!B38 -> Residential | C110: ='WS7 - Impact on Rates'!C38 ->  | D110: ='WS7 - Impact on Rates'!D38 -> $ nominal p.a. | I110: ='WS7 - Impact on Rates'!I38 -> 0 | J110: ='WS7 - Impact on Rates'!J38 -> 0 | K110: ='WS7 - Impact on Rates'!K38 -> 0 | L110: ='WS7 - Impact on Rates'!L38 -> 0 | M110: ='WS7 - Impact on Rates'!M38 -> 0 | N110: ='WS7 - Impact on Rates'!N38 -> 0 | O110: ='WS7 - Impact on Rates'!O38 -> 0 | P110: ='WS7 - Impact on Rates'!P38 -> 0 | Q110: ='WS7 - Impact on Rates'!Q38 -> 0
B111: ='WS7 - Impact on Rates'!B39 -> Residential | C111: ='WS7 - Impact on Rates'!C39 ->  | D111: ='WS7 - Impact on Rates'!D39 -> $ nominal p.a. | I111: ='WS7 - Impact on Rates'!I39 -> 0 | J111: ='WS7 - Impact on Rates'!J39 -> 0 | K111: ='WS7 - Impact on Rates'!K39 -> 0 | L111: ='WS7 - Impact on Rates'!L39 -> 0 | M111: ='WS7 - Impact on Rates'!M39 -> 0 | N111: ='WS7 - Impact on Rates'!N39 -> 0 | O111: ='WS7 - Impact on Rates'!O39 -> 0 | P111: ='WS7 - Impact on Rates'!P39 -> 0 | Q111: ='WS7 - Impact on Rates'!Q39 -> 0
B112: ='WS7 - Impact on Rates'!B40 -> Residential | C112: ='WS7 - Impact on Rates'!C40 ->  | D112: ='WS7 - Impact on Rates'!D40 -> $ nominal p.a. | I112: ='WS7 - Impact on Rates'!I40 -> 0 | J112: ='WS7 - Impact on Rates'!J40 -> 0 | K112: ='WS7 - Impact on Rates'!K40 -> 0 | L112: ='WS7 - Impact on Rates'!L40 -> 0 | M112: ='WS7 - Impact on Rates'!M40 -> 0 | N112: ='WS7 - Impact on Rates'!N40 -> 0 | O112: ='WS7 - Impact on Rates'!O40 -> 0 | P112: ='WS7 - Impact on Rates'!P40 -> 0 | Q112: ='WS7 - Impact on Rates'!Q40 -> 0
B113: ='WS7 - Impact on Rates'!B41 -> Residential | C113: ='WS7 - Impact on Rates'!C41 ->  | D113: ='WS7 - Impact on Rates'!D41 -> $ nominal p.a. | I113: ='WS7 - Impact on Rates'!I41 -> 0 | J113: ='WS7 - Impact on Rates'!J41 -> 0 | K113: ='WS7 - Impact on Rates'!K41 -> 0 | L113: ='WS7 - Impact on Rates'!L41 -> 0 | M113: ='WS7 - Impact on Rates'!M41 -> 0 | N113: ='WS7 - Impact on Rates'!N41 -> 0 | O113: ='WS7 - Impact on Rates'!O41 -> 0 | P113: ='WS7 - Impact on Rates'!P41 -> 0 | Q113: ='WS7 - Impact on Rates'!Q41 -> 0
B114: ='WS7 - Impact on Rates'!B42 -> Residential | C114: ='WS7 - Impact on Rates'!C42 ->  | D114: ='WS7 - Impact on Rates'!D42 -> $ nominal p.a. | I114: ='WS7 - Impact on Rates'!I42 -> 0 | J114: ='WS7 - Impact on Rates'!J42 -> 0 | K114: ='WS7 - Impact on Rates'!K42 -> 0 | L114: ='WS7 - Impact on Rates'!L42 -> 0 | M114: ='WS7 - Impact on Rates'!M42 -> 0 | N114: ='WS7 - Impact on Rates'!N42 -> 0 | O114: ='WS7 - Impact on Rates'!O42 -> 0 | P114: ='WS7 - Impact on Rates'!P42 -> 0 | Q114: ='WS7 - Impact on Rates'!Q42 -> 0
B115: ='WS7 - Impact on Rates'!B43 -> Residential | C115: ='WS7 - Impact on Rates'!C43 ->  | D115: ='WS7 - Impact on Rates'!D43 -> $ nominal p.a. | I115: ='WS7 - Impact on Rates'!I43 -> 0 | J115: ='WS7 - Impact on Rates'!J43 -> 0 | K115: ='WS7 - Impact on Rates'!K43 -> 0 | L115: ='WS7 - Impact on Rates'!L43 -> 0 | M115: ='WS7 - Impact on Rates'!M43 -> 0 | N115: ='WS7 - Impact on Rates'!N43 -> 0 | O115: ='WS7 - Impact on Rates'!O43 -> 0 | P115: ='WS7 - Impact on Rates'!P43 -> 0 | Q115: ='WS7 - Impact on Rates'!Q43 -> 0
B116: ='WS7 - Impact on Rates'!B44 -> Residential | C116: ='WS7 - Impact on Rates'!C44 ->  | D116: ='WS7 - Impact on Rates'!D44 -> $ nominal p.a. | I116: ='WS7 - Impact on Rates'!I44 -> 0 | J116: ='WS7 - Impact on Rates'!J44 -> 0 | K116: ='WS7 - Impact on Rates'!K44 -> 0 | L116: ='WS7 - Impact on Rates'!L44 -> 0 | M116: ='WS7 - Impact on Rates'!M44 -> 0 | N116: ='WS7 - Impact on Rates'!N44 -> 0 | O116: ='WS7 - Impact on Rates'!O44 -> 0 | P116: ='WS7 - Impact on Rates'!P44 -> 0 | Q116: ='WS7 - Impact on Rates'!Q44 -> 0
B117: ='WS7 - Impact on Rates'!B45 -> Residential | C117: ='WS7 - Impact on Rates'!C45 ->  | D117: ='WS7 - Impact on Rates'!D45 -> $ nominal p.a. | I117: ='WS7 - Impact on Rates'!I45 -> 0 | J117: ='WS7 - Impact on Rates'!J45 -> 0 | K117: ='WS7 - Impact on Rates'!K45 -> 0 | L117: ='WS7 - Impact on Rates'!L45 -> 0 | M117: ='WS7 - Impact on Rates'!M45 -> 0 | N117: ='WS7 - Impact on Rates'!N45 -> 0 | O117: ='WS7 - Impact on Rates'!O45 -> 0 | P117: ='WS7 - Impact on Rates'!P45 -> 0 | Q117: ='WS7 - Impact on Rates'!Q45 -> 0
B118: ='WS7 - Impact on Rates'!B46 -> Residential | C118: ='WS7 - Impact on Rates'!C46 ->  | D118: ='WS7 - Impact on Rates'!D46 -> $ nominal p.a. | I118: ='WS7 - Impact on Rates'!I46 -> 0 | J118: ='WS7 - Impact on Rates'!J46 -> 0 | K118: ='WS7 - Impact on Rates'!K46 -> 0 | L118: ='WS7 - Impact on Rates'!L46 -> 0 | M118: ='WS7 - Impact on Rates'!M46 -> 0 | N118: ='WS7 - Impact on Rates'!N46 -> 0 | O118: ='WS7 - Impact on Rates'!O46 -> 0 | P118: ='WS7 - Impact on Rates'!P46 -> 0 | Q118: ='WS7 - Impact on Rates'!Q46 -> 0
B119: ='WS7 - Impact on Rates'!B47 -> Residential | C119: ='WS7 - Impact on Rates'!C47 ->  | D119: ='WS7 - Impact on Rates'!D47 -> $ nominal p.a. | I119: ='WS7 - Impact on Rates'!I47 -> 0 | J119: ='WS7 - Impact on Rates'!J47 -> 0 | K119: ='WS7 - Impact on Rates'!K47 -> 0 | L119: ='WS7 - Impact on Rates'!L47 -> 0 | M119: ='WS7 - Impact on Rates'!M47 -> 0 | N119: ='WS7 - Impact on Rates'!N47 -> 0 | O119: ='WS7 - Impact on Rates'!O47 -> 0 | P119: ='WS7 - Impact on Rates'!P47 -> 0 | Q119: ='WS7 - Impact on Rates'!Q47 -> 0
B120: ='WS7 - Impact on Rates'!B49 -> Business | C120: ='WS7 - Impact on Rates'!C49 -> Business General | D120: ='WS7 - Impact on Rates'!D49 -> $ nominal p.a. | I120: ='WS7 - Impact on Rates'!I49 -> 715.24 | J120: ='WS7 - Impact on Rates'!J49 -> 743.85 | K120: ='WS7 - Impact on Rates'!K49 -> 970.72 | L120: ='WS7 - Impact on Rates'!L49 -> 1116.32 | M120: ='WS7 - Impact on Rates'!M49 -> 1216.79 | N120: ='WS7 - Impact on Rates'!N49 -> 1253.2937 | O120: ='WS7 - Impact on Rates'!O49 -> 1290.892511 | P120: ='WS7 - Impact on Rates'!P49 -> 1329.619286 | Q120: ='WS7 - Impact on Rates'!Q49 -> 1369.507865
B121: ='WS7 - Impact on Rates'!B50 -> Business | C121: ='WS7 - Impact on Rates'!C50 -> Bussines Infrastructure Levy | D121: ='WS7 - Impact on Rates'!D50 -> $ nominal p.a. | I121: ='WS7 - Impact on Rates'!I50 -> 0 | J121: ='WS7 - Impact on Rates'!J50 -> 0 | K121: ='WS7 - Impact on Rates'!K50 -> 0 | L121: ='WS7 - Impact on Rates'!L50 -> 0 | M121: ='WS7 - Impact on Rates'!M50 -> 0 | N121: ='WS7 - Impact on Rates'!N50 -> 0 | O121: ='WS7 - Impact on Rates'!O50 -> 0 | P121: ='WS7 - Impact on Rates'!P50 -> 0 | Q121: ='WS7 - Impact on Rates'!Q50 -> 0
B122: ='WS7 - Impact on Rates'!B51 -> Business | C122: ='WS7 - Impact on Rates'!C51 -> Bussines Enviromental Levy | D122: ='WS7 - Impact on Rates'!D51 -> $ nominal p.a. | I122: ='WS7 - Impact on Rates'!I51 -> 0 | J122: ='WS7 - Impact on Rates'!J51 -> 0 | K122: ='WS7 - Impact on Rates'!K51 -> 0 | L122: ='WS7 - Impact on Rates'!L51 -> 0 | M122: ='WS7 - Impact on Rates'!M51 -> 0 | N122: ='WS7 - Impact on Rates'!N51 -> 0 | O122: ='WS7 - Impact on Rates'!O51 -> 0 | P122: ='WS7 - Impact on Rates'!P51 -> 0 | Q122: ='WS7 - Impact on Rates'!Q51 -> 0
B123: ='WS7 - Impact on Rates'!B52 -> Business | C123: ='WS7 - Impact on Rates'!C52 ->  | D123: ='WS7 - Impact on Rates'!D52 -> $ nominal p.a. | I123: ='WS7 - Impact on Rates'!I52 -> 0 | J123: ='WS7 - Impact on Rates'!J52 -> 0 | K123: ='WS7 - Impact on Rates'!K52 -> 0 | L123: ='WS7 - Impact on Rates'!L52 -> 0 | M123: ='WS7 - Impact on Rates'!M52 -> 0 | N123: ='WS7 - Impact on Rates'!N52 -> 0 | O123: ='WS7 - Impact on Rates'!O52 -> 0 | P123: ='WS7 - Impact on Rates'!P52 -> 0 | Q123: ='WS7 - Impact on Rates'!Q52 -> 0
B124: ='WS7 - Impact on Rates'!B53 -> Business | C124: ='WS7 - Impact on Rates'!C53 ->  | D124: ='WS7 - Impact on Rates'!D53 -> $ nominal p.a. | I124: ='WS7 - Impact on Rates'!I53 -> 0 | J124: ='WS7 - Impact on Rates'!J53 -> 0 | K124: ='WS7 - Impact on Rates'!K53 -> 0 | L124: ='WS7 - Impact on Rates'!L53 -> 0 | M124: ='WS7 - Impact on Rates'!M53 -> 0 | N124: ='WS7 - Impact on Rates'!N53 -> 0 | O124: ='WS7 - Impact on Rates'!O53 -> 0 | P124: ='WS7 - Impact on Rates'!P53 -> 0 | Q124: ='WS7 - Impact on Rates'!Q53 -> 0
B125: ='WS7 - Impact on Rates'!B54 -> Business | C125: ='WS7 - Impact on Rates'!C54 ->  | D125: ='WS7 - Impact on Rates'!D54 -> $ nominal p.a. | I125: ='WS7 - Impact on Rates'!I54 -> 0 | J125: ='WS7 - Impact on Rates'!J54 -> 0 | K125: ='WS7 - Impact on Rates'!K54 -> 0 | L125: ='WS7 - Impact on Rates'!L54 -> 0 | M125: ='WS7 - Impact on Rates'!M54 -> 0 | N125: ='WS7 - Impact on Rates'!N54 -> 0 | O125: ='WS7 - Impact on Rates'!O54 -> 0 | P125: ='WS7 - Impact on Rates'!P54 -> 0 | Q125: ='WS7 - Impact on Rates'!Q54 -> 0
B126: ='WS7 - Impact on Rates'!B55 -> Business | C126: ='WS7 - Impact on Rates'!C55 ->  | D126: ='WS7 - Impact on Rates'!D55 -> $ nominal p.a. | I126: ='WS7 - Impact on Rates'!I55 -> 0 | J126: ='WS7 - Impact on Rates'!J55 -> 0 | K126: ='WS7 - Impact on Rates'!K55 -> 0 | L126: ='WS7 - Impact on Rates'!L55 -> 0 | M126: ='WS7 - Impact on Rates'!M55 -> 0 | N126: ='WS7 - Impact on Rates'!N55 -> 0 | O126: ='WS7 - Impact on Rates'!O55 -> 0 | P126: ='WS7 - Impact on Rates'!P55 -> 0 | Q126: ='WS7 - Impact on Rates'!Q55 -> 0
B127: ='WS7 - Impact on Rates'!B56 -> Business | C127: ='WS7 - Impact on Rates'!C56 ->  | D127: ='WS7 - Impact on Rates'!D56 -> $ nominal p.a. | I127: ='WS7 - Impact on Rates'!I56 -> 0 | J127: ='WS7 - Impact on Rates'!J56 -> 0 | K127: ='WS7 - Impact on Rates'!K56 -> 0 | L127: ='WS7 - Impact on Rates'!L56 -> 0 | M127: ='WS7 - Impact on Rates'!M56 -> 0 | N127: ='WS7 - Impact on Rates'!N56 -> 0 | O127: ='WS7 - Impact on Rates'!O56 -> 0 | P127: ='WS7 - Impact on Rates'!P56 -> 0 | Q127: ='WS7 - Impact on Rates'!Q56 -> 0
B128: ='WS7 - Impact on Rates'!B57 -> Business | C128: ='WS7 - Impact on Rates'!C57 ->  | D128: ='WS7 - Impact on Rates'!D57 -> $ nominal p.a. | I128: ='WS7 - Impact on Rates'!I57 -> 0 | J128: ='WS7 - Impact on Rates'!J57 -> 0 | K128: ='WS7 - Impact on Rates'!K57 -> 0 | L128: ='WS7 - Impact on Rates'!L57 -> 0 | M128: ='WS7 - Impact on Rates'!M57 -> 0 | N128: ='WS7 - Impact on Rates'!N57 -> 0 | O128: ='WS7 - Impact on Rates'!O57 -> 0 | P128: ='WS7 - Impact on Rates'!P57 -> 0 | Q128: ='WS7 - Impact on Rates'!Q57 -> 0
B129: ='WS7 - Impact on Rates'!B58 -> Business | C129: ='WS7 - Impact on Rates'!C58 ->  | D129: ='WS7 - Impact on Rates'!D58 -> $ nominal p.a. | I129: ='WS7 - Impact on Rates'!I58 -> 0 | J129: ='WS7 - Impact on Rates'!J58 -> 0 | K129: ='WS7 - Impact on Rates'!K58 -> 0 | L129: ='WS7 - Impact on Rates'!L58 -> 0 | M129: ='WS7 - Impact on Rates'!M58 -> 0 | N129: ='WS7 - Impact on Rates'!N58 -> 0 | O129: ='WS7 - Impact on Rates'!O58 -> 0 | P129: ='WS7 - Impact on Rates'!P58 -> 0 | Q129: ='WS7 - Impact on Rates'!Q58 -> 0
B130: ='WS7 - Impact on Rates'!B59 -> Business | C130: ='WS7 - Impact on Rates'!C59 ->  | D130: ='WS7 - Impact on Rates'!D59 -> $ nominal p.a. | I130: ='WS7 - Impact on Rates'!I59 -> 0 | J130: ='WS7 - Impact on Rates'!J59 -> 0 | K130: ='WS7 - Impact on Rates'!K59 -> 0 | L130: ='WS7 - Impact on Rates'!L59 -> 0 | M130: ='WS7 - Impact on Rates'!M59 -> 0 | N130: ='WS7 - Impact on Rates'!N59 -> 0 | O130: ='WS7 - Impact on Rates'!O59 -> 0 | P130: ='WS7 - Impact on Rates'!P59 -> 0 | Q130: ='WS7 - Impact on Rates'!Q59 -> 0
B131: ='WS7 - Impact on Rates'!B60 -> Business | C131: ='WS7 - Impact on Rates'!C60 ->  | D131: ='WS7 - Impact on Rates'!D60 -> $ nominal p.a. | I131: ='WS7 - Impact on Rates'!I60 -> 0 | J131: ='WS7 - Impact on Rates'!J60 -> 0 | K131: ='WS7 - Impact on Rates'!K60 -> 0 | L131: ='WS7 - Impact on Rates'!L60 -> 0 | M131: ='WS7 - Impact on Rates'!M60 -> 0 | N131: ='WS7 - Impact on Rates'!N60 -> 0 | O131: ='WS7 - Impact on Rates'!O60 -> 0 | P131: ='WS7 - Impact on Rates'!P60 -> 0 | Q131: ='WS7 - Impact on Rates'!Q60 -> 0
B132: ='WS7 - Impact on Rates'!B61 -> Business | C132: ='WS7 - Impact on Rates'!C61 ->  | D132: ='WS7 - Impact on Rates'!D61 -> $ nominal p.a. | I132: ='WS7 - Impact on Rates'!I61 -> 0 | J132: ='WS7 - Impact on Rates'!J61 -> 0 | K132: ='WS7 - Impact on Rates'!K61 -> 0 | L132: ='WS7 - Impact on Rates'!L61 -> 0 | M132: ='WS7 - Impact on Rates'!M61 -> 0 | N132: ='WS7 - Impact on Rates'!N61 -> 0 | O132: ='WS7 - Impact on Rates'!O61 -> 0 | P132: ='WS7 - Impact on Rates'!P61 -> 0 | Q132: ='WS7 - Impact on Rates'!Q61 -> 0
B133: ='WS7 - Impact on Rates'!B62 -> Business | C133: ='WS7 - Impact on Rates'!C62 ->  | D133: ='WS7 - Impact on Rates'!D62 -> $ nominal p.a. | I133: ='WS7 - Impact on Rates'!I62 -> 0 | J133: ='WS7 - Impact on Rates'!J62 -> 0 | K133: ='WS7 - Impact on Rates'!K62 -> 0 | L133: ='WS7 - Impact on Rates'!L62 -> 0 | M133: ='WS7 - Impact on Rates'!M62 -> 0 | N133: ='WS7 - Impact on Rates'!N62 -> 0 | O133: ='WS7 - Impact on Rates'!O62 -> 0 | P133: ='WS7 - Impact on Rates'!P62 -> 0 | Q133: ='WS7 - Impact on Rates'!Q62 -> 0
B134: ='WS7 - Impact on Rates'!B63 -> Business | C134: ='WS7 - Impact on Rates'!C63 ->  | D134: ='WS7 - Impact on Rates'!D63 -> $ nominal p.a. | I134: ='WS7 - Impact on Rates'!I63 -> 0 | J134: ='WS7 - Impact on Rates'!J63 -> 0 | K134: ='WS7 - Impact on Rates'!K63 -> 0 | L134: ='WS7 - Impact on Rates'!L63 -> 0 | M134: ='WS7 - Impact on Rates'!M63 -> 0 | N134: ='WS7 - Impact on Rates'!N63 -> 0 | O134: ='WS7 - Impact on Rates'!O63 -> 0 | P134: ='WS7 - Impact on Rates'!P63 -> 0 | Q134: ='WS7 - Impact on Rates'!Q63 -> 0
B135: ='WS7 - Impact on Rates'!B64 -> Business | C135: ='WS7 - Impact on Rates'!C64 ->  | D135: ='WS7 - Impact on Rates'!D64 -> $ nominal p.a. | I135: ='WS7 - Impact on Rates'!I64 -> 0 | J135: ='WS7 - Impact on Rates'!J64 -> 0 | K135: ='WS7 - Impact on Rates'!K64 -> 0 | L135: ='WS7 - Impact on Rates'!L64 -> 0 | M135: ='WS7 - Impact on Rates'!M64 -> 0 | N135: ='WS7 - Impact on Rates'!N64 -> 0 | O135: ='WS7 - Impact on Rates'!O64 -> 0 | P135: ='WS7 - Impact on Rates'!P64 -> 0 | Q135: ='WS7 - Impact on Rates'!Q64 -> 0
B136: ='WS7 - Impact on Rates'!B65 -> Business | C136: ='WS7 - Impact on Rates'!C65 ->  | D136: ='WS7 - Impact on Rates'!D65 -> $ nominal p.a. | I136: ='WS7 - Impact on Rates'!I65 -> 0 | J136: ='WS7 - Impact on Rates'!J65 -> 0 | K136: ='WS7 - Impact on Rates'!K65 -> 0 | L136: ='WS7 - Impact on Rates'!L65 -> 0 | M136: ='WS7 - Impact on Rates'!M65 -> 0 | N136: ='WS7 - Impact on Rates'!N65 -> 0 | O136: ='WS7 - Impact on Rates'!O65 -> 0 | P136: ='WS7 - Impact on Rates'!P65 -> 0 | Q136: ='WS7 - Impact on Rates'!Q65 -> 0
B137: ='WS7 - Impact on Rates'!B66 -> Business | C137: ='WS7 - Impact on Rates'!C66 ->  | D137: ='WS7 - Impact on Rates'!D66 -> $ nominal p.a. | I137: ='WS7 - Impact on Rates'!I66 -> 0 | J137: ='WS7 - Impact on Rates'!J66 -> 0 | K137: ='WS7 - Impact on Rates'!K66 -> 0 | L137: ='WS7 - Impact on Rates'!L66 -> 0 | M137: ='WS7 - Impact on Rates'!M66 -> 0 | N137: ='WS7 - Impact on Rates'!N66 -> 0 | O137: ='WS7 - Impact on Rates'!O66 -> 0 | P137: ='WS7 - Impact on Rates'!P66 -> 0 | Q137: ='WS7 - Impact on Rates'!Q66 -> 0
B138: ='WS7 - Impact on Rates'!B67 -> Business | C138: ='WS7 - Impact on Rates'!C67 ->  | D138: ='WS7 - Impact on Rates'!D67 -> $ nominal p.a. | I138: ='WS7 - Impact on Rates'!I67 -> 0 | J138: ='WS7 - Impact on Rates'!J67 -> 0 | K138: ='WS7 - Impact on Rates'!K67 -> 0 | L138: ='WS7 - Impact on Rates'!L67 -> 0 | M138: ='WS7 - Impact on Rates'!M67 -> 0 | N138: ='WS7 - Impact on Rates'!N67 -> 0 | O138: ='WS7 - Impact on Rates'!O67 -> 0 | P138: ='WS7 - Impact on Rates'!P67 -> 0 | Q138: ='WS7 - Impact on Rates'!Q67 -> 0
B139: ='WS7 - Impact on Rates'!B68 -> Business | C139: ='WS7 - Impact on Rates'!C68 ->  | D139: ='WS7 - Impact on Rates'!D68 -> $ nominal p.a. | I139: ='WS7 - Impact on Rates'!I68 -> 0 | J139: ='WS7 - Impact on Rates'!J68 -> 0 | K139: ='WS7 - Impact on Rates'!K68 -> 0 | L139: ='WS7 - Impact on Rates'!L68 -> 0 | M139: ='WS7 - Impact on Rates'!M68 -> 0 | N139: ='WS7 - Impact on Rates'!N68 -> 0 | O139: ='WS7 - Impact on Rates'!O68 -> 0 | P139: ='WS7 - Impact on Rates'!P68 -> 0 | Q139: ='WS7 - Impact on Rates'!Q68 -> 0
B140: ='WS7 - Impact on Rates'!B69 -> Business | C140: ='WS7 - Impact on Rates'!C69 ->  | D140: ='WS7 - Impact on Rates'!D69 -> $ nominal p.a. | I140: ='WS7 - Impact on Rates'!I69 -> 0 | J140: ='WS7 - Impact on Rates'!J69 -> 0 | K140: ='WS7 - Impact on Rates'!K69 -> 0 | L140: ='WS7 - Impact on Rates'!L69 -> 0 | M140: ='WS7 - Impact on Rates'!M69 -> 0 | N140: ='WS7 - Impact on Rates'!N69 -> 0 | O140: ='WS7 - Impact on Rates'!O69 -> 0 | P140: ='WS7 - Impact on Rates'!P69 -> 0 | Q140: ='WS7 - Impact on Rates'!Q69 -> 0
B141: ='WS7 - Impact on Rates'!B70 -> Business | C141: ='WS7 - Impact on Rates'!C70 ->  | D141: ='WS7 - Impact on Rates'!D70 -> $ nominal p.a. | I141: ='WS7 - Impact on Rates'!I70 -> 0 | J141: ='WS7 - Impact on Rates'!J70 -> 0 | K141: ='WS7 - Impact on Rates'!K70 -> 0 | L141: ='WS7 - Impact on Rates'!L70 -> 0 | M141: ='WS7 - Impact on Rates'!M70 -> 0 | N141: ='WS7 - Impact on Rates'!N70 -> 0 | O141: ='WS7 - Impact on Rates'!O70 -> 0 | P141: ='WS7 - Impact on Rates'!P70 -> 0 | Q141: ='WS7 - Impact on Rates'!Q70 -> 0
B142: ='WS7 - Impact on Rates'!B71 -> Business | C142: ='WS7 - Impact on Rates'!C71 ->  | D142: ='WS7 - Impact on Rates'!D71 -> $ nominal p.a. | I142: ='WS7 - Impact on Rates'!I71 -> 0 | J142: ='WS7 - Impact on Rates'!J71 -> 0 | K142: ='WS7 - Impact on Rates'!K71 -> 0 | L142: ='WS7 - Impact on Rates'!L71 -> 0 | M142: ='WS7 - Impact on Rates'!M71 -> 0 | N142: ='WS7 - Impact on Rates'!N71 -> 0 | O142: ='WS7 - Impact on Rates'!O71 -> 0 | P142: ='WS7 - Impact on Rates'!P71 -> 0 | Q142: ='WS7 - Impact on Rates'!Q71 -> 0
B143: ='WS7 - Impact on Rates'!B72 -> Business | C143: ='WS7 - Impact on Rates'!C72 ->  | D143: ='WS7 - Impact on Rates'!D72 -> $ nominal p.a. | I143: ='WS7 - Impact on Rates'!I72 -> 0 | J143: ='WS7 - Impact on Rates'!J72 -> 0 | K143: ='WS7 - Impact on Rates'!K72 -> 0 | L143: ='WS7 - Impact on Rates'!L72 -> 0 | M143: ='WS7 - Impact on Rates'!M72 -> 0 | N143: ='WS7 - Impact on Rates'!N72 -> 0 | O143: ='WS7 - Impact on Rates'!O72 -> 0 | P143: ='WS7 - Impact on Rates'!P72 -> 0 | Q143: ='WS7 - Impact on Rates'!Q72 -> 0
B144: ='WS7 - Impact on Rates'!B73 -> Business | C144: ='WS7 - Impact on Rates'!C73 ->  | D144: ='WS7 - Impact on Rates'!D73 -> $ nominal p.a. | I144: ='WS7 - Impact on Rates'!I73 -> 0 | J144: ='WS7 - Impact on Rates'!J73 -> 0 | K144: ='WS7 - Impact on Rates'!K73 -> 0 | L144: ='WS7 - Impact on Rates'!L73 -> 0 | M144: ='WS7 - Impact on Rates'!M73 -> 0 | N144: ='WS7 - Impact on Rates'!N73 -> 0 | O144: ='WS7 - Impact on Rates'!O73 -> 0 | P144: ='WS7 - Impact on Rates'!P73 -> 0 | Q144: ='WS7 - Impact on Rates'!Q73 -> 0
B145: ='WS7 - Impact on Rates'!B75 -> Farmland | C145: ='WS7 - Impact on Rates'!C75 ->  | D145: ='WS7 - Impact on Rates'!D75 -> $ nominal p.a. | I145: ='WS7 - Impact on Rates'!I75 -> 0 | J145: ='WS7 - Impact on Rates'!J75 -> 0 | K145: ='WS7 - Impact on Rates'!K75 -> 0 | L145: ='WS7 - Impact on Rates'!L75 -> 0 | M145: ='WS7 - Impact on Rates'!M75 -> 0 | N145: ='WS7 - Impact on Rates'!N75 -> 0 | O145: ='WS7 - Impact on Rates'!O75 -> 0 | P145: ='WS7 - Impact on Rates'!P75 -> 0 | Q145: ='WS7 - Impact on Rates'!Q75 -> 0
B146: ='WS7 - Impact on Rates'!B76 -> Farmland | C146: ='WS7 - Impact on Rates'!C76 ->  | D146: ='WS7 - Impact on Rates'!D76 -> $ nominal p.a. | I146: ='WS7 - Impact on Rates'!I76 -> 0 | J146: ='WS7 - Impact on Rates'!J76 -> 0 | K146: ='WS7 - Impact on Rates'!K76 -> 0 | L146: ='WS7 - Impact on Rates'!L76 -> 0 | M146: ='WS7 - Impact on Rates'!M76 -> 0 | N146: ='WS7 - Impact on Rates'!N76 -> 0 | O146: ='WS7 - Impact on Rates'!O76 -> 0 | P146: ='WS7 - Impact on Rates'!P76 -> 0 | Q146: ='WS7 - Impact on Rates'!Q76 -> 0
B147: ='WS7 - Impact on Rates'!B77 -> Farmland | C147: ='WS7 - Impact on Rates'!C77 ->  | D147: ='WS7 - Impact on Rates'!D77 -> $ nominal p.a. | I147: ='WS7 - Impact on Rates'!I77 -> 0 | J147: ='WS7 - Impact on Rates'!J77 -> 0 | K147: ='WS7 - Impact on Rates'!K77 -> 0 | L147: ='WS7 - Impact on Rates'!L77 -> 0 | M147: ='WS7 - Impact on Rates'!M77 -> 0 | N147: ='WS7 - Impact on Rates'!N77 -> 0 | O147: ='WS7 - Impact on Rates'!O77 -> 0 | P147: ='WS7 - Impact on Rates'!P77 -> 0 | Q147: ='WS7 - Impact on Rates'!Q77 -> 0
B148: ='WS7 - Impact on Rates'!B78 -> Farmland | C148: ='WS7 - Impact on Rates'!C78 ->  | D148: ='WS7 - Impact on Rates'!D78 -> $ nominal p.a. | I148: ='WS7 - Impact on Rates'!I78 -> 0 | J148: ='WS7 - Impact on Rates'!J78 -> 0 | K148: ='WS7 - Impact on Rates'!K78 -> 0 | L148: ='WS7 - Impact on Rates'!L78 -> 0 | M148: ='WS7 - Impact on Rates'!M78 -> 0 | N148: ='WS7 - Impact on Rates'!N78 -> 0 | O148: ='WS7 - Impact on Rates'!O78 -> 0 | P148: ='WS7 - Impact on Rates'!P78 -> 0 | Q148: ='WS7 - Impact on Rates'!Q78 -> 0
B149: ='WS7 - Impact on Rates'!B79 -> Farmland | C149: ='WS7 - Impact on Rates'!C79 ->  | D149: ='WS7 - Impact on Rates'!D79 -> $ nominal p.a. | I149: ='WS7 - Impact on Rates'!I79 -> 0 | J149: ='WS7 - Impact on Rates'!J79 -> 0 | K149: ='WS7 - Impact on Rates'!K79 -> 0 | L149: ='WS7 - Impact on Rates'!L79 -> 0 | M149: ='WS7 - Impact on Rates'!M79 -> 0 | N149: ='WS7 - Impact on Rates'!N79 -> 0 | O149: ='WS7 - Impact on Rates'!O79 -> 0 | P149: ='WS7 - Impact on Rates'!P79 -> 0 | Q149: ='WS7 - Impact on Rates'!Q79 -> 0
B150: ='WS7 - Impact on Rates'!B80 -> Farmland | C150: ='WS7 - Impact on Rates'!C80 ->  | D150: ='WS7 - Impact on Rates'!D80 -> $ nominal p.a. | I150: ='WS7 - Impact on Rates'!I80 -> 0 | J150: ='WS7 - Impact on Rates'!J80 -> 0 | K150: ='WS7 - Impact on Rates'!K80 -> 0 | L150: ='WS7 - Impact on Rates'!L80 -> 0 | M150: ='WS7 - Impact on Rates'!M80 -> 0 | N150: ='WS7 - Impact on Rates'!N80 -> 0 | O150: ='WS7 - Impact on Rates'!O80 -> 0 | P150: ='WS7 - Impact on Rates'!P80 -> 0 | Q150: ='WS7 - Impact on Rates'!Q80 -> 0
B151: ='WS7 - Impact on Rates'!B81 -> Farmland | C151: ='WS7 - Impact on Rates'!C81 ->  | D151: ='WS7 - Impact on Rates'!D81 -> $ nominal p.a. | I151: ='WS7 - Impact on Rates'!I81 -> 0 | J151: ='WS7 - Impact on Rates'!J81 -> 0 | K151: ='WS7 - Impact on Rates'!K81 -> 0 | L151: ='WS7 - Impact on Rates'!L81 -> 0 | M151: ='WS7 - Impact on Rates'!M81 -> 0 | N151: ='WS7 - Impact on Rates'!N81 -> 0 | O151: ='WS7 - Impact on Rates'!O81 -> 0 | P151: ='WS7 - Impact on Rates'!P81 -> 0 | Q151: ='WS7 - Impact on Rates'!Q81 -> 0
B152: ='WS7 - Impact on Rates'!B82 -> Farmland | C152: ='WS7 - Impact on Rates'!C82 ->  | D152: ='WS7 - Impact on Rates'!D82 -> $ nominal p.a. | I152: ='WS7 - Impact on Rates'!I82 -> 0 | J152: ='WS7 - Impact on Rates'!J82 -> 0 | K152: ='WS7 - Impact on Rates'!K82 -> 0 | L152: ='WS7 - Impact on Rates'!L82 -> 0 | M152: ='WS7 - Impact on Rates'!M82 -> 0 | N152: ='WS7 - Impact on Rates'!N82 -> 0 | O152: ='WS7 - Impact on Rates'!O82 -> 0 | P152: ='WS7 - Impact on Rates'!P82 -> 0 | Q152: ='WS7 - Impact on Rates'!Q82 -> 0
B153: ='WS7 - Impact on Rates'!B83 -> Farmland | C153: ='WS7 - Impact on Rates'!C83 ->  | D153: ='WS7 - Impact on Rates'!D83 -> $ nominal p.a. | I153: ='WS7 - Impact on Rates'!I83 -> 0 | J153: ='WS7 - Impact on Rates'!J83 -> 0 | K153: ='WS7 - Impact on Rates'!K83 -> 0 | L153: ='WS7 - Impact on Rates'!L83 -> 0 | M153: ='WS7 - Impact on Rates'!M83 -> 0 | N153: ='WS7 - Impact on Rates'!N83 -> 0 | O153: ='WS7 - Impact on Rates'!O83 -> 0 | P153: ='WS7 - Impact on Rates'!P83 -> 0 | Q153: ='WS7 - Impact on Rates'!Q83 -> 0
B154: ='WS7 - Impact on Rates'!B84 -> Farmland | C154: ='WS7 - Impact on Rates'!C84 ->  | D154: ='WS7 - Impact on Rates'!D84 -> $ nominal p.a. | I154: ='WS7 - Impact on Rates'!I84 -> 0 | J154: ='WS7 - Impact on Rates'!J84 -> 0 | K154: ='WS7 - Impact on Rates'!K84 -> 0 | L154: ='WS7 - Impact on Rates'!L84 -> 0 | M154: ='WS7 - Impact on Rates'!M84 -> 0 | N154: ='WS7 - Impact on Rates'!N84 -> 0 | O154: ='WS7 - Impact on Rates'!O84 -> 0 | P154: ='WS7 - Impact on Rates'!P84 -> 0 | Q154: ='WS7 - Impact on Rates'!Q84 -> 0
B155: ='WS7 - Impact on Rates'!B86 -> Mining | C155: ='WS7 - Impact on Rates'!C86 ->  | D155: ='WS7 - Impact on Rates'!D86 -> $ nominal p.a. | I155: ='WS7 - Impact on Rates'!I86 -> 0 | J155: ='WS7 - Impact on Rates'!J86 -> 0 | K155: ='WS7 - Impact on Rates'!K86 -> 0 | L155: ='WS7 - Impact on Rates'!L86 -> 0 | M155: ='WS7 - Impact on Rates'!M86 -> 0 | N155: ='WS7 - Impact on Rates'!N86 -> 0 | O155: ='WS7 - Impact on Rates'!O86 -> 0 | P155: ='WS7 - Impact on Rates'!P86 -> 0 | Q155: ='WS7 - Impact on Rates'!Q86 -> 0
B156: ='WS7 - Impact on Rates'!B87 -> Mining | C156: ='WS7 - Impact on Rates'!C87 ->  | D156: ='WS7 - Impact on Rates'!D87 -> $ nominal p.a. | I156: ='WS7 - Impact on Rates'!I87 -> 0 | J156: ='WS7 - Impact on Rates'!J87 -> 0 | K156: ='WS7 - Impact on Rates'!K87 -> 0 | L156: ='WS7 - Impact on Rates'!L87 -> 0 | M156: ='WS7 - Impact on Rates'!M87 -> 0 | N156: ='WS7 - Impact on Rates'!N87 -> 0 | O156: ='WS7 - Impact on Rates'!O87 -> 0 | P156: ='WS7 - Impact on Rates'!P87 -> 0 | Q156: ='WS7 - Impact on Rates'!Q87 -> 0
B157: ='WS7 - Impact on Rates'!B88 -> Mining | C157: ='WS7 - Impact on Rates'!C88 ->  | D157: ='WS7 - Impact on Rates'!D88 -> $ nominal p.a. | I157: ='WS7 - Impact on Rates'!I88 -> 0 | J157: ='WS7 - Impact on Rates'!J88 -> 0 | K157: ='WS7 - Impact on Rates'!K88 -> 0 | L157: ='WS7 - Impact on Rates'!L88 -> 0 | M157: ='WS7 - Impact on Rates'!M88 -> 0 | N157: ='WS7 - Impact on Rates'!N88 -> 0 | O157: ='WS7 - Impact on Rates'!O88 -> 0 | P157: ='WS7 - Impact on Rates'!P88 -> 0 | Q157: ='WS7 - Impact on Rates'!Q88 -> 0
B158: ='WS7 - Impact on Rates'!B89 -> Mining | C158: ='WS7 - Impact on Rates'!C89 ->  | D158: ='WS7 - Impact on Rates'!D89 -> $ nominal p.a. | I158: ='WS7 - Impact on Rates'!I89 -> 0 | J158: ='WS7 - Impact on Rates'!J89 -> 0 | K158: ='WS7 - Impact on Rates'!K89 -> 0 | L158: ='WS7 - Impact on Rates'!L89 -> 0 | M158: ='WS7 - Impact on Rates'!M89 -> 0 | N158: ='WS7 - Impact on Rates'!N89 -> 0 | O158: ='WS7 - Impact on Rates'!O89 -> 0 | P158: ='WS7 - Impact on Rates'!P89 -> 0 | Q158: ='WS7 - Impact on Rates'!Q89 -> 0
B159: ='WS7 - Impact on Rates'!B90 -> Mining | C159: ='WS7 - Impact on Rates'!C90 ->  | D159: ='WS7 - Impact on Rates'!D90 -> $ nominal p.a. | I159: ='WS7 - Impact on Rates'!I90 -> 0 | J159: ='WS7 - Impact on Rates'!J90 -> 0 | K159: ='WS7 - Impact on Rates'!K90 -> 0 | L159: ='WS7 - Impact on Rates'!L90 -> 0 | M159: ='WS7 - Impact on Rates'!M90 -> 0 | N159: ='WS7 - Impact on Rates'!N90 -> 0 | O159: ='WS7 - Impact on Rates'!O90 -> 0 | P159: ='WS7 - Impact on Rates'!P90 -> 0 | Q159: ='WS7 - Impact on Rates'!Q90 -> 0
B160: ='WS7 - Impact on Rates'!B91 -> Mining | C160: ='WS7 - Impact on Rates'!C91 ->  | D160: ='WS7 - Impact on Rates'!D91 -> $ nominal p.a. | I160: ='WS7 - Impact on Rates'!I91 -> 0 | J160: ='WS7 - Impact on Rates'!J91 -> 0 | K160: ='WS7 - Impact on Rates'!K91 -> 0 | L160: ='WS7 - Impact on Rates'!L91 -> 0 | M160: ='WS7 - Impact on Rates'!M91 -> 0 | N160: ='WS7 - Impact on Rates'!N91 -> 0 | O160: ='WS7 - Impact on Rates'!O91 -> 0 | P160: ='WS7 - Impact on Rates'!P91 -> 0 | Q160: ='WS7 - Impact on Rates'!Q91 -> 0
B161: ='WS7 - Impact on Rates'!B92 -> Mining | C161: ='WS7 - Impact on Rates'!C92 ->  | D161: ='WS7 - Impact on Rates'!D92 -> $ nominal p.a. | I161: ='WS7 - Impact on Rates'!I92 -> 0 | J161: ='WS7 - Impact on Rates'!J92 -> 0 | K161: ='WS7 - Impact on Rates'!K92 -> 0 | L161: ='WS7 - Impact on Rates'!L92 -> 0 | M161: ='WS7 - Impact on Rates'!M92 -> 0 | N161: ='WS7 - Impact on Rates'!N92 -> 0 | O161: ='WS7 - Impact on Rates'!O92 -> 0 | P161: ='WS7 - Impact on Rates'!P92 -> 0 | Q161: ='WS7 - Impact on Rates'!Q92 -> 0
B162: ='WS7 - Impact on Rates'!B93 -> Mining | C162: ='WS7 - Impact on Rates'!C93 ->  | D162: ='WS7 - Impact on Rates'!D93 -> $ nominal p.a. | I162: ='WS7 - Impact on Rates'!I93 -> 0 | J162: ='WS7 - Impact on Rates'!J93 -> 0 | K162: ='WS7 - Impact on Rates'!K93 -> 0 | L162: ='WS7 - Impact on Rates'!L93 -> 0 | M162: ='WS7 - Impact on Rates'!M93 -> 0 | N162: ='WS7 - Impact on Rates'!N93 -> 0 | O162: ='WS7 - Impact on Rates'!O93 -> 0 | P162: ='WS7 - Impact on Rates'!P93 -> 0 | Q162: ='WS7 - Impact on Rates'!Q93 -> 0
B163: ='WS7 - Impact on Rates'!B94 -> Mining | C163: ='WS7 - Impact on Rates'!C94 ->  | D163: ='WS7 - Impact on Rates'!D94 -> $ nominal p.a. | I163: ='WS7 - Impact on Rates'!I94 -> 0 | J163: ='WS7 - Impact on Rates'!J94 -> 0 | K163: ='WS7 - Impact on Rates'!K94 -> 0 | L163: ='WS7 - Impact on Rates'!L94 -> 0 | M163: ='WS7 - Impact on Rates'!M94 -> 0 | N163: ='WS7 - Impact on Rates'!N94 -> 0 | O163: ='WS7 - Impact on Rates'!O94 -> 0 | P163: ='WS7 - Impact on Rates'!P94 -> 0 | Q163: ='WS7 - Impact on Rates'!Q94 -> 0
B164: ='WS7 - Impact on Rates'!B95 -> Mining | C164: ='WS7 - Impact on Rates'!C95 ->  | D164: ='WS7 - Impact on Rates'!D95 -> $ nominal p.a. | I164: ='WS7 - Impact on Rates'!I95 -> 0 | J164: ='WS7 - Impact on Rates'!J95 -> 0 | K164: ='WS7 - Impact on Rates'!K95 -> 0 | L164: ='WS7 - Impact on Rates'!L95 -> 0 | M164: ='WS7 - Impact on Rates'!M95 -> 0 | N164: ='WS7 - Impact on Rates'!N95 -> 0 | O164: ='WS7 - Impact on Rates'!O95 -> 0 | P164: ='WS7 - Impact on Rates'!P95 -> 0 | Q164: ='WS7 - Impact on Rates'!Q95 -> 0
B166: ='WS7 - Impact on Rates'!B98 -> Table 7.2: Average Ordinary and Special Rates - with proposed special variation
B167: ='WS7 - Impact on Rates'!B101 -> Residential | C167: ='WS7 - Impact on Rates'!C101 -> Residential General | D167: ='WS7 - Impact on Rates'!D101 -> $ nominal p.a. | I167: ='WS7 - Impact on Rates'!I101 -> 908.93 | J167: ='WS7 - Impact on Rates'!J101 -> 944.8207437 | K167: ='WS7 - Impact on Rates'!K101 -> 1190.427204 | L167: ='WS7 - Impact on Rates'!L101 -> 1374.56 | M167: ='WS7 - Impact on Rates'!M101 -> 1493.92 | N167: ='WS7 - Impact on Rates'!N101 -> 1538.7376 | O167: ='WS7 - Impact on Rates'!O101 -> 1584.899728 | P167: ='WS7 - Impact on Rates'!P101 -> 1632.44672 | Q167: ='WS7 - Impact on Rates'!Q101 -> 1681.420121
B168: ='WS7 - Impact on Rates'!B102 -> Residential | C168: ='WS7 - Impact on Rates'!C102 -> Residential Infrastructure Levy | D168: ='WS7 - Impact on Rates'!D102 -> $ nominal p.a. | I168: ='WS7 - Impact on Rates'!I102 -> 59.37 | J168: ='WS7 - Impact on Rates'!J102 -> 61.71759598 | K168: ='WS7 - Impact on Rates'!K102 -> 64.18554998 | L168: ='WS7 - Impact on Rates'!L102 -> 66.10906939 | M168: ='WS7 - Impact on Rates'!M102 -> 68.09185693 | N168: ='WS7 - Impact on Rates'!N102 -> 70.13461263 | O168: ='WS7 - Impact on Rates'!O102 -> 72.23865101 | P168: ='WS7 - Impact on Rates'!P102 -> 74.40581054 | Q168: ='WS7 - Impact on Rates'!Q102 -> 76.63798486
B169: ='WS7 - Impact on Rates'!B103 -> Residential | C169: ='WS7 - Impact on Rates'!C103 -> Residential Enviromental Levy | D169: ='WS7 - Impact on Rates'!D103 -> $ nominal p.a. | I169: ='WS7 - Impact on Rates'!I103 -> 66.63 | J169: ='WS7 - Impact on Rates'!J103 -> 69.26015426 | K169: ='WS7 - Impact on Rates'!K103 -> 72.03231669 | L169: ='WS7 - Impact on Rates'!L103 -> 74.19231713 | M169: ='WS7 - Impact on Rates'!M103 -> 76.4152763 | N169: ='WS7 - Impact on Rates'!N103 -> 78.70773459 | O169: ='WS7 - Impact on Rates'!O103 -> 81.06896662 | P169: ='WS7 - Impact on Rates'!P103 -> 83.50103562 | Q169: ='WS7 - Impact on Rates'!Q103 -> 86.00606669
B170: ='WS7 - Impact on Rates'!B104 -> Residential | C170: ='WS7 - Impact on Rates'!C104 ->  | D170: ='WS7 - Impact on Rates'!D104 -> $ nominal p.a. | I170: ='WS7 - Impact on Rates'!I104 -> 0 | J170: ='WS7 - Impact on Rates'!J104 -> . | K170: ='WS7 - Impact on Rates'!K104 -> . | L170: ='WS7 - Impact on Rates'!L104 -> 0 | M170: ='WS7 - Impact on Rates'!M104 -> 0 | N170: ='WS7 - Impact on Rates'!N104 -> 0 | O170: ='WS7 - Impact on Rates'!O104 -> 0 | P170: ='WS7 - Impact on Rates'!P104 -> 0 | Q170: ='WS7 - Impact on Rates'!Q104 -> 0
B171: ='WS7 - Impact on Rates'!B105 -> Residential | C171: ='WS7 - Impact on Rates'!C105 ->  | D171: ='WS7 - Impact on Rates'!D105 -> $ nominal p.a. | I171: ='WS7 - Impact on Rates'!I105 -> 0 | J171: ='WS7 - Impact on Rates'!J105 -> . | K171: ='WS7 - Impact on Rates'!K105 -> . | L171: ='WS7 - Impact on Rates'!L105 -> 0 | M171: ='WS7 - Impact on Rates'!M105 -> 0 | N171: ='WS7 - Impact on Rates'!N105 -> 0 | O171: ='WS7 - Impact on Rates'!O105 -> 0 | P171: ='WS7 - Impact on Rates'!P105 -> 0 | Q171: ='WS7 - Impact on Rates'!Q105 -> 0
B172: ='WS7 - Impact on Rates'!B106 -> Residential | C172: ='WS7 - Impact on Rates'!C106 ->  | D172: ='WS7 - Impact on Rates'!D106 -> $ nominal p.a. | I172: ='WS7 - Impact on Rates'!I106 -> 0 | J172: ='WS7 - Impact on Rates'!J106 -> . | K172: ='WS7 - Impact on Rates'!K106 -> . | L172: ='WS7 - Impact on Rates'!L106 -> 0 | M172: ='WS7 - Impact on Rates'!M106 -> 0 | N172: ='WS7 - Impact on Rates'!N106 -> 0 | O172: ='WS7 - Impact on Rates'!O106 -> 0 | P172: ='WS7 - Impact on Rates'!P106 -> 0 | Q172: ='WS7 - Impact on Rates'!Q106 -> 0
B173: ='WS7 - Impact on Rates'!B107 -> Residential | C173: ='WS7 - Impact on Rates'!C107 ->  | D173: ='WS7 - Impact on Rates'!D107 -> $ nominal p.a. | I173: ='WS7 - Impact on Rates'!I107 -> 0 | J173: ='WS7 - Impact on Rates'!J107 -> . | K173: ='WS7 - Impact on Rates'!K107 -> . | L173: ='WS7 - Impact on Rates'!L107 -> 0 | M173: ='WS7 - Impact on Rates'!M107 -> 0 | N173: ='WS7 - Impact on Rates'!N107 -> 0 | O173: ='WS7 - Impact on Rates'!O107 -> 0 | P173: ='WS7 - Impact on Rates'!P107 -> 0 | Q173: ='WS7 - Impact on Rates'!Q107 -> 0
B174: ='WS7 - Impact on Rates'!B108 -> Residential | C174: ='WS7 - Impact on Rates'!C108 ->  | D174: ='WS7 - Impact on Rates'!D108 -> $ nominal p.a. | I174: ='WS7 - Impact on Rates'!I108 -> 0 | J174: ='WS7 - Impact on Rates'!J108 -> . | K174: ='WS7 - Impact on Rates'!K108 -> . | L174: ='WS7 - Impact on Rates'!L108 -> 0 | M174: ='WS7 - Impact on Rates'!M108 -> 0 | N174: ='WS7 - Impact on Rates'!N108 -> 0 | O174: ='WS7 - Impact on Rates'!O108 -> 0 | P174: ='WS7 - Impact on Rates'!P108 -> 0 | Q174: ='WS7 - Impact on Rates'!Q108 -> 0
B175: ='WS7 - Impact on Rates'!B109 -> Residential | C175: ='WS7 - Impact on Rates'!C109 ->  | D175: ='WS7 - Impact on Rates'!D109 -> $ nominal p.a. | I175: ='WS7 - Impact on Rates'!I109 -> 0 | J175: ='WS7 - Impact on Rates'!J109 -> . | K175: ='WS7 - Impact on Rates'!K109 -> . | L175: ='WS7 - Impact on Rates'!L109 -> 0 | M175: ='WS7 - Impact on Rates'!M109 -> 0 | N175: ='WS7 - Impact on Rates'!N109 -> 0 | O175: ='WS7 - Impact on Rates'!O109 -> 0 | P175: ='WS7 - Impact on Rates'!P109 -> 0 | Q175: ='WS7 - Impact on Rates'!Q109 -> 0
B176: ='WS7 - Impact on Rates'!B110 -> Residential | C176: ='WS7 - Impact on Rates'!C110 ->  | D176: ='WS7 - Impact on Rates'!D110 -> $ nominal p.a. | I176: ='WS7 - Impact on Rates'!I110 -> 0 | J176: ='WS7 - Impact on Rates'!J110 -> . | K176: ='WS7 - Impact on Rates'!K110 -> . | L176: ='WS7 - Impact on Rates'!L110 -> 0 | M176: ='WS7 - Impact on Rates'!M110 -> 0 | N176: ='WS7 - Impact on Rates'!N110 -> 0 | O176: ='WS7 - Impact on Rates'!O110 -> 0 | P176: ='WS7 - Impact on Rates'!P110 -> 0 | Q176: ='WS7 - Impact on Rates'!Q110 -> 0
B177: ='WS7 - Impact on Rates'!B111 -> Residential | C177: ='WS7 - Impact on Rates'!C111 ->  | D177: ='WS7 - Impact on Rates'!D111 -> $ nominal p.a. | I177: ='WS7 - Impact on Rates'!I111 -> 0 | J177: ='WS7 - Impact on Rates'!J111 -> . | K177: ='WS7 - Impact on Rates'!K111 -> . | L177: ='WS7 - Impact on Rates'!L111 -> 0 | M177: ='WS7 - Impact on Rates'!M111 -> 0 | N177: ='WS7 - Impact on Rates'!N111 -> 0 | O177: ='WS7 - Impact on Rates'!O111 -> 0 | P177: ='WS7 - Impact on Rates'!P111 -> 0 | Q177: ='WS7 - Impact on Rates'!Q111 -> 0
B178: ='WS7 - Impact on Rates'!B112 -> Residential | C178: ='WS7 - Impact on Rates'!C112 ->  | D178: ='WS7 - Impact on Rates'!D112 -> $ nominal p.a. | I178: ='WS7 - Impact on Rates'!I112 -> 0 | J178: ='WS7 - Impact on Rates'!J112 -> . | K178: ='WS7 - Impact on Rates'!K112 -> . | L178: ='WS7 - Impact on Rates'!L112 -> 0 | M178: ='WS7 - Impact on Rates'!M112 -> 0 | N178: ='WS7 - Impact on Rates'!N112 -> 0 | O178: ='WS7 - Impact on Rates'!O112 -> 0 | P178: ='WS7 - Impact on Rates'!P112 -> 0 | Q178: ='WS7 - Impact on Rates'!Q112 -> 0
B179: ='WS7 - Impact on Rates'!B113 -> Residential | C179: ='WS7 - Impact on Rates'!C113 ->  | D179: ='WS7 - Impact on Rates'!D113 -> $ nominal p.a. | I179: ='WS7 - Impact on Rates'!I113 -> 0 | J179: ='WS7 - Impact on Rates'!J113 -> . | K179: ='WS7 - Impact on Rates'!K113 -> . | L179: ='WS7 - Impact on Rates'!L113 -> 0 | M179: ='WS7 - Impact on Rates'!M113 -> 0 | N179: ='WS7 - Impact on Rates'!N113 -> 0 | O179: ='WS7 - Impact on Rates'!O113 -> 0 | P179: ='WS7 - Impact on Rates'!P113 -> 0 | Q179: ='WS7 - Impact on Rates'!Q113 -> 0
B180: ='WS7 - Impact on Rates'!B114 -> Residential | C180: ='WS7 - Impact on Rates'!C114 ->  | D180: ='WS7 - Impact on Rates'!D114 -> $ nominal p.a. | I180: ='WS7 - Impact on Rates'!I114 -> 0 | J180: ='WS7 - Impact on Rates'!J114 -> . | K180: ='WS7 - Impact on Rates'!K114 -> . | L180: ='WS7 - Impact on Rates'!L114 -> 0 | M180: ='WS7 - Impact on Rates'!M114 -> 0 | N180: ='WS7 - Impact on Rates'!N114 -> 0 | O180: ='WS7 - Impact on Rates'!O114 -> 0 | P180: ='WS7 - Impact on Rates'!P114 -> 0 | Q180: ='WS7 - Impact on Rates'!Q114 -> 0
B181: ='WS7 - Impact on Rates'!B115 -> Residential | C181: ='WS7 - Impact on Rates'!C115 ->  | D181: ='WS7 - Impact on Rates'!D115 -> $ nominal p.a. | I181: ='WS7 - Impact on Rates'!I115 -> 0 | J181: ='WS7 - Impact on Rates'!J115 -> . | K181: ='WS7 - Impact on Rates'!K115 -> . | L181: ='WS7 - Impact on Rates'!L115 -> 0 | M181: ='WS7 - Impact on Rates'!M115 -> 0 | N181: ='WS7 - Impact on Rates'!N115 -> 0 | O181: ='WS7 - Impact on Rates'!O115 -> 0 | P181: ='WS7 - Impact on Rates'!P115 -> 0 | Q181: ='WS7 - Impact on Rates'!Q115 -> 0
B182: ='WS7 - Impact on Rates'!B116 -> Residential | C182: ='WS7 - Impact on Rates'!C116 ->  | D182: ='WS7 - Impact on Rates'!D116 -> $ nominal p.a. | I182: ='WS7 - Impact on Rates'!I116 -> 0 | J182: ='WS7 - Impact on Rates'!J116 -> . | K182: ='WS7 - Impact on Rates'!K116 -> . | L182: ='WS7 - Impact on Rates'!L116 -> 0 | M182: ='WS7 - Impact on Rates'!M116 -> 0 | N182: ='WS7 - Impact on Rates'!N116 -> 0 | O182: ='WS7 - Impact on Rates'!O116 -> 0 | P182: ='WS7 - Impact on Rates'!P116 -> 0 | Q182: ='WS7 - Impact on Rates'!Q116 -> 0
B183: ='WS7 - Impact on Rates'!B117 -> Residential | C183: ='WS7 - Impact on Rates'!C117 ->  | D183: ='WS7 - Impact on Rates'!D117 -> $ nominal p.a. | I183: ='WS7 - Impact on Rates'!I117 -> 0 | J183: ='WS7 - Impact on Rates'!J117 -> . | K183: ='WS7 - Impact on Rates'!K117 -> . | L183: ='WS7 - Impact on Rates'!L117 -> 0 | M183: ='WS7 - Impact on Rates'!M117 -> 0 | N183: ='WS7 - Impact on Rates'!N117 -> 0 | O183: ='WS7 - Impact on Rates'!O117 -> 0 | P183: ='WS7 - Impact on Rates'!P117 -> 0 | Q183: ='WS7 - Impact on Rates'!Q117 -> 0
B184: ='WS7 - Impact on Rates'!B118 -> Residential | C184: ='WS7 - Impact on Rates'!C118 ->  | D184: ='WS7 - Impact on Rates'!D118 -> $ nominal p.a. | I184: ='WS7 - Impact on Rates'!I118 -> 0 | J184: ='WS7 - Impact on Rates'!J118 -> . | K184: ='WS7 - Impact on Rates'!K118 -> . | L184: ='WS7 - Impact on Rates'!L118 -> 0 | M184: ='WS7 - Impact on Rates'!M118 -> 0 | N184: ='WS7 - Impact on Rates'!N118 -> 0 | O184: ='WS7 - Impact on Rates'!O118 -> 0 | P184: ='WS7 - Impact on Rates'!P118 -> 0 | Q184: ='WS7 - Impact on Rates'!Q118 -> 0
B185: ='WS7 - Impact on Rates'!B119 -> Residential | C185: ='WS7 - Impact on Rates'!C119 ->  | D185: ='WS7 - Impact on Rates'!D119 -> $ nominal p.a. | I185: ='WS7 - Impact on Rates'!I119 -> 0 | J185: ='WS7 - Impact on Rates'!J119 -> . | K185: ='WS7 - Impact on Rates'!K119 -> . | L185: ='WS7 - Impact on Rates'!L119 -> 0 | M185: ='WS7 - Impact on Rates'!M119 -> 0 | N185: ='WS7 - Impact on Rates'!N119 -> 0 | O185: ='WS7 - Impact on Rates'!O119 -> 0 | P185: ='WS7 - Impact on Rates'!P119 -> 0 | Q185: ='WS7 - Impact on Rates'!Q119 -> 0
B186: ='WS7 - Impact on Rates'!B120 -> Residential | C186: ='WS7 - Impact on Rates'!C120 ->  | D186: ='WS7 - Impact on Rates'!D120 -> $ nominal p.a. | I186: ='WS7 - Impact on Rates'!I120 -> 0 | J186: ='WS7 - Impact on Rates'!J120 -> . | K186: ='WS7 - Impact on Rates'!K120 -> . | L186: ='WS7 - Impact on Rates'!L120 -> 0 | M186: ='WS7 - Impact on Rates'!M120 -> 0 | N186: ='WS7 - Impact on Rates'!N120 -> 0 | O186: ='WS7 - Impact on Rates'!O120 -> 0 | P186: ='WS7 - Impact on Rates'!P120 -> 0 | Q186: ='WS7 - Impact on Rates'!Q120 -> 0
B187: ='WS7 - Impact on Rates'!B121 -> Special rate | C187: ='WS7 - Impact on Rates'!C121 ->  | D187: ='WS7 - Impact on Rates'!D121 -> $ nominal p.a. | I187: ='WS7 - Impact on Rates'!I121 -> 0 | J187: ='WS7 - Impact on Rates'!J121 -> . | K187: ='WS7 - Impact on Rates'!K121 -> . | L187: ='WS7 - Impact on Rates'!L121 -> 0 | M187: ='WS7 - Impact on Rates'!M121 -> 0 | N187: ='WS7 - Impact on Rates'!N121 -> 0 | O187: ='WS7 - Impact on Rates'!O121 -> 0 | P187: ='WS7 - Impact on Rates'!P121 -> 0 | Q187: ='WS7 - Impact on Rates'!Q121 -> 0
B188: ='WS7 - Impact on Rates'!B122 -> Special rate | C188: ='WS7 - Impact on Rates'!C122 ->  | D188: ='WS7 - Impact on Rates'!D122 -> $ nominal p.a. | I188: ='WS7 - Impact on Rates'!I122 -> 0 | J188: ='WS7 - Impact on Rates'!J122 -> . | K188: ='WS7 - Impact on Rates'!K122 -> . | L188: ='WS7 - Impact on Rates'!L122 -> 0 | M188: ='WS7 - Impact on Rates'!M122 -> 0 | N188: ='WS7 - Impact on Rates'!N122 -> 0 | O188: ='WS7 - Impact on Rates'!O122 -> 0 | P188: ='WS7 - Impact on Rates'!P122 -> 0 | Q188: ='WS7 - Impact on Rates'!Q122 -> 0
B189: ='WS7 - Impact on Rates'!B123 -> Special rate | C189: ='WS7 - Impact on Rates'!C123 ->  | D189: ='WS7 - Impact on Rates'!D123 -> $ nominal p.a. | I189: ='WS7 - Impact on Rates'!I123 -> 0 | J189: ='WS7 - Impact on Rates'!J123 -> . | K189: ='WS7 - Impact on Rates'!K123 -> . | L189: ='WS7 - Impact on Rates'!L123 -> 0 | M189: ='WS7 - Impact on Rates'!M123 -> 0 | N189: ='WS7 - Impact on Rates'!N123 -> 0 | O189: ='WS7 - Impact on Rates'!O123 -> 0 | P189: ='WS7 - Impact on Rates'!P123 -> 0 | Q189: ='WS7 - Impact on Rates'!Q123 -> 0
B190: ='WS7 - Impact on Rates'!B124 -> Special rate | C190: ='WS7 - Impact on Rates'!C124 ->  | D190: ='WS7 - Impact on Rates'!D124 -> $ nominal p.a. | I190: ='WS7 - Impact on Rates'!I124 -> 0 | J190: ='WS7 - Impact on Rates'!J124 -> . | K190: ='WS7 - Impact on Rates'!K124 -> . | L190: ='WS7 - Impact on Rates'!L124 -> 0 | M190: ='WS7 - Impact on Rates'!M124 -> 0 | N190: ='WS7 - Impact on Rates'!N124 -> 0 | O190: ='WS7 - Impact on Rates'!O124 -> 0 | P190: ='WS7 - Impact on Rates'!P124 -> 0 | Q190: ='WS7 - Impact on Rates'!Q124 -> 0
B191: ='WS7 - Impact on Rates'!B125 -> Special rate | C191: ='WS7 - Impact on Rates'!C125 ->  | D191: ='WS7 - Impact on Rates'!D125 -> $ nominal p.a. | I191: ='WS7 - Impact on Rates'!I125 -> 0 | J191: ='WS7 - Impact on Rates'!J125 -> . | K191: ='WS7 - Impact on Rates'!K125 -> . | L191: ='WS7 - Impact on Rates'!L125 -> 0 | M191: ='WS7 - Impact on Rates'!M125 -> 0 | N191: ='WS7 - Impact on Rates'!N125 -> 0 | O191: ='WS7 - Impact on Rates'!O125 -> 0 | P191: ='WS7 - Impact on Rates'!P125 -> 0 | Q191: ='WS7 - Impact on Rates'!Q125 -> 0
B192: ='WS7 - Impact on Rates'!B126 -> Special rate | C192: ='WS7 - Impact on Rates'!C126 ->  | D192: ='WS7 - Impact on Rates'!D126 -> $ nominal p.a. | I192: ='WS7 - Impact on Rates'!I126 -> 0 | J192: ='WS7 - Impact on Rates'!J126 -> . | K192: ='WS7 - Impact on Rates'!K126 -> . | L192: ='WS7 - Impact on Rates'!L126 -> 0 | M192: ='WS7 - Impact on Rates'!M126 -> 0 | N192: ='WS7 - Impact on Rates'!N126 -> 0 | O192: ='WS7 - Impact on Rates'!O126 -> 0 | P192: ='WS7 - Impact on Rates'!P126 -> 0 | Q192: ='WS7 - Impact on Rates'!Q126 -> 0
B193: ='WS7 - Impact on Rates'!B127 -> Special rate | C193: ='WS7 - Impact on Rates'!C127 ->  | D193: ='WS7 - Impact on Rates'!D127 -> $ nominal p.a. | I193: ='WS7 - Impact on Rates'!I127 -> 0 | J193: ='WS7 - Impact on Rates'!J127 -> . | K193: ='WS7 - Impact on Rates'!K127 -> . | L193: ='WS7 - Impact on Rates'!L127 -> 0 | M193: ='WS7 - Impact on Rates'!M127 -> 0 | N193: ='WS7 - Impact on Rates'!N127 -> 0 | O193: ='WS7 - Impact on Rates'!O127 -> 0 | P193: ='WS7 - Impact on Rates'!P127 -> 0 | Q193: ='WS7 - Impact on Rates'!Q127 -> 0
B194: ='WS7 - Impact on Rates'!B128 -> Special rate | C194: ='WS7 - Impact on Rates'!C128 ->  | D194: ='WS7 - Impact on Rates'!D128 -> $ nominal p.a. | I194: ='WS7 - Impact on Rates'!I128 -> 0 | J194: ='WS7 - Impact on Rates'!J128 -> . | K194: ='WS7 - Impact on Rates'!K128 -> . | L194: ='WS7 - Impact on Rates'!L128 -> 0 | M194: ='WS7 - Impact on Rates'!M128 -> 0 | N194: ='WS7 - Impact on Rates'!N128 -> 0 | O194: ='WS7 - Impact on Rates'!O128 -> 0 | P194: ='WS7 - Impact on Rates'!P128 -> 0 | Q194: ='WS7 - Impact on Rates'!Q128 -> 0
B195: ='WS7 - Impact on Rates'!B129 -> Special rate | C195: ='WS7 - Impact on Rates'!C129 ->  | D195: ='WS7 - Impact on Rates'!D129 -> $ nominal p.a. | I195: ='WS7 - Impact on Rates'!I129 -> 0 | J195: ='WS7 - Impact on Rates'!J129 -> . | K195: ='WS7 - Impact on Rates'!K129 -> . | L195: ='WS7 - Impact on Rates'!L129 -> 0 | M195: ='WS7 - Impact on Rates'!M129 -> 0 | N195: ='WS7 - Impact on Rates'!N129 -> 0 | O195: ='WS7 - Impact on Rates'!O129 -> 0 | P195: ='WS7 - Impact on Rates'!P129 -> 0 | Q195: ='WS7 - Impact on Rates'!Q129 -> 0
B196: ='WS7 - Impact on Rates'!B130 -> Special rate | C196: ='WS7 - Impact on Rates'!C130 ->  | D196: ='WS7 - Impact on Rates'!D130 -> $ nominal p.a. | I196: ='WS7 - Impact on Rates'!I130 -> 0 | J196: ='WS7 - Impact on Rates'!J130 -> . | K196: ='WS7 - Impact on Rates'!K130 -> . | L196: ='WS7 - Impact on Rates'!L130 -> 0 | M196: ='WS7 - Impact on Rates'!M130 -> 0 | N196: ='WS7 - Impact on Rates'!N130 -> 0 | O196: ='WS7 - Impact on Rates'!O130 -> 0 | P196: ='WS7 - Impact on Rates'!P130 -> 0 | Q196: ='WS7 - Impact on Rates'!Q130 -> 0
B197: =B167 -> Residential | C197: ='WS7 - Impact on Rates'!C131 -> TOTAL AVERAGE | I197: ='WS7 - Impact on Rates'!I131 -> 0 | J197: ='WS7 - Impact on Rates'!J131 -> 358.599498 | K197: ='WS7 - Impact on Rates'!K131 -> 442.2150236 | L197: ='WS7 - Impact on Rates'!L131 -> 504.9537955 | M197: ='WS7 - Impact on Rates'!M131 -> 546.1423777 | N197: ='WS7 - Impact on Rates'!N131 -> 562.5266491 | O197: ='WS7 - Impact on Rates'!O131 -> 579.4024485 | P197: ='WS7 - Impact on Rates'!P131 -> 596.784522 | Q197: ='WS7 - Impact on Rates'!Q131 -> 614.6880577
B198: ='WS7 - Impact on Rates'!B132 -> Business | C198: ='WS7 - Impact on Rates'!C132 -> Business General | D198: ='WS7 - Impact on Rates'!D132 -> $ nominal p.a. | I198: ='WS7 - Impact on Rates'!I132 -> 6699.91 | J198: ='WS7 - Impact on Rates'!J132 -> 7027.126746 | K198: ='WS7 - Impact on Rates'!K132 -> 8637.63092 | L198: ='WS7 - Impact on Rates'!L132 -> 9974 | M198: ='WS7 - Impact on Rates'!M132 -> 10840 | N198: ='WS7 - Impact on Rates'!N132 -> 11165.2 | O198: ='WS7 - Impact on Rates'!O132 -> 11500.156 | P198: ='WS7 - Impact on Rates'!P132 -> 11845.16068 | Q198: ='WS7 - Impact on Rates'!Q132 -> 12200.5155
B199: ='WS7 - Impact on Rates'!B133 -> Business | C199: ='WS7 - Impact on Rates'!C133 -> Bussines Infrastructure Levy | D199: ='WS7 - Impact on Rates'!D133 -> $ nominal p.a. | I199: ='WS7 - Impact on Rates'!I133 -> 74.57 | J199: ='WS7 - Impact on Rates'!J133 -> 78.01475946 | K199: ='WS7 - Impact on Rates'!K133 -> 81.13166082 | L199: ='WS7 - Impact on Rates'!L133 -> 83.56 | M199: ='WS7 - Impact on Rates'!M133 -> 86.07 | N199: ='WS7 - Impact on Rates'!N133 -> 88.6521 | O199: ='WS7 - Impact on Rates'!O133 -> 91.311663 | P199: ='WS7 - Impact on Rates'!P133 -> 94.05101289 | Q199: ='WS7 - Impact on Rates'!Q133 -> 96.87254328
B200: ='WS7 - Impact on Rates'!B134 -> Business | C200: ='WS7 - Impact on Rates'!C134 -> Bussines Enviromental Levy | D200: ='WS7 - Impact on Rates'!D134 -> $ nominal p.a. | I200: ='WS7 - Impact on Rates'!I134 -> 83.68 | J200: ='WS7 - Impact on Rates'!J134 -> 87.54605316 | K200: ='WS7 - Impact on Rates'!K134 -> 91.05089816 | L200: ='WS7 - Impact on Rates'!L134 -> 93.78 | M200: ='WS7 - Impact on Rates'!M134 -> 96.59 | N200: ='WS7 - Impact on Rates'!N134 -> 99.4877 | O200: ='WS7 - Impact on Rates'!O134 -> 102.472331 | P200: ='WS7 - Impact on Rates'!P134 -> 105.5465009 | Q200: ='WS7 - Impact on Rates'!Q134 -> 108.712896
B201: ='WS7 - Impact on Rates'!B135 -> Business | C201: ='WS7 - Impact on Rates'!C135 ->  | D201: ='WS7 - Impact on Rates'!D135 -> $ nominal p.a. | I201: ='WS7 - Impact on Rates'!I135 -> 0 | J201: ='WS7 - Impact on Rates'!J135 -> . | K201: ='WS7 - Impact on Rates'!K135 -> . | L201: ='WS7 - Impact on Rates'!L135 -> 0 | M201: ='WS7 - Impact on Rates'!M135 -> 0 | N201: ='WS7 - Impact on Rates'!N135 -> 0 | O201: ='WS7 - Impact on Rates'!O135 -> 0 | P201: ='WS7 - Impact on Rates'!P135 -> 0 | Q201: ='WS7 - Impact on Rates'!Q135 -> 0
B202: ='WS7 - Impact on Rates'!B136 -> Business | C202: ='WS7 - Impact on Rates'!C136 ->  | D202: ='WS7 - Impact on Rates'!D136 -> $ nominal p.a. | I202: ='WS7 - Impact on Rates'!I136 -> 0 | J202: ='WS7 - Impact on Rates'!J136 -> . | K202: ='WS7 - Impact on Rates'!K136 -> . | L202: ='WS7 - Impact on Rates'!L136 -> 0 | M202: ='WS7 - Impact on Rates'!M136 -> 0 | N202: ='WS7 - Impact on Rates'!N136 -> 0 | O202: ='WS7 - Impact on Rates'!O136 -> 0 | P202: ='WS7 - Impact on Rates'!P136 -> 0 | Q202: ='WS7 - Impact on Rates'!Q136 -> 0
B203: ='WS7 - Impact on Rates'!B137 -> Business | C203: ='WS7 - Impact on Rates'!C137 ->  | D203: ='WS7 - Impact on Rates'!D137 -> $ nominal p.a. | I203: ='WS7 - Impact on Rates'!I137 -> 0 | J203: ='WS7 - Impact on Rates'!J137 -> . | K203: ='WS7 - Impact on Rates'!K137 -> . | L203: ='WS7 - Impact on Rates'!L137 -> 0 | M203: ='WS7 - Impact on Rates'!M137 -> 0 | N203: ='WS7 - Impact on Rates'!N137 -> 0 | O203: ='WS7 - Impact on Rates'!O137 -> 0 | P203: ='WS7 - Impact on Rates'!P137 -> 0 | Q203: ='WS7 - Impact on Rates'!Q137 -> 0
B204: ='WS7 - Impact on Rates'!B138 -> Business | C204: ='WS7 - Impact on Rates'!C138 ->  | D204: ='WS7 - Impact on Rates'!D138 -> $ nominal p.a. | I204: ='WS7 - Impact on Rates'!I138 -> 0 | J204: ='WS7 - Impact on Rates'!J138 -> . | K204: ='WS7 - Impact on Rates'!K138 -> . | L204: ='WS7 - Impact on Rates'!L138 -> 0 | M204: ='WS7 - Impact on Rates'!M138 -> 0 | N204: ='WS7 - Impact on Rates'!N138 -> 0 | O204: ='WS7 - Impact on Rates'!O138 -> 0 | P204: ='WS7 - Impact on Rates'!P138 -> 0 | Q204: ='WS7 - Impact on Rates'!Q138 -> 0
B205: ='WS7 - Impact on Rates'!B139 -> Business | C205: ='WS7 - Impact on Rates'!C139 ->  | D205: ='WS7 - Impact on Rates'!D139 -> $ nominal p.a. | I205: ='WS7 - Impact on Rates'!I139 -> 0 | J205: ='WS7 - Impact on Rates'!J139 -> . | K205: ='WS7 - Impact on Rates'!K139 -> . | L205: ='WS7 - Impact on Rates'!L139 -> 0 | M205: ='WS7 - Impact on Rates'!M139 -> 0 | N205: ='WS7 - Impact on Rates'!N139 -> 0 | O205: ='WS7 - Impact on Rates'!O139 -> 0 | P205: ='WS7 - Impact on Rates'!P139 -> 0 | Q205: ='WS7 - Impact on Rates'!Q139 -> 0
B206: ='WS7 - Impact on Rates'!B140 -> Business | C206: ='WS7 - Impact on Rates'!C140 ->  | D206: ='WS7 - Impact on Rates'!D140 -> $ nominal p.a. | I206: ='WS7 - Impact on Rates'!I140 -> 0 | J206: ='WS7 - Impact on Rates'!J140 -> . | K206: ='WS7 - Impact on Rates'!K140 -> . | L206: ='WS7 - Impact on Rates'!L140 -> 0 | M206: ='WS7 - Impact on Rates'!M140 -> 0 | N206: ='WS7 - Impact on Rates'!N140 -> 0 | O206: ='WS7 - Impact on Rates'!O140 -> 0 | P206: ='WS7 - Impact on Rates'!P140 -> 0 | Q206: ='WS7 - Impact on Rates'!Q140 -> 0
B207: ='WS7 - Impact on Rates'!B141 -> Business | C207: ='WS7 - Impact on Rates'!C141 ->  | D207: ='WS7 - Impact on Rates'!D141 -> $ nominal p.a. | I207: ='WS7 - Impact on Rates'!I141 -> 0 | J207: ='WS7 - Impact on Rates'!J141 -> . | K207: ='WS7 - Impact on Rates'!K141 -> . | L207: ='WS7 - Impact on Rates'!L141 -> 0 | M207: ='WS7 - Impact on Rates'!M141 -> 0 | N207: ='WS7 - Impact on Rates'!N141 -> 0 | O207: ='WS7 - Impact on Rates'!O141 -> 0 | P207: ='WS7 - Impact on Rates'!P141 -> 0 | Q207: ='WS7 - Impact on Rates'!Q141 -> 0
B208: ='WS7 - Impact on Rates'!B142 -> Business | C208: ='WS7 - Impact on Rates'!C142 ->  | D208: ='WS7 - Impact on Rates'!D142 -> $ nominal p.a. | I208: ='WS7 - Impact on Rates'!I142 -> 0 | J208: ='WS7 - Impact on Rates'!J142 -> . | K208: ='WS7 - Impact on Rates'!K142 -> . | L208: ='WS7 - Impact on Rates'!L142 -> 0 | M208: ='WS7 - Impact on Rates'!M142 -> 0 | N208: ='WS7 - Impact on Rates'!N142 -> 0 | O208: ='WS7 - Impact on Rates'!O142 -> 0 | P208: ='WS7 - Impact on Rates'!P142 -> 0 | Q208: ='WS7 - Impact on Rates'!Q142 -> 0
B209: ='WS7 - Impact on Rates'!B143 -> Business | C209: ='WS7 - Impact on Rates'!C143 ->  | D209: ='WS7 - Impact on Rates'!D143 -> $ nominal p.a. | I209: ='WS7 - Impact on Rates'!I143 -> 0 | J209: ='WS7 - Impact on Rates'!J143 -> . | K209: ='WS7 - Impact on Rates'!K143 -> . | L209: ='WS7 - Impact on Rates'!L143 -> 0 | M209: ='WS7 - Impact on Rates'!M143 -> 0 | N209: ='WS7 - Impact on Rates'!N143 -> 0 | O209: ='WS7 - Impact on Rates'!O143 -> 0 | P209: ='WS7 - Impact on Rates'!P143 -> 0 | Q209: ='WS7 - Impact on Rates'!Q143 -> 0
B210: ='WS7 - Impact on Rates'!B144 -> Business | C210: ='WS7 - Impact on Rates'!C144 ->  | D210: ='WS7 - Impact on Rates'!D144 -> $ nominal p.a. | I210: ='WS7 - Impact on Rates'!I144 -> 0 | J210: ='WS7 - Impact on Rates'!J144 -> . | K210: ='WS7 - Impact on Rates'!K144 -> . | L210: ='WS7 - Impact on Rates'!L144 -> 0 | M210: ='WS7 - Impact on Rates'!M144 -> 0 | N210: ='WS7 - Impact on Rates'!N144 -> 0 | O210: ='WS7 - Impact on Rates'!O144 -> 0 | P210: ='WS7 - Impact on Rates'!P144 -> 0 | Q210: ='WS7 - Impact on Rates'!Q144 -> 0
B211: ='WS7 - Impact on Rates'!B145 -> Business | C211: ='WS7 - Impact on Rates'!C145 ->  | D211: ='WS7 - Impact on Rates'!D145 -> $ nominal p.a. | I211: ='WS7 - Impact on Rates'!I145 -> 0 | J211: ='WS7 - Impact on Rates'!J145 -> . | K211: ='WS7 - Impact on Rates'!K145 -> . | L211: ='WS7 - Impact on Rates'!L145 -> 0 | M211: ='WS7 - Impact on Rates'!M145 -> 0 | N211: ='WS7 - Impact on Rates'!N145 -> 0 | O211: ='WS7 - Impact on Rates'!O145 -> 0 | P211: ='WS7 - Impact on Rates'!P145 -> 0 | Q211: ='WS7 - Impact on Rates'!Q145 -> 0
B212: ='WS7 - Impact on Rates'!B146 -> Business | C212: ='WS7 - Impact on Rates'!C146 ->  | D212: ='WS7 - Impact on Rates'!D146 -> $ nominal p.a. | I212: ='WS7 - Impact on Rates'!I146 -> 0 | J212: ='WS7 - Impact on Rates'!J146 -> . | K212: ='WS7 - Impact on Rates'!K146 -> . | L212: ='WS7 - Impact on Rates'!L146 -> 0 | M212: ='WS7 - Impact on Rates'!M146 -> 0 | N212: ='WS7 - Impact on Rates'!N146 -> 0 | O212: ='WS7 - Impact on Rates'!O146 -> 0 | P212: ='WS7 - Impact on Rates'!P146 -> 0 | Q212: ='WS7 - Impact on Rates'!Q146 -> 0
B213: ='WS7 - Impact on Rates'!B147 -> Business | C213: ='WS7 - Impact on Rates'!C147 ->  | D213: ='WS7 - Impact on Rates'!D147 -> $ nominal p.a. | I213: ='WS7 - Impact on Rates'!I147 -> 0 | J213: ='WS7 - Impact on Rates'!J147 -> . | K213: ='WS7 - Impact on Rates'!K147 -> . | L213: ='WS7 - Impact on Rates'!L147 -> 0 | M213: ='WS7 - Impact on Rates'!M147 -> 0 | N213: ='WS7 - Impact on Rates'!N147 -> 0 | O213: ='WS7 - Impact on Rates'!O147 -> 0 | P213: ='WS7 - Impact on Rates'!P147 -> 0 | Q213: ='WS7 - Impact on Rates'!Q147 -> 0
B214: ='WS7 - Impact on Rates'!B148 -> Business | C214: ='WS7 - Impact on Rates'!C148 ->  | D214: ='WS7 - Impact on Rates'!D148 -> $ nominal p.a. | I214: ='WS7 - Impact on Rates'!I148 -> 0 | J214: ='WS7 - Impact on Rates'!J148 -> . | K214: ='WS7 - Impact on Rates'!K148 -> . | L214: ='WS7 - Impact on Rates'!L148 -> 0 | M214: ='WS7 - Impact on Rates'!M148 -> 0 | N214: ='WS7 - Impact on Rates'!N148 -> 0 | O214: ='WS7 - Impact on Rates'!O148 -> 0 | P214: ='WS7 - Impact on Rates'!P148 -> 0 | Q214: ='WS7 - Impact on Rates'!Q148 -> 0
B215: ='WS7 - Impact on Rates'!B149 -> Business | C215: ='WS7 - Impact on Rates'!C149 ->  | D215: ='WS7 - Impact on Rates'!D149 -> $ nominal p.a. | I215: ='WS7 - Impact on Rates'!I149 -> 0 | J215: ='WS7 - Impact on Rates'!J149 -> . | K215: ='WS7 - Impact on Rates'!K149 -> . | L215: ='WS7 - Impact on Rates'!L149 -> 0 | M215: ='WS7 - Impact on Rates'!M149 -> 0 | N215: ='WS7 - Impact on Rates'!N149 -> 0 | O215: ='WS7 - Impact on Rates'!O149 -> 0 | P215: ='WS7 - Impact on Rates'!P149 -> 0 | Q215: ='WS7 - Impact on Rates'!Q149 -> 0
B216: ='WS7 - Impact on Rates'!B150 -> Business | C216: ='WS7 - Impact on Rates'!C150 ->  | D216: ='WS7 - Impact on Rates'!D150 -> $ nominal p.a. | I216: ='WS7 - Impact on Rates'!I150 -> 0 | J216: ='WS7 - Impact on Rates'!J150 -> . | K216: ='WS7 - Impact on Rates'!K150 -> . | L216: ='WS7 - Impact on Rates'!L150 -> 0 | M216: ='WS7 - Impact on Rates'!M150 -> 0 | N216: ='WS7 - Impact on Rates'!N150 -> 0 | O216: ='WS7 - Impact on Rates'!O150 -> 0 | P216: ='WS7 - Impact on Rates'!P150 -> 0 | Q216: ='WS7 - Impact on Rates'!Q150 -> 0
B217: ='WS7 - Impact on Rates'!B151 -> Business | C217: ='WS7 - Impact on Rates'!C151 ->  | D217: ='WS7 - Impact on Rates'!D151 -> $ nominal p.a. | I217: ='WS7 - Impact on Rates'!I151 -> 0 | J217: ='WS7 - Impact on Rates'!J151 -> . | K217: ='WS7 - Impact on Rates'!K151 -> . | L217: ='WS7 - Impact on Rates'!L151 -> 0 | M217: ='WS7 - Impact on Rates'!M151 -> 0 | N217: ='WS7 - Impact on Rates'!N151 -> 0 | O217: ='WS7 - Impact on Rates'!O151 -> 0 | P217: ='WS7 - Impact on Rates'!P151 -> 0 | Q217: ='WS7 - Impact on Rates'!Q151 -> 0
B218: ='WS7 - Impact on Rates'!B152 -> Business | C218: ='WS7 - Impact on Rates'!C152 ->  | D218: ='WS7 - Impact on Rates'!D152 -> $ nominal p.a. | I218: ='WS7 - Impact on Rates'!I152 -> 0 | J218: ='WS7 - Impact on Rates'!J152 -> . | K218: ='WS7 - Impact on Rates'!K152 -> . | L218: ='WS7 - Impact on Rates'!L152 -> 0 | M218: ='WS7 - Impact on Rates'!M152 -> 0 | N218: ='WS7 - Impact on Rates'!N152 -> 0 | O218: ='WS7 - Impact on Rates'!O152 -> 0 | P218: ='WS7 - Impact on Rates'!P152 -> 0 | Q218: ='WS7 - Impact on Rates'!Q152 -> 0
B219: ='WS7 - Impact on Rates'!B153 -> Business | C219: ='WS7 - Impact on Rates'!C153 ->  | D219: ='WS7 - Impact on Rates'!D153 -> $ nominal p.a. | I219: ='WS7 - Impact on Rates'!I153 -> 0 | J219: ='WS7 - Impact on Rates'!J153 -> . | K219: ='WS7 - Impact on Rates'!K153 -> . | L219: ='WS7 - Impact on Rates'!L153 -> 0 | M219: ='WS7 - Impact on Rates'!M153 -> 0 | N219: ='WS7 - Impact on Rates'!N153 -> 0 | O219: ='WS7 - Impact on Rates'!O153 -> 0 | P219: ='WS7 - Impact on Rates'!P153 -> 0 | Q219: ='WS7 - Impact on Rates'!Q153 -> 0
B220: ='WS7 - Impact on Rates'!B154 -> Business | C220: ='WS7 - Impact on Rates'!C154 ->  | D220: ='WS7 - Impact on Rates'!D154 -> $ nominal p.a. | I220: ='WS7 - Impact on Rates'!I154 -> 0 | J220: ='WS7 - Impact on Rates'!J154 -> . | K220: ='WS7 - Impact on Rates'!K154 -> . | L220: ='WS7 - Impact on Rates'!L154 -> 0 | M220: ='WS7 - Impact on Rates'!M154 -> 0 | N220: ='WS7 - Impact on Rates'!N154 -> 0 | O220: ='WS7 - Impact on Rates'!O154 -> 0 | P220: ='WS7 - Impact on Rates'!P154 -> 0 | Q220: ='WS7 - Impact on Rates'!Q154 -> 0
B221: ='WS7 - Impact on Rates'!B155 -> Business | C221: ='WS7 - Impact on Rates'!C155 ->  | D221: ='WS7 - Impact on Rates'!D155 -> $ nominal p.a. | I221: ='WS7 - Impact on Rates'!I155 -> 0 | J221: ='WS7 - Impact on Rates'!J155 -> . | K221: ='WS7 - Impact on Rates'!K155 -> . | L221: ='WS7 - Impact on Rates'!L155 -> 0 | M221: ='WS7 - Impact on Rates'!M155 -> 0 | N221: ='WS7 - Impact on Rates'!N155 -> 0 | O221: ='WS7 - Impact on Rates'!O155 -> 0 | P221: ='WS7 - Impact on Rates'!P155 -> 0 | Q221: ='WS7 - Impact on Rates'!Q155 -> 0
B222: ='WS7 - Impact on Rates'!B156 -> Business | C222: ='WS7 - Impact on Rates'!C156 ->  | D222: ='WS7 - Impact on Rates'!D156 -> $ nominal p.a. | I222: ='WS7 - Impact on Rates'!I156 -> 0 | J222: ='WS7 - Impact on Rates'!J156 -> . | K222: ='WS7 - Impact on Rates'!K156 -> . | L222: ='WS7 - Impact on Rates'!L156 -> 0 | M222: ='WS7 - Impact on Rates'!M156 -> 0 | N222: ='WS7 - Impact on Rates'!N156 -> 0 | O222: ='WS7 - Impact on Rates'!O156 -> 0 | P222: ='WS7 - Impact on Rates'!P156 -> 0 | Q222: ='WS7 - Impact on Rates'!Q156 -> 0
B223: ='WS7 - Impact on Rates'!B157 -> Special rate | C223: ='WS7 - Impact on Rates'!C157 ->  | D223: ='WS7 - Impact on Rates'!D157 -> $ nominal p.a. | I223: ='WS7 - Impact on Rates'!I157 -> 0 | J223: ='WS7 - Impact on Rates'!J157 -> . | K223: ='WS7 - Impact on Rates'!K157 -> . | L223: ='WS7 - Impact on Rates'!L157 -> 0 | M223: ='WS7 - Impact on Rates'!M157 -> 0 | N223: ='WS7 - Impact on Rates'!N157 -> 0 | O223: ='WS7 - Impact on Rates'!O157 -> 0 | P223: ='WS7 - Impact on Rates'!P157 -> 0 | Q223: ='WS7 - Impact on Rates'!Q157 -> 0
B224: ='WS7 - Impact on Rates'!B158 -> Special rate | C224: ='WS7 - Impact on Rates'!C158 ->  | D224: ='WS7 - Impact on Rates'!D158 -> $ nominal p.a. | I224: ='WS7 - Impact on Rates'!I158 -> 0 | J224: ='WS7 - Impact on Rates'!J158 -> . | K224: ='WS7 - Impact on Rates'!K158 -> . | L224: ='WS7 - Impact on Rates'!L158 -> 0 | M224: ='WS7 - Impact on Rates'!M158 -> 0 | N224: ='WS7 - Impact on Rates'!N158 -> 0 | O224: ='WS7 - Impact on Rates'!O158 -> 0 | P224: ='WS7 - Impact on Rates'!P158 -> 0 | Q224: ='WS7 - Impact on Rates'!Q158 -> 0
B225: ='WS7 - Impact on Rates'!B159 -> Special rate | C225: ='WS7 - Impact on Rates'!C159 ->  | D225: ='WS7 - Impact on Rates'!D159 -> $ nominal p.a. | I225: ='WS7 - Impact on Rates'!I159 -> 0 | J225: ='WS7 - Impact on Rates'!J159 -> . | K225: ='WS7 - Impact on Rates'!K159 -> . | L225: ='WS7 - Impact on Rates'!L159 -> 0 | M225: ='WS7 - Impact on Rates'!M159 -> 0 | N225: ='WS7 - Impact on Rates'!N159 -> 0 | O225: ='WS7 - Impact on Rates'!O159 -> 0 | P225: ='WS7 - Impact on Rates'!P159 -> 0 | Q225: ='WS7 - Impact on Rates'!Q159 -> 0
B226: ='WS7 - Impact on Rates'!B160 -> Special rate | C226: ='WS7 - Impact on Rates'!C160 ->  | D226: ='WS7 - Impact on Rates'!D160 -> $ nominal p.a. | I226: ='WS7 - Impact on Rates'!I160 -> 0 | J226: ='WS7 - Impact on Rates'!J160 -> . | K226: ='WS7 - Impact on Rates'!K160 -> . | L226: ='WS7 - Impact on Rates'!L160 -> 0 | M226: ='WS7 - Impact on Rates'!M160 -> 0 | N226: ='WS7 - Impact on Rates'!N160 -> 0 | O226: ='WS7 - Impact on Rates'!O160 -> 0 | P226: ='WS7 - Impact on Rates'!P160 -> 0 | Q226: ='WS7 - Impact on Rates'!Q160 -> 0
B227: ='WS7 - Impact on Rates'!B161 -> Special rate | C227: ='WS7 - Impact on Rates'!C161 ->  | D227: ='WS7 - Impact on Rates'!D161 -> $ nominal p.a. | I227: ='WS7 - Impact on Rates'!I161 -> 0 | J227: ='WS7 - Impact on Rates'!J161 -> . | K227: ='WS7 - Impact on Rates'!K161 -> . | L227: ='WS7 - Impact on Rates'!L161 -> 0 | M227: ='WS7 - Impact on Rates'!M161 -> 0 | N227: ='WS7 - Impact on Rates'!N161 -> 0 | O227: ='WS7 - Impact on Rates'!O161 -> 0 | P227: ='WS7 - Impact on Rates'!P161 -> 0 | Q227: ='WS7 - Impact on Rates'!Q161 -> 0
B228: ='WS7 - Impact on Rates'!B162 -> Special rate | C228: ='WS7 - Impact on Rates'!C162 ->  | D228: ='WS7 - Impact on Rates'!D162 -> $ nominal p.a. | I228: ='WS7 - Impact on Rates'!I162 -> 0 | J228: ='WS7 - Impact on Rates'!J162 -> . | K228: ='WS7 - Impact on Rates'!K162 -> . | L228: ='WS7 - Impact on Rates'!L162 -> 0 | M228: ='WS7 - Impact on Rates'!M162 -> 0 | N228: ='WS7 - Impact on Rates'!N162 -> 0 | O228: ='WS7 - Impact on Rates'!O162 -> 0 | P228: ='WS7 - Impact on Rates'!P162 -> 0 | Q228: ='WS7 - Impact on Rates'!Q162 -> 0
B229: ='WS7 - Impact on Rates'!B163 -> Special rate | C229: ='WS7 - Impact on Rates'!C163 ->  | D229: ='WS7 - Impact on Rates'!D163 -> $ nominal p.a. | I229: ='WS7 - Impact on Rates'!I163 -> 0 | J229: ='WS7 - Impact on Rates'!J163 -> . | K229: ='WS7 - Impact on Rates'!K163 -> . | L229: ='WS7 - Impact on Rates'!L163 -> 0 | M229: ='WS7 - Impact on Rates'!M163 -> 0 | N229: ='WS7 - Impact on Rates'!N163 -> 0 | O229: ='WS7 - Impact on Rates'!O163 -> 0 | P229: ='WS7 - Impact on Rates'!P163 -> 0 | Q229: ='WS7 - Impact on Rates'!Q163 -> 0
B230: ='WS7 - Impact on Rates'!B164 -> Special rate | C230: ='WS7 - Impact on Rates'!C164 ->  | D230: ='WS7 - Impact on Rates'!D164 -> $ nominal p.a. | I230: ='WS7 - Impact on Rates'!I164 -> 0 | J230: ='WS7 - Impact on Rates'!J164 -> . | K230: ='WS7 - Impact on Rates'!K164 -> . | L230: ='WS7 - Impact on Rates'!L164 -> 0 | M230: ='WS7 - Impact on Rates'!M164 -> 0 | N230: ='WS7 - Impact on Rates'!N164 -> 0 | O230: ='WS7 - Impact on Rates'!O164 -> 0 | P230: ='WS7 - Impact on Rates'!P164 -> 0 | Q230: ='WS7 - Impact on Rates'!Q164 -> 0
B231: ='WS7 - Impact on Rates'!B165 -> Special rate | C231: ='WS7 - Impact on Rates'!C165 ->  | D231: ='WS7 - Impact on Rates'!D165 -> $ nominal p.a. | I231: ='WS7 - Impact on Rates'!I165 -> 0 | J231: ='WS7 - Impact on Rates'!J165 -> . | K231: ='WS7 - Impact on Rates'!K165 -> . | L231: ='WS7 - Impact on Rates'!L165 -> 0 | M231: ='WS7 - Impact on Rates'!M165 -> 0 | N231: ='WS7 - Impact on Rates'!N165 -> 0 | O231: ='WS7 - Impact on Rates'!O165 -> 0 | P231: ='WS7 - Impact on Rates'!P165 -> 0 | Q231: ='WS7 - Impact on Rates'!Q165 -> 0
B232: ='WS7 - Impact on Rates'!B166 -> Special rate | C232: ='WS7 - Impact on Rates'!C166 ->  | D232: ='WS7 - Impact on Rates'!D166 -> $ nominal p.a. | I232: ='WS7 - Impact on Rates'!I166 -> 0 | J232: ='WS7 - Impact on Rates'!J166 -> . | K232: ='WS7 - Impact on Rates'!K166 -> . | L232: ='WS7 - Impact on Rates'!L166 -> 0 | M232: ='WS7 - Impact on Rates'!M166 -> 0 | N232: ='WS7 - Impact on Rates'!N166 -> 0 | O232: ='WS7 - Impact on Rates'!O166 -> 0 | P232: ='WS7 - Impact on Rates'!P166 -> 0 | Q232: ='WS7 - Impact on Rates'!Q166 -> 0
B233: ='WS7 - Impact on Rates'!B167 -> Special rate | C233: ='WS7 - Impact on Rates'!C167 ->  | D233: ='WS7 - Impact on Rates'!D167 -> $ nominal p.a. | I233: ='WS7 - Impact on Rates'!I167 -> 0 | J233: ='WS7 - Impact on Rates'!J167 -> . | K233: ='WS7 - Impact on Rates'!K167 -> . | L233: ='WS7 - Impact on Rates'!L167 -> 0 | M233: ='WS7 - Impact on Rates'!M167 -> 0 | N233: ='WS7 - Impact on Rates'!N167 -> 0 | O233: ='WS7 - Impact on Rates'!O167 -> 0 | P233: ='WS7 - Impact on Rates'!P167 -> 0 | Q233: ='WS7 - Impact on Rates'!Q167 -> 0
B234: ='WS7 - Impact on Rates'!B168 -> Special rate | C234: ='WS7 - Impact on Rates'!C168 ->  | D234: ='WS7 - Impact on Rates'!D168 -> $ nominal p.a. | I234: ='WS7 - Impact on Rates'!I168 -> 0 | J234: ='WS7 - Impact on Rates'!J168 -> . | K234: ='WS7 - Impact on Rates'!K168 -> . | L234: ='WS7 - Impact on Rates'!L168 -> 0 | M234: ='WS7 - Impact on Rates'!M168 -> 0 | N234: ='WS7 - Impact on Rates'!N168 -> 0 | O234: ='WS7 - Impact on Rates'!O168 -> 0 | P234: ='WS7 - Impact on Rates'!P168 -> 0 | Q234: ='WS7 - Impact on Rates'!Q168 -> 0
B235: ='WS7 - Impact on Rates'!B169 -> Special rate | C235: ='WS7 - Impact on Rates'!C169 ->  | D235: ='WS7 - Impact on Rates'!D169 -> $ nominal p.a. | I235: ='WS7 - Impact on Rates'!I169 -> 0 | J235: ='WS7 - Impact on Rates'!J169 -> . | K235: ='WS7 - Impact on Rates'!K169 -> . | L235: ='WS7 - Impact on Rates'!L169 -> 0 | M235: ='WS7 - Impact on Rates'!M169 -> 0 | N235: ='WS7 - Impact on Rates'!N169 -> 0 | O235: ='WS7 - Impact on Rates'!O169 -> 0 | P235: ='WS7 - Impact on Rates'!P169 -> 0 | Q235: ='WS7 - Impact on Rates'!Q169 -> 0
B236: ='WS7 - Impact on Rates'!B170 -> Special rate | C236: ='WS7 - Impact on Rates'!C170 ->  | D236: ='WS7 - Impact on Rates'!D170 -> $ nominal p.a. | I236: ='WS7 - Impact on Rates'!I170 -> 0 | J236: ='WS7 - Impact on Rates'!J170 -> . | K236: ='WS7 - Impact on Rates'!K170 -> . | L236: ='WS7 - Impact on Rates'!L170 -> 0 | M236: ='WS7 - Impact on Rates'!M170 -> 0 | N236: ='WS7 - Impact on Rates'!N170 -> 0 | O236: ='WS7 - Impact on Rates'!O170 -> 0 | P236: ='WS7 - Impact on Rates'!P170 -> 0 | Q236: ='WS7 - Impact on Rates'!Q170 -> 0
B237: ='WS7 - Impact on Rates'!B171 -> Special rate | C237: ='WS7 - Impact on Rates'!C171 ->  | D237: ='WS7 - Impact on Rates'!D171 -> $ nominal p.a. | I237: ='WS7 - Impact on Rates'!I171 -> 0 | J237: ='WS7 - Impact on Rates'!J171 -> . | K237: ='WS7 - Impact on Rates'!K171 -> . | L237: ='WS7 - Impact on Rates'!L171 -> 0 | M237: ='WS7 - Impact on Rates'!M171 -> 0 | N237: ='WS7 - Impact on Rates'!N171 -> 0 | O237: ='WS7 - Impact on Rates'!O171 -> 0 | P237: ='WS7 - Impact on Rates'!P171 -> 0 | Q237: ='WS7 - Impact on Rates'!Q171 -> 0
B238: ='WS7 - Impact on Rates'!B172 -> Special rate | C238: ='WS7 - Impact on Rates'!C172 ->  | D238: ='WS7 - Impact on Rates'!D172 -> $ nominal p.a. | I238: ='WS7 - Impact on Rates'!I172 -> 0 | J238: ='WS7 - Impact on Rates'!J172 -> . | K238: ='WS7 - Impact on Rates'!K172 -> . | L238: ='WS7 - Impact on Rates'!L172 -> 0 | M238: ='WS7 - Impact on Rates'!M172 -> 0 | N238: ='WS7 - Impact on Rates'!N172 -> 0 | O238: ='WS7 - Impact on Rates'!O172 -> 0 | P238: ='WS7 - Impact on Rates'!P172 -> 0 | Q238: ='WS7 - Impact on Rates'!Q172 -> 0
B239: ='WS7 - Impact on Rates'!B173 -> Special rate | C239: ='WS7 - Impact on Rates'!C173 ->  | D239: ='WS7 - Impact on Rates'!D173 -> $ nominal p.a. | I239: ='WS7 - Impact on Rates'!I173 -> 0 | J239: ='WS7 - Impact on Rates'!J173 -> . | K239: ='WS7 - Impact on Rates'!K173 -> . | L239: ='WS7 - Impact on Rates'!L173 -> 0 | M239: ='WS7 - Impact on Rates'!M173 -> 0 | N239: ='WS7 - Impact on Rates'!N173 -> 0 | O239: ='WS7 - Impact on Rates'!O173 -> 0 | P239: ='WS7 - Impact on Rates'!P173 -> 0 | Q239: ='WS7 - Impact on Rates'!Q173 -> 0
... 529 more rows

Sheet WS0 - Input data (hidden)
B2: This worksheet is for IPART Analyst use only.
B5: Instructions:
B6: ="1. Enter the required information in the blue input cells in Section "&B23 -> 1. Enter the required information in the blue input cells in Section 1. Inputs
B7: ="2. Check the list of council names and update if necessary in Section "&B67 -> 2. Check the list of council names and update if necessary in Section 2. Council Name
B10: Contents | J10: row
B11: =B23 -> 1. Inputs | J11: =ROW(B23) -> 23
B12: =B26 -> Table 1 - Analyst and TSO details | J12: =ROW(B26) -> 26
B13: =B42 -> Table 2 - SV year and rate peg | J13: =ROW(B42) -> 42
B14: =B52 -> Table 3 - SV year, rate peg and units in display format | J14: =ROW(B52) -> 52
B15: =B67 -> 2. Council Name | J15: =ROW(B67) -> 67
B16: =B225 -> 3. Lists for expiring special variations and other questions | J16: =ROW(B225) -> 225
B17: =B227 -> Is the council applying for a one-year increase (s508(2)) or a multi-year increase (s508A)? | J17: =ROW(B227) -> 227
B18: =B232 -> For s508A applications: for how many years is the council requesting % increases as part of this application? | J18: =ROW(B232) -> 232
B19: =B243 -> For s508A & s508(2) applications: is the special variation permanent or temporary? | J19: =ROW(B243) -> 243
B20: =B252 -> Does the council have an expiring variation? If yes, please specify when. | J20: =ROW(B252) -> 252
B23: 1. Inputs
B26: Table 1 - Analyst and TSO details
B28: Who is the Analyst in charge?
B29: First Name | D29: Regina
B30: Last Name | D30: Choi
B31: Email | D31: regina.choi@ipart.nsw.gov.au
B32: Phone | D32: (02) 9019 1942
B34: Who is the TSO supporting the Analyst?
B35: First Name | D35: Arsh
B36: Last Name | D36: Suri
B37: Email | D37: localgovernment@ipart.nsw.gov.au
B38: Phone | D38: (02) 9113 7730
B42: Table 2 - SV year and rate peg
B44: SV for period commencing 1 July | C44: year | D44: 2026
B45: Financial year | D45: =D44&"-"&RIGHT(D44+1,2) -> 2026-27
B46: Rate pegs
B47: Rate peg for Year 1 | C47: % | D47: =IF(ISBLANK('WS2-Proposal'!$K$63),'WS0 - Input data'!$D$48,'WS2-Proposal'!$K$63) -> 0.04
B48: "OLG assumed" rate peg for Year 2 - 7 | C48: % | D48: 0.025
B52: Table 3 - SV year, rate peg and units in display format
B53: Years
B54: Year number | E54: =F54-1 -> -5 | F54: =G54-1 -> -4 | G54: =H54-1 -> -3 | H54: -2 | I54: =J54-1 -> -1 | J54: 0 | K54: =J54+1 -> 1 | L54: 2 | M54: 3 | N54: 4 | O54: 5 | P54: 6 | Q54: 7 | R54: 8 | S54: 9 | T54: 10
B55: Year name | E55: ="Hist yr "&E54 -> Hist yr -5 | F55: ="Hist yr "&F54 -> Hist yr -4 | G55: ="Hist yr "&G54 -> Hist yr -3 | H55: ="Hist yr "&H54 -> Hist yr -2 | I55: ="Hist yr "&I54 -> Hist yr -1 | J55: ="Year "&J54 -> Year 0 | K55: ="Year "&K54 -> Year 1 | L55: Year 2 | M55: Year 3 | N55: Year 4 | O55: Year 5 | P55: Year 6 | Q55: Year 7 | R55: Year 8 | S55: Year 9 | T55: Year 10
B57: Year commencing 1 July | E57: =F57-1 -> 2020 | F57: 2021 | G57: =H57-1 -> 2022 | H57: =I57-1 -> 2023 | I57: =J57-1 -> 2024 | J57: =D44-1 -> 2025 | K57: =D44 -> 2026 | L57: =K57+1 -> 2027 | M57: 2028 | N57: 2029 | O57: 2030 | P57: 2031 | Q57: 2032 | R57: 2033 | S57: 2034 | T57: 2035
B58: Financial year | E58: =E57&"-"&RIGHT(E57+1,2) -> 2020-21 | F58: 2021-22 | G58: 2022-23 | H58: =H57&"-"&RIGHT(H57+1,2) -> 2023-24 | I58: 2024-25 | J58: 2025-26 | K58: 2026-27 | L58: 2027-28 | M58: 2028-29 | N58: 2029-30 | O58: 2030-31 | P58: 2031-32 | Q58: 2032-33 | R58: 2033-34 | S58: 2034-35 | T58: 2035-36
B60: Rate peg | K60: =$D$47 -> 0.04
B62: Units for labels | C62: $ nominal
C63: =C62&" per year" -> $ nominal per year
B67: 2. Council Name
B68: 1 | C68: Albury City Council
B69: =B68+1 -> 2 | C69: Armidale Regional Council
B70: 3 | C70: Ballina Shire Council
B71: 4 | C71: Balranald Shire Council
B72: 5 | C72: Bathurst Regional Council
B73: 6 | C73: Bayside Council
B74: 7 | C74: Bega Valley Shire Council
B75: 8 | C75: Bellingen Shire Council
B76: 9 | C76: Berrigan Shire Council
B77: 10 | C77: Blacktown City Council
B78: 11 | C78: Bland Shire Council
B79: 12 | C79: Blayney Shire Council
B80: 13 | C80: Blue Mountains City Council
B81: 14 | C81: Bogan Shire Council
B82: 15 | C82: Bourke Shire Council
B83: 16 | C83: Brewarrina Shire Council
B84: 17 | C84: Broken Hill City Council
B85: 18 | C85: Burwood Council
B86: 19 | C86: Byron Shire Council
B87: 20 | C87: Cabonne Council
B88: 21 | C88: Camden Council
B89: 22 | C89: Campbelltown City Council
B90: 23 | C90: Canterbury-Bankstown Council
B91: 24 | C91: Carrathool Shire Council
B92: 25 | C92: Central Coast Council
B93: 26 | C93: Central Darling Shire Council
B94: 27 | C94: Cessnock City Council
B95: 28 | C95: City of Canada Bay Council
B96: 29 | C96: City of Parramatta Council
B97: 30 | C97: City of Ryde Council
B98: 31 | C98: City of Sydney Council
B99: 32 | C99: Clarence Valley Council
B100: 33 | C100: Cobar Shire Council
B101: =B100+1 -> 34 | C101: Coffs Harbour City Council
B102: 35 | C102: Coolamon Shire Council
B103: 36 | C103: Coonamble Shire Council
B104: 37 | C104: Cootamundra-Gundagai Regional Council
B105: 38 | C105: Cowra Shire Council
B106: 39 | C106: Cumberland Council
B107: 40 | C107: Dubbo Regional Council
B108: 41 | C108: Dungog Shire Council
B109: 42 | C109: Edward River Council
B110: 43 | C110: Eurobodalla Shire Council
B111: 44 | C111: Fairfield City Council
B112: 45 | C112: Federation Council
B113: 46 | C113: Forbes Shire Council
B114: 47 | C114: Georges River Council
B115: 48 | C115: Gilgandra Shire Council
B116: 49 | C116: Glen Innes Severn Shire Council
B117: 50 | C117: Goulburn Mulwaree Council
B118: 51 | C118: Greater Hume Shire Council
B119: 52 | C119: Griffith City Council
B120: 53 | C120: Gunnedah Shire Council
B121: 54 | C121: Gwydir Shire Council
B122: 55 | C122: Hawkesbury City Council
B123: 56 | C123: Hay Shire Council
B124: 57 | C124: Hills Shire Council, The
B125: 58 | C125: Hilltops Council
B126: 59 | C126: Hornsby Shire Council
B127: 60 | C127: Hunters Hill Council
B128: 61 | C128: Inner West Council
B129: 62 | C129: Inverell Shire Council
B130: 63 | C130: Junee Shire Council
B131: 64 | C131: Kempsey Shire Council
B132: 65 | C132: Kiama Municipal Council
B133: =B132+1 -> 66 | C133: Ku-ring-gai Municipal Council
B134: 67 | C134: Kyogle Council
B135: 68 | C135: Lachlan Shire Council
B136: 69 | C136: Lake Macquarie City Council
B137: 70 | C137: Lane Cove Council
B138: 71 | C138: Leeton Shire Council
B139: 72 | C139: Lismore City Council
B140: 73 | C140: Lithgow Council, City of
B141: 74 | C141: Liverpool City Council
B142: 75 | C142: Liverpool Plains Shire Council
B143: 76 | C143: Lockhart Shire Council
B144: 77 | C144: Maitland City Council
B145: 78 | C145: Mid-Coast Council
B146: 79 | C146: Mid-Western Regional Council
B147: 80 | C147: Moree Plains Shire Council
B148: 81 | C148: Mosman Municipal Council
B149: 82 | C149: Murray River Council
B150: 83 | C150: Murrumbidgee Shire Council
B151: 84 | C151: Muswellbrook Shire Council
B152: 85 | C152: Nambucca Valley Council
B153: 86 | C153: Narrabri Shire Council
B154: 87 | C154: Narrandera Shire Council
B155: 88 | C155: Narromine Shire Council
B156: 89 | C156: Newcastle City Council
B157: 90 | C157: Northern Beaches Council
B158: 91 | C158: North Sydney Council
B159: 92 | C159: Oberon Council
B160: 93 | C160: Orange City Council
B161: 94 | C161: Parkes Shire Council
B162: 95 | C162: Penrith City Council
B163: 96 | C163: Port Macquarie-Hastings Council
B164: 97 | C164: Port Stephens Council
B165: =B164+1 -> 98 | C165: Queanbeyan-Palerang Regional Council
B166: 99 | C166: Randwick City Council
B167: 100 | C167: Richmond Valley Council
B168: 101 | C168: Shellharbour City Council
B169: 102 | C169: Shoalhaven City Council
B170: 103 | C170: Singleton Shire Council
B171: 104 | C171: Snowy Monaro Regional Council
B172: 105 | C172: Snowy Valleys Council
B173: 106 | C173: Strathfield Municipal Council
B174: 107 | C174: Sutherland Shire Council
B175: 108 | C175: Tamworth Regional Council
B176: 109 | C176: Temora Shire Council
B177: 110 | C177: Tenterfield Shire Council
B178: 111 | C178: Tweed Shire Council
B179: 112 | C179: Upper Hunter Shire Council
B180: 113 | C180: Upper Lachlan Shire Council
B181: 114 | C181: Uralla Shire Council
B182: 115 | C182: Wagga Wagga City Council
B183: 116 | C183: Walcha Council
B184: 117 | C184: Walgett Shire Council
B185: 118 | C185: Warren Shire Council
B186: 119 | C186: Warrumbungle Shire Council
B187: 120 | C187: Waverley Council
B188: 121 | C188: Weddin Shire Council
B189: 122 | C189: Wentworth Shire Council
B190: 123 | C190: Willoughby City Council
B191: 124 | C191: Wingecarribee Shire Council
B192: 125 | C192: Wollondilly Shire Council
B193: 126 | C193: Wollongong City Council
B194: 127 | C194: Woollahra Municipal Council
B195: 128 | C195: Yass Valley Council
B196: 129 | C196: <<Choose your council>>
B197: =B196+1 -> 130
B198: 131
B199: 132
B200: 133
B201: 134
B202: 135
B203: 136
B204: 137
B205: 138
B206: 139
B207: 140
B208: 141
B209: 142
B210: 143
B211: 144
B212: 145
B213: 146
B214: 147
B215: 148
B216: 149
B217: 150
B218: 151
B219: 152
B220: 153
B221: 154
B222: 155 | F222: add rows above this one if you need more
B225: 3. Lists for expiring special variations and other questions
B227: ='WS2-Proposal'!B58 -> Is the council applying for a one-year increase (s508(2)) or a multi-year increase (s508A)?
... 191 more rows

Sheet Overview
B2: THE INDEPENDENT PRICING AND REGULATORY TRIBUNAL OF NSW
B4: =Year1&" PART A APPLICATION FORM FOR EITHER:" -> 2026-27 PART A APPLICATION FORM FOR EITHER:
C6: (1) A special variation to vary general income under Section 508A and 508(2) of the Local Government Act 1993
C7: OR
C8: (2) Minimum rate increases above the statutory limit under Section 548(3) of the Local Government Act 1993
C9: OR
C10: (3) Both - Special Variation and Minimum Rate Increases
B14: OVERVIEW
B15: - A special variation is the total percentage increase permitted in a council's general income, including the rate peg and Crown land adjustments, before adjustments are made for
B16: catch ups/excesses and valuation objections.
B17: - Approval under section 508A allows a council to increase general income by a percentage that is greater than the rate peg each year, up to a maximum of 7 years.
B18: - Approval under section 508(2) allows a council to increase general income by a percentage that is greater than the rate peg in a single year.
B19: - The council must identify the percentage increase requested for each year inclusive of the rate peg.
B20: ="- The rate peg included in council's requested special variation percentages for Year 1 ("&Year1&") is the actual rate peg set by IPART." -> - The rate peg included in council's requested special variation percentages for Year 1 (2026-27) is the actual rate peg set by IPART.
B21: - The rate pegs for years 2-7 can either be (a) the OLG's assumed rate peg of 2.5% or (b) any other percentages assumed by Council.
B22: - The council must also identify percentage increases in the minimum rates for each year, if the increases exceed the rate peg or SV percentage. This is even if the council has been
B23: approved to be above the statutory limit in the past.
B24: Note:
B25: > IPART can approve a percentage increase to minimum rates above the statutory limit that differs from the proposed special variation percentage increase
B26: as long as the council has justified and properly consulted on that percentage. See Attachment 3 of the Special Variation Guidelines for further details.
B27: > Note: SV percentages are a total amount, i.e. not just the incremental percentage above the rate peg.
B28: - Enquiries regarding the completion of this application should be directed to:
B33: ='WS0 - Input data'!$D$35&" "&'WS0 - Input data'!$D$36 -> Arsh Suri
D34: ='WS0 - Input data'!D38 -> (02) 9113 7730
D35: ='WS0 - Input data'!D37 -> localgovernment@ipart.nsw.gov.au
B39: GENERAL INSTRUCTIONS
B41: > Before completing this form, you MUST read the Office of Local Government's Guidelines for the preparation of an application for a special variation to general income
B42: or Guidelines for the preparation of an application to increase minimum rates above the statutory limit (as applicable to the council's application).
B43: These Guidelines are available on the Office of Local Government’s website at https://www.olg.nsw.gov.au/councils/council-finances/rating-and-special-variations/
B44: > This part of the application must be completed in conjunction with Part B Application Form. If the council applies for an increase in minimum rates and a special variation,
B45: the council needs to complete two (2) separate Part B application forms and this Part A application.
B46: > Both Part A and Part B of the application should be submitted to IPART (us) via the Council Portal on our website at https://ipart.service-now.com/lg
B47: > This Part A form consists of 12 worksheets and each worksheet comprises of a number of tables. In completing this Part A application form please note the following:
B48: * The data requirement varies slightly for each type of application. For example, most of the data in WS8 are not required for an application to increase the minimum rate only.
B49: ="* The exact data requirements can be found in table "&'WS1-Application'!A1&"."&'WS1-Application'!A40&" of 'WS1 - Application' once Council had identified the exact nature of the application (SV only, MR increase only or SV&MR together)" -> * The exact data requirements can be found in table 1.2 of 'WS1 - Application' once Council had identified the exact nature of the application (SV only, MR increase only or SV&MR together)
B50: ="at row "&ROW('WS1-Application'!B33)&" of WS1 - Application" -> at row 33 of WS1 - Application
B51: * All dollars are to be in nominal terms
B52: * Please pay attention to the dollar units of each table as it can vary between tables. For example, some tables require dollars to be in thousands ($'000) whereas others are in dollars ($)
B53: > Further detailed instructions, if any, can be found in each worksheet.
B54: > In filling out each worksheet, please have regard to the colour coding of each cell in each tables.
B55: Colour codes
C56: Enter data in the blue input cells. Completion of these cells are compulsory.
C57: Green = voluntary inputs (actual and/or projections)
C58: Hard-coded values that should not be changed
C59: Key outputs
C60: Special instructions
C61: Error checks
C62: Double red line indicates a change in formula
B63: SV = Special variation
B64: MR = Minimum rate increase
B65: SV & MR = Special variation and minimum rate increase
B69: GENERAL DESCRIPTION OF WORKSHEETS IN THIS PART A APPLICATION
B71: A general description of each worksheet is given below. Further detailed information, if any, can be found in each worksheet.
B72: WS1- Application:
B73: - Identifies your council and a council contact officer, and the nature of council's proposal (i.e. special variation, minimum rate increase or both).
B74: - Based on the nature of council's application, table 1.2 in this worksheet lists all the data requirements that council must provide.
B75: WS2- Proposal:
B76: - Collects key information on council's proposal, including proposed SV percentage increases and proposed duration of SV increases
B77: - It also collects information about Crown Land adjustments, catch-ups or excess adjustments and valuation objections.
B78: WS3 - Notional General Income:
B79: ="- Calculates the notional general income for the current year (Year 0 in the application, "&'WS0 - Input data'!$J$58&"). " -> - Calculates the notional general income for the current year (Year 0 in the application, 2025-26).
B80: WS4- Yr 1 YIELD
B81: ="- Calculates the council's proposed notional general income for next year (Year 1 in the application, "&'WS0 - Input data'!$K$58&")." -> - Calculates the council's proposed notional general income for next year (Year 1 in the application, 2026-27).
B82: WS5- Yrs 2-7 YIELD
B83: ="- Calculates the council's proposed notional general income for Years 2 to 7 ("&'WS0 - Input data'!L58&" to "&'WS0 - Input data'!Q58&")." -> - Calculates the council's proposed notional general income for Years 2 to 7 (2027-28 to 2032-33).
B84: WS6 - PGI Summary
B85: - Summarises the council's Permissible General Income based on the 1st year's percentage for the proposed SV and Crown Land adjustments,
B86: plus other income adjustments. It also shows the council's PGI, the annual and cumulative impacts of the proposed SV over the proposed SV period.
B87: WS7- Impact on Rates
B88: - Calculates the average annual and cumulative increases in rates for each category/sub-category for each year of the proposed SV, with and without the proposed SV.
B89: This worksheet also collects the minimum rates and average rates of the current year (year 0) and the year prior to the current year (historical year -1). These are needed for comparative purposes
B90: NB: the council can use worksheet 12 to provide data that are relevant in explaining the impact of proposed SV on rates.
B91: WS8 - Expenditure Program
B92: - Collects data on how the council intends to use the additional income from the proposed SV.
B93: WS9 - Financials
B94: - Collects historical information from your financial statements and forecasts for selected balance sheet items from your long term financial plan (LTFP).
B95: WS10- LTFP (Long Term Financial Plan)
B96: - Collects information on your Long Term Financial Plan including scenarios with and without the proposed special variation.
B97: WS11- Ratios
B98: - Captures financial ratios, some of which are calculated while others are entered as inputs.
B99: WS 12 - Other:
B100: - Captures data relevant to explaining the impact of the proposed special variations on rates, such as overdue rates, pensioner rebates and hardship policy.
B101: - The council can also provide data on rateable and non-rateable assessments to assist in explaining the increase in rates resulting from the special variations.
B102: - This worksheet also contains a blank table for council's use as needed. For example, council can use this optional table to provide other data,
B103: not already provided/requested, to explain its proposed SV and impact.

Sheet WS1-Application
A1: 1
B2: ="APPLICATION FOR "&UPPER(D33)&" - "&UPPER(IF(ISBLANK(D23),D24,D23)) -> APPLICATION FOR SPECIAL VARIATION AND MINIMUM RATE INCREASE - NORTH SYDNEY COUNCIL
B4: ="WORKSHEET "&A1&" - CONTACT DETAILS AND PROPOSED APPLICATION " -> WORKSHEET 1 - CONTACT DETAILS AND PROPOSED APPLICATION
B7: Instructions and notes
B8: > Select council name from the drop down list and enter contact details.
B9: ="> Select the type of application council is submitting at row "&ROW(B33)&"." -> > Select the type of application council is submitting at row 33.
B10: - It is important to specify the nature of the application correctly as data requirements vary slightly between a special variation/ special variation and minimum rate increase application and a mininum rate increase only application.
B11: Notes:
B12: ="Table "&A1&"."&A40&" lists the relevant tables that council must complete, depending on the type of application council is submitting as stated at row "&ROW(D33)&"." -> Table 1.2 lists the relevant tables that council must complete, depending on the type of application council is submitting as stated at row 33.
B13: These data obligations are as follow:
B14: Y = Must complete
B15: N = No need to complete
B16: P = Partial, some tables/sections apply
B17: O = Optional
B18: =" Please see also the colour coding at row "&ROW(Overview!B55)&" of Overview" -> Please see also the colour coding at row 55 of Overview
A22: 1 | B22: ="Table "&$A$1&"."&A22&": Council's name, contact and nature of application" -> Table 1.1: Council's name, contact and nature of application
B23: Council Name: | D23: North Sydney Council
B24: Council Name if not listed:
B26: Contact Details:
B27: Name:
B28: Position:
B29: Telephone:
B30: Email:
B31: Note: Please provide direct contact information for relevant council officer. Contact details will be redacted before publication.
B33: Nature of application | D33: Special Variation and Minimum Rate Increase
B34: Note:
B35: - It is important to specify the nature of the application correctly as data requirements vary slightly between a special variation/ special variation and minimum rate increase application and a mininum rate increase only application.
B36: ="- Once council has indicated the nature of the application at row "&ROW(B33)&" above, table "&A1&"."&A40&" below will specify the exact worksheets and tables in this application form that council must complete and special instructions (if any)" -> - Once council has indicated the nature of the application at row 33 above, table 1.2 below will specify the exact worksheets and tables in this application form that council must complete and special instructions (if any)
A40: =A22+1 -> 2 | B40: ="Table "&A1&"."&A40&": List of tables for council to complete - based on council's proposed application" -> Table 1.2: List of tables for council to complete - based on council's proposed application
I41: Obligation to complete (Y/N/P/O) | J41: =IF(D33='WS0 - Input data'!B405,"Instructions for MR increase application",".") -> .
B42: =B4 -> WORKSHEET 1 - CONTACT DETAILS AND PROPOSED APPLICATION
B43: =B22 -> Table 1.1: Council's name, contact and nature of application | I43: =$B$14 -> Y = Must complete
B44: ='WS2-Proposal'!B4 -> WORKSHEET 2 - PROPOSED SPECIAL VARIATION AND MINIMUM RATE INCREASE
B45: ='WS2-Proposal'!B39 -> Table 2.1: Existing and expiring special variations and adjustments | I45: =$B$14 -> Y = Must complete
B46: ='WS2-Proposal'!B55 -> Table 2.2: Proposed special variations and requested percentage increases | I46: =$B$14 -> Y = Must complete | J46: =IF(D33='WS0 - Input data'!B405,"Special instructions apply, please see worksheet",".") -> .
B47: ='WS3 - Notional General Income'!B4 -> WORKSHEET 3 - CALCULATION OF NOTIONAL GENERAL INCOME FOR 2025-26 (THE CURRENT YEAR OR YEAR 0)
B48: ='WS3 - Notional General Income'!B19 -> Table 3.1: Calculation of Notional General Income - Ordinary Rates ($nominal) | I48: =$B$14 -> Y = Must complete
B49: ='WS3 - Notional General Income'!B94 -> Table 3.2: Calculation of Notional General Income - Special Rates ($nominal) | I49: =$B$14 -> Y = Must complete
B50: ='WS3 - Notional General Income'!B150 -> Table 3.3: Calculation of Notional General Income - Annual Charges ($nominal) | I50: =$B$14 -> Y = Must complete
B51: ='WS4 - Yr 1 YIELD'!B4 -> WORKSHEET 4: CALCULATION OF NOTIONAL GENERAL INCOME FOR 2026-27 (YEAR 1)
B52: ='WS4 - Yr 1 YIELD'!B16 -> Table 4.1: Calculation of Notional General Income - Ordinary Rates ($ nominal) | I52: =$B$14 -> Y = Must complete
B53: ='WS4 - Yr 1 YIELD'!B91 -> Table 4.2: Calculation of Notional General Income - Special Rates ($ nominal) | I53: =$B$14 -> Y = Must complete
B54: ='WS4 - Yr 1 YIELD'!B147 -> Table 4.3: Calculation of Notional General Income - Annual Charges ($ nominal) | I54: =$B$14 -> Y = Must complete
B55: ='WS5 - Yrs 2-7 YIELD'!B4 -> WORKSHEET 5: CALCULATION OF NOTIONAL GENERAL INCOME FOR YEARS 2 TO 7 (2027-28 TO 2032-33)
B56: ='WS5 - Yrs 2-7 YIELD'!B19 -> Table 5.1: Calculation of Notional General Income - Ordinary Rates from 2027-28 to 2032-33 ($ nominal)
B57: ='WS5 - Yrs 2-7 YIELD'!D20 -> Year 2 (2027-28) | I57: =$B$14 -> Y = Must complete
B58: ='WS5 - Yrs 2-7 YIELD'!M20 -> Year 3 (2028-29) | I58: Y = Must complete
B59: ='WS5 - Yrs 2-7 YIELD'!V20 -> Year 4 (2029-30) | I59: Y = Must complete
B60: ='WS5 - Yrs 2-7 YIELD'!AE20 -> Year 5 (2030-31) | I60: Y = Must complete
B61: ='WS5 - Yrs 2-7 YIELD'!AN20 -> Year 6 (2031-32) | I61: Y = Must complete
B62: ='WS5 - Yrs 2-7 YIELD'!AW20 -> Year 7 (2032-33) | I62: Y = Must complete
B63: ='WS5 - Yrs 2-7 YIELD'!B95 -> Table 5.2: Calculation of Notional General Income - Special Rates from 2027-28 to 2032-33 ($ nominal)
B64: ='WS5 - Yrs 2-7 YIELD'!D96 -> Year 2 (2027-28) | I64: =$B$14 -> Y = Must complete
B65: ='WS5 - Yrs 2-7 YIELD'!M96 -> Year 3 (2028-29) | I65: Y = Must complete
B66: ='WS5 - Yrs 2-7 YIELD'!V96 -> Year 4 (2029-30) | I66: Y = Must complete
B67: ='WS5 - Yrs 2-7 YIELD'!AE96 -> Year 5 (2030-31) | I67: Y = Must complete
B68: ='WS5 - Yrs 2-7 YIELD'!AN96 -> Year 6 (2031-32) | I68: Y = Must complete
B69: ='WS5 - Yrs 2-7 YIELD'!AW96 -> Year 7 (2032-33) | I69: Y = Must complete
B70: ='WS5 - Yrs 2-7 YIELD'!B152 -> Table 5.3: Calculation of Notional General Income - Annual Charges from 2027-28 to 2032-33 ($ nominal)
B71: ='WS5 - Yrs 2-7 YIELD'!D153 -> Year 2 (2027-28) | I71: =$B$14 -> Y = Must complete
B72: ='WS5 - Yrs 2-7 YIELD'!M153 -> Year 3 (2028-29) | I72: =$B$14 -> Y = Must complete
B73: ='WS5 - Yrs 2-7 YIELD'!V153 -> Year 4 (2029-30) | I73: Y = Must complete
B74: ='WS5 - Yrs 2-7 YIELD'!AE153 -> Year 5 (2030-31) | I74: Y = Must complete
B75: ='WS5 - Yrs 2-7 YIELD'!AN153 -> Year 6 (2031-32) | I75: Y = Must complete
B76: ='WS5 - Yrs 2-7 YIELD'!AW153 -> Year 7 (2032-33) | I76: Y = Must complete
B77: ='WS6 - PGI summary'!B4 -> WORKSHEET 6: PERMISSIBLE GENERAL INCOME SUMMARY FOR 2026-27
B78: ='WS6 - PGI summary'!B55 -> Table 6.1: Calculation of first year Permissble General Income ($ nominal) | I78: =$B$15 &" - automatic calculation" -> N = No need to complete - automatic calculation
B79: ='WS6 - PGI summary'!B78 -> Table 6.2: Calculation of PGI with proposed SV, rate peg and renewal of expiring SV ($ nominal) | I79: =$B$15 &" - automatic calculation" -> N = No need to complete - automatic calculation
B80: ='WS6 - PGI summary'!B114 -> Table 6.3 Increases in permissable general income over proposed SV period ($ nominal) | I80: =$B$15 &" - automatic calculation" -> N = No need to complete - automatic calculation
B81: ='WS7 - Impact on Rates'!B4 -> WORKSHEET 7: IMPACT ON MINIMUM RATES, AVERAGE RATES AND OTHER CHARGES
B82: ='WS7 - Impact on Rates'!B25 -> Table 7.1: Minimum Rates - with proposed special variation | I82: =$B$14 -> Y = Must complete
B83: ='WS7 - Impact on Rates'!B98 -> Table 7.2: Average Ordinary and Special Rates - with proposed special variation | I83: Y = Must complete
B84: ='WS7 - Impact on Rates'!B222 -> Table 7.3: Average Ordinary and Special Rates - without proposed special variation (assumed rate peg only) | I84: Y = Must complete
B85: ='WS7 - Impact on Rates'!B346 -> Table 7.4: Domestic Waste Management Services - Annual Charge | I85: Y = Must complete
B86: ='WS7 - Impact on Rates'!B378 -> Table 7.5: Water Supply Services - Annual Charge | I86: Y = Must complete
B87: ='WS7 - Impact on Rates'!B404 -> Table 7.6: Sewerage Services - Annual Charge | I87: Y = Must complete
B88: ='WS7 - Impact on Rates'!B430 -> Table 7.7: Other Annual Charges | I88: Y = Must complete
B89: ='WS8 - Expenditure Program'!B4 -> WORKSHEET 8: PROPOSED ADDITIONAL SPECIAL VARIATION INCOME AND EXPENDITURE
B90: ='WS8 - Expenditure Program'!B25 -> Table 8.1: Income and Operating balance ($ nominal) | I90: =$B$15 &" - automatic calculation" -> N = No need to complete - automatic calculation
B91: ='WS8 - Expenditure Program'!B35 -> Table 8.2: Operating expenses (including loan interest costs) ($ nominal) | I91: =IF($D$33="minimum rate increase",$B$15,$B$14) -> Y = Must complete | J91: ='WS8 - Expenditure Program'!M35 -> 
B92: ='WS8 - Expenditure Program'!B74 -> Table 8.3: Capital expenditure ($ nominal) | I92: =IF($D$33="minimum rate increase",$B$15,$B$14) -> Y = Must complete | J92: ='WS8 - Expenditure Program'!M74 -> 
B93: ='WS8 - Expenditure Program'!B146 -> Table 8.4: Other uses of proposed SV income (eg, loan principal repayments, transfers to reserves) ($ nominal) | I93: Y = Must complete | J93: ='WS8 - Expenditure Program'!M146 -> 
B94: ='WS8 - Expenditure Program'!B163 -> Table 8.5: Total ($ nominal) | I94: =$B$15 &" - automatic calculation" -> N = No need to complete - automatic calculation
B95: ='WS9 - Financials'!B4 -> WORKSHEET 9: FINANCIAL INFORMATION
B96: ='WS9 - Financials'!B15 -> Table 9.1: Income statement (General fund) ($'000 nominal) | I96: =$B$14 -> Y = Must complete
B97: ='WS9 - Financials'!B56 -> Table 9.2: Borrowing costs and repayments ($'000 nominal) | I97: Y = Must complete
B98: ='WS9 - Financials'!B65 -> Table 9.3: Infrastructure asset performance indicators by fund (%) | I98: Y = Must complete
B99: ='WS9 - Financials'!B75 -> Table 9.4: Cash and investments (General fund) ($'000 nominal) | I99: Y = Must complete
B100: ='WS9 - Financials'!B100 -> Table 9.5: Balance sheet extract (General fund) - historical and forecasts for SV scenario ($'000 nominal) | I100: =IF($D$33="minimum rate increase",$B$15,$B$14) -> Y = Must complete | J100: ='WS9 - Financials'!I100 -> .
B101: ='WS10 - LTFP'!B4 -> WORKSHEET 10: LONG TERM FINANCIAL PLAN
B102: ='WS10 - LTFP'!B21 -> Table 10.1(a): Income Statement- General fund - PROPOSED Special Variation and Minimum Rate Increase Scenario ($ nominal) | I102: =IF($D$33="minimum rate increase",$B$15,$B$14) -> Y = Must complete | J102: ='WS10 - LTFP'!K21 -> .
B103: ='WS10 - LTFP'!B75 -> Table 10.1(b): Cashflow Statement - General fund- PROPOSED Special Variation and Minimum Rate Increase Scenario ($ nominal) | I103: =IF($D$33="minimum rate increase",$B$15,$B$14) -> Y = Must complete | J103: ='WS10 - LTFP'!K75 -> .
B104: ='WS10 - LTFP'!B167 -> Table 10.2(a): Income Statement - General fund - BASE case scenario ($ nominal) | I104: Y = Must complete
B105: ='WS10 - LTFP'!B221 -> Table 10.2(b): Cashflow Statement - General fund - BASE case scenario ($ nominal) | I105: Y = Must complete
B106: ='WS10 - LTFP'!B313 -> Table 10.3: Key Assumptions | I106: =IF($D$33="minimum rate increase",$B$16,$B$14) -> Y = Must complete | J106: ='WS10 - LTFP'!K313 -> .
B107: ='WS10 - LTFP'!B334 -> Table 10.4: Income Statement - General fund - Hybrid case scenario ($ nominal) | I107: =IF($D$33="minimum rate increase",$B$15,$B$14) -> Y = Must complete | J107: ='WS10 - LTFP'!K334 -> .
B108: ='WS10 - LTFP'!B388 -> Table 10.5: Difference between Scenario 1 (with proposed SV income and expenditure) and Scenario 2 (base case - no SV income or expenditure) | I108: =IF($D$33="minimum rate increase",$B$15,$B$14) -> Y = Must complete | J108: ='WS10 - LTFP'!K388 -> .
B109: ='WS11 - Ratios'!B4 -> WORKSHEET 11 : FINANCIAL RATIOS
B110: ='WS11 - Ratios'!B42 -> Table 11.1: Sustainability | I110: =IF($D$33="minimum rate increase",$B$16,$B$14) -> Y = Must complete | J110: ='WS11 - Ratios'!E42 -> .
B111: ='WS11 - Ratios'!B62 -> Table 11.2: Effective infrastructure and service management | I111: =B16 -> P = Partial, some tables/sections apply | J111: ='WS11 - Ratios'!E62 -> .
B112: ='WS11 - Ratios'!B78 -> Table 11.3: Financial data underlying the ratios | I112: =$B$14 -> Y = Must complete
B113: ='WS12 - Other'!B4 -> WORKSHEET 12: OTHER DATA
B114: ='WS12 - Other'!B16 -> Table 12.1: Overdue notices, rebate and hardship | I114: =$B$14 -> Y = Must complete
B115: ='WS12 - Other'!B82 -> Table 12.2: Rateable and non-ratable assessments | I115: =$B$17 -> O = Optional
B116: ='WS12 - Other'!B90 -> Table 12.3: Optional blank table for council to use - please do not remove year headings in rows 92 and 93 | I116: =$B$17 -> O = Optional

Sheet WS2-Proposal
A1: 2
B2: ='WS1-Application'!B2 -> APPLICATION FOR SPECIAL VARIATION AND MINIMUM RATE INCREASE - NORTH SYDNEY COUNCIL
B4: ="WORKSHEET "&A1&" - PROPOSED "&UPPER('WS1-Application'!D33) -> WORKSHEET 2 - PROPOSED SPECIAL VARIATION AND MINIMUM RATE INCREASE
B7: Instructions and notes
B8: ="Table "&A1&"."&A39 -> Table 2.1
B9: > Indicate whether you have any existing SVs by selecting 'yes' or 'no' from the drop down box:
B10: ="- where the existing SV means you have an existing increase(s) above the rate peg for any year from "&'WS0 - Input data'!K55&" ("&'WS0 - Input data'!K58&")"&" onwards." -> - where the existing SV means you have an existing increase(s) above the rate peg for any year from Year 1 (2026-27) onwards.
B11: > Answer the questions about expiring SVs:
B12: - If the council does not have any SVs due to expire in the period of the proposed SV, leave the field blank or select 'na'.
B13: ="- Enter the $ value of expiring SVs in table "&A1&"."&A55&" (row "&ROW('WS2-Proposal'!B92)&")" -> - Enter the $ value of expiring SVs in table 2.2 (row 92)
B14: Any amounts entered need to be verified by the OLG before the application is submitted to us.
B15: > Answer the questions about Crown land adjustments, catch ups and valuation objections:
B16: - If the council does not have any adjustments, leave the fields in this section blank.
B17: Note that applications for Crown land adjustments still need to be separately made to OLG.
B18: ="Table "&A1&"."&A55 -> Table 2.2
B19: Instruction for SV application or SV & MR application
B20: > Select (or enter) the type and duration of the proposed special variation.
B21: If the council is applying for an SV that is part permanent and part temporary, please contact IPART.
B22: ="> Enter the rate peg (up to 2 decimal places) assumed by council for each year of the proposed SV period at row "&ROW(B79)&":" -> > Enter the rate peg (up to 2 decimal places) assumed by council for each year of the proposed SV period at row 79:
B23: * The OLG Guidelines advise an assumed rate peg of 2.5%. However, if the council has assumed a different rate peg, this can be used with an explanation provided in the Part B application form.
B24: * If no percentage is entered for any particular year, a rate of 2.50% p.a. as advised by the OLG guideline is assumed.
B25: * If the rate peg turns out to be different from that assumed, the total % increase in general income with an approved SV does not change.
B26: ="> Enter the additional percentage being sought above the rate peg (excluding other adjustments) for year 1 ("&'WS0 - Input data'!K58&") at row "&ROW(B64)&". " -> > Enter the additional percentage being sought above the rate peg (excluding other adjustments) for year 1 (2026-27) at row 64.
B27: ="> Enter the total proposed SV percentages (including the rate peg and existing SV income) for the other years (year 2 onwards) of the proposed period at row "&ROW(B85) &" [blue highlight cells]:" -> > Enter the total proposed SV percentages (including the rate peg and existing SV income) for the other years (year 2 onwards) of the proposed period at row 85 [blue highlight cells]:
B28: ="* Note that any approval given will be to the number of decimal places specified in the council resolution. This should be 1 decimal place, unless another number of decimal places is requested in Application Part B, Table 3." -> * Note that any approval given will be to the number of decimal places specified in the council resolution. This should be 1 decimal place, unless another number of decimal places is requested in Application Part B, Table 3.
B29: ="* The annual and cumulative increases in the white cells at row "&ROW(B86)&" are automatically calculated once the requested percentages increases have been entered." -> * The annual and cumulative increases in the white cells at row 86 are automatically calculated once the requested percentages increases have been entered.
B30: ="> Enter the dollar value of expiring special variations at row "&ROW(B92)&"." -> > Enter the dollar value of expiring special variations at row 92.
B32: Instruction for MR increase only application
B33: ="> Please follow instructions at column "&LOOKUP(COLUMN($L$56),'WS0 - Input data'!$B$411:$B$431,'WS0 - Input data'!$C$411:$C$431)&" at rows "&ROW(L58)&" to row "&ROW(L64)& " for each of the blue input cells at column "&LOOKUP(COLUMN($K$56),'WS0 - Input data'!$B$411:$B$431,'WS0 - Input data'!$C$411:$C$431) -> > Please follow instructions at column L at rows 58 to row 64 for each of the blue input cells at column K
B34: ="> At row "&ROW(B79)&" blue input cells, enter the rate peg percentages used by council if different to the 2.5% advised by OLG. If council uses 2.5%, council can either leave this row blank or enter 2.5%" -> > At row 79 blue input cells, enter the rate peg percentages used by council if different to the 2.5% advised by OLG. If council uses 2.5%, council can either leave this row blank or enter 2.5%
B35: ="> Leave the blue input cells at row "&ROW(B85)&" blank" -> > Leave the blue input cells at row 85 blank
A39: 1 | B39: ="Table "&A1&"."&A39&": Existing and expiring special variations and adjustments" -> Table 2.1: Existing and expiring special variations and adjustments
B40: a. Existing special variations (SVs) | W40: DO NOT DELETE
B41: ="Does the council have any existing SV(s) that means it has an increase above the rate peg for any year from "&K73&" ("&K72&") onwards?" -> Does the council have any existing SV(s) that means it has an increase above the rate peg for any year from 2026-27 (Year 1) onwards? | K41: no | L41: select option | W41: =IF(K41='WS0 - Input data'!B249,1,2) -> 2
B43: b. Expiring special variations (SVs)
B44: Does the council have an expiring variation? If yes, please specify when. | C44: 1st Expiring SV | K44: na | L44: select option
C45: 2nd Expiring SV | K45: na | L45: select option
B46: ="If the council has an expiring variation, enter the $ amount expiring in row "&ROW(B92)&" below." -> If the council has an expiring variation, enter the $ amount expiring in row 92 below.
B48: c. Crown Land adjustments, catch ups, valuation objections | K48: $ nominal | L48: % Year 0 income
B49: Enter the amount of any Crown Land adjustments required | K49: 0 | L49: =IF('WS3 - Notional General Income'!$L$163-$J$92=0,0,K49/('WS3 - Notional General Income'!$L$163-$J$92)) -> 0 | M49: enter $
B50: Enter the amount for any catch ups or excess adjustments required | K50: -292 | L50: =IF('WS3 - Notional General Income'!$L$163-$J$92=0,0,K50/('WS3 - Notional General Income'!$L$163-$J$92)) -> -4.50211859e-06 | M50: =M49 -> enter $
B51: Enter any valuation objections required (input as a positive whole number) | K51: 274 | L51: =IF('WS3 - Notional General Income'!$L$163-$J$92=0,0,K51/('WS3 - Notional General Income'!$L$163-$J$92)) -> 4.224590732e-06 | M51: =M50 -> enter $
A55: =A39+1 -> 2 | B55: ="Table "&A1&"."&A55&": Proposed special variations and requested percentage increases" -> Table 2.2: Proposed special variations and requested percentage increases | D55: =IF('WS1-Application'!$D$33="Minimum rate increase","[MR increase only application - follow instructions for each blue input cells]","") -> 
B56: a. Proposed special variations (SVs) | L56: Instructions | O56: Check
B58: Is the council applying for a one-year increase (s508(2)) or a multi-year increase (s508A)? | K58: s508A | L58: =IF('WS1-Application'!$D$33='WS0 - Input data'!$B$405,"MR increase - select option s508A","Select option") -> Select option | W58: =IF(K58="",0,MATCH(K58,'WS0 - Input data'!B228:B229,0)) -> 2
B59: For s508A applications: for how many years is the council requesting % increases as part of this application? | K59: 3 years | L59: =IF('WS1-Application'!$D$33='WS0 - Input data'!$B$405,"MR increase - select 7 years","Select option") -> Select option | O59: =IF(AND(W58=1,W59>1),"Error, s508(2) is for one year",IF(AND(W58=2,W59=1),"Please select number of years","ok")) -> ok | W59: =IF(K59="",0,MATCH(K59,'WS0 - Input data'!E235:E241,0)) -> 3
B60: For s508A & s508(2) applications: is the special variation permanent or temporary? | K60: Permanent | L60: =IF('WS1-Application'!$D$33='WS0 - Input data'!$B$405,"MR increase - select Permanent","Select option") -> Select option
B62: > If temporary, enter the number of years before the proposed temporary special variation is due to expire. If 'combined' SV, please discuss with IPART prior to submission | L62: =IF('WS1-Application'!$D$33='WS0 - Input data'!$B$405,"MR increase - leave blank","enter years if temporary SV") -> enter years if temporary SV | O62: =IF(AND(OR(K60='WS0 - Input data'!B244,'WS2-Proposal'!K60='WS0 - Input data'!B246),K62=0),"ok",IF(AND(VALUE(LEFT(K59,1))=K62,K60='WS0 - Input data'!B245),"Proposed # of temporary years ok","Error, check if number of years entered is correct")) -> ok | W62: =IF(W58+W59=0,0,IF(W58=1,1,W59)) -> 3
B63: ="Percentage rate peg for the first year of the SV period ("&Year1&"). This will autofill with the selection of Council." -> Percentage rate peg for the first year of the SV period (2026-27). This will autofill with the selection of Council. | K63: =INDEX('WS0 - Input data'!D272:D399,MATCH('WS1-Application'!D23,'WS0 - Input data'!B272:B399,0)) -> 0.04
B64: =CHOOSE($W$41,"Enter the percentage above the existing full SV (ie, incl rate peg) the council is applying for in the first year ","Enter the percentage above the rate peg the council is applying for in the first year") -> Enter the percentage above the rate peg the council is applying for in the first year | K64: 0.19
B65: =IF($W$66=1,"- percentage of the Combined SV that this temporary","na - ignore this row - Not a combined SV") -> na - ignore this row - Not a combined SV | L65: =IF($K$60='WS0 - Input data'!$B$246,"enter %","na - ignore") -> na - ignore | W65: DO NOT DELETE
B66: =IF($W$66=1," - percentage of the Combined SV that this permanent","na - ignore this row - Not a combined SV") -> na - ignore this row - Not a combined SV | K66: =IF(K60='WS0 - Input data'!$B$246,K64-K65,0) -> 0 | L66: % | W66: =IF(K60='WS0 - Input data'!$B$246,1,2) -> 2
B68: b. Requested annual percentage increases and expiring SV amounts
B69: A special variation is the total % increase permitted in a council's general income, Including the rate peg and Crown land adjustments, before adjustments are made for catch ups/excesses and valuation objections.
B70: Note: Approved SV% increases do not change if the actual rate peg turns out to be different from that assumed for a particular year.
J72: ='WS0 - Input data'!J$55 -> Year 0 | K72: ='WS0 - Input data'!K$55 -> Year 1 | L72: ='WS0 - Input data'!L$55 -> Year 2 | M72: ='WS0 - Input data'!M$55 -> Year 3 | N72: ='WS0 - Input data'!N$55 -> Year 4 | O72: ='WS0 - Input data'!O$55 -> Year 5 | P72: ='WS0 - Input data'!P$55 -> Year 6 | Q72: ='WS0 - Input data'!Q$55 -> Year 7
B73: ='WS0 - Input data'!B$58 -> Financial year | J73: ='WS0 - Input data'!J$58 -> 2025-26 | K73: ='WS0 - Input data'!K$58 -> 2026-27 | L73: ='WS0 - Input data'!L$58 -> 2027-28 | M73: ='WS0 - Input data'!M$58 -> 2028-29 | N73: ='WS0 - Input data'!N$58 -> 2029-30 | O73: ='WS0 - Input data'!O$58 -> 2030-31 | P73: ='WS0 - Input data'!P$58 -> 2031-32 | Q73: ='WS0 - Input data'!Q$58 -> 2032-33
B74: 1= included in SV period | J74: =IF(VALUE(RIGHT(J72,1))>$W$62,0,1) -> 1 | K74: 1 | L74: 1 | M74: 1 | N74: 0 | O74: 0 | P74: 0 | Q74: 0
B75: 0 = beyond temporary SV period | J75: =IF($K$60='WS0 - Input data'!$B$244,1,IF($K$62<VALUE(RIGHT(J72,1)),0,1)) -> 1 | K75: =IF($K$60='WS0 - Input data'!$B$244,1,IF($K$62<VALUE(RIGHT(K72,1)),0,1)) -> 1 | L75: =IF($K$60='WS0 - Input data'!$B$244,1,IF($K$62<VALUE(RIGHT(L72,1)),0,1)) -> 1 | M75: =IF($K$60='WS0 - Input data'!$B$244,1,IF($K$62<VALUE(RIGHT(M72,1)),0,1)) -> 1 | N75: =IF($K$60='WS0 - Input data'!$B$244,1,IF($K$62<VALUE(RIGHT(N72,1)),0,1)) -> 1 | O75: =IF($K$60='WS0 - Input data'!$B$244,1,IF($K$62<VALUE(RIGHT(O72,1)),0,1)) -> 1 | P75: =IF($K$60='WS0 - Input data'!$B$244,1,IF($K$62<VALUE(RIGHT(P72,1)),0,1)) -> 1 | Q75: =IF($K$60='WS0 - Input data'!$B$244,1,IF($K$62<VALUE(RIGHT(Q72,1)),0,1)) -> 1
B76: Annual % increases
B77: =CHOOSE($W$41,"Existing full SV (ie, incl the rate peg) in the years in which it applies","na - leave blank") -> na - leave blank | D77: %
B79: Assumed rate peg used by council | L79: 0.03 | M79: 0.03 | N79: 0.03 | O79: 0.03 | P79: 0.03 | Q79: 0.03
B80: Rate peg only | D80: % | K80: =IF(K75=0,0,'WS0 - Input data'!K60) -> 0.04 | L80: =IF(L75=0,0,IF(ISBLANK(L79),'WS0 - Input data'!$D$48,L79)) -> 0.03 | M80: =IF(M75=0,0,IF(ISBLANK(M79),'WS0 - Input data'!$D$48,M79)) -> 0.03 | N80: =IF(N75=0,0,IF(ISBLANK(N79),'WS0 - Input data'!$D$48,N79)) -> 0.03 | O80: =IF(O75=0,0,IF(ISBLANK(O79),'WS0 - Input data'!$D$48,O79)) -> 0.03 | P80: =IF(P75=0,0,IF(ISBLANK(P79),'WS0 - Input data'!$D$48,P79)) -> 0.03 | Q80: =IF(Q75=0,0,IF(ISBLANK(Q79),'WS0 - Input data'!$D$48,Q79)) -> 0.03
B81: =CHOOSE($W$41,"Existing SV above rate peg"," na - No existing SV above rate peg") -> na - No existing SV above rate peg | D81: % | K81: =IF(OR($W$41=2,K77=""),0,K77-K80) -> 0 | L81: 0 | M81: 0 | N81: 0 | O81: =IF(OR($W$41=2,O77=""),0,O77-O80) -> 0 | P81: 0 | Q81: 0 | W81: DO NOT DELETE
B82: =$W$82&W83 -> Percentage above the rate peg | D82: % | K82: =CHOOSE($W$66,K65,K64) -> 0.19 | L82: =IF(L74=0,0,MAX(0,L85-L80-L81-CHOOSE($W$66,L83,0))) -> 0.1158 | M82: 0.0532 | N82: 0 | O82: 0 | P82: 0 | Q82: 0 | W82: =CHOOSE($W$41,"Percentage above the existing full SV (incl rate peg)","Percentage above the rate peg") -> Percentage above the rate peg
B83: =CHOOSE($W$66,$W$82&W84,"Na - ignore this row - Not a combined SV") -> Na - ignore this row - Not a combined SV | D83: % | K83: =K66 -> 0 | W83: =CHOOSE($W$66," that is temporary","") -> 
B84: Crown Land adjustment | D84: % | K84: =L49 -> 0 | L84: 0 | M84: 0 | N84: 0 | O84: 0 | P84: 0 | Q84: 0 | W84: =CHOOSE($W$66," that is permanent","") -> 
B85: =CHOOSE($W$41,"Proposed SV (total proposed and existing SV)","Proposed SV ") -> Proposed SV | D85: % | K85: =SUM(K80:K84) -> 0.23 | L85: 0.1458 | M85: 0.0832
B86: Cumulative % increase
B87: =CHOOSE($W$41,"Exising full SV (including rate peg) followed by rate peg only","Rate peg only") -> Rate peg only | D87: % | K87: =SUM(K80:K81) -> 0.04 | L87: =IF(L75=0,0,(1+K87)*(1+L80+L81)-1) -> 0.0712 | M87: =IF(M75=0,0,(1+L87)*(1+M80+M81)-1) -> 0.103336 | N87: 0.13643608 | O87: 0.1705291624 | P87: 0.2056450373 | Q87: 0.2418143884
B88: Plus: additional increases | D88: % | K88: =IF(K82=0,".",K82+CHOOSE($W$66,K83,0)) -> 0.19 | L88: =IF(OR(L74=0,L75=0),0,MAX(0,L89-L87)) -> 0.338134 | M88: =IF(M75=0,0,IF(M74=0,0,MAX(0,M89-M87))) -> 0.4232545888 | N88: 0 | O88: 0 | P88: 0 | Q88: 0
B89: =B85 -> Proposed SV | D89: % | K89: =IF(K85=0,".",K85) -> 0.23 | L89: =IF(L75=0,0,IF(L74=0,(1+K89)*(1+L80+L81)-1,(1+K89)*(1+L85)-1)) -> 0.409334 | M89: =IF(M75=0,0,IF(M74=0,(1+L89)*(1+M80+M81)-1,(1+L89)*(1+M85)-1)) -> 0.5265905888 | N89: =IF(N75=0,0,IF(N74=0,(1+M89)*(1+N80+N81)-1,(1+M89)*(1+N85)-1)) -> 0.5723883065 | O89: 0.6195599557 | P89: 0.6681467543 | Q89: 0.718191157
B91: c. Expiring special variations (ESV)
B92: $ value of ESV | D92: $ (nominal)
B93: % value of ESV | D93: % | J93: =IF('WS6 - PGI summary'!J98=0,".",J92/'WS6 - PGI summary'!J98) -> 0 | K93: =IFERROR(IF('WS6 - PGI summary'!K98=0,".",K92/'WS6 - PGI summary'!K98),".") -> 0 | L93: =IFERROR(IF('WS6 - PGI summary'!L98=0,".",L92/'WS6 - PGI summary'!L98),".") -> 0 | M93: =IFERROR(IF('WS6 - PGI summary'!M98=0,".",M92/'WS6 - PGI summary'!M98),".") -> 0 | N93: =IFERROR(IF('WS6 - PGI summary'!N98=0,".",N92/'WS6 - PGI summary'!N98),".") -> 0 | O93: =IFERROR(IF('WS6 - PGI summary'!O98=0,".",O92/'WS6 - PGI summary'!O98),".") -> 0 | P93: =IFERROR(IF('WS6 - PGI summary'!P98=0,".",P92/'WS6 - PGI summary'!P98),".") -> 0 | Q93: =IFERROR(IF('WS6 - PGI summary'!Q98=0,".",Q92/'WS6 - PGI summary'!Q98),".") -> 0
B95: check = ok | K95: =IF(AND(K$74=1,K$85<>0),"ok",IF(AND(K$74=0,K$85=0),"ok","check row "&ROW(K85))) -> ok | L95: =IF(AND(L$74=1,L$85<>0),"ok",IF(AND(L$74=0,L$85=0),"ok","check row "&ROW(L85))) -> ok | M95: =IF(AND(M$74=1,M$85<>0),"ok",IF(AND(M$74=0,M$85=0),"ok","check row "&ROW(M85))) -> ok | N95: =IF(AND(N$74=1,N$85<>0),"ok",IF(AND(N$74=0,N$85=0),"ok","check row "&ROW(N85))) -> ok | O95: ok | P95: ok | Q95: ok

Sheet WS3 - Notional General Income
A1: 3
B2: ='WS1-Application'!B2 -> APPLICATION FOR SPECIAL VARIATION AND MINIMUM RATE INCREASE - NORTH SYDNEY COUNCIL
B4: ="WORKSHEET "&A1&" - "&"CALCULATION OF NOTIONAL GENERAL INCOME FOR "&'WS0 - Input data'!$J$58&" (THE CURRENT YEAR OR "&UPPER('WS0 - Input data'!J55)&")" -> WORKSHEET 3 - CALCULATION OF NOTIONAL GENERAL INCOME FOR 2025-26 (THE CURRENT YEAR OR YEAR 0)
B7: Instructions and notes
B8: - This worksheet calculates the Notional General Income for the current year (Year 0), by applying the rating structure used in that year to land values, adjusted by supplementary valuations received during that year.
B9: - This worksheet must reflect the rating structure levied in the current year ( ie year 0 or the year prior to the application of the proposed special variation).
B10: Notes:
B11: (1) Any inclusion in this worksheet as a “supplementary valuation” must be consistent with the meaning given to the term under section 4 of the Valuation of Land Act 1916.
B12: ="(2) Valuations used here are to be taken from Council's valuation list on 1 July "&'WS0 - Input data'!$J$57&" and are to include:" -> (2) Valuations used here are to be taken from Council's valuation list on 1 July 2025 and are to include:
B13: (a) supplementaries having the same base date and furnished to Council during that year, and
B14: (b) estimates of increases in valuations provided to the Council under section 513.
B15: (3) All dollars are to be in nominal terms
A19: 1 | B19: ="Table "&A1&"."&A19&": Calculation of Notional General Income - Ordinary Rates ($nominal)" -> Table 3.1: Calculation of Notional General Income - Ordinary Rates ($nominal)
B20: Rating Category (s514-518) | C20: Name of sub-category | D20: Number of Assessments | E20: Ad Valorem Rate (cents) | F20: Base Amount $ | G20: Base Amount % | H20: Minimum Amount $ | I20: Number on Minimum | J20: Land Value (see note above) $ | K20: Land Value of Land on Minimum | L20: Notional General Income
B21: Residential | C21: Residential General | D21: 37346.62 | E21: 0.063794 | G21: =IF(F21="",".",D21*F21/L21) -> . | H21: 743.85 | I21: 28937.32 | J21: 36192395943 | K21: 14621659193 | L21: =IF(D21="",".",IF(F21<>"",F21*D21+J21*(E21/100),(J21-K21)*(E21/100)+H21*I21)) -> 35285861.28
B22: Residential | C22: Residential Infrastructure Levy | D22: 37346.62 | E22: 0.003114 | F22: 31.54 | G22: =IF(F22="",".",D22*F22/L22) -> 0.5110374035 | J22: 36192395943 | L22: 2304943.604
B23: Residential | C23: Residential Enviromental Levy | D23: 37346.62 | E23: 0.003494 | F23: 35.4 | G23: 0.5111163898 | J23: 36192395943 | L23: 2586632.662
B24: Residential | G24: . | L24: .
B25: Residential | G25: . | L25: =IF(D25="",".",IF(F25<>"",F25*D25+J25*(E25/100),(J25-K25)*(E25/100)+H25*I25)) -> .
B26: Residential | G26: . | L26: .
B27: Residential | G27: . | L27: .
B28: Residential | G28: . | L28: .
B29: Residential | G29: . | L29: .
B30: Residential | G30: . | L30: .
B31: Residential | G31: . | L31: .
B32: Residential | G32: . | L32: .
B33: Residential | G33: . | L33: .
B34: Residential | G34: . | L34: .
B35: Residential | G35: . | L35: .
B36: Residential | G36: . | L36: .
B37: Residential | G37: . | L37: .
B38: Residential | G38: . | L38: .
B39: Residential | G39: . | L39: .
B40: Residential | G40: . | L40: .
C41: Total Residential | D41: =SUM(D21:D40) -> 112039.86 | I41: =SUM(I21:I40) -> 28937.32 | J41: =SUM(J21:J40) -> 108577187829 | K41: =SUM(K21:K40) -> 14621659193 | L41: =SUM(L21:L40) -> 40177437.55
B42: Business | C42: Business General | D42: 3431.39 | E42: 0.461779 | G42: . | H42: 743.85 | I42: 1129 | J42: 5121163290 | K42: 81305307 | L42: =IF(D42="",".",IF(F42<>"",F42*D42+J42*(E42/100),(J42-K42)*(E42/100)+H42*I42)) -> 24112812.45
B43: Business | C43: Bussines Infrastructure Levy | D43: 3431.39 | E43: 0.003114 | F43: 31.54 | G43: 0.4042824745 | J43: 5121163290 | L43: 267699.0655
B44: Business | C44: Bussines Enviromental Levy | D44: 3431.39 | E44: 0.003494 | F44: 35.4 | G44: 0.4043586058 | J44: 5121163290 | L44: 300404.6514
B45: Business | G45: . | L45: .
B46: Business | G46: . | L46: .
B47: Business | G47: . | L47: .
B48: Business | G48: . | L48: .
B49: Business | G49: . | L49: .
B50: Business | G50: . | L50: .
B51: Business | G51: . | L51: .
B52: Business | G52: . | L52: .
B53: Business | G53: . | L53: .
B54: Business | G54: . | L54: .
B55: Business | G55: . | L55: .
B56: Business | G56: . | L56: .
B57: Business | G57: . | L57: .
B58: Business | G58: . | L58: .
B59: Business | G59: . | L59: .
B60: Business | G60: . | L60: .
B61: Business | G61: . | L61: .
B62: Business | G62: . | L62: .
B63: Business | G63: . | L63: .
B64: Business | G64: . | L64: .
B65: Business | G65: . | L65: .
B66: Business | G66: . | L66: .
C67: Total Business | D67: =SUM(D42:D66) -> 10294.17 | I67: =SUM(I42:I66) -> 1129 | J67: =SUM(J42:J66) -> 15363489870 | K67: =SUM(K42:K66) -> 81305307 | L67: =SUM(L42:L66) -> 24680916.16
B68: Farmland | G68: . | L68: =IF(D68="",".",IF(F68<>"",F68*D68+J68*(E68/100),(J68-K68)*(E68/100)+H68*I68)) -> .
B69: Farmland | G69: . | L69: .
B70: Farmland | G70: . | L70: .
B71: Farmland | G71: . | L71: .
B72: Farmland | G72: . | L72: .
B73: Farmland | G73: . | L73: .
B74: Farmland | G74: . | L74: .
B75: Farmland | G75: . | L75: .
B76: Farmland | G76: . | L76: .
B77: Farmland | G77: . | L77: =IF(D77="",".",IF(F77<>"",F77*D77+J77*(E77/100),(J77-K77)*(E77/100)+H77*I77)) -> .
C78: Total Farmland | D78: =SUM(D68:D77) -> 0 | I78: =SUM(I68:I77) -> 0 | J78: =SUM(J68:J77) -> 0 | K78: =SUM(K68:K77) -> 0 | L78: =SUM(L68:L77) -> 0
B79: Mining | G79: . | L79: =IF(D79="",".",IF(F79<>"",F79*D79+J79*(E79/100),(J79-K79)*(E79/100)+H79*I79)) -> .
B80: Mining | G80: . | L80: .
B81: Mining | G81: . | L81: .
B82: Mining | G82: . | L82: .
B83: Mining | G83: . | L83: .
B84: Mining | G84: . | L84: .
B85: Mining | G85: . | L85: .
B86: Mining | G86: =IF(F86="",".",D86*F86/L86) -> . | L86: .
B87: Mining | G87: . | L87: .
B88: Mining | G88: . | L88: =IF(D88="",".",IF(F88<>"",F88*D88+J88*(E88/100),(J88-K88)*(E88/100)+H88*I88)) -> .
C89: Total Mining | D89: =SUM(D79:D88) -> 0 | I89: =SUM(I79:I88) -> 0 | J89: =SUM(J79:J88) -> 0 | K89: =SUM(K79:K88) -> 0 | L89: =SUM(L79:L88) -> 0
B90: Total Assessments: | D90: =D41+D67+D78+D89 -> 122334.03 | G90: Total Rateable Land Value: | J90: =J41+J67+J78+J89 -> 123940677699 | K90: Sub-Total: | L90: =L41+L67+L78+L89 -> 64858353.71
A94: =A19+1 -> 2 | B94: ="Table "&A1&"."&A94&": Calculation of Notional General Income - Special Rates ($nominal)" -> Table 3.2: Calculation of Notional General Income - Special Rates ($nominal)
B95: Rating Category (s514-518) | C95: Name of special rate | D95: Number of Assessments | E95: Ad Valorem Rate | F95: Base Amount $ | G95: Base Amount % | H95: Minimum Amount $ | I95: Number on Minimum | J95: Land Value (see note above) | K95: Land Value of Land on Minimum | L95: Notional Income
B96: Residential | G96: =IF(F96="",".",D96*F96/L96) -> . | L96: =IF(D96="",".",IF(F96<>"",F96*D96+J96*(E96/100),(J96-K96)*(E96/100)+H96*I96)) -> .
B97: Residential | G97: . | L97: .
B98: Residential | G98: . | L98: .
B99: Residential | G99: . | L99: .
B100: Residential | G100: . | L100: .
B101: Residential | G101: . | L101: .
B102: Residential | G102: . | L102: .
B103: Residential | G103: . | L103: .
B104: Residential | G104: . | L104: .
B105: Residential | G105: . | L105: .
B106: Business | G106: . | L106: .
B107: Business | G107: . | L107: .
B108: Business | G108: . | L108: .
B109: Business | G109: . | L109: .
B110: Business | G110: . | L110: .
B111: Business | G111: . | L111: .
B112: Business | G112: . | L112: .
B113: Business | G113: . | L113: .
B114: Business | G114: . | L114: .
B115: Business | G115: . | L115: .
B116: Business | G116: . | L116: .
B117: Business | G117: . | L117: .
B118: Business | G118: . | L118: .
B119: Business | G119: . | L119: .
B120: Business | G120: . | L120: .
B121: Business | G121: . | L121: .
B122: Business | G122: . | L122: .
B123: Business | G123: . | L123: .
B124: Business | G124: . | L124: .
B125: Business | G125: . | L125: .
B126: Farmland | G126: . | L126: .
B127: Farmland | G127: . | L127: .
B128: Farmland | G128: =IF(F128="",".",D128*F128/L128) -> . | L128: .
B129: Farmland | G129: . | L129: .
B130: Farmland | G130: . | L130: .
B131: Farmland | G131: . | L131: .
B132: Farmland | G132: . | L132: .
B133: Farmland | G133: . | L133: .
B134: Farmland | G134: . | L134: .
B135: Farmland | G135: . | L135: .
B136: Mining | G136: . | L136: .
B137: Mining | G137: . | L137: .
B138: Mining | G138: . | L138: .
B139: Mining | G139: . | L139: .
B140: Mining | G140: . | L140: .
B141: Mining | G141: . | L141: .
B142: Mining | G142: . | L142: .
B143: Mining | G143: . | L143: .
B144: Mining | G144: . | L144: .
B145: Mining | G145: . | L145: =IF(D145="",".",IF(F145<>"",F145*D145+J145*(E145/100),(J145-K145)*(E145/100)+H145*I145)) -> .
K146: Sub-Total: | L146: =SUM(L96:L145) -> 0
A150: =A94+1 -> 3 | B150: ="Table "&A1&"."&A150&": Calculation of Notional General Income - Annual Charges ($nominal)" -> Table 3.3: Calculation of Notional General Income - Annual Charges ($nominal)
B151: Annual Charges (excluding water supply, sewerage and domestic and non-domestic waste management services) | J151: Number of Assessments | K151: Amount of Charge $ | L151: Notional Income
L152: =IF(B152="",".",J152*K152) -> .
L153: =IF(B153="",".",J153*K153) -> .
L154: .
L155: .
L156: .
L157: .
L158: .
L159: .
K160: Sub-Total: | L160: =SUM(L152:L159) -> 0
J163: Total Notional General Income: | L163: =L90+L146+L160 -> 64858353.71
B165: Note: Section 505(a) of the Act provides for those rates and charges that are to be included in general income, including certain section 501 annual charges.

Sheet WS4 - Yr 1 YIELD
A1: 4
B2: ='WS3 - Notional General Income'!B2 -> APPLICATION FOR SPECIAL VARIATION AND MINIMUM RATE INCREASE - NORTH SYDNEY COUNCIL
B4: ="WORKSHEET "&A1&": CALCULATION OF NOTIONAL GENERAL INCOME FOR "&'WS0 - Input data'!$K$58&" ("&UPPER('WS0 - Input data'!K55)&")" -> WORKSHEET 4: CALCULATION OF NOTIONAL GENERAL INCOME FOR 2026-27 (YEAR 1)
B7: Instructions and notes
B8: This worksheet calculates the proposed Notional General Income (Year 1). It should apply the proposed rating structure, including proposed SV increase, to land values adjusted by any supplementary valuations.
B9: Notes:
B10: (1) The rating structure entered here must be checked by OLG. A rating structure that does not comply with the legislation may not be approved.
B11: It is the council's responsibility to check its rating structure with OLG before submission to IPART: https://www.olg.nsw.gov.au/wp-content/uploads/Council-Rating-And-Revenue-Raising-Manual-January-2007.pdf.
B12: (2) All dollars are to be in nominal terms.
A16: 1 | B16: ="Table "&A1&"."&A16&": Calculation of Notional General Income - Ordinary Rates ($ nominal)" -> Table 4.1: Calculation of Notional General Income - Ordinary Rates ($ nominal)
B17: Rating Category (s514-518) | C17: Name of sub-category | D17: Number of Assessments | E17: Ad valorem rate (cents) | F17: Base Amount $ | G17: Base Amount % | H17: Minimum Amount $ | I17: Number on Minimum | J17: Land Value as at start of year $ | K17: Land Value of Land on Minimum $ | L17: Notional General Income
B18: Residential | C18: =IF('WS3 - Notional General Income'!C21="","",'WS3 - Notional General Income'!C21) -> Residential General | D18: 37346.61 | E18: 0.075794 | G18: =IF(F18="",".",D18*F18/L18) -> . | H18: 970.72 | I18: 29474.2 | J18: 36192395943 | K18: 15284111511 | L18: =IF(D18="",".",IF(F18<>"",F18*D18+J18*(E18/100),(J18-K18)*(E18/100)+H18*I18)) -> 44458420.53
B19: Residential | C19: =IF('WS3 - Notional General Income'!C22="","",'WS3 - Notional General Income'!C22) -> Residential Infrastructure Levy | D19: 37346.61 | E19: 0.003238 | F19: 32.80626868 | G19: =IF(F19="",".",D19*F19/L19) -> 0.5111161109 | J19: 36192395943 | L19: 2397112.703
B20: Residential | C20: =IF('WS3 - Notional General Income'!C23="","",'WS3 - Notional General Income'!C23) -> Residential Enviromental Levy | D20: 37346.61 | E20: 0.003634 | F20: 36.815421 | G20: 0.5110958899 | J20: 36192395943 | L20: 2690162.839
B21: Residential | C21: =IF('WS3 - Notional General Income'!C24="","",'WS3 - Notional General Income'!C24) ->  | G21: . | L21: .
B22: Residential | C22: =IF('WS3 - Notional General Income'!C25="","",'WS3 - Notional General Income'!C25) ->  | G22: . | L22: .
B23: Residential | C23: =IF('WS3 - Notional General Income'!C26="","",'WS3 - Notional General Income'!C26) ->  | G23: . | L23: .
B24: Residential | C24: =IF('WS3 - Notional General Income'!C27="","",'WS3 - Notional General Income'!C27) ->  | G24: . | L24: .
B25: Residential | C25: =IF('WS3 - Notional General Income'!C28="","",'WS3 - Notional General Income'!C28) ->  | G25: . | L25: .
B26: Residential | C26: =IF('WS3 - Notional General Income'!C29="","",'WS3 - Notional General Income'!C29) ->  | G26: . | L26: .
B27: Residential | C27: =IF('WS3 - Notional General Income'!C30="","",'WS3 - Notional General Income'!C30) ->  | G27: . | L27: .
B28: Residential | C28: =IF('WS3 - Notional General Income'!C31="","",'WS3 - Notional General Income'!C31) ->  | G28: . | L28: .
B29: Residential | C29: =IF('WS3 - Notional General Income'!C32="","",'WS3 - Notional General Income'!C32) ->  | G29: . | L29: .
B30: Residential | C30: =IF('WS3 - Notional General Income'!C33="","",'WS3 - Notional General Income'!C33) ->  | G30: . | L30: .
B31: Residential | C31: =IF('WS3 - Notional General Income'!C34="","",'WS3 - Notional General Income'!C34) ->  | G31: . | L31: .
B32: Residential | C32: =IF('WS3 - Notional General Income'!C35="","",'WS3 - Notional General Income'!C35) ->  | G32: . | L32: .
B33: Residential | C33: =IF('WS3 - Notional General Income'!C36="","",'WS3 - Notional General Income'!C36) ->  | G33: . | L33: .
B34: Residential | C34: =IF('WS3 - Notional General Income'!C37="","",'WS3 - Notional General Income'!C37) ->  | G34: . | L34: .
B35: Residential | C35: =IF('WS3 - Notional General Income'!C38="","",'WS3 - Notional General Income'!C38) ->  | G35: . | L35: .
B36: Residential | C36: =IF('WS3 - Notional General Income'!C39="","",'WS3 - Notional General Income'!C39) ->  | G36: . | L36: .
B37: Residential | C37: =IF('WS3 - Notional General Income'!C40="","",'WS3 - Notional General Income'!C40) ->  | G37: . | L37: .
C38: Total Residential | D38: =SUM(D18:D37) -> 112039.83 | I38: =SUM(I18:I37) -> 29474.2 | J38: =SUM(J18:J37) -> 108577187829 | K38: =SUM(K18:K37) -> 15284111511 | L38: =SUM(L18:L37) -> 49545696.07
B39: Business | C39: =IF('WS3 - Notional General Income'!C42="","",'WS3 - Notional General Income'!C42) -> Business General | D39: 3431.39 | E39: 0.5663 | G39: . | H39: 970.72 | I39: 1207 | J39: 5121163290 | K39: 94247994 | L39: =IF(D39="",".",IF(F39<>"",F39*D39+J39*(E39/100),(J39-K39)*(E39/100)+H39*I39)) -> 29639080.36
B40: Business | C40: =IF('WS3 - Notional General Income'!C43="","",'WS3 - Notional General Income'!C43) -> Bussines Infrastructure Levy | D40: 3431.39 | E40: 0.003238 | F40: 32.80626868 | G40: 0.4043584015 | J40: 5121163290 | L40: 278394.3696
B41: Business | C41: =IF('WS3 - Notional General Income'!C44="","",'WS3 - Notional General Income'!C44) -> Bussines Enviromental Levy | D41: 3431.39 | E41: 0.003634 | F41: 36.815421 | G41: 0.4043389109 | J41: 5121163290 | L41: 312431.1414
B42: Business | C42: =IF('WS3 - Notional General Income'!C45="","",'WS3 - Notional General Income'!C45) ->  | G42: . | L42: .
B43: Business | C43: =IF('WS3 - Notional General Income'!C46="","",'WS3 - Notional General Income'!C46) ->  | G43: . | L43: .
B44: Business | C44: =IF('WS3 - Notional General Income'!C47="","",'WS3 - Notional General Income'!C47) ->  | G44: . | L44: .
B45: Business | C45: =IF('WS3 - Notional General Income'!C48="","",'WS3 - Notional General Income'!C48) ->  | G45: . | L45: .
B46: Business | C46: =IF('WS3 - Notional General Income'!C49="","",'WS3 - Notional General Income'!C49) ->  | G46: . | L46: .
B47: Business | C47: =IF('WS3 - Notional General Income'!C50="","",'WS3 - Notional General Income'!C50) ->  | G47: . | L47: .
B48: Business | C48: =IF('WS3 - Notional General Income'!C51="","",'WS3 - Notional General Income'!C51) ->  | G48: . | L48: .
B49: Business | C49: =IF('WS3 - Notional General Income'!C52="","",'WS3 - Notional General Income'!C52) ->  | G49: . | L49: .
B50: Business | C50: =IF('WS3 - Notional General Income'!C53="","",'WS3 - Notional General Income'!C53) ->  | G50: . | L50: .
B51: Business | C51: =IF('WS3 - Notional General Income'!C54="","",'WS3 - Notional General Income'!C54) ->  | G51: . | L51: .
B52: Business | C52: =IF('WS3 - Notional General Income'!C55="","",'WS3 - Notional General Income'!C55) ->  | G52: . | L52: .
B53: Business | C53: =IF('WS3 - Notional General Income'!C56="","",'WS3 - Notional General Income'!C56) ->  | G53: . | L53: .
B54: Business | C54: =IF('WS3 - Notional General Income'!C57="","",'WS3 - Notional General Income'!C57) ->  | G54: . | L54: .
B55: Business | C55: =IF('WS3 - Notional General Income'!C58="","",'WS3 - Notional General Income'!C58) ->  | G55: . | L55: .
B56: Business | C56: =IF('WS3 - Notional General Income'!C59="","",'WS3 - Notional General Income'!C59) ->  | G56: . | L56: .
B57: Business | C57: =IF('WS3 - Notional General Income'!C60="","",'WS3 - Notional General Income'!C60) ->  | G57: . | L57: .
B58: Business | C58: =IF('WS3 - Notional General Income'!C61="","",'WS3 - Notional General Income'!C61) ->  | G58: . | L58: .
B59: Business | C59: =IF('WS3 - Notional General Income'!C62="","",'WS3 - Notional General Income'!C62) ->  | G59: . | L59: .
B60: Business | C60: =IF('WS3 - Notional General Income'!C63="","",'WS3 - Notional General Income'!C63) ->  | G60: . | L60: .
B61: Business | C61: =IF('WS3 - Notional General Income'!C64="","",'WS3 - Notional General Income'!C64) ->  | G61: . | L61: .
B62: Business | C62: =IF('WS3 - Notional General Income'!C65="","",'WS3 - Notional General Income'!C65) ->  | G62: . | L62: .
B63: Business | C63: =IF('WS3 - Notional General Income'!C66="","",'WS3 - Notional General Income'!C66) ->  | G63: . | L63: .
C64: Total Business | D64: =SUM(D39:D63) -> 10294.17 | I64: =SUM(I39:I63) -> 1207 | J64: =SUM(J39:J63) -> 15363489870 | K64: =SUM(K39:K63) -> 94247994 | L64: =SUM(L39:L63) -> 30229905.87
B65: Farmland | C65: =IF('WS3 - Notional General Income'!C68="","",'WS3 - Notional General Income'!C68) ->  | G65: =IF(F65="",".",D65*F65/L65) -> . | L65: =IF(D65="",".",IF(F65<>"",F65*D65+J65*(E65/100),(J65-K65)*(E65/100)+H65*I65)) -> .
B66: Farmland | C66: =IF('WS3 - Notional General Income'!C69="","",'WS3 - Notional General Income'!C69) ->  | G66: . | L66: .
B67: Farmland | C67: =IF('WS3 - Notional General Income'!C70="","",'WS3 - Notional General Income'!C70) ->  | G67: . | L67: .
B68: Farmland | C68: =IF('WS3 - Notional General Income'!C71="","",'WS3 - Notional General Income'!C71) ->  | G68: . | L68: .
B69: Farmland | C69: =IF('WS3 - Notional General Income'!C72="","",'WS3 - Notional General Income'!C72) ->  | G69: . | L69: .
B70: Farmland | C70: =IF('WS3 - Notional General Income'!C73="","",'WS3 - Notional General Income'!C73) ->  | G70: . | L70: .
B71: Farmland | C71: =IF('WS3 - Notional General Income'!C74="","",'WS3 - Notional General Income'!C74) ->  | G71: . | L71: .
B72: Farmland | C72: =IF('WS3 - Notional General Income'!C75="","",'WS3 - Notional General Income'!C75) ->  | G72: . | L72: .
B73: Farmland | C73: =IF('WS3 - Notional General Income'!C76="","",'WS3 - Notional General Income'!C76) ->  | G73: . | L73: .
B74: Farmland | C74: =IF('WS3 - Notional General Income'!C77="","",'WS3 - Notional General Income'!C77) ->  | G74: . | L74: .
C75: Total Farmland | D75: =SUM(D65:D74) -> 0 | I75: =SUM(I65:I74) -> 0 | J75: =SUM(J65:J74) -> 0 | K75: =SUM(K65:K74) -> 0 | L75: =SUM(L65:L74) -> 0
B76: Mining | C76: =IF('WS3 - Notional General Income'!C79="","",'WS3 - Notional General Income'!C79) ->  | G76: =IF(F76="",".",D76*F76/L76) -> . | L76: =IF(D76="",".",IF(F76<>"",F76*D76+J76*(E76/100),(J76-K76)*(E76/100)+H76*I76)) -> .
B77: Mining | C77: =IF('WS3 - Notional General Income'!C80="","",'WS3 - Notional General Income'!C80) ->  | G77: . | L77: .
B78: Mining | C78: =IF('WS3 - Notional General Income'!C81="","",'WS3 - Notional General Income'!C81) ->  | G78: . | L78: .
B79: Mining | C79: =IF('WS3 - Notional General Income'!C82="","",'WS3 - Notional General Income'!C82) ->  | G79: . | L79: .
B80: Mining | C80: =IF('WS3 - Notional General Income'!C83="","",'WS3 - Notional General Income'!C83) ->  | G80: . | L80: .
B81: Mining | C81: =IF('WS3 - Notional General Income'!C84="","",'WS3 - Notional General Income'!C84) ->  | G81: . | L81: .
B82: Mining | C82: =IF('WS3 - Notional General Income'!C85="","",'WS3 - Notional General Income'!C85) ->  | G82: . | L82: .
B83: Mining | C83: =IF('WS3 - Notional General Income'!C86="","",'WS3 - Notional General Income'!C86) ->  | G83: . | L83: .
B84: Mining | C84: =IF('WS3 - Notional General Income'!C87="","",'WS3 - Notional General Income'!C87) ->  | G84: . | L84: .
B85: Mining | C85: =IF('WS3 - Notional General Income'!C88="","",'WS3 - Notional General Income'!C88) ->  | G85: . | L85: .
C86: Total Mining | D86: =SUM(D76:D85) -> 0 | I86: =SUM(I76:I85) -> 0 | J86: =SUM(J76:J85) -> 0 | K86: =SUM(K76:K85) -> 0 | L86: =SUM(L76:L85) -> 0
B87: Total Assessments: | D87: =D38+D64+D75+D86 -> 122334 | G87: Total Rateable Land Value: | J87: =J38+J64+J75+J86 -> 123940677699 | K87: Sub-Total: | L87: =L38+L64+L75+L86 -> 79775601.94
A91: =A16+1 -> 2 | B91: ="Table "&A1&"."&A91&": Calculation of Notional General Income - Special Rates ($ nominal)" -> Table 4.2: Calculation of Notional General Income - Special Rates ($ nominal)
B92: Rating Category (s514-518) | C92: Name of special rate | D92: Number of Assessments | E92: Ad Valorem Rate | F92: Base Amount $ | G92: Base Amount % | H92: Minimum Amount $ | I92: Number on Minimum | J92: Land Value as at start of year | K92: Land Value of Land on Minimum | L92: Notional Income
B93: Residential | C93: =IF('WS3 - Notional General Income'!C96="","",'WS3 - Notional General Income'!C96) ->  | G93: =IF(F93="",".",D93*F93/L93) -> . | L93: =IF(D93="",".",IF(F93<>"",F93*D93+J93*(E93/100),(J93-K93)*(E93/100)+H93*I93)) -> .
B94: Residential | C94: =IF('WS3 - Notional General Income'!C97="","",'WS3 - Notional General Income'!C97) ->  | G94: . | L94: .
B95: Residential | C95: =IF('WS3 - Notional General Income'!C98="","",'WS3 - Notional General Income'!C98) ->  | G95: . | L95: .
B96: Residential | C96: =IF('WS3 - Notional General Income'!C99="","",'WS3 - Notional General Income'!C99) ->  | G96: . | L96: .
B97: Residential | C97: =IF('WS3 - Notional General Income'!C100="","",'WS3 - Notional General Income'!C100) ->  | G97: . | L97: .
B98: Residential | C98: =IF('WS3 - Notional General Income'!C101="","",'WS3 - Notional General Income'!C101) ->  | G98: . | L98: .
B99: Residential | C99: =IF('WS3 - Notional General Income'!C102="","",'WS3 - Notional General Income'!C102) ->  | G99: . | L99: .
B100: Residential | C100: =IF('WS3 - Notional General Income'!C103="","",'WS3 - Notional General Income'!C103) ->  | G100: . | L100: .
B101: Residential | C101: =IF('WS3 - Notional General Income'!C104="","",'WS3 - Notional General Income'!C104) ->  | G101: . | L101: .
B102: Residential | C102: =IF('WS3 - Notional General Income'!C105="","",'WS3 - Notional General Income'!C105) ->  | G102: . | L102: .
B103: Business | C103: =IF('WS3 - Notional General Income'!C106="","",'WS3 - Notional General Income'!C106) ->  | G103: . | L103: .
B104: Business | C104: =IF('WS3 - Notional General Income'!C107="","",'WS3 - Notional General Income'!C107) ->  | G104: . | L104: .
B105: Business | C105: =IF('WS3 - Notional General Income'!C108="","",'WS3 - Notional General Income'!C108) ->  | G105: . | L105: .
B106: Business | C106: =IF('WS3 - Notional General Income'!C109="","",'WS3 - Notional General Income'!C109) ->  | G106: . | L106: .
B107: Business | C107: =IF('WS3 - Notional General Income'!C110="","",'WS3 - Notional General Income'!C110) ->  | G107: . | L107: .
B108: Business | C108: =IF('WS3 - Notional General Income'!C111="","",'WS3 - Notional General Income'!C111) ->  | G108: . | L108: .
B109: Business | C109: =IF('WS3 - Notional General Income'!C112="","",'WS3 - Notional General Income'!C112) ->  | G109: . | L109: .
B110: Business | C110: =IF('WS3 - Notional General Income'!C113="","",'WS3 - Notional General Income'!C113) ->  | G110: . | L110: .
B111: Business | C111: =IF('WS3 - Notional General Income'!C114="","",'WS3 - Notional General Income'!C114) ->  | G111: . | L111: .
B112: Business | C112: =IF('WS3 - Notional General Income'!C115="","",'WS3 - Notional General Income'!C115) ->  | G112: . | L112: .
B113: Business | C113: =IF('WS3 - Notional General Income'!C116="","",'WS3 - Notional General Income'!C116) ->  | G113: . | L113: .
B114: Business | C114: =IF('WS3 - Notional General Income'!C117="","",'WS3 - Notional General Income'!C117) ->  | G114: . | L114: .
B115: Business | C115: =IF('WS3 - Notional General Income'!C118="","",'WS3 - Notional General Income'!C118) ->  | G115: . | L115: .
B116: Business | C116: =IF('WS3 - Notional General Income'!C119="","",'WS3 - Notional General Income'!C119) ->  | G116: . | L116: .
B117: Business | C117: =IF('WS3 - Notional General Income'!C120="","",'WS3 - Notional General Income'!C120) ->  | G117: . | L117: .
B118: Business | C118: =IF('WS3 - Notional General Income'!C121="","",'WS3 - Notional General Income'!C121) ->  | G118: . | L118: .
B119: Business | C119: =IF('WS3 - Notional General Income'!C122="","",'WS3 - Notional General Income'!C122) ->  | G119: . | L119: .
B120: Business | C120: =IF('WS3 - Notional General Income'!C123="","",'WS3 - Notional General Income'!C123) ->  | G120: . | L120: .
B121: Business | C121: =IF('WS3 - Notional General Income'!C124="","",'WS3 - Notional General Income'!C124) ->  | G121: . | L121: .
B122: Business | C122: =IF('WS3 - Notional General Income'!C125="","",'WS3 - Notional General Income'!C125) ->  | G122: . | L122: .
B123: Farmland | C123: =IF('WS3 - Notional General Income'!C126="","",'WS3 - Notional General Income'!C126) ->  | G123: . | L123: .
B124: Farmland | C124: =IF('WS3 - Notional General Income'!C127="","",'WS3 - Notional General Income'!C127) ->  | G124: . | L124: .
B125: Farmland | C125: =IF('WS3 - Notional General Income'!C128="","",'WS3 - Notional General Income'!C128) ->  | G125: =IF(F125="",".",D125*F125/L125) -> . | L125: =IF(D125="",".",IF(F125<>"",F125*D125+J125*(E125/100),(J125-K125)*(E125/100)+H125*I125)) -> .
B126: Farmland | C126: =IF('WS3 - Notional General Income'!C129="","",'WS3 - Notional General Income'!C129) ->  | G126: . | L126: .
B127: Farmland | C127: =IF('WS3 - Notional General Income'!C130="","",'WS3 - Notional General Income'!C130) ->  | G127: . | L127: .
B128: Farmland | C128: =IF('WS3 - Notional General Income'!C131="","",'WS3 - Notional General Income'!C131) ->  | G128: . | L128: .
B129: Farmland | C129: =IF('WS3 - Notional General Income'!C132="","",'WS3 - Notional General Income'!C132) ->  | G129: . | L129: .
B130: Farmland | C130: =IF('WS3 - Notional General Income'!C133="","",'WS3 - Notional General Income'!C133) ->  | G130: . | L130: .
B131: Farmland | C131: =IF('WS3 - Notional General Income'!C134="","",'WS3 - Notional General Income'!C134) ->  | G131: . | L131: .
B132: Farmland | C132: =IF('WS3 - Notional General Income'!C135="","",'WS3 - Notional General Income'!C135) ->  | G132: . | L132: .
B133: Mining | C133: =IF('WS3 - Notional General Income'!C136="","",'WS3 - Notional General Income'!C136) ->  | G133: . | L133: .
B134: Mining | C134: =IF('WS3 - Notional General Income'!C137="","",'WS3 - Notional General Income'!C137) ->  | G134: . | L134: .
B135: Mining | C135: =IF('WS3 - Notional General Income'!C138="","",'WS3 - Notional General Income'!C138) ->  | G135: . | L135: .
B136: Mining | C136: =IF('WS3 - Notional General Income'!C139="","",'WS3 - Notional General Income'!C139) ->  | G136: . | L136: .
B137: Mining | C137: =IF('WS3 - Notional General Income'!C140="","",'WS3 - Notional General Income'!C140) ->  | G137: . | L137: .
B138: Mining | C138: =IF('WS3 - Notional General Income'!C141="","",'WS3 - Notional General Income'!C141) ->  | G138: . | L138: .
B139: Mining | C139: =IF('WS3 - Notional General Income'!C142="","",'WS3 - Notional General Income'!C142) ->  | G139: . | L139: .
B140: Mining | C140: =IF('WS3 - Notional General Income'!C143="","",'WS3 - Notional General Income'!C143) ->  | G140: . | L140: .
B141: Mining | C141: =IF('WS3 - Notional General Income'!C144="","",'WS3 - Notional General Income'!C144) ->  | G141: . | L141: .
B142: Mining | C142: =IF('WS3 - Notional General Income'!C145="","",'WS3 - Notional General Income'!C145) ->  | G142: . | L142: .
K143: Sub-Total: | L143: =SUM(L93:L142) -> 0
A147: =A91+1 -> 3 | B147: ="Table "&A1&"."&A147&": Calculation of Notional General Income - Annual Charges ($ nominal)" -> Table 4.3: Calculation of Notional General Income - Annual Charges ($ nominal)
B148: Annual Charges (excluding water supply, sewerage and domestic and non-domestic waste management services) | J148: Number of Assessments | K148: Amount of Charge $ | L148: Notional Income
L149: =IF(B149="",".",J149*K149) -> .
L150: .
L151: .
L152: .
L153: .
L154: .
L155: .
L156: .
K157: Sub-Total: | L157: =SUM(L149:L156) -> 0
F160: Total Notional General Income | L160: =L87+L143+L157 -> 79775601.94
F162: LESS: Valuation Objection Income | L162: =-'WS2-Proposal'!K51 -> -274
F164: NET Notional General Income | L164: =L160+L162 -> 79775327.94
B166: Note: Section 505(a) of the Act provides for those rates and charges that are to be included in general income, including certain section 501 annual charges.

Sheet WS5 - Yrs 2-7 YIELD
A1: 5
B2: ='WS3 - Notional General Income'!B2 -> APPLICATION FOR SPECIAL VARIATION AND MINIMUM RATE INCREASE - NORTH SYDNEY COUNCIL
B4: ="WORKSHEET "&A1&": CALCULATION OF NOTIONAL GENERAL INCOME FOR YEARS 2 TO 7 ("&'WS0 - Input data'!L58&" TO "&'WS0 - Input data'!Q58&")" -> WORKSHEET 5: CALCULATION OF NOTIONAL GENERAL INCOME FOR YEARS 2 TO 7 (2027-28 TO 2032-33)
B7: Instructions and notes
B8: This worksheet shows council's calculation of notional general income for the duration of its proposed SV (i.e. from year 2 to 7, as applicable). This calculation assists IPART in assessing council's proposed
B9: special variations and/or proposed increases to minimum rates. It should apply the proposed rating structure, including proposed SV increase, to land values adjusted by any supplementary valuations.
B10: ="> Please make sure Valuations Objection Income at row "&ROW(F168)&" is filled out or zero is entered if there is none." -> > Please make sure Valuations Objection Income at row 168 is filled out or zero is entered if there is none.
B11: ="> Please make sure to fill out the tables (years) up to the last financial year of the proposed SV e.g. for a 4-year SV, please fill the tables up to Year 4. NOTE: Worksheet 5 does not need to be filled out for a 1-year SV." -> > Please make sure to fill out the tables (years) up to the last financial year of the proposed SV e.g. for a 4-year SV, please fill the tables up to Year 4. NOTE: Worksheet 5 does not need to be filled out for a 1-year SV.
B12: Notes:
B13: (1) The rating structure entered here must be checked by OLG. A rating structure that does not comply with the legislation may not be approved.
B14: It is the council's responsibility to check its rating structure with OLG before submission to IPART.
B15: (2) All dollars are to be in nominal terms.
A19: 1 | B19: ="Table "&A1&"."&A19&": Calculation of Notional General Income - Ordinary Rates from "&'WS0 - Input data'!L58&" to "&'WS0 - Input data'!Q58&" ($ nominal)" -> Table 5.1: Calculation of Notional General Income - Ordinary Rates from 2027-28 to 2032-33 ($ nominal)
D20: ='WS0 - Input data'!L55&" ("&'WS0 - Input data'!L58&")" -> Year 2 (2027-28) | M20: ='WS0 - Input data'!M55&" ("&'WS0 - Input data'!M58&")" -> Year 3 (2028-29) | V20: ='WS0 - Input data'!N55&" ("&'WS0 - Input data'!N58&")" -> Year 4 (2029-30) | AE20: ='WS0 - Input data'!O55&" ("&'WS0 - Input data'!O58&")" -> Year 5 (2030-31) | AN20: ='WS0 - Input data'!P55&" ("&'WS0 - Input data'!P58&")" -> Year 6 (2031-32) | AW20: ='WS0 - Input data'!Q55&" ("&'WS0 - Input data'!Q58&")" -> Year 7 (2032-33)
B21: Rating Category (s514-518) | C21: Name of sub-category | D21: Number of Assessments | E21: Ad valorem rate (cents) | F21: Base Amount $ | G21: Base Amount % | H21: Minimum Amount $ | I21: Number on Minimum | J21: Land Value as at start of year $ | K21: Land Value of Land on Minimum $ | L21: Notional General Income | M21: =D21 -> Number of Assessments | N21: =E21 -> Ad valorem rate (cents) | O21: Base Amount $ | P21: Base Amount % | Q21: Minimum Amount $ | R21: Number on Minimum | S21: Land Value as at start of year $ | T21: Land Value of Land on Minimum $ | U21: Notional General Income | V21: =M21 -> Number of Assessments | W21: =N21 -> Ad valorem rate (cents) | X21: =O21 -> Base Amount $ | Y21: =P21 -> Base Amount % | Z21: =Q21 -> Minimum Amount $ | AA21: =R21 -> Number on Minimum | AB21: =S21 -> Land Value as at start of year $ | AC21: =T21 -> Land Value of Land on Minimum $ | AD21: =U21 -> Notional General Income | AE21: =V21 -> Number of Assessments | AF21: =W21 -> Ad valorem rate (cents) | AG21: =X21 -> Base Amount $ | AH21: =Y21 -> Base Amount % | AI21: =Z21 -> Minimum Amount $ | AJ21: =AA21 -> Number on Minimum | AK21: =AB21 -> Land Value as at start of year $ | AL21: =AC21 -> Land Value of Land on Minimum $ | AM21: =AD21 -> Notional General Income | AN21: =AE21 -> Number of Assessments | AO21: =AF21 -> Ad valorem rate (cents) | AP21: =AG21 -> Base Amount $ | AQ21: =AH21 -> Base Amount % | AR21: =AI21 -> Minimum Amount $ | AS21: =AJ21 -> Number on Minimum | AT21: =AK21 -> Land Value as at start of year $ | AU21: =AL21 -> Land Value of Land on Minimum $ | AV21: =AM21 -> Notional General Income | AW21: =AN21 -> Number of Assessments | AX21: =AO21 -> Ad valorem rate (cents) | AY21: =AP21 -> Base Amount $ | AZ21: =AQ21 -> Base Amount % | BA21: =AR21 -> Minimum Amount $ | BB21: =AS21 -> Number on Minimum | BC21: =AT21 -> Land Value as at start of year $ | BD21: =AU21 -> Land Value of Land on Minimum $ | BE21: =AV21 -> Notional General Income
B22: Residential | C22: =IF('WS3 - Notional General Income'!C21="","",'WS3 - Notional General Income'!C21) -> Residential General | D22: 37346.61 | E22: 0.088157 | G22: =IF(F22="",".",D22*F22/L22) -> . | H22: 1116.32 | I22: 29346.2 | J22: 36192395943 | K22: 15122011703 | L22: =IF(D22="",".",IF(F22<>"",F22*D22+J22*(E22/100),(J22-K22)*(E22/100)+H22*I22)) -> 51334768.62 | M22: 37346.61 | N22: 0.095316 | P22: =IF(O22="",".",M22*O22/U22) -> . | Q22: 1216.79 | R22: 29287.2 | S22: 36192395943 | T22: 15048550711 | U22: =IF(M22="",".",IF(O22<>"",O22*M22+S22*(N22/100),(S22-T22)*(N22/100)+Q22*R22)) -> 55789839.61 | Y22: =IF(X22="",".",V22*X22/AD22) -> . | AD22: =IF(V22="",".",IF(X22<>"",X22*V22+AB22*(W22/100),(AB22-AC22)*(W22/100)+Z22*AA22)) -> . | AH22: =IF(AG22="",".",AE22*AG22/AM22) -> . | AM22: =IF(AE22="",".",IF(AG22<>"",AG22*AE22+AK22*(AF22/100),(AK22-AL22)*(AF22/100)+AI22*AJ22)) -> . | AQ22: =IF(AP22="",".",AN22*AP22/AV22) -> . | AV22: =IF(AN22="",".",IF(AP22<>"",AP22*AN22+AT22*(AO22/100),(AT22-AU22)*(AO22/100)+AR22*AS22)) -> . | AZ22: =IF(AY22="",".",AW22*AY22/BE22) -> . | BE22: =IF(AW22="",".",IF(AY22<>"",AY22*AW22+BC22*(AX22/100),(BC22-BD22)*(AX22/100)+BA22*BB22)) -> .
B23: Residential | C23: =IF('WS3 - Notional General Income'!C22="","",'WS3 - Notional General Income'!C22) -> Residential Infrastructure Levy | D23: 37346.61 | E23: 0.003335 | F23: =33.790457 -> 33.790457 | G23: =IF(F23="",".",D23*F23/L23) -> 0.5111266022 | J23: 36192395943 | L23: 2468975.424 | M23: 37346.61 | N23: 0.003435 | O23: 34.80417 | P23: =IF(O23="",".",M23*O23/U23) -> 0.5111302342 | S23: 36192395943 | U23: 2543026.564 | Y23: =IF(X23="",".",V23*X23/AD23) -> . | AD23: . | AH23: =IF(AG23="",".",AE23*AG23/AM23) -> . | AM23: . | AQ23: =IF(AP23="",".",AN23*AP23/AV23) -> . | AV23: . | AZ23: =IF(AY23="",".",AW23*AY23/BE23) -> . | BE23: .
B24: Residential | C24: =IF('WS3 - Notional General Income'!C23="","",'WS3 - Notional General Income'!C23) -> Residential Enviromental Levy | D24: 37346.61 | E24: 0.003743 | F24: =37.919883 -> 37.919883 | G24: 0.5110972209 | J24: 36192395943 | L24: 2770860.462 | M24: 37346.61 | N24: 0.003855 | O24: 39.05748 | P24: 0.511116021 | S24: 36192395943 | U24: 2853881.337 | Y24: . | AD24: . | AH24: . | AM24: . | AQ24: . | AV24: . | AZ24: . | BE24: .
B25: Residential | C25: =IF('WS3 - Notional General Income'!C24="","",'WS3 - Notional General Income'!C24) ->  | G25: . | L25: . | P25: . | U25: . | Y25: . | AD25: . | AH25: . | AM25: . | AQ25: . | AV25: . | AZ25: . | BE25: .
B26: Residential | C26: =IF('WS3 - Notional General Income'!C25="","",'WS3 - Notional General Income'!C25) ->  | G26: . | L26: . | P26: . | U26: . | Y26: . | AD26: . | AH26: . | AM26: . | AQ26: . | AV26: . | AZ26: . | BE26: .
B27: Residential | C27: =IF('WS3 - Notional General Income'!C26="","",'WS3 - Notional General Income'!C26) ->  | G27: . | L27: . | P27: . | U27: . | Y27: . | AD27: . | AH27: . | AM27: . | AQ27: . | AV27: . | AZ27: . | BE27: .
B28: Residential | C28: =IF('WS3 - Notional General Income'!C27="","",'WS3 - Notional General Income'!C27) ->  | G28: . | L28: . | P28: . | U28: . | Y28: . | AD28: . | AH28: . | AM28: . | AQ28: . | AV28: . | AZ28: . | BE28: .
B29: Residential | C29: =IF('WS3 - Notional General Income'!C28="","",'WS3 - Notional General Income'!C28) ->  | G29: . | L29: . | P29: . | U29: . | Y29: . | AD29: . | AH29: . | AM29: . | AQ29: . | AV29: . | AZ29: . | BE29: .
B30: Residential | C30: =IF('WS3 - Notional General Income'!C29="","",'WS3 - Notional General Income'!C29) ->  | G30: . | L30: . | P30: . | U30: . | Y30: . | AD30: . | AH30: . | AM30: . | AQ30: . | AV30: . | AZ30: . | BE30: .
B31: Residential | C31: =IF('WS3 - Notional General Income'!C30="","",'WS3 - Notional General Income'!C30) ->  | G31: . | L31: . | P31: . | U31: . | Y31: . | AD31: . | AH31: . | AM31: . | AQ31: . | AV31: . | AZ31: . | BE31: .
B32: Residential | C32: =IF('WS3 - Notional General Income'!C31="","",'WS3 - Notional General Income'!C31) ->  | G32: . | L32: . | P32: . | U32: . | Y32: . | AD32: . | AH32: . | AM32: . | AQ32: . | AV32: . | AZ32: . | BE32: .
B33: Residential | C33: =IF('WS3 - Notional General Income'!C32="","",'WS3 - Notional General Income'!C32) ->  | G33: . | L33: . | P33: . | U33: . | Y33: . | AD33: . | AH33: . | AM33: . | AQ33: . | AV33: . | AZ33: . | BE33: .
B34: Residential | C34: =IF('WS3 - Notional General Income'!C33="","",'WS3 - Notional General Income'!C33) ->  | G34: . | L34: . | P34: . | U34: . | Y34: . | AD34: . | AH34: . | AM34: . | AQ34: . | AV34: . | AZ34: . | BE34: .
B35: Residential | C35: =IF('WS3 - Notional General Income'!C34="","",'WS3 - Notional General Income'!C34) ->  | G35: . | L35: . | P35: . | U35: . | Y35: . | AD35: . | AH35: . | AM35: . | AQ35: . | AV35: . | AZ35: . | BE35: .
B36: Residential | C36: =IF('WS3 - Notional General Income'!C35="","",'WS3 - Notional General Income'!C35) ->  | G36: . | L36: . | P36: . | U36: . | Y36: . | AD36: . | AH36: . | AM36: . | AQ36: . | AV36: . | AZ36: . | BE36: .
B37: Residential | C37: =IF('WS3 - Notional General Income'!C36="","",'WS3 - Notional General Income'!C36) ->  | G37: . | L37: . | P37: . | U37: . | Y37: . | AD37: . | AH37: . | AM37: . | AQ37: . | AV37: . | AZ37: . | BE37: .
B38: Residential | C38: =IF('WS3 - Notional General Income'!C37="","",'WS3 - Notional General Income'!C37) ->  | G38: . | L38: . | P38: . | U38: . | Y38: . | AD38: . | AH38: . | AM38: . | AQ38: . | AV38: . | AZ38: . | BE38: .
B39: Residential | C39: =IF('WS3 - Notional General Income'!C38="","",'WS3 - Notional General Income'!C38) ->  | G39: . | L39: . | P39: . | U39: . | Y39: . | AD39: . | AH39: . | AM39: . | AQ39: . | AV39: . | AZ39: . | BE39: .
B40: Residential | C40: =IF('WS3 - Notional General Income'!C39="","",'WS3 - Notional General Income'!C39) ->  | G40: . | L40: . | P40: . | U40: . | Y40: . | AD40: . | AH40: . | AM40: . | AQ40: . | AV40: . | AZ40: . | BE40: .
B41: Residential | C41: =IF('WS3 - Notional General Income'!C40="","",'WS3 - Notional General Income'!C40) ->  | G41: . | L41: . | P41: . | U41: . | Y41: . | AD41: . | AH41: . | AM41: . | AQ41: . | AV41: . | AZ41: . | BE41: .
C42: Total Residential | D42: =SUM(D22:D41) -> 112039.83 | I42: =SUM(I22:I41) -> 29346.2 | J42: =SUM(J22:J41) -> 108577187829 | K42: =SUM(K22:K41) -> 15122011703 | L42: =SUM(L22:L41) -> 56574604.5 | M42: =SUM(M22:M41) -> 112039.83 | R42: =SUM(R22:R41) -> 29287.2 | S42: =SUM(S22:S41) -> 108577187829 | T42: =SUM(T22:T41) -> 15048550711 | U42: 61186747.51 | V42: =SUM(V22:V41) -> 0 | AA42: =SUM(AA22:AA41) -> 0 | AB42: =SUM(AB22:AB41) -> 0 | AC42: =SUM(AC22:AC41) -> 0 | AD42: 0 | AE42: =SUM(AE22:AE41) -> 0 | AJ42: =SUM(AJ22:AJ41) -> 0 | AK42: =SUM(AK22:AK41) -> 0 | AL42: =SUM(AL22:AL41) -> 0 | AM42: 0 | AN42: =SUM(AN22:AN41) -> 0 | AS42: =SUM(AS22:AS41) -> 0 | AT42: =SUM(AT22:AT41) -> 0 | AU42: =SUM(AU22:AU41) -> 0 | AV42: 0 | AW42: =SUM(AW22:AW41) -> 0 | BB42: =SUM(BB22:BB41) -> 0 | BC42: =SUM(BC22:BC41) -> 0 | BD42: =SUM(BD22:BD41) -> 0 | BE42: 0
B43: Business | C43: =IF('WS3 - Notional General Income'!C42="","",'WS3 - Notional General Income'!C42) -> Business General | D43: 3431.39 | E43: 0.654001 | G43: . | H43: 1116.32 | I43: 1202 | J43: 5121163290 | K43: 93395310 | L43: =IF(D43="",".",IF(F43<>"",F43*D43+J43*(E43/100),(J43-K43)*(E43/100)+H43*I43)) -> 34223469.51 | M43: 3431.39 | N43: 0.710707 | P43: =IF(O43="",".",M43*O43/U43) -> . | Q43: 1216.79 | R43: 1198 | S43: 5121163290 | T43: 92716583 | U43: 37195237.16 | Y43: =IF(X43="",".",V43*X43/AD43) -> . | AD43: =IF(V43="",".",IF(X43<>"",X43*V43+AB43*(W43/100),(AB43-AC43)*(W43/100)+Z43*AA43)) -> . | AH43: =IF(AG43="",".",AE43*AG43/AM43) -> . | AM43: =IF(AE43="",".",IF(AG43<>"",AG43*AE43+AK43*(AF43/100),(AK43-AL43)*(AF43/100)+AI43*AJ43)) -> . | AQ43: =IF(AP43="",".",AN43*AP43/AV43) -> . | AV43: =IF(AN43="",".",IF(AP43<>"",AP43*AN43+AT43*(AO43/100),(AT43-AU43)*(AO43/100)+AR43*AS43)) -> . | AZ43: =IF(AY43="",".",AW43*AY43/BE43) -> . | BE43: =IF(AW43="",".",IF(AY43<>"",AY43*AW43+BC43*(AX43/100),(BC43-BD43)*(AX43/100)+BA43*BB43)) -> .
B44: Business | C44: =IF('WS3 - Notional General Income'!C43="","",'WS3 - Notional General Income'!C43) -> Bussines Infrastructure Levy | D44: 3431.39 | E44: 0.003335 | F44: 33.79 | G44: 0.4043652565 | J44: 5121163290 | L44: 286737.4638 | M44: 3431.39 | N44: 0.003435 | O44: 34.80417 | P44: 0.4043720149 | S44: 5121163290 | U44: 295338.6399 | Y44: . | AD44: . | AH44: . | AM44: . | AQ44: . | AV44: . | AZ44: . | BE44: .
B45: Business | C45: =IF('WS3 - Notional General Income'!C44="","",'WS3 - Notional General Income'!C44) -> Bussines Enviromental Levy | D45: 3431.39 | E45: 0.003743 | F45: 37.92 | G45: 0.404340937 | J45: 5121163290 | L45: 321803.4507 | M45: 3431.39 | N45: 0.003855 | O45: 39.05748 | P45: 0.4043583148 | S45: 5121163290 | U45: 331442.2911 | Y45: . | AD45: . | AH45: . | AM45: . | AQ45: . | AV45: . | AZ45: . | BE45: .
B46: Business | C46: =IF('WS3 - Notional General Income'!C45="","",'WS3 - Notional General Income'!C45) ->  | G46: . | L46: . | P46: . | U46: . | Y46: . | AD46: . | AH46: . | AM46: . | AQ46: . | AV46: . | AZ46: . | BE46: .
B47: Business | C47: =IF('WS3 - Notional General Income'!C46="","",'WS3 - Notional General Income'!C46) ->  | G47: . | L47: . | P47: . | U47: . | Y47: . | AD47: . | AH47: . | AM47: . | AQ47: . | AV47: . | AZ47: . | BE47: .
B48: Business | C48: =IF('WS3 - Notional General Income'!C47="","",'WS3 - Notional General Income'!C47) ->  | G48: . | L48: . | P48: . | U48: . | Y48: . | AD48: . | AH48: . | AM48: . | AQ48: . | AV48: . | AZ48: . | BE48: .
B49: Business | C49: =IF('WS3 - Notional General Income'!C48="","",'WS3 - Notional General Income'!C48) ->  | G49: . | L49: . | P49: . | U49: . | Y49: . | AD49: . | AH49: . | AM49: . | AQ49: . | AV49: . | AZ49: . | BE49: .
B50: Business | C50: =IF('WS3 - Notional General Income'!C49="","",'WS3 - Notional General Income'!C49) ->  | G50: . | L50: . | P50: . | U50: . | Y50: . | AD50: . | AH50: . | AM50: . | AQ50: . | AV50: . | AZ50: . | BE50: .
B51: Business | C51: =IF('WS3 - Notional General Income'!C50="","",'WS3 - Notional General Income'!C50) ->  | G51: . | L51: . | P51: . | U51: . | Y51: . | AD51: . | AH51: . | AM51: . | AQ51: . | AV51: . | AZ51: . | BE51: .
B52: Business | C52: =IF('WS3 - Notional General Income'!C51="","",'WS3 - Notional General Income'!C51) ->  | G52: . | L52: . | P52: . | U52: . | Y52: . | AD52: . | AH52: . | AM52: . | AQ52: . | AV52: . | AZ52: . | BE52: .
B53: Business | C53: =IF('WS3 - Notional General Income'!C52="","",'WS3 - Notional General Income'!C52) ->  | G53: . | L53: . | P53: . | U53: . | Y53: . | AD53: . | AH53: . | AM53: . | AQ53: . | AV53: . | AZ53: . | BE53: .
B54: Business | C54: =IF('WS3 - Notional General Income'!C53="","",'WS3 - Notional General Income'!C53) ->  | G54: . | L54: . | P54: . | U54: . | Y54: . | AD54: . | AH54: . | AM54: . | AQ54: . | AV54: . | AZ54: . | BE54: .
B55: Business | C55: =IF('WS3 - Notional General Income'!C54="","",'WS3 - Notional General Income'!C54) ->  | G55: . | L55: . | P55: . | U55: . | Y55: . | AD55: . | AH55: . | AM55: . | AQ55: . | AV55: . | AZ55: . | BE55: .
B56: Business | C56: =IF('WS3 - Notional General Income'!C55="","",'WS3 - Notional General Income'!C55) ->  | G56: . | L56: . | P56: . | U56: . | Y56: . | AD56: . | AH56: . | AM56: . | AQ56: . | AV56: . | AZ56: . | BE56: .
B57: Business | C57: =IF('WS3 - Notional General Income'!C56="","",'WS3 - Notional General Income'!C56) ->  | G57: . | L57: . | P57: . | U57: . | Y57: . | AD57: . | AH57: . | AM57: . | AQ57: . | AV57: . | AZ57: . | BE57: .
B58: Business | C58: =IF('WS3 - Notional General Income'!C57="","",'WS3 - Notional General Income'!C57) ->  | G58: . | L58: . | P58: . | U58: . | Y58: . | AD58: . | AH58: . | AM58: . | AQ58: . | AV58: . | AZ58: . | BE58: .
B59: Business | C59: =IF('WS3 - Notional General Income'!C58="","",'WS3 - Notional General Income'!C58) ->  | G59: . | L59: . | P59: . | U59: . | Y59: . | AD59: . | AH59: . | AM59: . | AQ59: . | AV59: . | AZ59: . | BE59: .
B60: Business | C60: =IF('WS3 - Notional General Income'!C59="","",'WS3 - Notional General Income'!C59) ->  | G60: . | L60: . | P60: . | U60: . | Y60: . | AD60: . | AH60: . | AM60: . | AQ60: . | AV60: . | AZ60: . | BE60: .
B61: Business | C61: =IF('WS3 - Notional General Income'!C60="","",'WS3 - Notional General Income'!C60) ->  | G61: . | L61: . | P61: . | U61: . | Y61: . | AD61: . | AH61: . | AM61: . | AQ61: . | AV61: . | AZ61: . | BE61: .
B62: Business | C62: =IF('WS3 - Notional General Income'!C61="","",'WS3 - Notional General Income'!C61) ->  | G62: . | L62: . | P62: . | U62: . | Y62: . | AD62: . | AH62: . | AM62: . | AQ62: . | AV62: . | AZ62: . | BE62: .
B63: Business | C63: =IF('WS3 - Notional General Income'!C62="","",'WS3 - Notional General Income'!C62) ->  | G63: . | L63: . | P63: . | U63: . | Y63: . | AD63: . | AH63: . | AM63: . | AQ63: . | AV63: . | AZ63: . | BE63: .
B64: Business | C64: =IF('WS3 - Notional General Income'!C63="","",'WS3 - Notional General Income'!C63) ->  | G64: . | L64: . | P64: . | U64: . | Y64: . | AD64: . | AH64: . | AM64: . | AQ64: . | AV64: . | AZ64: . | BE64: .
B65: Business | C65: =IF('WS3 - Notional General Income'!C64="","",'WS3 - Notional General Income'!C64) ->  | G65: . | L65: . | P65: . | U65: . | Y65: . | AD65: . | AH65: . | AM65: . | AQ65: . | AV65: . | AZ65: . | BE65: .
B66: Business | C66: =IF('WS3 - Notional General Income'!C65="","",'WS3 - Notional General Income'!C65) ->  | G66: . | L66: . | P66: . | U66: . | Y66: . | AD66: . | AH66: . | AM66: . | AQ66: . | AV66: . | AZ66: . | BE66: .
B67: Business | C67: =IF('WS3 - Notional General Income'!C66="","",'WS3 - Notional General Income'!C66) ->  | G67: . | L67: . | P67: . | U67: . | Y67: . | AD67: . | AH67: . | AM67: . | AQ67: . | AV67: . | AZ67: . | BE67: .
C68: Total Business | D68: =SUM(D43:D67) -> 10294.17 | I68: =SUM(I43:I67) -> 1202 | J68: =SUM(J43:J67) -> 15363489870 | K68: =SUM(K43:K67) -> 93395310 | L68: =SUM(L43:L67) -> 34832010.42 | M68: =SUM(M43:M67) -> 10294.17 | Q68: =SUM(Q43:Q67) -> 1216.79 | R68: 1198 | S68: 15363489870 | T68: 92716583 | U68: 37822018.09 | V68: =SUM(V43:V67) -> 0 | Z68: =SUM(Z43:Z67) -> 0 | AA68: 0 | AB68: 0 | AC68: 0 | AD68: 0 | AE68: =SUM(AE43:AE67) -> 0 | AI68: =SUM(AI43:AI67) -> 0 | AJ68: 0 | AK68: 0 | AL68: 0 | AM68: 0 | AN68: =SUM(AN43:AN67) -> 0 | AR68: =SUM(AR43:AR67) -> 0 | AS68: 0 | AT68: 0 | AU68: 0 | AV68: 0 | AW68: =SUM(AW43:AW67) -> 0 | BA68: =SUM(BA43:BA67) -> 0 | BB68: 0 | BC68: 0 | BD68: 0 | BE68: 0
B69: Farmland | C69: =IF('WS3 - Notional General Income'!C68="","",'WS3 - Notional General Income'!C68) ->  | G69: =IF(F69="",".",D69*F69/L69) -> . | L69: =IF(D69="",".",IF(F69<>"",F69*D69+J69*(E69/100),(J69-K69)*(E69/100)+H69*I69)) -> . | P69: =IF(O69="",".",M69*O69/U69) -> . | U69: =IF(M69="",".",IF(O69<>"",O69*M69+S69*(N69/100),(S69-T69)*(N69/100)+Q69*R69)) -> . | Y69: =IF(X69="",".",V69*X69/AD69) -> . | AD69: =IF(V69="",".",IF(X69<>"",X69*V69+AB69*(W69/100),(AB69-AC69)*(W69/100)+Z69*AA69)) -> . | AH69: =IF(AG69="",".",AE69*AG69/AM69) -> . | AM69: =IF(AE69="",".",IF(AG69<>"",AG69*AE69+AK69*(AF69/100),(AK69-AL69)*(AF69/100)+AI69*AJ69)) -> . | AQ69: =IF(AP69="",".",AN69*AP69/AV69) -> . | AV69: =IF(AN69="",".",IF(AP69<>"",AP69*AN69+AT69*(AO69/100),(AT69-AU69)*(AO69/100)+AR69*AS69)) -> . | AZ69: =IF(AY69="",".",AW69*AY69/BE69) -> . | BE69: =IF(AW69="",".",IF(AY69<>"",AY69*AW69+BC69*(AX69/100),(BC69-BD69)*(AX69/100)+BA69*BB69)) -> .
B70: Farmland | C70: =IF('WS3 - Notional General Income'!C69="","",'WS3 - Notional General Income'!C69) ->  | G70: . | L70: . | P70: =IF(O70="",".",M70*O70/U70) -> . | U70: =IF(M70="",".",IF(O70<>"",O70*M70+S70*(N70/100),(S70-T70)*(N70/100)+Q70*R70)) -> . | Y70: . | AD70: . | AH70: . | AM70: . | AQ70: . | AV70: . | AZ70: . | BE70: .
B71: Farmland | C71: =IF('WS3 - Notional General Income'!C70="","",'WS3 - Notional General Income'!C70) ->  | G71: . | L71: . | P71: . | U71: =IF(M71="",".",IF(O71<>"",O71*M71+S71*(N71/100),(S71-T71)*(N71/100)+Q71*R71)) -> . | Y71: . | AD71: . | AH71: . | AM71: . | AQ71: . | AV71: . | AZ71: . | BE71: .
B72: Farmland | C72: =IF('WS3 - Notional General Income'!C71="","",'WS3 - Notional General Income'!C71) ->  | G72: . | L72: . | P72: . | U72: =IF(M72="",".",IF(O72<>"",O72*M72+S72*(N72/100),(S72-T72)*(N72/100)+Q72*R72)) -> . | Y72: . | AD72: . | AH72: . | AM72: . | AQ72: . | AV72: . | AZ72: . | BE72: .
B73: Farmland | C73: =IF('WS3 - Notional General Income'!C72="","",'WS3 - Notional General Income'!C72) ->  | G73: . | L73: . | P73: . | U73: =IF(M73="",".",IF(O73<>"",O73*M73+S73*(N73/100),(S73-T73)*(N73/100)+Q73*R73)) -> . | Y73: . | AD73: . | AH73: . | AM73: . | AQ73: . | AV73: . | AZ73: . | BE73: .
B74: Farmland | C74: =IF('WS3 - Notional General Income'!C73="","",'WS3 - Notional General Income'!C73) ->  | G74: . | L74: . | P74: . | U74: =IF(M74="",".",IF(O74<>"",O74*M74+S74*(N74/100),(S74-T74)*(N74/100)+Q74*R74)) -> . | Y74: . | AD74: . | AH74: . | AM74: . | AQ74: . | AV74: . | AZ74: . | BE74: .
B75: Farmland | C75: =IF('WS3 - Notional General Income'!C74="","",'WS3 - Notional General Income'!C74) ->  | G75: . | L75: . | P75: . | U75: =IF(M75="",".",IF(O75<>"",O75*M75+S75*(N75/100),(S75-T75)*(N75/100)+Q75*R75)) -> . | Y75: . | AD75: . | AH75: . | AM75: . | AQ75: . | AV75: . | AZ75: . | BE75: .
B76: Farmland | C76: =IF('WS3 - Notional General Income'!C75="","",'WS3 - Notional General Income'!C75) ->  | G76: . | L76: . | P76: . | U76: =IF(M76="",".",IF(O76<>"",O76*M76+S76*(N76/100),(S76-T76)*(N76/100)+Q76*R76)) -> . | Y76: . | AD76: . | AH76: . | AM76: . | AQ76: . | AV76: . | AZ76: . | BE76: .
B77: Farmland | C77: =IF('WS3 - Notional General Income'!C76="","",'WS3 - Notional General Income'!C76) ->  | G77: . | L77: . | P77: . | U77: =IF(M77="",".",IF(O77<>"",O77*M77+S77*(N77/100),(S77-T77)*(N77/100)+Q77*R77)) -> . | Y77: . | AD77: . | AH77: . | AM77: . | AQ77: . | AV77: . | AZ77: . | BE77: .
B78: Farmland | C78: =IF('WS3 - Notional General Income'!C77="","",'WS3 - Notional General Income'!C77) ->  | G78: . | L78: . | P78: . | U78: =IF(M78="",".",IF(O78<>"",O78*M78+S78*(N78/100),(S78-T78)*(N78/100)+Q78*R78)) -> . | Y78: . | AD78: . | AH78: . | AM78: . | AQ78: . | AV78: . | AZ78: . | BE78: .
C79: Total Farmland | D79: =SUM(D69:D78) -> 0 | I79: =SUM(I69:I78) -> 0 | J79: =SUM(J69:J78) -> 0 | K79: =SUM(K69:K78) -> 0 | L79: =SUM(L69:L78) -> 0 | M79: =SUM(M69:M78) -> 0 | Q79: =SUM(Q69:Q78) -> 0 | R79: 0 | S79: 0 | T79: 0 | U79: 0 | V79: =SUM(V69:V78) -> 0 | AB79: =SUM(AB69:AB78) -> 0 | AC79: =SUM(AC69:AC78) -> 0 | AD79: =SUM(AD69:AD78) -> 0 | AE79: =SUM(AE69:AE78) -> 0 | AI79: =SUM(AI69:AI78) -> 0 | AJ79: =SUM(AJ69:AJ78) -> 0 | AK79: =SUM(AK69:AK78) -> 0 | AL79: =SUM(AL69:AL78) -> 0 | AM79: =SUM(AM69:AM78) -> 0 | AN79: =SUM(AN69:AN78) -> 0 | AR79: =SUM(AR69:AR78) -> 0 | AS79: =SUM(AS69:AS78) -> 0 | AT79: =SUM(AT69:AT78) -> 0 | AU79: =SUM(AU69:AU78) -> 0 | AV79: =SUM(AV69:AV78) -> 0 | AW79: =SUM(AW69:AW78) -> 0 | BA79: =SUM(BA69:BA78) -> 0 | BB79: =SUM(BB69:BB78) -> 0 | BC79: =SUM(BC69:BC78) -> 0 | BD79: =SUM(BD69:BD78) -> 0 | BE79: =SUM(BE69:BE78) -> 0
B80: Mining | C80: =IF('WS3 - Notional General Income'!C79="","",'WS3 - Notional General Income'!C79) ->  | G80: =IF(F80="",".",D80*F80/L80) -> . | L80: =IF(D80="",".",IF(F80<>"",F80*D80+J80*(E80/100),(J80-K80)*(E80/100)+H80*I80)) -> . | P80: =IF(O80="",".",M80*O80/U80) -> . | U80: =IF(M80="",".",IF(O80<>"",O80*M80+S80*(N80/100),(S80-T80)*(N80/100)+Q80*R80)) -> . | Y80: =IF(X80="",".",V80*X80/AD80) -> . | AD80: =IF(V80="",".",IF(X80<>"",X80*V80+AB80*(W80/100),(AB80-AC80)*(W80/100)+Z80*AA80)) -> . | AH80: =IF(AG80="",".",AE80*AG80/AM80) -> . | AM80: =IF(AE80="",".",IF(AG80<>"",AG80*AE80+AK80*(AF80/100),(AK80-AL80)*(AF80/100)+AI80*AJ80)) -> . | AQ80: =IF(AP80="",".",AN80*AP80/AV80) -> . | AV80: =IF(AN80="",".",IF(AP80<>"",AP80*AN80+AT80*(AO80/100),(AT80-AU80)*(AO80/100)+AR80*AS80)) -> . | AZ80: =IF(AY80="",".",AW80*AY80/BE80) -> . | BE80: =IF(AW80="",".",IF(AY80<>"",AY80*AW80+BC80*(AX80/100),(BC80-BD80)*(AX80/100)+BA80*BB80)) -> .
B81: Mining | C81: =IF('WS3 - Notional General Income'!C80="","",'WS3 - Notional General Income'!C80) ->  | G81: . | L81: . | P81: =IF(O81="",".",M81*O81/U81) -> . | U81: =IF(M81="",".",IF(O81<>"",O81*M81+S81*(N81/100),(S81-T81)*(N81/100)+Q81*R81)) -> . | Y81: . | AD81: . | AH81: . | AM81: . | AQ81: . | AV81: . | AZ81: . | BE81: .
B82: Mining | C82: =IF('WS3 - Notional General Income'!C81="","",'WS3 - Notional General Income'!C81) ->  | G82: . | L82: . | P82: =IF(O82="",".",M82*O82/U82) -> . | U82: =IF(M82="",".",IF(O82<>"",O82*M82+S82*(N82/100),(S82-T82)*(N82/100)+Q82*R82)) -> . | Y82: . | AD82: . | AH82: . | AM82: . | AQ82: . | AV82: . | AZ82: . | BE82: .
B83: Mining | C83: =IF('WS3 - Notional General Income'!C82="","",'WS3 - Notional General Income'!C82) ->  | G83: . | L83: . | P83: . | U83: . | Y83: . | AD83: . | AH83: . | AM83: . | AQ83: . | AV83: . | AZ83: . | BE83: .
B84: Mining | C84: =IF('WS3 - Notional General Income'!C83="","",'WS3 - Notional General Income'!C83) ->  | G84: . | L84: . | P84: . | U84: . | Y84: . | AD84: . | AH84: . | AM84: . | AQ84: . | AV84: . | AZ84: . | BE84: .
B85: Mining | C85: =IF('WS3 - Notional General Income'!C84="","",'WS3 - Notional General Income'!C84) ->  | G85: . | L85: . | P85: . | U85: . | Y85: . | AD85: . | AH85: . | AM85: . | AQ85: . | AV85: . | AZ85: . | BE85: .
B86: Mining | C86: =IF('WS3 - Notional General Income'!C85="","",'WS3 - Notional General Income'!C85) ->  | G86: . | L86: . | P86: . | U86: . | Y86: . | AD86: . | AH86: . | AM86: . | AQ86: . | AV86: . | AZ86: . | BE86: .
B87: Mining | C87: =IF('WS3 - Notional General Income'!C86="","",'WS3 - Notional General Income'!C86) ->  | G87: . | L87: . | P87: . | U87: . | Y87: . | AD87: . | AH87: . | AM87: . | AQ87: . | AV87: . | AZ87: . | BE87: .
B88: Mining | C88: =IF('WS3 - Notional General Income'!C87="","",'WS3 - Notional General Income'!C87) ->  | G88: . | L88: . | P88: . | U88: . | Y88: . | AD88: . | AH88: . | AM88: . | AQ88: . | AV88: . | AZ88: . | BE88: .
B89: Mining | C89: =IF('WS3 - Notional General Income'!C88="","",'WS3 - Notional General Income'!C88) ->  | G89: . | L89: . | P89: . | U89: . | Y89: . | AD89: . | AH89: . | AM89: . | AQ89: . | AV89: . | AZ89: . | BE89: .
C90: Total Mining | D90: =SUM(D80:D89) -> 0 | I90: =SUM(I80:I89) -> 0 | J90: =SUM(J80:J89) -> 0 | K90: =SUM(K80:K89) -> 0 | L90: =SUM(L80:L89) -> 0 | M90: =SUM(M80:M89) -> 0 | R90: =SUM(R80:R89) -> 0 | S90: =SUM(S80:S89) -> 0 | T90: 0 | U90: 0 | V90: =SUM(V80:V89) -> 0 | AA90: =SUM(AA80:AA89) -> 0 | AB90: =SUM(AB80:AB89) -> 0 | AC90: =SUM(AC80:AC89) -> 0 | AD90: =SUM(AD80:AD89) -> 0 | AE90: =SUM(AE80:AE89) -> 0 | AJ90: =SUM(AJ80:AJ89) -> 0 | AK90: =SUM(AK80:AK89) -> 0 | AL90: =SUM(AL80:AL89) -> 0 | AM90: =SUM(AM80:AM89) -> 0 | AN90: =SUM(AN80:AN89) -> 0 | AS90: =SUM(AS80:AS89) -> 0 | AT90: =SUM(AT80:AT89) -> 0 | AU90: =SUM(AU80:AU89) -> 0 | AV90: =SUM(AV80:AV89) -> 0 | AW90: =SUM(AW80:AW89) -> 0 | BB90: =SUM(BB80:BB89) -> 0 | BC90: =SUM(BC80:BC89) -> 0 | BD90: =SUM(BD80:BD89) -> 0 | BE90: =SUM(BE80:BE89) -> 0
B91: Total Assessments: | D91: =D42+D68+D79+D90 -> 122334 | G91: Total Rateable Land Value: | J91: =J42+J68+J79+J90 -> 123940677699 | K91: Sub-Total: | L91: =L42+L68+L79+L90 -> 91406614.93 | M91: =M42+M68+M79+M90 -> 122334 | P91: Total Rateable Land Value: | S91: =S42+S68+S79+S90 -> 123940677699 | T91: Sub-Total: | U91: =U42+U68+U79+U90 -> 99008765.6 | V91: =V42+V68+V79+V90 -> 0 | Y91: Total Rateable Land Value: | AB91: =AB42+AB68+AB79+AB90 -> 0 | AC91: Sub-Total: | AD91: =AD42+AD68+AD79+AD90 -> 0 | AE91: =AE42+AE68+AE79+AE90 -> 0 | AH91: Total Rateable Land Value: | AK91: =AK42+AK68+AK79+AK90 -> 0 | AL91: Sub-Total: | AM91: =AM42+AM68+AM79+AM90 -> 0 | AN91: =AN42+AN68+AN79+AN90 -> 0 | AQ91: Total Rateable Land Value: | AT91: =AT42+AT68+AT79+AT90 -> 0 | AU91: Sub-Total: | AV91: =AV42+AV68+AV79+AV90 -> 0 | AW91: =AW42+AW68+AW79+AW90 -> 0 | AZ91: Total Rateable Land Value: | BC91: =BC42+BC68+BC79+BC90 -> 0 | BD91: Sub-Total: | BE91: =BE42+BE68+BE79+BE90 -> 0
A95: =A19+1 -> 2 | B95: ="Table "&A1&"."&A95&": Calculation of Notional General Income - Special Rates from "&'WS0 - Input data'!L58&" to "&'WS0 - Input data'!Q58&" ($ nominal)" -> Table 5.2: Calculation of Notional General Income - Special Rates from 2027-28 to 2032-33 ($ nominal)
D96: =D20 -> Year 2 (2027-28) | M96: =M20 -> Year 3 (2028-29) | V96: =V20 -> Year 4 (2029-30) | AE96: =AE20 -> Year 5 (2030-31) | AN96: =AN20 -> Year 6 (2031-32) | AW96: =AW20 -> Year 7 (2032-33)
B97: Rating Category (s514-518) | C97: Name of special rate | D97: Number of Assessments | E97: Ad Valorem Rate | F97: Base Amount $ | G97: Base Amount % | H97: Minimum Amount $ | I97: Number on Minimum | J97: Land Value as at start of year | K97: Land Value of Land on Minimum | L97: Notional Income | M97: Number of Assessments | N97: Ad Valorem Rate | O97: Base Amount $ | P97: Base Amount % | Q97: Minimum Amount $ | R97: Number on Minimum | S97: Land Value as at start of year | T97: Land Value of Land on Minimum | U97: Notional Income | V97: Number of Assessments | W97: Ad Valorem Rate | X97: Base Amount $ | Y97: Base Amount % | Z97: Minimum Amount $ | AA97: Number on Minimum | AB97: Land Value as at start of year | AC97: Land Value of Land on Minimum | AD97: Notional Income | AE97: Number of Assessments | AF97: Ad Valorem Rate | AG97: Base Amount $ | AH97: Base Amount % | AI97: Minimum Amount $ | AJ97: Number on Minimum | AK97: Land Value as at start of year | AL97: Land Value of Land on Minimum | AM97: Notional Income | AN97: Number of Assessments | AO97: Ad Valorem Rate | AP97: Base Amount $ | AQ97: Base Amount % | AR97: Minimum Amount $ | AS97: Number on Minimum | AT97: Land Value as at start of year | AU97: Land Value of Land on Minimum | AV97: Notional Income | AW97: Number of Assessments | AX97: Ad Valorem Rate | AY97: Base Amount $ | AZ97: Base Amount % | BA97: Minimum Amount $ | BB97: Number on Minimum | BC97: Land Value as at start of year | BD97: Land Value of Land on Minimum | BE97: Notional Income
B98: Residential | C98: =IF('WS3 - Notional General Income'!C96="","",'WS3 - Notional General Income'!C96) ->  | G98: =IF(F98="",".",D98*F98/L98) -> . | L98: =IF(D98="",".",IF(F98<>"",F98*D98+J98*(E98/100),(J98-K98)*(E98/100)+H98*I98)) -> . | P98: =IF(O98="",".",M98*O98/U98) -> . | U98: =IF(M98="",".",IF(O98<>"",O98*M98+S98*(N98/100),(S98-T98)*(N98/100)+Q98*R98)) -> . | Y98: =IF(X98="",".",V98*X98/AD98) -> . | AD98: =IF(V98="",".",IF(X98<>"",X98*V98+AB98*(W98/100),(AB98-AC98)*(W98/100)+Z98*AA98)) -> . | AH98: =IF(AG98="",".",AE98*AG98/AM98) -> . | AM98: =IF(AE98="",".",IF(AG98<>"",AG98*AE98+AK98*(AF98/100),(AK98-AL98)*(AF98/100)+AI98*AJ98)) -> . | AQ98: =IF(AP98="",".",AN98*AP98/AV98) -> . | AV98: =IF(AN98="",".",IF(AP98<>"",AP98*AN98+AT98*(AO98/100),(AT98-AU98)*(AO98/100)+AR98*AS98)) -> . | AZ98: =IF(AY98="",".",AW98*AY98/BE98) -> . | BE98: =IF(AW98="",".",IF(AY98<>"",AY98*AW98+BC98*(AX98/100),(BC98-BD98)*(AX98/100)+BA98*BB98)) -> .
B99: Residential | C99: =IF('WS3 - Notional General Income'!C97="","",'WS3 - Notional General Income'!C97) ->  | G99: . | L99: . | P99: . | U99: . | Y99: . | AD99: . | AH99: . | AM99: . | AQ99: . | AV99: . | AZ99: . | BE99: .
B100: Residential | C100: =IF('WS3 - Notional General Income'!C98="","",'WS3 - Notional General Income'!C98) ->  | G100: . | L100: . | P100: . | U100: . | Y100: . | AD100: . | AH100: . | AM100: . | AQ100: . | AV100: . | AZ100: . | BE100: .
B101: Residential | C101: =IF('WS3 - Notional General Income'!C99="","",'WS3 - Notional General Income'!C99) ->  | G101: . | L101: . | P101: . | U101: . | Y101: . | AD101: . | AH101: . | AM101: . | AQ101: . | AV101: . | AZ101: . | BE101: .
B102: Residential | C102: =IF('WS3 - Notional General Income'!C100="","",'WS3 - Notional General Income'!C100) ->  | G102: . | L102: . | P102: . | U102: . | Y102: . | AD102: . | AH102: . | AM102: . | AQ102: . | AV102: . | AZ102: . | BE102: .
B103: Residential | C103: =IF('WS3 - Notional General Income'!C101="","",'WS3 - Notional General Income'!C101) ->  | G103: . | L103: . | P103: . | U103: . | Y103: . | AD103: . | AH103: . | AM103: . | AQ103: . | AV103: . | AZ103: . | BE103: .
B104: Residential | C104: =IF('WS3 - Notional General Income'!C102="","",'WS3 - Notional General Income'!C102) ->  | G104: . | L104: . | P104: . | U104: . | Y104: . | AD104: . | AH104: . | AM104: . | AQ104: . | AV104: . | AZ104: . | BE104: .
B105: Residential | C105: =IF('WS3 - Notional General Income'!C103="","",'WS3 - Notional General Income'!C103) ->  | G105: . | L105: . | P105: . | U105: . | Y105: . | AD105: . | AH105: . | AM105: . | AQ105: . | AV105: . | AZ105: . | BE105: .
B106: Residential | C106: =IF('WS3 - Notional General Income'!C104="","",'WS3 - Notional General Income'!C104) ->  | G106: . | L106: . | P106: . | U106: . | Y106: . | AD106: . | AH106: . | AM106: . | AQ106: . | AV106: . | AZ106: . | BE106: .
B107: Residential | C107: =IF('WS3 - Notional General Income'!C105="","",'WS3 - Notional General Income'!C105) ->  | G107: . | L107: . | P107: . | U107: . | Y107: . | AD107: . | AH107: . | AM107: . | AQ107: . | AV107: . | AZ107: . | BE107: .
B108: Business | C108: =IF('WS3 - Notional General Income'!C106="","",'WS3 - Notional General Income'!C106) ->  | G108: . | L108: . | P108: . | U108: . | Y108: . | AD108: . | AH108: . | AM108: . | AQ108: . | AV108: . | AZ108: . | BE108: .
B109: Business | C109: =IF('WS3 - Notional General Income'!C107="","",'WS3 - Notional General Income'!C107) ->  | G109: . | L109: . | P109: . | U109: . | Y109: . | AD109: . | AH109: . | AM109: . | AQ109: . | AV109: . | AZ109: . | BE109: .
B110: Business | C110: =IF('WS3 - Notional General Income'!C108="","",'WS3 - Notional General Income'!C108) ->  | G110: . | L110: . | P110: . | U110: . | Y110: . | AD110: . | AH110: . | AM110: . | AQ110: . | AV110: . | AZ110: . | BE110: .
B111: Business | C111: =IF('WS3 - Notional General Income'!C109="","",'WS3 - Notional General Income'!C109) ->  | G111: . | L111: . | P111: . | U111: . | Y111: . | AD111: . | AH111: . | AM111: . | AQ111: . | AV111: . | AZ111: . | BE111: .
B112: Business | C112: =IF('WS3 - Notional General Income'!C110="","",'WS3 - Notional General Income'!C110) ->  | G112: . | L112: . | P112: . | U112: . | Y112: . | AD112: . | AH112: . | AM112: . | AQ112: . | AV112: . | AZ112: . | BE112: .
B113: Business | C113: =IF('WS3 - Notional General Income'!C111="","",'WS3 - Notional General Income'!C111) ->  | G113: . | L113: . | P113: . | U113: . | Y113: . | AD113: . | AH113: . | AM113: . | AQ113: . | AV113: . | AZ113: . | BE113: .
B114: Business | C114: =IF('WS3 - Notional General Income'!C112="","",'WS3 - Notional General Income'!C112) ->  | G114: . | L114: . | P114: . | U114: . | Y114: . | AD114: . | AH114: . | AM114: . | AQ114: . | AV114: . | AZ114: . | BE114: .
B115: Business | C115: =IF('WS3 - Notional General Income'!C113="","",'WS3 - Notional General Income'!C113) ->  | G115: . | L115: . | P115: . | U115: . | Y115: . | AD115: . | AH115: . | AM115: . | AQ115: . | AV115: . | AZ115: . | BE115: .
B116: Business | C116: =IF('WS3 - Notional General Income'!C114="","",'WS3 - Notional General Income'!C114) ->  | G116: . | L116: . | P116: . | U116: . | Y116: . | AD116: . | AH116: . | AM116: . | AQ116: . | AV116: . | AZ116: . | BE116: .
B117: Business | C117: =IF('WS3 - Notional General Income'!C115="","",'WS3 - Notional General Income'!C115) ->  | G117: . | L117: . | P117: . | U117: . | Y117: . | AD117: . | AH117: . | AM117: . | AQ117: . | AV117: . | AZ117: . | BE117: .
B118: Business | C118: =IF('WS3 - Notional General Income'!C116="","",'WS3 - Notional General Income'!C116) ->  | G118: . | L118: . | P118: . | U118: . | Y118: . | AD118: . | AH118: . | AM118: . | AQ118: . | AV118: . | AZ118: . | BE118: .
B119: Business | C119: =IF('WS3 - Notional General Income'!C117="","",'WS3 - Notional General Income'!C117) ->  | G119: . | L119: . | P119: . | U119: . | Y119: . | AD119: . | AH119: . | AM119: . | AQ119: . | AV119: . | AZ119: . | BE119: .
B120: Business | C120: =IF('WS3 - Notional General Income'!C118="","",'WS3 - Notional General Income'!C118) ->  | G120: . | L120: . | P120: . | U120: . | Y120: . | AD120: . | AH120: . | AM120: . | AQ120: . | AV120: . | AZ120: . | BE120: .
B121: Business | C121: =IF('WS3 - Notional General Income'!C119="","",'WS3 - Notional General Income'!C119) ->  | G121: . | L121: . | P121: . | U121: . | Y121: . | AD121: . | AH121: . | AM121: . | AQ121: . | AV121: . | AZ121: . | BE121: .
B122: Business | C122: =IF('WS3 - Notional General Income'!C120="","",'WS3 - Notional General Income'!C120) ->  | G122: . | L122: . | P122: . | U122: . | Y122: . | AD122: . | AH122: . | AM122: . | AQ122: . | AV122: . | AZ122: . | BE122: .
B123: Business | C123: =IF('WS3 - Notional General Income'!C121="","",'WS3 - Notional General Income'!C121) ->  | G123: . | L123: . | P123: . | U123: . | Y123: . | AD123: . | AH123: . | AM123: . | AQ123: . | AV123: . | AZ123: . | BE123: .
B124: Business | C124: =IF('WS3 - Notional General Income'!C122="","",'WS3 - Notional General Income'!C122) ->  | G124: . | L124: . | P124: . | U124: . | Y124: . | AD124: . | AH124: . | AM124: . | AQ124: . | AV124: . | AZ124: . | BE124: .
B125: Business | C125: =IF('WS3 - Notional General Income'!C123="","",'WS3 - Notional General Income'!C123) ->  | G125: . | L125: . | P125: . | U125: . | Y125: . | AD125: . | AH125: . | AM125: . | AQ125: . | AV125: . | AZ125: . | BE125: .
B126: Business | C126: =IF('WS3 - Notional General Income'!C124="","",'WS3 - Notional General Income'!C124) ->  | G126: . | L126: . | P126: . | U126: . | Y126: . | AD126: . | AH126: . | AM126: . | AQ126: . | AV126: . | AZ126: . | BE126: .
B127: Business | C127: =IF('WS3 - Notional General Income'!C125="","",'WS3 - Notional General Income'!C125) ->  | G127: . | L127: . | P127: . | U127: . | Y127: . | AD127: . | AH127: . | AM127: . | AQ127: . | AV127: . | AZ127: . | BE127: .
B128: Farmland | C128: =IF('WS3 - Notional General Income'!C126="","",'WS3 - Notional General Income'!C126) ->  | G128: . | L128: . | P128: . | U128: . | Y128: . | AD128: . | AH128: . | AM128: . | AQ128: . | AV128: . | AZ128: . | BE128: .
B129: Farmland | C129: =IF('WS3 - Notional General Income'!C127="","",'WS3 - Notional General Income'!C127) ->  | G129: . | L129: . | P129: . | U129: . | Y129: . | AD129: . | AH129: . | AM129: . | AQ129: . | AV129: . | AZ129: . | BE129: .
B130: Farmland | C130: =IF('WS3 - Notional General Income'!C128="","",'WS3 - Notional General Income'!C128) ->  | G130: . | L130: . | P130: . | U130: . | Y130: . | AD130: . | AH130: . | AM130: . | AQ130: . | AV130: . | AZ130: . | BE130: .
B131: Farmland | C131: =IF('WS3 - Notional General Income'!C129="","",'WS3 - Notional General Income'!C129) ->  | G131: . | L131: . | P131: . | U131: . | Y131: . | AD131: . | AH131: . | AM131: . | AQ131: . | AV131: . | AZ131: . | BE131: .
B132: Farmland | C132: =IF('WS3 - Notional General Income'!C130="","",'WS3 - Notional General Income'!C130) ->  | G132: . | L132: . | P132: . | U132: . | Y132: . | AD132: . | AH132: . | AM132: . | AQ132: . | AV132: . | AZ132: . | BE132: .
B133: Farmland | C133: =IF('WS3 - Notional General Income'!C131="","",'WS3 - Notional General Income'!C131) ->  | G133: . | L133: . | P133: . | U133: . | Y133: . | AD133: . | AH133: . | AM133: . | AQ133: . | AV133: . | AZ133: . | BE133: .
B134: Farmland | C134: =IF('WS3 - Notional General Income'!C132="","",'WS3 - Notional General Income'!C132) ->  | G134: . | L134: . | P134: . | U134: . | Y134: . | AD134: . | AH134: . | AM134: . | AQ134: . | AV134: . | AZ134: . | BE134: .
B135: Farmland | C135: =IF('WS3 - Notional General Income'!C133="","",'WS3 - Notional General Income'!C133) ->  | G135: . | L135: . | P135: . | U135: . | Y135: . | AD135: . | AH135: . | AM135: . | AQ135: . | AV135: . | AZ135: . | BE135: .
B136: Farmland | C136: =IF('WS3 - Notional General Income'!C134="","",'WS3 - Notional General Income'!C134) ->  | G136: . | L136: . | P136: . | U136: . | Y136: . | AD136: . | AH136: . | AM136: . | AQ136: . | AV136: . | AZ136: . | BE136: .
B137: Farmland | C137: =IF('WS3 - Notional General Income'!C135="","",'WS3 - Notional General Income'!C135) ->  | G137: . | L137: . | P137: . | U137: . | Y137: . | AD137: . | AH137: . | AM137: . | AQ137: . | AV137: . | AZ137: . | BE137: .
B138: Mining | C138: =IF('WS3 - Notional General Income'!C136="","",'WS3 - Notional General Income'!C136) ->  | G138: . | L138: . | P138: . | U138: . | Y138: . | AD138: . | AH138: . | AM138: . | AQ138: . | AV138: . | AZ138: . | BE138: .
B139: Mining | C139: =IF('WS3 - Notional General Income'!C137="","",'WS3 - Notional General Income'!C137) ->  | G139: . | L139: . | P139: . | U139: . | Y139: . | AD139: . | AH139: . | AM139: . | AQ139: . | AV139: . | AZ139: . | BE139: .
B140: Mining | C140: =IF('WS3 - Notional General Income'!C138="","",'WS3 - Notional General Income'!C138) ->  | G140: . | L140: . | P140: . | U140: . | Y140: . | AD140: . | AH140: . | AM140: . | AQ140: . | AV140: . | AZ140: . | BE140: .
B141: Mining | C141: =IF('WS3 - Notional General Income'!C139="","",'WS3 - Notional General Income'!C139) ->  | G141: . | L141: . | P141: . | U141: . | Y141: . | AD141: . | AH141: . | AM141: . | AQ141: . | AV141: . | AZ141: . | BE141: .
B142: Mining | C142: =IF('WS3 - Notional General Income'!C140="","",'WS3 - Notional General Income'!C140) ->  | G142: . | L142: . | P142: . | U142: . | Y142: . | AD142: . | AH142: . | AM142: . | AQ142: . | AV142: . | AZ142: . | BE142: .
B143: Mining | C143: =IF('WS3 - Notional General Income'!C141="","",'WS3 - Notional General Income'!C141) ->  | G143: . | L143: . | P143: . | U143: . | Y143: . | AD143: . | AH143: . | AM143: . | AQ143: . | AV143: . | AZ143: . | BE143: .
B144: Mining | C144: =IF('WS3 - Notional General Income'!C142="","",'WS3 - Notional General Income'!C142) ->  | G144: . | L144: . | P144: . | U144: . | Y144: . | AD144: . | AH144: . | AM144: . | AQ144: . | AV144: . | AZ144: . | BE144: .
B145: Mining | C145: =IF('WS3 - Notional General Income'!C143="","",'WS3 - Notional General Income'!C143) ->  | G145: . | L145: . | P145: . | U145: . | Y145: . | AD145: . | AH145: . | AM145: . | AQ145: . | AV145: . | AZ145: . | BE145: .
B146: Mining | C146: =IF('WS3 - Notional General Income'!C144="","",'WS3 - Notional General Income'!C144) ->  | G146: . | L146: . | P146: . | U146: . | Y146: . | AD146: . | AH146: . | AM146: . | AQ146: . | AV146: . | AZ146: . | BE146: .
B147: Mining | C147: =IF('WS3 - Notional General Income'!C145="","",'WS3 - Notional General Income'!C145) ->  | G147: . | L147: . | P147: . | U147: . | Y147: . | AD147: . | AH147: . | AM147: . | AQ147: . | AV147: . | AZ147: . | BE147: .
K148: Sub-Total: | L148: =SUM(L98:L147) -> 0 | T148: Sub-Total: | U148: =SUM(U98:U147) -> 0 | AC148: Sub-Total: | AD148: =SUM(AD98:AD147) -> 0 | AL148: Sub-Total: | AM148: =SUM(AM98:AM147) -> 0 | AU148: Sub-Total: | AV148: =SUM(AV98:AV147) -> 0 | BD148: Sub-Total: | BE148: =SUM(BE98:BE147) -> 0
A152: =A95+1 -> 3 | B152: ="Table "&A1&"."&A152&": Calculation of Notional General Income - Annual Charges from "&'WS0 - Input data'!L58&" to "&'WS0 - Input data'!Q58&" ($ nominal)" -> Table 5.3: Calculation of Notional General Income - Annual Charges from 2027-28 to 2032-33 ($ nominal)
D153: =D96 -> Year 2 (2027-28) | M153: =M96 -> Year 3 (2028-29) | V153: =V96 -> Year 4 (2029-30) | AE153: =AE96 -> Year 5 (2030-31) | AN153: =AN96 -> Year 6 (2031-32) | AW153: =AW96 -> Year 7 (2032-33)
B154: Annual Charges (excluding water supply, sewerage and domestic and non-domestic waste management services) | J154: Number of Assessments | K154: Amount of Charge $ | L154: Notional Income | S154: Number of Assessments | T154: Amount of Charge $ | U154: Notional Income | AB154: Number of Assessments | AC154: Amount of Charge $ | AD154: Notional Income | AK154: Number of Assessments | AL154: Amount of Charge $ | AM154: Notional Income | AT154: Number of Assessments | AU154: Amount of Charge $ | AV154: Notional Income | BC154: Number of Assessments | BD154: Amount of Charge $ | BE154: Notional Income
L155: =IF(B155="",".",J155*K155) -> . | U155: =IF(B155="",".",S155*T155) -> . | AD155: =IF(B155="",".",AB155*AC155) -> . | AM155: =IF(B155="",".",AK155*AL155) -> . | AV155: =IF(B155="",".",AT155*AU155) -> . | BE155: =IF(B155="",".",BC155*BD155) -> .
L156: . | U156: =IF(B156="",".",S156*T156) -> . | AD156: =IF(B156="",".",AB156*AC156) -> . | AM156: =IF(B156="",".",AK156*AL156) -> . | AV156: =IF(B156="",".",AT156*AU156) -> . | BE156: =IF(B156="",".",BC156*BD156) -> .
L157: . | U157: . | AD157: . | AM157: . | AV157: . | BE157: .
L158: . | U158: . | AD158: . | AM158: . | AV158: . | BE158: .
L159: . | U159: . | AD159: . | AM159: . | AV159: . | BE159: .
L160: . | U160: . | AD160: . | AM160: . | AV160: . | BE160: .
L161: . | U161: . | AD161: . | AM161: . | AV161: . | BE161: .
L162: . | U162: . | AD162: . | AM162: . | AV162: . | BE162: .
K163: Sub-Total: | L163: =SUM(L155:L162) -> 0 | T163: Sub-Total: | U163: =SUM(U155:U162) -> 0 | AC163: Sub-Total: | AD163: =SUM(AD155:AD162) -> 0 | AL163: Sub-Total: | AM163: =SUM(AM155:AM162) -> 0 | AU163: Sub-Total: | AV163: =SUM(AV155:AV162) -> 0 | BD163: Sub-Total: | BE163: =SUM(BE155:BE162) -> 0
F166: Total Notional General Income | L166: =L91+L148+L163 -> 91406614.93 | O166: Total Notional General Income | U166: =U91+U148+U163 -> 99008765.6 | X166: Total Notional General Income | AD166: =AD91+AD148+AD163 -> 0 | AG166: Total Notional General Income | AM166: =AM91+AM148+AM163 -> 0 | AP166: Total Notional General Income | AV166: =AV91+AV148+AV163 -> 0 | AY166: Total Notional General Income | BE166: =BE91+BE148+BE163 -> 0
F168: LESS: Valuation Objection Income | O168: LESS: Valuation Objection Income | X168: LESS: Valuation Objection Income | AG168: LESS: Valuation Objection Income | AP168: LESS: Valuation Objection Income | AY168: LESS: Valuation Objection Income
F170: NET Notional General Income | L170: =L166+L168 -> 91406614.93 | O170: NET Notional General Income | U170: =U166+U168 -> 99008765.6 | X170: NET Notional General Income | AD170: =AD166+AD168 -> 0 | AG170: NET Notional General Income | AM170: =AM166+AM168 -> 0 | AP170: NET Notional General Income | AV170: =AV166+AV168 -> 0 | AY170: NET Notional General Income | BE170: =BE166+BE168 -> 0
B172: Note: Section 505(a) of the Act provides for those rates and charges that are to be included in general income, including certain section 501 annual charges.

Sheet WS8 - Expenditure Program
A1: 8
B2: ='WS1-Application'!B2 -> APPLICATION FOR SPECIAL VARIATION AND MINIMUM RATE INCREASE - NORTH SYDNEY COUNCIL
B4: ="WORKSHEET "&A1&": PROPOSED ADDITIONAL SPECIAL VARIATION INCOME AND EXPENDITURE" -> WORKSHEET 8: PROPOSED ADDITIONAL SPECIAL VARIATION INCOME AND EXPENDITURE
B7: Instructions and notes
B8: ="- If the council is applying for a MR increase only, then tables "&A1&"."&A35&", "&A1&"."&A74&" AND "&A1&"."&A146&" DO NOT APPLY - LEAVE BLUE INPUT CELLS BLANK" -> - If the council is applying for a MR increase only, then tables 8.2, 8.3 AND 8.4 DO NOT APPLY - LEAVE BLUE INPUT CELLS BLANK
B9: - If the council is applying for a SV or SV and MR increase, then this sheet shows how the council proposes to use the additional income from the special variation.
B10: For additional SV income in years beyond the period of the proposed special variation, we increase the income after the final year of the variation by the assumed rate peg used by council for the proposed period and 2.5% for all other years.
B11: ="> Enter the proposed spending over "&IF($K$19='WS0 - Input data'!$B$244,10,K20)&" years under each of the headings as relevant." -> > Enter the proposed spending over 10 years under each of the headings as relevant.
B12: Notes:
B13: (1) Columns K to T are formatted black if no data are required for a temporary SV. That is, any tables/cells in this worksheet with black highlights do not need to be completed.
B14: (2) All dollars are to be in nominal terms
B15: (3 The spreadsheet will calculate the difference between the additional income from the proposed special variation and what it is spent on. A positive difference means that the additional income is not all spent on operating expenditure or capital expenditure.
B16: (4) Part B of the application provides councils with the opportunity to explain their expenditure plans and the impacts on their financial position.
B19: Is proposed SV permanent or temporary? | K19: ='WS2-Proposal'!$K$60 -> Permanent | Z19: DO NOT DELETE
B20: Duration of proposed SV (years) | K20: ='WS2-Proposal'!K62 -> 0 | Z20: Yes
B21: Year | K21: 1 | L21: =1+K21 -> 2 | M21: 3 | N21: 4 | O21: 5 | P21: 6 | Q21: 7 | R21: 8 | S21: 9 | T21: 10 | Z21: No
B22: Is the Temporary SV in place in the year? | K22: =IF($K$19='WS0 - Input data'!$B$244,$Z$22,(IF($K$20>=K21,$Z$20,$Z$21))) -> na | L22: =IF($K$19='WS0 - Input data'!$B$244,$Z$22,(IF($K$20>=L21,$Z$20,$Z$21))) -> na | M22: =IF($K$19='WS0 - Input data'!$B$244,$Z$22,(IF($K$20>=M21,$Z$20,$Z$21))) -> na | N22: =IF($K$19='WS0 - Input data'!$B$244,$Z$22,(IF($K$20>=N21,$Z$20,$Z$21))) -> na | O22: =IF($K$19='WS0 - Input data'!$B$244,$Z$22,(IF($K$20>=O21,$Z$20,$Z$21))) -> na | P22: =IF($K$19='WS0 - Input data'!$B$244,$Z$22,(IF($K$20>=P21,$Z$20,$Z$21))) -> na | Q22: =IF($K$19='WS0 - Input data'!$B$244,$Z$22,(IF($K$20>=Q21,$Z$20,$Z$21))) -> na | R22: =IF($K$19='WS0 - Input data'!$B$244,$Z$22,(IF($K$20>=R21,$Z$20,$Z$21))) -> na | S22: =IF($K$19='WS0 - Input data'!$B$244,$Z$22,(IF($K$20>=S21,$Z$20,$Z$21))) -> na | T22: =IF($K$19='WS0 - Input data'!$B$244,$Z$22,(IF($K$20>=T21,$Z$20,$Z$21))) -> na | Z22: na
A25: 1 | B25: ="Table "&A1&"."&A25&": Income and Operating balance ($ nominal)" -> Table 8.1: Income and Operating balance ($ nominal)
K26: ='WS0 - Input data'!K55 -> Year 1 | L26: ='WS0 - Input data'!L55 -> Year 2 | M26: ='WS0 - Input data'!M55 -> Year 3 | N26: ='WS0 - Input data'!N55 -> Year 4 | O26: ='WS0 - Input data'!O55 -> Year 5 | P26: ='WS0 - Input data'!P55 -> Year 6 | Q26: ='WS0 - Input data'!Q55 -> Year 7 | R26: ='WS0 - Input data'!R55 -> Year 8 | S26: ='WS0 - Input data'!S55 -> Year 9 | T26: ='WS0 - Input data'!T55 -> Year 10 | U26: =IF(T22=Z21,"Sum of "&K20&" years","Sum of 10 years") -> Sum of 10 years
D27: Units | K27: ='WS0 - Input data'!K58 -> 2026-27 | L27: ='WS0 - Input data'!L58 -> 2027-28 | M27: ='WS0 - Input data'!M58 -> 2028-29 | N27: ='WS0 - Input data'!N58 -> 2029-30 | O27: ='WS0 - Input data'!O58 -> 2030-31 | P27: ='WS0 - Input data'!P58 -> 2031-32 | Q27: ='WS0 - Input data'!Q58 -> 2032-33 | R27: ='WS0 - Input data'!R58 -> 2033-34 | S27: ='WS0 - Input data'!S58 -> 2034-35 | T27: ='WS0 - Input data'!T58 -> 2035-36
B28: Income
B29: =CHOOSE('WS2-Proposal'!$W$41,"Proposed SV income above existing SV/rate peg","Proposed SV income above rate peg") -> Proposed SV income above rate peg | D29: ='WS0 - Input data'!C62 -> $ nominal | K29: =IF('WS6 - PGI summary'!J98=0,".",'WS6 - PGI summary'!K98-'WS6 - PGI summary'!K109) -> 12323087.21 | L29: =IF(L22=$Z$21,".",(IF('WS6 - PGI summary'!L98=".",K29*(1+'WS2-Proposal'!L79),'WS6 - PGI summary'!L98-'WS6 - PGI summary'!L109))) -> 21930749.03 | M29: =IF(M22=$Z$21,".",(IF('WS6 - PGI summary'!M98=".",L29*(1+'WS2-Proposal'!M79),'WS6 - PGI summary'!M98-'WS6 - PGI summary'!M109))) -> 27451493.82 | N29: =IF(N22=$Z$21,".",(IF('WS6 - PGI summary'!N98=".",M29*(1+'WS2-Proposal'!N79),'WS6 - PGI summary'!N98-'WS6 - PGI summary'!N109))) -> 28275038.64 | O29: =IF(O22=$Z$21,".",(IF('WS6 - PGI summary'!O98=".",N29*(1+'WS2-Proposal'!O79),'WS6 - PGI summary'!O98-'WS6 - PGI summary'!O109))) -> 29123289.79 | P29: =IF(P22=$Z$21,".",(IF('WS6 - PGI summary'!P98=".",O29*(1+'WS2-Proposal'!P79),'WS6 - PGI summary'!P98-'WS6 - PGI summary'!P109))) -> 29996988.49 | Q29: =IF(Q22=$Z$21,".",(IF('WS6 - PGI summary'!Q98=".",P29*(1+'WS2-Proposal'!Q79),'WS6 - PGI summary'!Q98-'WS6 - PGI summary'!Q109))) -> 30896898.14 | R29: =IF(R22=$Z$21,".",Q29*(1+'WS0 - Input data'!$D$48)) -> 31669320.6 | S29: =IF(S22=$Z$21,".",R29*(1+'WS0 - Input data'!$D$48)) -> 32461053.61 | T29: =IF(T22=$Z$21,".",S29*(1+'WS0 - Input data'!$D$48)) -> 33272579.95 | U29: =SUM(K29:T29) -> 277400499.3
B31: Operating balance
B32: Change in Operating Balance due to proposed SV | D32: =$D$29 -> $ nominal | K32: =IF(K22=$Z$21,".",K29-K70) -> 9496598.205 | L32: 16147849.03 | M32: 20583658.82 | N32: 24310421.2 | O32: 26412693.65 | P32: 27519995.16 | Q32: 28339392.24 | R32: 29069934.56 | S32: 29769274.24 | T32: 30535883.35 | U32: =SUM(K32:T32) -> 242185700.5
A35: =A25+1 -> 2 | B35: ="Table "&A1&"."&A35&": Operating expenses (including loan interest costs) ($ nominal) " -> Table 8.2: Operating expenses (including loan interest costs) ($ nominal) | M35: =IF('WS1-Application'!$D$33="Minimum rate increase","[N/A - No need to complete, leave blue input cells blank]","") -> 
K36: =K26 -> Year 1 | L36: =L26 -> Year 2 | M36: Year 3 | N36: Year 4 | O36: Year 5 | P36: Year 6 | Q36: Year 7 | R36: Year 8 | S36: Year 9 | T36: Year 10 | U36: Sum of 10 years
D37: Units | K37: =K27 -> 2026-27 | L37: =L27 -> 2027-28 | M37: 2028-29 | N37: 2029-30 | O37: 2030-31 | P37: 2031-32 | Q37: 2032-33 | R37: 2033-34 | S37: 2034-35 | T37: 2035-36
B38: Fund existing service levels (eg, libraries) | K38: =IF(K22=$Z$21,"leave blank",".") -> . | L38: . | M38: . | N38: . | O38: . | P38: . | Q38: . | R38: . | S38: . | T38: .
B39: Enterprise resource planning system | D39: =$D$29 -> $ nominal | K39: 904000 | L39: 3890900 | M39: 4082728.75 | N39: 2031015.719 | O39: 1096086.2 | P39: 1123488.355 | Q39: 1151575.564 | R39: 1180364.953 | S39: 1209874.077 | T39: 1240120.929 | U39: =SUM(K39:T39)-SUMIF($K$22:$T$22,$Z$21,K39:T39) -> 17910154.55
B40: Open Space and infrastructure maintenance | D40: =$D$29 -> $ nominal | K40: 220000 | L40: 252125 | M40: 390681.25 | N40: 401298.2812 | O40: 467296.3828 | P40: 479678.7924 | Q40: 492295.7622 | R40: 505153.1562 | S40: 518256.9852 | T40: 531613.4098 | U40: 4258399.02
B41: Access, Social Inclusion and Cohesion | D41: $ nominal | K41: 40000.0001 | L41: 123000 | M41: 126075 | N41: 129226.875 | O41: 132457.5469 | P41: 135768.9855 | Q41: 139163.2102 | R41: 142642.2904 | S41: 146208.3477 | T41: 149863.5564 | U41: 1264405.812
B42: Open Space and Infrastructure Planning | D42: $ nominal | K42: 132995.0001 | L42: 71750 | M42: 63037.5 | N42: 0 | O42: 0 | P42: 0 | Q42: 0 | R42: 0 | S42: 0 | T42: 0 | U42: 267782.5001
B43: Affordable Housing Planning | D43: $ nominal | K43: 40000 | L43: 153750 | M43: 157593.75 | N43: 161533.5937 | O43: 0 | P43: 0 | Q43: 0 | R43: 0 | S43: 0 | T43: 0 | U43: 512877.3438
B44: Transport Management | D44: $ nominal | K44: 151250 | L44: 102500 | M44: 0 | N44: 0 | O44: 0 | P44: 0 | Q44: 0 | R44: 0 | S44: 0 | T44: 0 | U44: 253750
B45: Governance | D45: $ nominal | K45: 38244 | L45: 10250 | M45: 10506.25 | N45: 10768.90625 | O45: 11038.12891 | P45: 11314.08213 | Q45: 3318.934182 | R45: 1886.857537 | S45: 2184.028975 | T45: 2488.629699 | U45: 101999.8177
D46: $ nominal | U46: 0
D47: $ nominal | U47: 0
D48: $ nominal | U48: 0
D49: $ nominal | U49: 0
D50: $ nominal | U50: 0
D51: $ nominal | U51: 0
D52: $ nominal | U52: 0
D53: $ nominal | U53: 0
B54: Fund new/enhanced service levels (eg, sustainability program) | U54: 0
B55: Economic Development Initiatives | D55: $ nominal | K55: 0 | L55: 264750 | M55: 300512.5 | N55: 310787.8125 | O55: 321076.2578 | P55: 331378.1643 | Q55: 341693.8684 | R55: 352023.7151 | S55: 362368.058 | T55: 372727.2594 | U55: 2957317.635
B56: Master Planning to maintain services for the growing population | D56: $ nominal | K56: 1000000 | L56: 379250 | M56: 1313281.25 | N56: 538445.3125 | O56: 275953.2227 | P56: 0 | Q56: 0 | R56: 0 | S56: 0 | T56: 0 | U56: 3506929.785
B57: Planning Initiatives | D57: $ nominal | K57: 60000 | L57: 1.025e-05 | M57: 1.050625e-05 | N57: 0 | O57: 0 | P57: 0 | Q57: 0 | R57: 0 | S57: 0 | T57: 0 | U57: 60000.00002
B58: Sustainability Initiatives | D58: $ nominal | K58: 60000 | L58: 25625 | M58: 47278.125 | N58: 26922.26562 | O58: 41944.88984 | P58: 20365.34783 | Q58: 44068.34989 | R58: 21396.34357 | S58: 46299.31011 | T58: 22479.53346 | U58: 356379.1653
B59: Transport Initiatives | D59: $ nominal | K59: 0.0001 | L59: 123000 | M59: 0 | N59: 0 | O59: 0 | P59: 0 | Q59: 0 | R59: 0 | S59: 0 | T59: 0 | U59: 123000.0001
B60: Access, Social Inclusion and Cohesion Initiatives | D60: $ nominal | K60: 180000.0001 | L60: 386000 | M60: 376140.625 | N60: 354618.6719 | O60: 364743.5137 | P60: 374999.6015 | Q60: 385390.2166 | R60: 395918.722 | S60: 406588.565 | T60: 417403.2791 | U60: 3641803.195
D61: $ nominal | U61: 0
D62: $ nominal | U62: 0
D63: $ nominal | U63: 0
D64: $ nominal | U64: 0
D65: $ nominal | U65: 0
D66: $ nominal | U66: 0
D67: $ nominal | U67: 0
D68: $ nominal | U68: 0
D69: $ nominal | U69: 0
B70: Annual total | K70: =IF(K$29=".",".",SUM(K39:K53,K55:K69)) -> 2826489 | L70: =IF(L$29=".",".",SUM(L39:L53,L55:L69)) -> 5782900 | M70: 6867835 | N70: 3964617.438 | O70: 2710596.143 | P70: 2476993.329 | Q70: 2557505.906 | R70: 2599386.038 | S70: 2691779.372 | T70: 2736696.597 | U70: 35214798.82 | V70: =SUM(U39:U69)-U70 -> 0
B71: Cumulative totals by year | K71: =IF(K$29=".",".",SUM($K70:K70)) -> 2826489 | L71: =IF(L$29=".",".",SUM($K70:L70)) -> 8609389 | M71: =IF(M$29=".",".",SUM($K70:M70)) -> 15477224 | N71: =IF(N$29=".",".",SUM($K70:N70)) -> 19441841.44 | O71: =IF(O$29=".",".",SUM($K70:O70)) -> 22152437.58 | P71: =IF(P$29=".",".",SUM($K70:P70)) -> 24629430.91 | Q71: =IF(Q$29=".",".",SUM($K70:Q70)) -> 27186936.82 | R71: =IF(R$29=".",".",SUM($K70:R70)) -> 29786322.85 | S71: =IF(S$29=".",".",SUM($K70:S70)) -> 32478102.23 | T71: =IF(T$29=".",".",SUM($K70:T70)) -> 35214798.82
A74: =A35+1 -> 3 | B74: ="Table "&A1&"."&A74&": Capital expenditure ($ nominal) " -> Table 8.3: Capital expenditure ($ nominal) | M74: =IF('WS1-Application'!$D$33="Minimum rate increase","[N/A - No need to complete, leave blue input cells blank]","") -> 
K75: =K36 -> Year 1 | L75: =L36 -> Year 2 | M75: Year 3 | N75: Year 4 | O75: Year 5 | P75: Year 6 | Q75: Year 7 | R75: Year 8 | S75: Year 9 | T75: Year 10 | U75: Sum of 10 years
D76: Units | K76: =K37 -> 2026-27 | L76: =L37 -> 2027-28 | M76: 2028-29 | N76: 2029-30 | O76: 2030-31 | P76: 2031-32 | Q76: 2032-33 | R76: 2033-34 | S76: 2034-35 | T76: 2035-36
B77: Renewals: | K77: =K$38 -> . | L77: . | M77: . | N77: =N$38 -> . | O77: =O$38 -> . | P77: . | Q77: . | R77: . | S77: . | T77: .
B78: Infrastructure renewals to fund 100% depreciation | D78: =$D$29 -> $ nominal | K78: =7961304.8-1930 -> 7959374.8 | L78: 10958067.16 | M78: 8606217.936 | N78: 8471603.446 | O78: 9911758.101 | P78: 10490228.05 | Q78: 11087725.47 | R78: 11376346.42 | S78: 10986407.43 | T78: 9512270.956 | U78: =SUM(K78:T78)-SUMIF($K$22:$T$22,$Z$21,K78:T78) -> 99359999.77
B79: Infrastructure Backlog | D79: $ nominal | K79: 561000 | L79: 2993177.886 | M79: 9091281.49 | N79: 9759525.35 | O79: 8686453.223 | P79: 10378002.85 | Q79: 9870680.698 | R79: 10199386.8 | S79: 11592197.56 | T79: 13768617.63 | U79: 86900323.48
D80: $ nominal | U80: 0
D81: $ nominal | U81: 0
D82: $ nominal | U82: 0
D83: $ nominal | U83: 0
D84: $ nominal | U84: 0
D85: $ nominal | U85: 0
D86: $ nominal | U86: 0
D87: $ nominal | U87: 0
D88: $ nominal | U88: 0
D89: $ nominal | U89: 0
D90: $ nominal | U90: 0
D91: $ nominal | U91: 0
D92: $ nominal | U92: 0
D93: $ nominal | U93: 0
D94: $ nominal | U94: 0
D95: $ nominal | U95: 0
D96: $ nominal | U96: 0
D97: $ nominal | U97: 0
D98: $ nominal | U98: 0
D99: $ nominal | U99: 0
D100: $ nominal | U100: 0
D101: $ nominal | U101: 0
D102: $ nominal | U102: 0
D103: $ nominal | U103: 0
D104: $ nominal | U104: 0
D105: $ nominal | U105: 0
D106: $ nominal | U106: 0
D107: $ nominal | U107: 0
D108: $ nominal | U108: 0
D109: $ nominal | U109: 0
D110: $ nominal | U110: 0
D111: $ nominal | U111: 0
D112: $ nominal | U112: 0
D113: $ nominal | U113: 0
D114: $ nominal | U114: 0
D115: $ nominal | U115: 0
D116: $ nominal | U116: 0
D117: $ nominal | U117: 0
D118: $ nominal | U118: 0
D119: $ nominal | U119: 0
B120: New assets
B121: New Infrastructure including: - Active transport - Walking paths - Expanding stormwater harvesting and water reuse - Signage - Improvements to parks e.g. shading - Recreational facilities - Blues Point Road traffic management | D121: $ nominal | K121: 636644 | L121: 1789285.1 | M121: 1655070.728 | N121: 816450.0957 | O121: 1993093.123 | P121: 843627.7455 | Q121: 1050269.386 | R121: 886336.4001 | S121: 798838.5493 | T121: 931207.1804 | U121: =SUM(K121:T121)-SUMIF($K$22:$T$22,$Z$21,K121:T121) -> 11400822.31
B122: Co-funding for infrastructure projects within Developer Cont. Plans | D122: $ nominal | K122: 131200 | L122: 328345.9368 | M122: 1242479.685 | N122: 215236.4052 | O122: 69520.89538 | P122: 204332.3232 | Q122: 0 | R122: 0 | S122: 0 | T122: 0 | U122: 2191115.245
B123: Upgrades required to maintain service levels e.g. drainage in parks, site stabilisation works | D123: $ nominal | K123: 300000 | L123: 0 | M123: 0 | N123: 0 | O123: 1986863.203 | P123: 1074837.802 | Q123: 0 | R123: 0 | S123: 0 | T123: 0 | U123: 3361701.005
B124: Reserve for new infrastructure to support projects within developer contributions plans | D124: $ nominal | U124: 0
D125: $ nominal | U125: 0
D126: $ nominal | U126: 0
D127: $ nominal | U127: 0
D128: $ nominal | U128: 0
D129: $ nominal | U129: 0
D130: $ nominal | U130: 0
D131: $ nominal | U131: 0
D132: $ nominal | U132: 0
D133: $ nominal | U133: 0
D134: $ nominal | U134: 0
D135: $ nominal | U135: 0
D136: $ nominal | U136: 0
D137: $ nominal | U137: 0
D138: $ nominal | U138: 0
D139: $ nominal | U139: 0
D140: $ nominal | U140: 0
D141: $ nominal | U141: 0
B142: =B$70 -> Annual total | K142: =IF(K$29=".",".",SUM(K78:K119,K121:K141)) -> 9588218.8 | L142: 16068876.08 | M142: 20595049.84 | N142: 19262815.3 | O142: 22647688.55 | P142: 22991028.77 | Q142: 22008675.55 | R142: 22462069.62 | S142: 23377443.54 | T142: 24212095.76 | U142: 203213961.8 | V142: =SUM(U78:U141)-U142 -> 0
B143: =B$71 -> Cumulative totals by year | K143: =IF(K$29=".",".",SUM($K142:K142)) -> 9588218.8 | L143: =IF(L$29=".",".",SUM($K142:L142)) -> 25657094.88 | M143: =IF(M$29=".",".",SUM($K142:M142)) -> 46252144.72 | N143: =IF(N$29=".",".",SUM($K142:N142)) -> 65514960.02 | O143: =IF(O$29=".",".",SUM($K142:O142)) -> 88162648.56 | P143: =IF(P$29=".",".",SUM($K142:P142)) -> 111153677.3 | Q143: =IF(Q$29=".",".",SUM($K142:Q142)) -> 133162352.9 | R143: =IF(R$29=".",".",SUM($K142:R142)) -> 155624422.5 | S143: =IF(S$29=".",".",SUM($K142:S142)) -> 179001866 | T143: =IF(T$29=".",".",SUM($K142:T142)) -> 203213961.8
A146: =A74+1 -> 4 | B146: ="Table "&A1&"."&A146&": Other uses of proposed SV income (eg, loan principal repayments, transfers to reserves) ($ nominal) " -> Table 8.4: Other uses of proposed SV income (eg, loan principal repayments, transfers to reserves) ($ nominal) | M146: =IF('WS1-Application'!$D$33="Minimum rate increase","[N/A - No need to complete, leave blue input cells blank]","") -> 
K147: =K75 -> Year 1 | L147: =L75 -> Year 2 | M147: Year 3 | N147: Year 4 | O147: Year 5 | P147: Year 6 | Q147: Year 7 | R147: Year 8 | S147: Year 9 | T147: Year 10 | U147: =U75 -> Sum of 10 years
D148: Units | K148: =K76 -> 2026-27 | L148: =L76 -> 2027-28 | M148: 2028-29 | N148: 2029-30 | O148: 2030-31 | P148: 2031-32 | Q148: 2032-33 | R148: 2033-34 | S148: 2034-35 | T148: 2035-36
B149: Capital reserve required to co-fund delivery of the projects in Development Contributions Plan | D149: =$D$29 -> $ nominal | N149: 5063890 | O149: 3700180 | P149: 4659650 | Q149: 6231270 | R149: 6872930 | S149: 6603640 | T149: 6919410 | U149: =SUM(K149:T149)-SUMIF($K$22:$T$22,$Z$21,K149:T149) -> 40050970
D150: $ nominal | U150: 0
D151: $ nominal | U151: 0
D152: $ nominal | U152: 0
D153: $ nominal | U153: 0
D154: $ nominal | U154: 0
D155: $ nominal | U155: 0
D156: $ nominal | U156: =SUM(K156:T156)-SUMIF($K$22:$T$22,$Z$21,K156:T156) -> 0
D157: $ nominal | U157: =SUM(K157:T157)-SUMIF($K$22:$T$22,$Z$21,K157:T157) -> 0
D158: $ nominal | U158: =SUM(K158:T158)-SUMIF($K$22:$T$22,$Z$21,K158:T158) -> 0
B159: =B$70 -> Annual total | K159: =IF(K$29=".",".",SUM(K149:K158)) -> 0 | L159: =IF(L$29=".",".",SUM(L149:L158)) -> 0 | M159: 0 | N159: 5063890 | O159: 3700180 | P159: 4659650 | Q159: 6231270 | R159: 6872930 | S159: 6603640 | T159: 6919410 | U159: 40050970 | V159: =SUM(U149:U158)-U159 -> 0
B160: =B$71 -> Cumulative totals by year | K160: =IF(K$29=".",".",SUM($K159:K159)) -> 0 | L160: =IF(L$29=".",".",SUM($K159:L159)) -> 0 | M160: =IF(M$29=".",".",SUM($K159:M159)) -> 0 | N160: =IF(N$29=".",".",SUM($K159:N159)) -> 5063890 | O160: =IF(O$29=".",".",SUM($K159:O159)) -> 8764070 | P160: =IF(P$29=".",".",SUM($K159:P159)) -> 13423720 | Q160: =IF(Q$29=".",".",SUM($K159:Q159)) -> 19654990 | R160: =IF(R$29=".",".",SUM($K159:R159)) -> 26527920 | S160: =IF(S$29=".",".",SUM($K159:S159)) -> 33131560 | T160: =IF(T$29=".",".",SUM($K159:T159)) -> 40050970
A163: =A146+1 -> 5 | B163: ="Table "&A1&"."&A163&": Total ($ nominal)" -> Table 8.5: Total ($ nominal)
K164: =K147 -> Year 1 | L164: =L147 -> Year 2 | M164: Year 3 | N164: Year 4 | O164: Year 5 | P164: Year 6 | Q164: Year 7 | R164: Year 8 | S164: Year 9 | T164: Year 10 | U164: Sum of 10 years
K165: =K148 -> 2026-27 | L165: =L148 -> 2027-28 | M165: 2028-29 | N165: 2029-30 | O165: 2030-31 | P165: 2031-32 | Q165: 2032-33 | R165: 2033-34 | S165: 2034-35 | T165: 2035-36
B166: Total use of proposed SV income | D166: =$D$29 -> $ nominal | K166: =IF(K$22=$Z$21,".",K70+K142+K159) -> 12414707.8 | L166: 21851776.08 | M166: 27462884.84 | N166: 28291322.73 | O166: 29058464.69 | P166: 30127672.1 | Q166: 30797451.46 | R166: 31934385.66 | S166: 32672862.91 | T166: 33868202.36 | U166: =U70+U142+U159 -> 278479730.6
B167: Difference between additional SRV income and its uses | D167: $ nominal | K167: =IF(K$22=$Z$21,".",K29-K166) -> -91620.59491 | L167: 78972.94904 | M167: -11391.01691 | N167: -16284.09897 | O167: 64825.10563 | P167: -130683.6125 | Q167: 99446.68267 | R167: -265065.0637 | S167: -211809.2975 | T167: -595622.408 | U167: =SUM(K167:T167) -> -1079231.355

Sheet WS6 - PGI summary
A1: 6
B2: ='WS1-Application'!B2 -> APPLICATION FOR SPECIAL VARIATION AND MINIMUM RATE INCREASE - NORTH SYDNEY COUNCIL
B4: ="WORKSHEET "&A1&": PERMISSIBLE GENERAL INCOME SUMMARY FOR "&'WS0 - Input data'!D45 -> WORKSHEET 6: PERMISSIBLE GENERAL INCOME SUMMARY FOR 2026-27
B7: Instructions and notes
B8: This worksheet calculates Permissible General Income and the value of the proposed SV after taking into account various adjustments. Income adjustments and expiring SV amounts are to be verified by OLG before the application is submitted to us.
B10: (1) NO INPUTS ARE REQUIRED IN THIS WORKSHEET. See an example of PGI calculation for year 1 below.
B11: (2) Please check all income adjustments and expiring variation amounts with OLG before submitting the application.
B12: (3) PGI estimates for years beyond proposed and/or exisiting SV period shown in light grey font. PGI beyond a temporary SV period = 0
B13: (4) The calculations do not account for situations where a temporary SV expires and the council wants an SV to commence within the period the temporary SV is in place. If this applies to your council, please contact IPART.
B16: Example of PGI calculation for Year 1
B18: XYZ Council
B20: ="PERMISSIBLE GENERAL INCOME SUMMARY FOR "&'WS0 - Input data'!K58 -> PERMISSIBLE GENERAL INCOME SUMMARY FOR 2026-27
B21: All dollars in nominal terms
B22: Please check all income adjustments and expiring variation amounts with OLG before submitting the application.
G23: 20000000
B25: Prior year Notional General Income | D25: ='WS0 - Input data'!$C$62 -> $ nominal | K25: 20000000
B26: Less: Expiry of a prior special variation (1) | D26: ='WS0 - Input data'!$C$62 -> $ nominal | K26: 10000
B28: Adjusted first year Notional General Income | D28: ='WS0 - Input data'!$C$62 -> $ nominal | K28: =K25-K26 -> 19990000
B30: Plus: Rate peg increase - first year | D30: % | J30: 0.023 | K30: =ROUND(K28*J30,9) -> 459770
B31: Plus: Additional increase - first year (2) | D31: % | J31: 0.037 | K31: =ROUND(K28*J31,9) -> 739630
B32: Plus: Crown Land adjustment - first year (3) | D32: % | J32: 0.000638253745 | K32: 10000
D33: %
B34: Total special variation - first year | J34: =SUM(J30:J32) -> 0.06063825375 | K34: =SUM(K30:K32) -> 1209400
B36: Other First Year Adjustments: (4)
B37: Plus/Minus: Prior year Catch-up/(Excess) | D37: ='WS0 - Input data'!$C$62 -> $ nominal | K37: -5000
B38: Minus: Valuation Objections claimed in prior year | D38: ='WS0 - Input data'!$C$62 -> $ nominal | K38: -30
B40: Total Adjustments | D40: ='WS0 - Input data'!$C$62 -> $ nominal | K40: =SUM(K37:K38) -> -5030
B42: First year Permissible General Income | D42: ='WS0 - Input data'!$C$62 -> $ nominal | K42: =K28+K34+K40 -> 21194370
B45: ="(1) If the council has a SV due to expire on 30 June "&'WS0 - Input data'!$K$57&", Notional General Income must be reduced before "&"calculating Permissible General Income in "&'WS0 - Input data'!$K$58&"." -> (1) If the council has a SV due to expire on 30 June 2026, Notional General Income must be reduced before calculating Permissible General Income in 2026-27.
B46: (2) This is the additional percentage increase being sought above the rate peg, excluding any other income adjustments.
B47: (3) Crown land claims will increase Permissible General Income. The $ amount of any Crown land adjustment is converted into a % amount to be included in the final special variation for consideration by IPART.
B48: (4) Other adjustments
B49: There are two other possible adjustments that are not included in the proposed SV % but will affect Permissible General Income:
B50: a. Prior year results: this is the catch up or excess amount from the previous year, as advised by OLG.
B51: b. Valuation objections: if you successfully claimed valuation objections in the previous year, Permissible General Income must be reduced to remove the extra income claimed from the revenue base.
A55: 1 | B55: ="Table "&A1&"."&A55&": Calculation of first year Permissble General Income ($ nominal)" -> Table 6.1: Calculation of first year Permissble General Income ($ nominal)
D56: Units | K56: ='WS0 - Input data'!K$58 -> 2026-27 | M56: check = 0
B57: Prior year Notional General Income | D57: ='WS0 - Input data'!$C$62 -> $ nominal | K57: ='WS3 - Notional General Income'!L163 -> 64858353.71 | M57: =IF(K57=0,0,K57-K85) -> 0
B58: Less: Expiry of a prior special variation | D58: =$D$57 -> $ nominal | K58: ='WS2-Proposal'!J92 -> 0 | M58: =IF(K58=0,0,K58-K86) -> 0
B59: Adjusted first year Notional General Income | D59: =$D$57 -> $ nominal | K59: =K57-K58 -> 64858353.71
B61: Plus: Rate peg - first year | D61: % | J61: ='WS2-Proposal'!K80 -> 0.04 | K61: =K$59*J61 -> 2594334.149 | M61: =IF(K61=0,0,K61-K89) -> 0
B62: ="Plus: "&CHOOSE('WS2-Proposal'!$W$41,"Existing SV above rate peg - first year","na") -> Plus: na | D62: % | J62: ='WS2-Proposal'!K81 -> 0 | K62: =K$59*J62 -> 0
B63: ="Plus: "&CHOOSE('WS2-Proposal'!$W$66,"Additional increase that is temporary - first year","Additional increase - first year") -> Plus: Additional increase - first year | D63: % | J63: ='WS2-Proposal'!K82 -> 0.19 | K63: =K$59*J63 -> 12323087.21 | M63: =IF(K63=0,0,K63-K91) -> 0
B64: ="Plus: "&CHOOSE('WS2-Proposal'!$W$66,"Additional increase that is permanent - first year","na") -> Plus: na | D64: % | J64: ='WS2-Proposal'!K83 -> 0 | K64: =K$59*J64 -> 0
B65: Plus: Crown Land adjustment - first year | D65: % | J65: =IF(K59=0,0,K65/K59) -> 0 | K65: ='WS2-Proposal'!K49 -> 0 | M65: =IF(K65=0,0,K65-K93) -> 0
B67: Total special variation - first year | D67: % | J67: =SUM(J61:J65) -> 0.23 | K67: =K59*J67 -> 14917421.35 | M67: =IF(K67=0,0,K67-K94) -> 1.862645149e-09
M68: =SUM(K61:K65)-K67 -> 0
B69: Other First Year Adjustments:
B70: Plus/Minus: Prior year Catch-up/(Excess) | D70: =D59 -> $ nominal | K70: ='WS2-Proposal'!K50 -> -292
B71: Minus: Valuation Objections claimed in prior year | D71: =D59 -> $ nominal | K71: =-'WS2-Proposal'!K51 -> -274
B72: Total Adjustments | D72: =D71 -> $ nominal | K72: =K70+K71 -> -566 | M72: =K72-K97 -> 0
B74: First year Permissible General Income | D74: =D59 -> $ nominal | K74: =K59+K67+K72 -> 79775209.07 | M74: =IF(K74=0,0,K74-K98) -> 0
A78: =A55+1 -> 2 | B78: ="Table " &A1&"."&A78&": Calculation of PGI with proposed SV, rate peg and renewal of expiring SV ($ nominal)" -> Table 6.2: Calculation of PGI with proposed SV, rate peg and renewal of expiring SV ($ nominal)
J79: ='WS0 - Input data'!J$55 -> Year 0 | K79: ='WS0 - Input data'!K$55 -> Year 1 | L79: ='WS0 - Input data'!L$55 -> Year 2 | M79: ='WS0 - Input data'!M$55 -> Year 3 | N79: ='WS0 - Input data'!N$55 -> Year 4 | O79: ='WS0 - Input data'!O$55 -> Year 5 | P79: ='WS0 - Input data'!P$55 -> Year 6 | Q79: ='WS0 - Input data'!Q$55 -> Year 7 | R79: Total increase
B80: ='WS0 - Input data'!B$58 -> Financial year | D80: Units | J80: ='WS0 - Input data'!J$58 -> 2025-26 | K80: ='WS0 - Input data'!K$58 -> 2026-27 | L80: ='WS0 - Input data'!L$58 -> 2027-28 | M80: ='WS0 - Input data'!M$58 -> 2028-29 | N80: ='WS0 - Input data'!N$58 -> 2029-30 | O80: ='WS0 - Input data'!O$58 -> 2030-31 | P80: ='WS0 - Input data'!P$58 -> 2031-32 | Q80: ='WS0 - Input data'!Q$58 -> 2032-33 | R80: =D85 -> $ nominal | S80: %
K81: =IF('WS2-Proposal'!K74=1,"Proposed SV period",IF(AND('WS2-Proposal'!K74=0,'WS2-Proposal'!K77>0),"Existing SV period","no SV")) -> Proposed SV period | L81: =IF('WS2-Proposal'!L74=1,"Proposed SV period",IF(AND('WS2-Proposal'!L74=0,'WS2-Proposal'!L77>0),"Existing SV period","no SV")) -> Proposed SV period | M81: =IF('WS2-Proposal'!M74=1,"Proposed SV period",IF(AND('WS2-Proposal'!M74=0,'WS2-Proposal'!M77>0),"Existing SV period","no SV")) -> Proposed SV period | N81: =IF('WS2-Proposal'!N74=1,"Proposed SV period",IF(AND('WS2-Proposal'!N74=0,'WS2-Proposal'!N77>0),"Existing SV period","no SV")) -> no SV | O81: =IF('WS2-Proposal'!O74=1,"Proposed SV period",IF(AND('WS2-Proposal'!O74=0,'WS2-Proposal'!O77>0),"Existing SV period","no SV")) -> no SV | P81: =IF('WS2-Proposal'!P74=1,"Proposed SV period",IF(AND('WS2-Proposal'!P74=0,'WS2-Proposal'!P77>0),"Existing SV period","no SV")) -> no SV | Q81: =IF('WS2-Proposal'!Q74=1,"Proposed SV period",IF(AND('WS2-Proposal'!Q74=0,'WS2-Proposal'!Q77>0),"Existing SV period","no SV")) -> no SV
B82: ='WS2-Proposal'!B75 -> 0 = beyond temporary SV period | J82: ='WS2-Proposal'!J75 -> 1 | K82: ='WS2-Proposal'!K75 -> 1 | L82: ='WS2-Proposal'!L75 -> 1 | M82: ='WS2-Proposal'!M75 -> 1 | N82: ='WS2-Proposal'!N75 -> 1 | O82: ='WS2-Proposal'!O75 -> 1 | P82: ='WS2-Proposal'!P75 -> 1 | Q82: ='WS2-Proposal'!Q75 -> 1
B84: PGI with proposed SV
B85: Prior year Notional General Income (NGI) | D85: ='WS0 - Input data'!$C$62 -> $ nominal | K85: =IF(K$82=0,0,J98) -> 64858353.71 | L85: 79775209.07 | M85: 91406434.55 | N85: 99011449.9 | O85: 101981793.4 | P85: 105041247.2 | Q85: 108192484.6
B86: less: expiry of a prior special variation | D86: =D85 -> $ nominal | K86: ='WS2-Proposal'!J92 -> 0 | L86: ='WS2-Proposal'!K92 -> 0 | M86: ='WS2-Proposal'!L92 -> 0 | N86: ='WS2-Proposal'!M92 -> 0 | O86: ='WS2-Proposal'!N92 -> 0 | P86: ='WS2-Proposal'!O92 -> 0 | Q86: =IF(Q$82=0,0,'WS2-Proposal'!P92) -> 0
B87: Adjusted Notional General income | D87: =D86 -> $ nominal | K87: =K85-K86 -> 64858353.71 | L87: =L85-L86 -> 79775209.07 | M87: 91406434.55 | N87: 99011449.9 | O87: 101981793.4 | P87: =P85-P86 -> 105041247.2 | Q87: 108192484.6
B89: plus: rate peg increase | D89: =$D$85 -> $ nominal | K89: =K$87*'WS2-Proposal'!K80 -> 2594334.149 | L89: =L$87*'WS2-Proposal'!L80 -> 2393256.272 | M89: =M$87*'WS2-Proposal'!M80 -> 2742193.036 | N89: =N$87*'WS2-Proposal'!N80 -> 2970343.497 | O89: =O$87*'WS2-Proposal'!O80 -> 3059453.802 | P89: =P$87*'WS2-Proposal'!P80 -> 3151237.416 | Q89: =Q$87*'WS2-Proposal'!Q80 -> 3245774.539
B90: ="plus: " &CHOOSE('WS2-Proposal'!$W$41,"existing SV above rate peg","na") -> plus: na | D90: =$D$85 -> $ nominal | K90: =K$87*'WS2-Proposal'!K81 -> 0 | L90: =L$87*'WS2-Proposal'!L81 -> 0 | M90: =M$87*'WS2-Proposal'!M81 -> 0 | N90: =N$87*'WS2-Proposal'!N81 -> 0 | O90: =O$87*'WS2-Proposal'!O81 -> 0 | P90: =P$87*'WS2-Proposal'!P81 -> 0 | Q90: =Q$87*'WS2-Proposal'!Q81 -> 0
B91: ="plus: "&CHOOSE('WS2-Proposal'!$W$66,"additional increase that is temporary","additional increase") -> plus: additional increase | D91: =D89 -> $ nominal | K91: =K$87*'WS2-Proposal'!K82 -> 12323087.21 | L91: =L$87*'WS2-Proposal'!L82 -> 9237969.21 | M91: =M$87*'WS2-Proposal'!M82 -> 4862822.318 | N91: =N$87*'WS2-Proposal'!N82 -> 0 | O91: =O$87*'WS2-Proposal'!O82 -> 0 | P91: =P$87*'WS2-Proposal'!P82 -> 0 | Q91: =Q$87*'WS2-Proposal'!Q82 -> 0
B92: ="plus: "&CHOOSE('WS2-Proposal'!$W$66,"additional increase that is permanent","na") -> plus: na | D92: =D90 -> $ nominal | K92: =K$87*'WS2-Proposal'!K83 -> 0 | L92: =L$87*'WS2-Proposal'!L83 -> 0 | M92: =M$87*'WS2-Proposal'!M83 -> 0 | N92: =N$87*'WS2-Proposal'!N83 -> 0 | O92: =O$87*'WS2-Proposal'!O83 -> 0 | P92: =P$87*'WS2-Proposal'!P83 -> 0 | Q92: =Q$87*'WS2-Proposal'!Q83 -> 0
B93: plus: crown land adjustment | D93: $ nominal | K93: =K$87*'WS2-Proposal'!K84 -> 0 | L93: =L$87*'WS2-Proposal'!L84 -> 0 | M93: =M$87*'WS2-Proposal'!M84 -> 0 | N93: =N$87*'WS2-Proposal'!N84 -> 0 | O93: =O$87*'WS2-Proposal'!O84 -> 0 | P93: =P$87*'WS2-Proposal'!P84 -> 0 | Q93: =Q$87*'WS2-Proposal'!Q84 -> 0
B94: Total proposed SV | D94: =D93 -> $ nominal | K94: =SUM(K89:K93) -> 14917421.35 | L94: =SUM(L89:L93) -> 11631225.48 | M94: 7605015.354 | N94: 2970343.497 | O94: 3059453.802 | P94: =SUM(P89:P93) -> 3151237.416 | Q94: 3245774.539
B96: Notional General Income after SV applied | D96: =$D$85 -> $ nominal | K96: =K87+K94 -> 79775775.07 | L96: =L87+L94 -> 91406434.55 | M96: 99011449.9 | N96: 101981793.4 | O96: 105041247.2 | P96: =P87+P94 -> 108192484.6 | Q96: 111438259.2
B97: plus: other 1st-year adjustments | D97: =D96 -> $ nominal | K97: ='WS2-Proposal'!K50-'WS2-Proposal'!K51 -> -566 | L97: 0 | M97: 0 | N97: 0 | O97: 0 | P97: 0 | Q97: 0
B98: PGI with proposed SV | D98: =D97 -> $ nominal | J98: ='WS3 - Notional General Income'!L163 -> 64858353.71 | K98: =K96+K97 -> 79775209.07 | L98: =L96+L97 -> 91406434.55 | M98: 99011449.9 | N98: 101981793.4 | O98: 105041247.2 | P98: =P96+P97 -> 108192484.6 | Q98: 111438259.2 | R98: =INDEX(J98:Q98,'WS2-Proposal'!$W$62+1)-J98 -> 34153096.19 | S98: =IF(J98=0,0,R98/J98) -> 0.5265797578
B101: =CHOOSE('WS2-Proposal'!$W$41,"PGI if only the existing SV/rate peg applied","PGI if only the rate peg applied") -> PGI if only the rate peg applied
B102: =B85 -> Prior year Notional General Income (NGI) | D102: =$D$85 -> $ nominal | K102: =IF(K$82=0,0,J109) -> 64858353.71 | L102: 67452121.86 | M102: 69475685.52 | N102: 71559956.08 | O102: 73706754.77 | P102: 75917957.41 | Q102: 78195496.13
B103: =B86 -> less: expiry of a prior special variation | D103: =D102 -> $ nominal | K103: =K86 -> 0 | L103: 0 | M103: 0 | N103: 0 | O103: 0 | P103: 0 | Q103: =Q86 -> 0
B104: =B87 -> Adjusted Notional General income | D104: =D103 -> $ nominal | K104: =K102-K103 -> 64858353.71 | L104: 67452121.86 | M104: 69475685.52 | N104: 71559956.08 | O104: 73706754.77 | P104: 75917957.41 | Q104: =Q102-Q103 -> 78195496.13
B105: =B89 -> plus: rate peg increase | D105: =$D$85 -> $ nominal | K105: =IF(K$82=0,0,'WS2-Proposal'!K80*K$104) -> 2594334.149 | L105: =IF(L$82=0,0,'WS2-Proposal'!L80*L$104) -> 2023563.656 | M105: =IF(M$82=0,0,'WS2-Proposal'!M80*M$104) -> 2084270.566 | N105: =IF(N$82=0,0,'WS2-Proposal'!N80*N$104) -> 2146798.682 | O105: =IF(O$82=0,0,'WS2-Proposal'!O80*O$104) -> 2211202.643 | P105: =IF(P$82=0,0,'WS2-Proposal'!P80*P$104) -> 2277538.722 | Q105: =IF(Q$82=0,0,'WS2-Proposal'!Q80*Q$104) -> 2345864.884
B106: =B90 -> plus: na | D106: =$D$85 -> $ nominal | K106: ='WS2-Proposal'!K81*K$104 -> 0 | L106: ='WS2-Proposal'!L81*L$104 -> 0 | M106: ='WS2-Proposal'!M81*M$104 -> 0 | N106: ='WS2-Proposal'!N81*N$104 -> 0 | O106: ='WS2-Proposal'!O81*O$104 -> 0 | P106: ='WS2-Proposal'!P81*P$104 -> 0 | Q106: ='WS2-Proposal'!Q81*Q$104 -> 0
B107: =B93 -> plus: crown land adjustment | D107: =$D$85 -> $ nominal | K107: =K93 -> 0 | L107: =L93 -> 0 | M107: 0 | N107: 0 | O107: 0 | P107: 0 | Q107: 0
B108: =B97 -> plus: other 1st-year adjustments | D108: =D105 -> $ nominal | K108: =K97 -> -566 | L108: 0 | M108: 0 | N108: 0 | O108: 0 | P108: 0 | Q108: =Q97 -> 0
B109: =CHOOSE('WS2-Proposal'!$W$41,"PGI if only the existing SV/rate peg applied","PGI if only the rate peg applied") -> PGI if only the rate peg applied | D109: =D108 -> $ nominal | J109: =J98 -> 64858353.71 | K109: =SUM(K104:K108) -> 67452121.86 | L109: 69475685.52 | M109: 71559956.08 | N109: 73706754.77 | O109: 75917957.41 | P109: 78195496.13 | Q109: 80541361.01 | R109: =INDEX(J109:Q109,'WS2-Proposal'!$W$62+1)-J109 -> 6701602.37 | S109: =IF(J109=0,0,R109/J109) -> 0.1033267418
A114: =A78+1 -> 3 | B114: ="Table "&A1&"."&A114&" Increases in permissable general income over proposed SV period ($ nominal)" -> Table 6.3 Increases in permissable general income over proposed SV period ($ nominal)
J115: =J$79 -> Year 0 | K115: Year 1 | L115: Year 2 | M115: Year 3 | N115: Year 4 | O115: Year 5 | P115: Year 6 | Q115: Year 7 | R115: Total | S115: increase | T115: check = 0
B116: =B$80 -> Financial year | J116: =J$80 -> 2025-26 | K116: 2026-27 | L116: 2027-28 | M116: 2028-29 | N116: 2029-30 | O116: 2030-31 | P116: 2031-32 | Q116: 2032-33 | R116: =D124 -> $ nominal | S116: %
B118: Annual % increase in PGI
B119: =$B$98 -> PGI with proposed SV | D119: % | K119: =IF(J$98=0,0,K124/J$98) -> 0.2299912733 | L119: 0.1458 | M119: 0.0832 | N119: 0.03 | O119: 0.03 | P119: 0.03 | Q119: 0.03 | S119: =S98 -> 0.5265797578
B120: =$B$109 -> PGI if only the rate peg applied | D120: =D119 -> % | K120: =IF(J$98=0,0,K125/J$98) -> 0.03999127329 | L120: =IF(K$109=0,0,L125/K$109) -> 0.03 | M120: 0.03 | N120: 0.03 | O120: 0.03 | P120: 0.03 | Q120: 0.03 | S120: =S109 -> 0.1033267418
B123: Annual $ increase in PGI
B124: =B119 -> PGI with proposed SV | D124: =$D$85 -> $ nominal | K124: =IF(K$82=0,0,K98-J98) -> 14916855.35 | L124: 11631225.48 | M124: 7605015.354 | N124: 2970343.497 | O124: 3059453.802 | P124: 3151237.416 | Q124: 3245774.539 | R124: =SUMPRODUCT(K124:Q124,'WS2-Proposal'!$K$74:$Q$74) -> 34153096.19 | S124: =IF($J$98=0,0,R124/$J$98) -> 0.5265797578 | T124: =R124-R98 -> 0
B125: =B120 -> PGI if only the rate peg applied | D125: =D124 -> $ nominal | K125: =IF(K$82=0,0,K109-J109) -> 2593768.149 | L125: 2023563.656 | M125: 2084270.566 | N125: 2146798.682 | O125: 2211202.643 | P125: 2277538.722 | Q125: 2345864.884 | R125: =SUMPRODUCT(K125:Q125,'WS2-Proposal'!$K$74:$Q$74) -> 6701602.37 | S125: =IF($J$98=0,0,R125/$J$98) -> 0.1033267418 | T125: =R125-R109 -> 0
B128: Annual $ increase in PGI with proposed SV more than:
B129: =B120 -> PGI if only the rate peg applied | D129: =$D$85 -> $ nominal | K129: =K124-K125 -> 12323087.21 | L129: 9607661.826 | M129: 5520744.789 | N129: =N124-N125 -> 823544.8146 | O129: 848251.1591 | P129: 873698.6938 | Q129: =Q124-Q125 -> 899909.6546 | R129: =SUMPRODUCT(K129:Q129,'WS2-Proposal'!$K$74:$Q$74) -> 27451493.82 | S129: =S124-S125 -> 0.423253016 | T129: =IF(J109=0,0,(R98-R109)/J109-S129) -> 0
T131: =R125-R124+R129 -> 0
B132: Cumulative PGI
B133: =$B$98 -> PGI with proposed SV | D133: =D129 -> $ nominal | K133: =IF(K$82=0,0,SUM($K98:K98)) -> 79775209.07 | L133: =IF(L$82=0,0,SUM($K98:L98)) -> 171181643.6 | M133: =IF(M$82=0,0,SUM($K98:M98)) -> 270193093.5 | N133: =IF(N$82=0,0,SUM($K98:N98)) -> 372174886.9 | O133: =IF(O$82=0,0,SUM($K98:O98)) -> 477216134.1 | P133: =IF(P$82=0,0,SUM($K98:P98)) -> 585408618.7 | Q133: =IF(Q$82=0,0,SUM($K98:Q98)) -> 696846877.9 | R133: =SUMPRODUCT(K133:Q133,'WS2-Proposal'!$K$74:$Q$74) -> 521149946.2
B134: =$B$109 -> PGI if only the rate peg applied | D134: =D133 -> $ nominal | K134: =IF(K$82=0,0,SUM($K109:K109)) -> 67452121.86 | L134: =IF(L$82=0,0,SUM($K109:L109)) -> 136927807.4 | M134: =IF(M$82=0,0,SUM($K109:M109)) -> 208487763.5 | N134: =IF(N$82=0,0,SUM($K109:N109)) -> 282194518.2 | O134: =IF(O$82=0,0,SUM($K109:O109)) -> 358112475.6 | P134: =IF(P$82=0,0,SUM($K109:P109)) -> 436307971.8 | Q134: =IF(Q$82=0,0,SUM($K109:Q109)) -> 516849332.8 | R134: =SUMPRODUCT(K134:Q134,'WS2-Proposal'!$K$74:$Q$74) -> 412867692.7
B137: Increase in cumulative PGI with proposed SV that exceeds the increase in the PGI under
B138: =B120 -> PGI if only the rate peg applied | D138: =$D$85 -> $ nominal | K138: =K$133-K134 -> 12323087.21 | L138: 34253836.24 | M138: 61705330.06 | N138: 89980368.69 | O138: 119103658.5 | P138: 149100647 | Q138: 179997545.1 | R138: =SUMPRODUCT(K138:Q138,'WS2-Proposal'!$K$74:$Q$74) -> 108282253.5 | S138: =IF(R134=0,0,R138/R134) -> 0.2622686527 | T138: =R133-R134-R138 -> 0

Sheet WS10 - LTFP
A1: 10
B2: ='WS1-Application'!B2 -> APPLICATION FOR SPECIAL VARIATION AND MINIMUM RATE INCREASE - NORTH SYDNEY COUNCIL
B4: ="WORKSHEET "&A1&": LONG TERM FINANCIAL PLAN" -> WORKSHEET 10: LONG TERM FINANCIAL PLAN
B7: Instructions and notes
B8: ="- If council is applying for a "&'WS0 - Input data'!B404&" or "&'WS0 - Input data'!B406&": " -> - If council is applying for a Special Variation or Special Variation and Minimum Rate Increase:
B9: this sheet shows how the council's Long Term Financial Plan reflects the impact of the proposed special variation versus its base case (no special variation) and the hybrid case (no SV income but SV expenditure).
B10: ="- If council is applying for a "&'WS0 - Input data'!B405&" only:" -> - If council is applying for a Minimum Rate Increase only:
B11: ="* then this sheet shows how the council's Long Term Financial Plan reflects the impact of the proposed minimum rate increase application and only tables "&A1&A167&", "&A1&A221&" and "&A1&A313&" need to be completed." -> * then this sheet shows how the council's Long Term Financial Plan reflects the impact of the proposed minimum rate increase application and only tables 10.2(a), 10.2(b) and 10.3 need to be completed.
B12: ="* tables "&A1&"."&A21&", "&A1&"."&A75&", "&A1&A334&" and "&A1&A388&" and rows "&ROW(B318)&", "&ROW(B321)&", "&ROW(B324)&", "&ROW(B327)&" and "&ROW(B330)&" do not need to be completed." -> * tables 10.1(a), 10.1(b), 10.4 and 10.5 and rows 318, 321, 324, 327 and 330 do not need to be completed.
B13: > Enter the figures from the most recent Long Term Financial Plan over 10 years under each of the headings as relevant. Add rows if necessary.
B14: > Please ensure that these figures match the latest version of the Long Term Financial Plan provided with the application and that these figures are for the GENERAL FUND ONLY.
B15: ="> In the table 'Key Assumptions' starting at row "&ROW(B314)&" please enter the key assumptions relating to the Long Term Financial Plan. " -> > In the table 'Key Assumptions' starting at row 314 please enter the key assumptions relating to the Long Term Financial Plan.
B16: Notes:
B17: (1) All dollars in are to be nominal terms
A21: 1(a) | B21: ="Table "&A1&"."&A21&": Income Statement- General fund - PROPOSED "&'WS1-Application'!D33&" Scenario ($ nominal)" -> Table 10.1(a): Income Statement- General fund - PROPOSED Special Variation and Minimum Rate Increase Scenario ($ nominal) | K21: =IF('WS1-Application'!$D$33="Minimum rate increase","[N/A - No need to complete, leave blue input cells blank]",".") -> .
J22: ='WS0 - Input data'!J55 -> Year 0 | K22: ='WS0 - Input data'!K55 -> Year 1 | L22: ='WS0 - Input data'!L55 -> Year 2 | M22: ='WS0 - Input data'!M55 -> Year 3 | N22: ='WS0 - Input data'!N55 -> Year 4 | O22: ='WS0 - Input data'!O55 -> Year 5 | P22: ='WS0 - Input data'!P55 -> Year 6 | Q22: ='WS0 - Input data'!Q55 -> Year 7 | R22: ='WS0 - Input data'!R55 -> Year 8 | S22: ='WS0 - Input data'!S55 -> Year 9 | T22: ='WS0 - Input data'!T55 -> Year 10 | U22: Sum of 10 years | W22: Change over 10 years
D23: Units | J23: ='WS0 - Input data'!J58 -> 2025-26 | K23: ='WS0 - Input data'!K58 -> 2026-27 | L23: ='WS0 - Input data'!L58 -> 2027-28 | M23: ='WS0 - Input data'!M58 -> 2028-29 | N23: ='WS0 - Input data'!N58 -> 2029-30 | O23: ='WS0 - Input data'!O58 -> 2030-31 | P23: ='WS0 - Input data'!P58 -> 2031-32 | Q23: ='WS0 - Input data'!Q58 -> 2032-33 | R23: ='WS0 - Input data'!R58 -> 2033-34 | S23: ='WS0 - Input data'!S58 -> 2034-35 | T23: ='WS0 - Input data'!T58 -> 2035-36 | W23: $ | X23: %
B24: Income from continuing operations
B25: Revenue:
B26: Rates | D26: $ nominal | J26: 64881000 | K26: 80094846 | L26: 92074847.73 | M26: 100067684.9 | N26: 103445703.6 | O26: 106936342.4 | P26: 110543318.5 | Q26: 114270470.4 | R26: 118121762.5 | S26: 122101288.6 | T26: 126213276.7 | U26: =SUM(K26:T26) -> 1073869541 | W26: =T26-J26 -> 61332276.73 | X26: =IF(J26=0,0,(W26/J26)) -> 0.9453041218
B27: Annual Charges | D27: $ nominal | J27: 18584000 | K27: 19141520 | L27: 19715765.6 | M27: 23161743.01 | N27: 23736716.18 | O27: 24325941.56 | P27: 24929771.8 | Q27: 25548568.25 | R27: 26182701.18 | S27: 26832549.99 | T27: 27498503.46 | U27: 241073781 | W27: 8914503.462 | X27: 0.4796870136
B28: User Charges & Fees | D28: $ nominal | J28: 38323000 | K28: 41287262.75 | L28: 43453145.84 | M28: 45448431.81 | N28: 46583642.61 | O28: 47738233.67 | P28: 48930914.51 | Q28: 50153412.38 | R28: 51406472.69 | S28: 52690859.5 | T28: 54007355.99 | U28: 481699731.7 | W28: 15684355.99 | X28: 0.4092674371
B29: Interest & Investment Revenue | D29: $ nominal | J29: 3912000 | K29: 3717630 | L29: 3838560 | M29: 3748394.7 | N29: 3500534.7 | O29: 3872925.119 | P29: 4303281.848 | Q29: 4762161.765 | R29: 5296787.373 | S29: 5874448.772 | T29: 6445136.53 | U29: 45359860.81 | W29: 2533136.53 | X29: 0.6475297879
B30: Other Revenues | D30: $ nominal | J30: 11895000 | K30: 12708375 | L30: 13026084.37 | M30: 13351736.48 | N30: 13685529.9 | O30: 14027668.14 | P30: 14378359.85 | Q30: 14737818.84 | R30: 15106264.31 | S30: 15483920.92 | T30: 15871018.95 | U30: 142376776.8 | W30: 3976018.946 | X30: 0.3342596844
B31: Grants & Contributions Op Purposes | D31: $ nominal | J31: 4455000 | K31: 5177479.455 | L31: 5355728.397 | M31: 5509215.04 | N31: 5668131.587 | O31: 5832677.494 | P31: 6003059.754 | Q31: 6179493.183 | R31: 6362200.725 | S31: 6551413.764 | T31: 6747372.45 | U31: 59386771.85 | W31: 2292372.45 | X31: 0.5145617171
B32: Grants & Contributions Capital Purposes | D32: $ nominal | J32: 13387000 | K32: 12650625 | L32: 13717442.19 | M32: 13837578.52 | N32: 12345801.96 | O32: 11880600.36 | P32: 11956137.8 | Q32: 12034049.56 | R32: 12114420.4 | S32: 12197336.55 | T32: 12271191.84 | U32: 125005184.2 | W32: -1115808.16 | X32: -0.08335012775
B33: Other income | D33: $ nominal | J33: 6571000 | K33: 7115819.28 | L33: 7293714.762 | M33: 7476057.631 | N33: 7662959.072 | O33: 7854533.048 | P33: 8050896.375 | Q33: 8252168.784 | R33: 8458473.004 | S33: 8669934.829 | T33: 8886683.199 | U33: 79721239.98 | W33: 2315683.199 | X33: 0.3524095571
B34: Other Income (items excluded from ratio analyis)
B35: Net share of profit on joint ventures | D35: $ nominal | U35: =SUM(K35:T35) -> 0 | W35: =T35-J35 -> 0 | X35: =IF(J35=0,0,(W35/J35)) -> 0
B36: Fair value gains | D36: $ nominal | U36: =SUM(K36:T36) -> 0 | W36: =T36-J36 -> 0 | X36: =IF(J36=0,0,(W36/J36)) -> 0
B37: Net gains from disposal of assets | D37: $ nominal | U37: =SUM(K37:T37) -> 0 | W37: =T37-J37 -> 0 | X37: =IF(J37=0,0,(W37/J37)) -> 0
B39: Total Income Continuing Operations | D39: $ nominal | J39: =SUM(J26:J33,J35:J37) -> 162008000 | K39: =SUM(K26:K33,K35:K37) -> 181893557.5 | L39: 198475288.9 | M39: 212600842.1 | N39: 216629019.6 | O39: 222468921.8 | P39: 229095740.5 | Q39: 235938143.2 | R39: 243049082.1 | S39: 250401752.9 | T39: 257940539.1 | U39: 2248492888 | V39: 0 | W39: 95932539.14 | X39: =IF(J39=0,0,(W39/J39)) -> 0.5921469257
B41: Income excluding capital grants and contributions | D41: $ nominal | J41: =J39-J32 -> 148621000 | K41: 169242932.5 | L41: 184757846.7 | M41: 198763263.6 | N41: 204283217.6 | O41: 210588321.5 | P41: 217139602.6 | Q41: 223904093.6 | R41: 230934661.7 | S41: 238204416.4 | T41: 245669347.3 | U41: =SUM(K41:T41) -> 2123487704 | W41: =T41-J41 -> 97048347.3 | X41: =IF(J41=0,0,(W41/J41)) -> 0.6529921566
B43: Income excluding capital grants and contributions, net gains from asset disposals, profit on joint ventures and fair value gains | D43: $ nominal | J43: =J39-J32-SUM(J35:J37) -> 148621000 | K43: 169242932.5 | L43: 184757846.7 | M43: 198763263.6 | N43: 204283217.6 | O43: 210588321.5 | P43: 217139602.6 | Q43: 223904093.6 | R43: 230934661.7 | S43: 238204416.4 | T43: 245669347.3 | U43: =SUM(K43:T43) -> 2123487704 | W43: =T43-J43 -> 97048347.3 | X43: =IF(J43=0,0,(W43/J43)) -> 0.6529921566
B45: Expenses from continuing operations
B47: Employee Benefits & On-costs | D47: $ nominal | J47: 57238000 | K47: 61920479.24 | L47: 65191292.91 | M47: 67843928.63 | N47: 70461715.05 | O47: 73175915.84 | P47: 75990110.71 | Q47: 78908012.44 | R47: 81933471.83 | S47: 85070482.81 | T47: 88323187.79 | U47: =SUM(K47:T47) -> 748818597.2 | W47: =T47-J47 -> 31085187.79 | X47: =IF(J47=0,0,(W47/J47)) -> 0.5430865472
B48: Borrowing Costs (i.e. interest costs) | D48: $ nominal | J48: 2488000 | K48: 2513018.794 | L48: 2281312.298 | M48: 2054489.463 | N48: 1854172.734 | O48: 1638196.996 | P48: 1410962.479 | Q48: 1174100.756 | R48: 924166.4909 | S48: 710848.7753 | T48: 654005.21 | U48: 15215274 | W48: -1833994.79 | X48: -0.7371361696
B49: Materials & Contracts | D49: $ nominal | J49: 54891000 | K49: 59499416.75 | L49: 63579029.94 | M49: 71505111.12 | N49: 70192944.99 | O49: 70766656.12 | P49: 72228586.07 | Q49: 74262718.95 | R49: 76066413.23 | S49: 78082739.18 | T49: 80100672.8 | U49: 716284289.1 | W49: 25209672.8 | X49: 0.4592678727
B50: Depreciation & Amortisation | D50: $ nominal | J50: 31518000 | K50: 33378355 | L50: 34201026.38 | M50: 35056052.03 | N50: 35932453.34 | O50: 36830764.67 | P50: 37751533.79 | Q50: 38695322.13 | R50: 39662705.18 | S50: 40654272.81 | T50: 41670629.63 | U50: 373833115 | W50: 10152629.63 | X50: 0.3221216331
B51: Other Expenses | D51: $ nominal | J51: 4987000 | K51: 5211675 | L51: 5341966.875 | M51: 5475516.047 | N51: 5612403.948 | O51: 5752714.047 | P51: 5896531.898 | Q51: 6043945.195 | R51: 6195043.825 | S51: 6349919.921 | T51: 6508667.919 | U51: 58388384.67 | W51: 1521667.919 | X51: 0.3051269138
B52: <include additional items here> | U52: 0 | W52: 0 | X52: 0
B53: Other Expenses (items excluded from ratio analyis)
B54: Net loss on joint ventures | D54: $ nominal | U54: =SUM(K54:T54) -> 0 | W54: =T54-J54 -> 0 | X54: =IF(J54=0,0,(W54/J54)) -> 0
B55: Fair value losses | D55: $ nominal | U55: =SUM(K55:T55) -> 0 | W55: =T55-J55 -> 0 | X55: =IF(J55=0,0,(W55/J55)) -> 0
B56: Net loss from disposal of assets | D56: $ nominal | J56: 277000 | K56: 277000 | L56: 277000 | M56: 277000 | N56: 277000 | O56: 277000 | P56: 277000 | Q56: 277000 | R56: 277000 | S56: 277000 | T56: 277000 | U56: =SUM(K56:T56) -> 2770000 | W56: =T56-J56 -> 0 | X56: =IF(J56=0,0,(W56/J56)) -> 0
B58: Total expenses continuing operations | D58: $ nominal | J58: =SUM(J47:J52,J54:J56) -> 151399000 | K58: =SUM(K47:K52,K54:K56) -> 162799944.8 | L58: 170871628.4 | M58: 182212097.3 | N58: 184330690.1 | O58: 188441247.7 | P58: 193554724.9 | Q58: 199361099.5 | R58: 205058800.6 | S58: 211145263.5 | T58: 217534163.3 | U58: 1915309660 | V58: 0 | W58: 66135163.35 | X58: =IF(J58=0,0,(W58/J58)) -> 0.4368269496
B60: Total expenses continuing operations excluding net loss from asset disposals, joint ventures and fair value losses | D60: $ nominal | J60: =J58-SUM(J54:J56) -> 151122000 | K60: 162522944.8 | L60: 170594628.4 | M60: 181935097.3 | N60: 184053690.1 | O60: 188164247.7 | P60: 193277724.9 | Q60: 199084099.5 | R60: 204781800.6 | S60: 210868263.5 | T60: 217257163.3 | U60: =U58-U56 -> 1912539660 | W60: =T60-J60 -> 66135163.35 | X60: =IF(J60=0,0,(W60/J60)) -> 0.4376276343
B62: Operating results
B64: Operating result from continuing operations | D64: $ nominal | J64: =J39-J58 -> 10609000 | K64: 19093612.71 | L64: 27603660.49 | M64: 30388744.83 | N64: 32298329.53 | O64: 34027674.17 | P64: 35541015.51 | Q64: 36577043.7 | R64: 37990281.59 | S64: 39256489.45 | T64: 40406375.8 | U64: =SUM(K64:T64) -> 333183227.8 | W64: =T64-J64 -> 29797375.8 | X64: =IF(J64=0,0,(W64/J64)) -> 2.808688453
B65: Net operating result before capital grants & contributions | D65: $ nominal | J65: =J41-J58 -> -2778000 | K65: 6442987.707 | L65: 13886218.3 | M65: 16551166.31 | N65: 19952527.56 | O65: 22147073.81 | P65: 23584877.7 | Q65: 24542994.15 | R65: 25875861.19 | S65: 27059152.9 | T65: 28135183.96 | U65: =SUM(K65:T65) -> 208178043.6 | W65: =T65-J65 -> 30913183.96 | X65: =IF(J65=0,0,(W65/J65)) -> -11.127856
B66: Net operating result before capital grants & contributions, gains/losses on asset disposals, gains/losses on joint ventures and fair value adjustments | D66: $ nominal | J66: =J43-J60 -> -2501000 | K66: 6719987.707 | L66: 14163218.3 | M66: 16828166.31 | N66: 20229527.56 | O66: 22424073.81 | P66: 23861877.7 | Q66: 24819994.15 | R66: 26152861.19 | S66: 27336152.9 | T66: 28412183.96 | U66: =SUM(K66:T66) -> 210948043.6 | W66: =T66-J66 -> 30913183.96 | X66: =IF(J66=0,0,(W66/J66)) -> -12.36032945
B68: Increase in rates and annual charges
B70: $ Increase in rates and annual charges | D70: $ nominal | K70: =SUM(K26:K27)-SUM(J26:J27) -> 15771366 | L70: =SUM(L26:L27)-SUM(K26:K27) -> 12554247.33 | M70: 11438814.6 | N70: 3952991.825 | O70: 4079864.245 | P70: 4210806.302 | Q70: 4345948.365 | R70: 4485424.969 | S70: 4629374.953 | T70: 4777941.594 | U70: =SUM(U26:U27)-SUM(T26:T27) -> 1161231542
B71: % Increase in rates and annual charges | D71: % | K71: =IF(J27+J26=0,0,SUM(K26:K27)/SUM(J26:J27)-1) -> 0.1889578386 | L71: =IF(K27+K26=0,0,SUM(L26:L27)/SUM(K26:K27)-1) -> 0.1265085355 | M71: 0.1023235696 | N71: 0.03207831028 | O71: 0.03207883804 | P71: 0.03207933135 | Q71: 0.03207979057 | R71: 0.03208021605 | S71: 0.03208060815 | T71: 0.03208096722 | U71: =IF(T27+T26=0,0,SUM(U26:U27)/SUM(T26:T27)-1) -> 7.554603433
B72: check = 0 | K72: =K65-K66-SUM(K35:K37)+SUM(K54:K56) -> 0 | L72: =L65-L66-SUM(L35:L37)+SUM(L54:L56) -> 0 | M72: 0 | N72: 0 | O72: 0 | P72: 0 | Q72: 0 | R72: 0 | S72: 0 | T72: 0
A75: 1(b) | B75: ="Table "&A1&"."&A75&": Cashflow Statement - General fund- PROPOSED " &'WS1-Application'!D33&" Scenario ($ nominal)" -> Table 10.1(b): Cashflow Statement - General fund- PROPOSED Special Variation and Minimum Rate Increase Scenario ($ nominal) | K75: =IF('WS1-Application'!$D$33="Minimum rate increase","[N/A - No need to complete, leave blue input cells blank]",".") -> .
J76: =J22 -> Year 0 | K76: Year 1 | L76: Year 2 | M76: Year 3 | N76: Year 4 | O76: Year 5 | P76: Year 6 | Q76: Year 7 | R76: Year 8 | S76: Year 9 | T76: Year 10
J77: =J23 -> 2025-26 | K77: 2026-27 | L77: 2027-28 | M77: 2028-29 | N77: 2029-30 | O77: 2030-31 | P77: 2031-32 | Q77: 2032-33 | R77: 2033-34 | S77: 2034-35 | T77: 2035-36
B78: Cash flow from operating activities | D78: Units
B79: Receipts:
B80: Rates & Annual Charges | D80: $ nominal | J80: 83465000 | K80: 99236366 | L80: 111790613.3 | M80: 123229427.9 | N80: 127182419.8 | O80: 131262284 | P80: 135473090.3 | Q80: 139819038.7 | R80: 144304463.6 | S80: 148933838.6 | T80: 153711780.2
B81: User Charges & Fees | D81: $ nominal | J81: 37041708 | K81: 41287262.75 | L81: 43453145.84 | M81: 45448431.81 | N81: 46583642.61 | O81: 47738233.67 | P81: 48930914.51 | Q81: 50153412.38 | R81: 51406472.69 | S81: 52690859.5 | T81: 54007355.99
B82: Interest & Investment Revenue Received | D82: $ nominal | J82: 3912000 | K82: 3717637.869 | L82: 3838562.364 | M82: 3748408.208 | N82: 3500552.512 | O82: 3872972.932 | P82: 4303299.66 | Q82: 4762179.577 | R82: 5296835.185 | S82: 5874466.584 | T82: 6445154.342
B83: Grants & Contributions | D83: $ nominal | J83: 13955625 | K83: 17828104.46 | L83: 19073170.58 | M83: 19346793.56 | N83: 18013933.55 | O83: 17713277.85 | P83: 17959197.56 | Q83: 18213542.74 | R83: 18476621.13 | S83: 18748750.31 | T83: 19018564.29
B84: Bonds & Deposits Received | D84: $ nominal | J84: 3950000 | K84: 3951000 | L84: 3952000 | M84: 3953000 | N84: 3954000 | O84: 3955000 | P84: 3956000 | Q84: 3957000 | R84: 3958000 | S84: 3959000 | T84: 3960000
B85: Other | D85: $ nominal | J85: 18399000 | K85: 19824194.28 | L85: 20319799.14 | M85: 20827794.12 | N85: 21348488.97 | O85: 21882201.19 | P85: 22429256.22 | Q85: 22989987.63 | R85: 23564737.32 | S85: 24153855.75 | T85: 24757702.15
B86: Payments:
B87: Employee Benefits & On-Costs | D87: $ nominal | J87: 57238000 | K87: 61920479.24 | L87: 65191292.91 | M87: 67843928.63 | N87: 70461715.05 | O87: 73175915.84 | P87: 75990110.71 | Q87: 78908012.44 | R87: 81933471.83 | S87: 85070482.81 | T87: 88323187.79
B88: Materials & Contracts | D88: $ nominal | J88: 57185960 | K88: 59499416.75 | L88: 63579029.94 | M88: 71505111.12 | N88: 70192944.99 | O88: 70766656.12 | P88: 72228586.07 | Q88: 74262718.95 | R88: 76066413.23 | S88: 78082739.18 | T88: 80100672.8
B89: Borrowing Costs | D89: $ nominal | J89: 2488000 | K89: 2513018.794 | L89: 2281312.298 | M89: 2054489.463 | N89: 1854172.734 | O89: 1638196.996 | P89: 1410962.479 | Q89: 1174100.756 | R89: 924166.4909 | S89: 710848.7753 | T89: 654005.21
B90: Bonds & Deposits Refunded | D90: $ nominal | J90: 3950000 | K90: 3951000 | L90: 3952000 | M90: 3953000 | N90: 3954000 | O90: 3955000 | P90: 3956000 | Q90: 3957000 | R90: 3958000 | S90: 3959000 | T90: 3960000
B91: Other | D91: $ nominal | J91: 4719245 | K91: 5211675 | L91: 5341966.875 | M91: 5475516.047 | N91: 5612403.948 | O91: 5752714.047 | P91: 5896531.898 | Q91: 6043945.195 | R91: 6195043.825 | S91: 6349919.921 | T91: 6508667.919
B93: Net cash provided (or used in) operating activities | D93: $ nominal | J93: =SUM(J80:J85)-SUM(J87:J91) -> 35142128 | K93: =SUM(K80:K85)-SUM(K87:K91) -> 52748975.58 | L93: 62081689.23 | M93: 65721810.37 | N93: 68507800.68 | O93: 71135486.65 | P93: 73569567.11 | Q93: 75549383.65 | R93: 77930034.58 | S93: 80187780.07 | T93: 82354023.24
B95: Cashflow from investing activities
B96: Receipts:
B97: Sale of investment securities | D97: $ nominal | J97: 8579000 | K97: 0 | L97: 3004510 | M97: 8262000 | N97: 0 | O97: 0 | P97: 0 | Q97: 0 | R97: 0 | S97: 0 | T97: 0
B98: Sale of Infrastructure, Property, Plant & Equipment | D98: $ nominal | J98: 328000 | K98: 328000 | L98: 328000 | M98: 328000 | N98: 328000 | O98: 328000 | P98: 328000 | Q98: 328000 | R98: 328000 | S98: 328000 | T98: 328000
B99: Sale of real estate assets | D99: $ nominal | J99: 0 | K99: 0 | L99: 0 | M99: 0 | N99: 0 | O99: 0 | P99: 0 | Q99: 0 | R99: 0 | S99: 0 | T99: 0
B100: Sale of investment properties | D100: $ nominal | J100: 0 | K100: 0 | L100: 0 | M100: 0 | N100: 0 | O100: 0 | P100: 0 | Q100: 0 | R100: 0 | S100: 0 | T100: 0
B101: <include additional items here> | D101: $ nominal | J101: 0 | K101: 0 | L101: 0 | M101: 0 | N101: 0 | O101: 0 | P101: 0 | Q101: 0 | R101: 0 | S101: 0 | T101: 0
B102: <include additional items here> | D102: $ nominal | J102: 0 | K102: 0 | L102: 0 | M102: 0 | N102: 0 | O102: 0 | P102: 0 | Q102: 0 | R102: 0 | S102: 0 | T102: 0
B103: <include additional items here> | D103: $ nominal | J103: 0 | K103: 0 | L103: 0 | M103: 0 | N103: 0 | O103: 0 | P103: 0 | Q103: 0 | R103: 0 | S103: 0 | T103: 0
B104: <include additional items here> | D104: $ nominal | J104: 0 | K104: 0 | L104: 0 | M104: 0 | N104: 0 | O104: 0 | P104: 0 | Q104: 0 | R104: 0 | S104: 0 | T104: 0
B105: Payments:
B106: Purchase of Investment Securities | D106: $ nominal | J106: 0 | K106: 4031000 | L106: 0 | M106: 0 | N106: 12414013.98 | O106: 14344224.3 | P106: 15295997.23 | Q106: 17821853.59 | R106: 19254379.97 | S106: 19022925.28 | T106: 20451939.74
B107: Purchase of Investment Properties | D107: $ nominal | J107: 0 | K107: 0 | L107: 0 | M107: 0 | N107: 0 | O107: 0 | P107: 0 | Q107: 0 | R107: 0 | S107: 0 | T107: 0
B108: Purchase of Infrastructure, Property, Plant & Equipment | D108: $ nominal | J108: 58512239 | K108: 43968817.33 | L108: 60110695.86 | M108: 69713746.41 | N108: 52145913.36 | O108: 52631768.04 | P108: 53891887.05 | Q108: 53112559.15 | R108: 53815737 | S108: 57348325.01 | T108: 59932720.24
B109: Purchase of real estate assets | D109: $ nominal | J109: 0 | K109: 0 | L109: 0 | M109: 0 | N109: 0 | O109: 0 | P109: 0 | Q109: 0 | R109: 0 | S109: 0 | T109: 0
B110: <include additional items here> | D110: $ nominal | J110: 0 | K110: 0 | L110: 0 | M110: 0 | N110: 0 | O110: 0 | P110: 0 | Q110: 0 | R110: 0 | S110: 0 | T110: 0
B111: <include additional items here> | D111: $ nominal | J111: 0 | K111: 0 | L111: 0 | M111: 0 | N111: 0 | O111: 0 | P111: 0 | Q111: 0 | R111: 0 | S111: 0 | T111: 0
B112: <include additional items here> | D112: $ nominal | J112: 0 | K112: 0 | L112: 0 | M112: 0 | N112: 0 | O112: 0 | P112: 0 | Q112: 0 | R112: 0 | S112: 0 | T112: 0
B113: <include additional items here> | D113: $ nominal | J113: 0 | K113: 0 | L113: 0 | M113: 0 | N113: 0 | O113: 0 | P113: 0 | Q113: 0 | R113: 0 | S113: 0 | T113: 0
B115: Net cash provided (or used in) investing activities | D115: $ nominal | J115: =SUM(J97:J104)-SUM(J106:J113) -> -49605239 | K115: =SUM(K97:K104)-SUM(K106:K113) -> -47671817.33 | L115: -56778185.86 | M115: -61123746.41 | N115: -64231927.34 | O115: -66647992.33 | P115: -68859884.28 | Q115: -70606412.74 | R115: -72742116.97 | S115: -76043250.29 | T115: -80056659.98
B117: Cashflow from financing activities
B118: Receipts:
B119: Proceeds from borrowings & advances | D119: $ nominal | J119: 10000000
B120: Proceeds from finance lease | D120: $ nominal
B121: <include additional items here> | D121: $ nominal
B122: <include additional items here> | D122: $ nominal
B123: <include additional items here> | D123: $ nominal
B124: Payments:
B125: Repayment of Borrowings & Advances | D125: $ nominal | J125: 4175626.704 | K125: 4774341.751 | L125: 5001131.876 | M125: 4360920.499 | N125: 4275873.335 | O125: 4487494.317 | P125: 4709682.827 | Q125: 4942970.907 | R125: 5187917.616 | S125: 4144529.78 | T125: 2297363.262
B126: Repayment of lease liabilities (principal repayments) | D126: $ nominal | J126: 303000 | K126: 303000 | L126: 303000 | M126: 237000 | N126: 0 | O126: 0 | P126: 0 | Q126: 0 | R126: 0 | S126: 0 | T126: 0
B127: <include additional items here> | D127: $ nominal
B128: <include additional items here> | D128: $ nominal
B129: <include additional items here> | D129: $ nominal
B131: Net cash provided (or used in) financing activities | D131: $ nominal | J131: =SUM(J119:J123)-SUM(J125:J129) -> 5521373.296 | K131: =SUM(K119:K123)-SUM(K125:K129) -> -5077341.751 | L131: -5304131.876 | M131: -4597920.499 | N131: -4275873.335 | O131: -4487494.317 | P131: -4709682.827 | Q131: -4942970.907 | R131: -5187917.616 | S131: -4144529.78 | T131: -2297363.262
B133: Net Increase/(Decrease) in Cash & Cash Equivalents | D133: $ nominal | J133: =SUM(J93,J115,J131) -> -8941737.704 | K133: -183.5084696 | L133: -628.5061015 | M133: 143.4556659 | N133: 0 | O133: -5.308538675e-08 | P133: 3.818422556e-08 | Q133: 1.769512892e-08 | R133: -2.700835466e-08 | S133: 2.840533853e-08 | T133: -8.381903172e-09
B135: Cash & Cash Equivalents - beginning of year | D135: $ nominal | J135: 29942000 | K135: =J137 -> 21000262.3 | L135: =K137 -> 21000078.79 | M135: =L137 -> 20999450.28 | N135: 20999593.74 | O135: 20999593.74 | P135: 20999593.74 | Q135: 20999593.74 | R135: 20999593.74 | S135: 20999593.74 | T135: 20999593.74
B137: Cash & Cash Equivalents - end of year | D137: $ nominal | J137: =J133+J135 -> 21000262.3 | K137: 21000078.79 | L137: 20999450.28 | M137: 20999593.74 | N137: 20999593.74 | O137: 20999593.74 | P137: 20999593.74 | Q137: 20999593.74 | R137: 20999593.74 | S137: 20999593.74 | T137: 20999593.74
B140: Cash & cash equivalents - end of year | J140: =J137 -> 21000262.3 | K140: =K137 -> 21000078.79 | L140: 20999450.28 | M140: 20999593.74 | N140: 20999593.74 | O140: 20999593.74 | P140: 20999593.74 | Q140: 20999593.74 | R140: 20999593.74 | S140: 20999593.74 | T140: 20999593.74
B141: Investment - end of the year | J141: 102921262.3 | K141: 106952078.8 | L141: 103946140.3 | M141: 95684083.74 | N141: 108098097.7 | O141: 122443322 | P141: 137739319.2 | Q141: 155560172.8 | R141: 174815552.8 | S141: 193838478.1 | T141: 214290417.8
B142: Cash, Cash Equivalents & Investment - end of year | J142: =SUM(J140:J141) -> 123921524.6 | K142: =SUM(K140:K141) -> 127952157.6 | L142: 124945590.6 | M142: 116683677.5 | N142: 129097691.5 | O142: 143442915.8 | P142: 158738913 | Q142: 176559766.6 | R142: 195815146.5 | S142: 214838071.8 | T142: 235290011.6
B143: Representing
B144: - External Restrictions
B145: Developer Contributions | D145: $ nominal | J145: 64838000 | K145: 66489543.87 | L145: =60808821.3870227+4000 -> 60812821.39 | M145: =51842867.7146843+12000 -> 51854867.71 | N145: =57967377.6686168+21000 -> 57988377.67 | O145: =66876414.995544+28000 -> 66904415 | P145: =75325515.4962974+33500 -> 75359015.5 | Q145: =84465024.1187888+39000 -> 84504024.12 | R145: =94159583.1814012+44412 -> 94203995.18 | S145: =103196259.425633+48000 -> 103244259.4 | T145: =113101846.520193+51000 -> 113152846.5
B146: Domestic Waste Management | D146: $ nominal | J146: 17617000 | K146: 19838470 | L146: 22215021.1 | M146: 22215021.1 | N146: 22215021.1 | O146: 22215021.1 | P146: 22215021.1 | Q146: 22215021.1 | R146: 22215021.1 | S146: 22215021.1 | T146: 22215021.1
B147: Specific Purpose Unexpended Grants and contributions | D147: $ nominal | J147: 3190000 | K147: 3190000 | L147: 3190000 | M147: 3190000 | N147: 3190000 | O147: 3190000 | P147: 3190000 | Q147: 3190000 | R147: 3190000 | S147: 3190000 | T147: 3190000
B148: Stormwater management | D148: $ nominal | J148: 84000 | K148: 84000 | L148: 84000 | M148: 84000 | N148: 84000 | O148: 84000 | P148: 84000 | Q148: 84000 | R148: 84000 | S148: 84000 | T148: 84000
B149: Unexpended Special Rates, Community land Lease (Bradfield park, Cammeray park) | D149: $ nominal | J149: 1762000 | K149: 1762000 | L149: 1762000 | M149: 1762000 | N149: 1762000 | O149: 1762000 | P149: 1762000 | Q149: 1762000 | R149: 1762000 | S149: 1762000 | T149: 1762000
B150: Total external restriction | J150: =SUM(J145:J149) -> 87491000 | K150: =SUM(K145:K149) -> 91364013.87 | L150: 88063842.49 | M150: 79105888.81 | N150: 85239398.77 | O150: 94155436.1 | P150: 102610036.6 | Q150: 111755045.2 | R150: 121455016.3 | S150: 130495280.5 | T150: 140403867.6
B151: - Internal Restrictions
B152: Employees Leave Entitlement | D152: $ nominal | J152: 7127000 | K152: 7127000 | L152: 7127000 | M152: 7127000 | N152: 7127000 | O152: 7127000 | P152: 7127000 | Q152: 7127000 | R152: 7127000 | S152: 7127000 | T152: 7127000
B153: Deposits, Retentions & Bonds | D153: $ nominal | J153: 14969000 | K153: 14969000 | L153: 14969000 | M153: 14969000 | N153: 14969000 | O153: 14969000 | P153: 14969000 | Q153: 14969000 | R153: 14969000 | S153: 14969000 | T153: 14969000
B154: Income producing projects | D154: $ nominal | J154: 498000 | K154: 498000 | L154: 498000 | M154: 498000 | N154: 498000 | O154: 498000 | P154: 498000 | Q154: 498000 | R154: 498000 | S154: 498000 | T154: 498000
B155: Plant and vehicle replacement | D155: $ nominal | J155: 2922000 | K155: 2922000 | L155: 2922000 | M155: 2922000 | N155: 2922000 | O155: 2922000 | P155: 2922000 | Q155: 2922000 | R155: 2922000 | S155: 2922000 | T155: 2922000
B156: Community housing – capital purchases | D156: $ nominal | J156: 1010000 | K156: 1010000 | L156: 1010000 | M156: 1010000 | N156: 1010000 | O156: 1010000 | P156: 1010000 | Q156: 1010000 | R156: 1010000 | S156: 1010000 | T156: 1010000
B157: Community housing – major maintenance | D157: $ nominal | J157: 491000 | K157: 491000 | L157: 491000 | M157: 491000 | N157: 491000 | O157: 491000 | P157: 491000 | Q157: 491000 | R157: 491000 | S157: 491000 | T157: 491000
B158: Capital projects | D158: $ nominal | J158: 0 | K158: 0 | L158: 0 | M158: 0 | N158: 6000000 | O158: 11074000 | P158: 17566697 | Q158: 25865000 | R158: 35050000 | S158: 44743000 | T158: 55038000
B159: Total internal restrictions | J159: =SUM(J152:J158) -> 27017000 | K159: 27017000 | L159: 27017000 | M159: 27017000 | N159: 33017000 | O159: 38091000 | P159: 44583697 | Q159: 52882000 | R159: 62067000 | S159: 71760000 | T159: 82055000
B160: - Unrestricted | D160: $ nominal | J160: =J142-J150-J159 -> 9413524.592 | K160: =K142-K150-K159 -> 9571143.702 | L160: 9864748.076 | M160: 10560788.66 | N160: 10841292.69 | O160: 11196479.65 | P160: 11545179.38 | Q160: 11922721.35 | R160: 12293130.26 | S160: 12582791.29 | T160: 12831143.93
B161: Total | J161: =SUM(J150,J159,J160) -> 123921524.6 | K161: =SUM(K150,K159,K160) -> 127952157.6 | L161: 124945590.6 | M161: 116683677.5 | N161: 129097691.5 | O161: 143442915.8 | P161: 158738913 | Q161: 176559766.6 | R161: 195815146.5 | S161: 214838071.8 | T161: 235290011.6
B163: check = 0 | J163: =IF(J161-J142=0, "ok", "please check") -> ok | K163: =IF(K161-K142=0, "ok", "please check") -> ok | L163: ok | M163: ok | N163: ok | O163: ok | P163: ok | Q163: ok | R163: ok | S163: ok | T163: ok
A167: .2(a) | B167: ="Table "&$A$1&A167&": Income Statement - General fund - BASE case scenario ($ nominal) " -> Table 10.2(a): Income Statement - General fund - BASE case scenario ($ nominal)
J168: =J$22 -> Year 0 | K168: Year 1 | L168: Year 2 | M168: Year 3 | N168: Year 4 | O168: Year 5 | P168: Year 6 | Q168: Year 7 | R168: Year 8 | S168: Year 9 | T168: Year 10 | U168: Sum of 10 years | V168: 0 | W168: =W$22 -> Change over 10 years
D169: Units | J169: =J$23 -> 2025-26 | K169: 2026-27 | L169: 2027-28 | M169: 2028-29 | N169: 2029-30 | O169: 2030-31 | P169: 2031-32 | Q169: 2032-33 | R169: 2033-34 | S169: 2034-35 | T169: 2035-36 | V169: =V$23 -> 0 | W169: =W$23 -> $ | X169: =X$23 -> %
B170: =B$24 -> Income from continuing operations
B171: =B$25 -> Revenue:
B172: =B$26 -> Rates | D172: $ nominal | J172: 64881000 | K172: 67739624.16 | L172: 70043098.57 | M172: 72423815.78 | N172: 74884337.24 | O172: 77427308.55 | P172: 80055462.23 | Q172: 82771620.56 | R172: 85578698.47 | S172: 88479706.6 | T172: 91477754.39 | U172: =SUM(K172:T172) -> 790881426.6 | W172: =T172-J172 -> 26596754.39 | X172: =IF(J172=0,0,(W172/J172)) -> 0.4099313264
B173: =B$27 -> Annual Charges | D173: $ nominal | J173: 18584000 | K173: 19141520 | L173: 19715765.6 | M173: 23161743.01 | N173: 23736716.18 | O173: 24325941.56 | P173: 24929771.8 | Q173: 25548568.25 | R173: 26182701.18 | S173: 26832549.99 | T173: 27498503.46 | U173: 241073781 | W173: 8914503.462 | X173: 0.4796870136
B174: =B$28 -> User Charges & Fees | D174: $ nominal | J174: 38323000 | K174: 41287262.75 | L174: 43453145.84 | M174: 45448431.81 | N174: 46583642.61 | O174: 47738233.67 | P174: 48930914.51 | Q174: 50153412.38 | R174: 51406472.69 | S174: 52690859.5 | T174: 54007355.99 | U174: 481699731.7 | W174: 15684355.99 | X174: 0.4092674371
B175: =B$29 -> Interest & Investment Revenue | D175: $ nominal | J175: 3912000 | K175: 3717637.869 | L175: 3860493.419 | M175: 3796320.208 | N175: 3584876.024 | O175: 3795743.353 | P175: 4088174.054 | Q175: 4393725.623 | R175: 4705851.45 | S175: 5021589.51 | T175: 5353861.389 | U175: 42318272.9 | W175: 1441861.389 | X175: 0.3685739747
B176: =B$30 -> Other Revenues | D176: $ nominal | J176: 11895000 | K176: 12708375 | L176: 13026084.37 | M176: 13351736.48 | N176: 13685529.9 | O176: 14027668.14 | P176: 14378359.85 | Q176: 14737818.84 | R176: 15106264.31 | S176: 15483920.92 | T176: 15871018.95 | U176: 142376776.8 | W176: 3976018.946 | X176: 0.3342596844
B177: =B$31 -> Grants & Contributions Op Purposes | D177: $ nominal | J177: 4455000 | K177: 5177479.455 | L177: 5355728.397 | M177: 5509215.04 | N177: 5668131.587 | O177: 5832677.494 | P177: 6003059.754 | Q177: 6179493.183 | R177: 6362200.725 | S177: 6551413.764 | T177: 6747372.45 | U177: 59386771.85 | W177: 2292372.45 | X177: 0.5145617171
B178: =B$32 -> Grants & Contributions Capital Purposes | D178: $ nominal | J178: 13387000 | K178: 10750625 | L178: 11769942.7 | M178: 11841391.02 | N178: 9761264.463 | O178: 9783356.416 | P178: 9806462.2 | Q178: 9830632.644 | R178: 9855917.468 | S178: 9882371.046 | T178: 9898352.197 | U178: 103180315.2 | W178: -3488647.803 | X178: -0.2605996716
B179: Other income | D179: $ nominal | J179: 6571000 | K179: 7115819.28 | L179: 7293714.762 | M179: 7476057.631 | N179: 7662959.072 | O179: 7854533.048 | P179: 8050896.375 | Q179: 8252168.784 | R179: 8458473.004 | S179: 8669934.829 | T179: 8886683.199 | U179: 79721239.98 | W179: 2315683.199 | X179: 0.3524095571
B180: =B$34 -> Other Income (items excluded from ratio analyis) | D180: $ nominal
B181: =B$35 -> Net share of profit on joint ventures | D181: $ nominal | U181: =SUM(K181:T181) -> 0 | W181: =T181-J181 -> 0 | X181: =IF(J181=0,0,(W181/J181)) -> 0
B182: =B$36 -> Fair value gains | D182: $ nominal | U182: =SUM(K182:T182) -> 0 | W182: =T182-J182 -> 0 | X182: =IF(J182=0,0,(W182/J182)) -> 0
B183: =B$37 -> Net gains from disposal of assets | D183: $ nominal | U183: =SUM(K183:T183) -> 0 | W183: =T183-J183 -> 0 | X183: =IF(J183=0,0,(W183/J183)) -> 0
B185: =B$39 -> Total Income Continuing Operations | D185: $ nominal | J185: =SUM(J172:J179,J181:J183) -> 162008000 | K185: =SUM(K172:K179,K181:K183) -> 167638343.5 | L185: 174517973.7 | M185: 183008711 | N185: 185567457.1 | O185: 190785462.2 | P185: 196243100.8 | Q185: 201867440.3 | R185: 207656579.3 | S185: 213612346.2 | T185: 219740902 | U185: 1940638316 | V185: 0 | W185: 57732902.02 | X185: =IF(J185=0,0,(W185/J185)) -> 0.3563583405
B187: =B$41 -> Income excluding capital grants and contributions | D187: $ nominal | J187: =J185-J178 -> 148621000 | K187: 156887718.5 | L187: 162748031 | M187: 171167320 | N187: 175806192.6 | O187: 181002105.8 | P187: 186436638.6 | Q187: 192036807.6 | R187: 197800661.8 | S187: 203729975.1 | T187: 209842549.8 | U187: =SUM(K187:T187) -> 1837458001 | W187: =T187-J187 -> 61221549.82 | X187: =IF(J187=0,0,(W187/J187)) -> 0.4119306816
B189: =B$43 -> Income excluding capital grants and contributions, net gains from asset disposals, profit on joint ventures and fair value gains | D189: $ nominal | J189: =J185-J178-SUM(J181:J183) -> 148621000 | K189: 156887718.5 | L189: 162748031 | M189: 171167320 | N189: 175806192.6 | O189: 181002105.8 | P189: 186436638.6 | Q189: 192036807.6 | R189: 197800661.8 | S189: 203729975.1 | T189: 209842549.8 | U189: =SUM(K189:T189) -> 1837458001 | W189: =T189-J189 -> 61221549.82 | X189: =IF(J189=0,0,(W189/J189)) -> 0.4119306816
B191: =B$45 -> Expenses from continuing operations
B193: =B$47 -> Employee Benefits & On-costs | D193: $ nominal | J193: 57238000 | K193: 61833521.28 | L193: 64680807.38 | M193: 67294414.91 | N193: 69872531.04 | O193: 72546400.19 | P193: 75319582.22 | Q193: 78195769.48 | R193: 81178791.71 | S193: 84272621.16 | T193: 87481377.92 | U193: =SUM(K193:T193) -> 742675817.3 | W193: =T193-J193 -> 30243377.92 | X193: =IF(J193=0,0,(W193/J193)) -> 0.528379362
B194: =B$48 -> Borrowing Costs (i.e. interest costs) | D194: $ nominal | J194: 2488000 | K194: 2513018.794 | L194: 2281312.298 | M194: 2054489.463 | N194: 1854172.734 | O194: 1638196.996 | P194: 1410962.479 | Q194: 1174100.756 | R194: 924166.4909 | S194: 710848.7753 | T194: 654005.21 | U194: 15215274 | W194: -1833994.79 | X194: -0.7371361696
B195: =B$49 -> Materials & Contracts | D195: $ nominal | J195: 54891000 | K195: 57900059.83 | L195: 58909208.02 | M195: 65896814.91 | N195: 67550361.62 | O195: 69465835.67 | P195: 71208268.31 | Q195: 73226043.61 | R195: 75062177.21 | S195: 77065917.09 | T195: 79122669.89 | U195: 695407356.2 | W195: 24231669.89 | X195: 0.4414506913
B196: =B$50 -> Depreciation & Amortisation | D196: $ nominal | J196: 31518000 | K196: 33378355 | L196: 34201026.38 | M196: 35056052.03 | N196: 35932453.34 | O196: 36830764.67 | P196: 37751533.79 | Q196: 38695322.13 | R196: 39662705.18 | S196: 40654272.81 | T196: 41670629.63 | U196: 373833115 | W196: 10152629.63 | X196: 0.3221216331
B197: =B$51 -> Other Expenses | D197: $ nominal | J197: 4987000 | K197: 5211675 | L197: 5341966.875 | M197: 5475516.047 | N197: 5612403.948 | O197: 5752714.047 | P197: 5896531.898 | Q197: 6043945.195 | R197: 6195043.825 | S197: 6349919.921 | T197: 6508667.919 | U197: 58388384.67 | W197: 1521667.919 | X197: 0.3051269138
B198: <include additional items here> | D198: $ nominal | U198: 0 | W198: 0 | X198: 0
B199: =B$53 -> Other Expenses (items excluded from ratio analyis) | D199: $ nominal
B200: =B$54 -> Net loss on joint ventures | D200: $ nominal | J200: 277000 | K200: 277000 | L200: 277000 | M200: 277000 | N200: 277000 | O200: 277000 | P200: 277000 | Q200: 277000 | R200: 277000 | S200: 277000 | T200: 277000 | U200: =SUM(K200:T200) -> 2770000 | W200: =T200-J200 -> 0 | X200: =IF(J200=0,0,(W200/J200)) -> 0
B201: =B$55 -> Fair value losses | D201: $ nominal | U201: =SUM(K201:T201) -> 0 | W201: =T201-J201 -> 0 | X201: =IF(J201=0,0,(W201/J201)) -> 0
B202: =B$56 -> Net loss from disposal of assets | D202: $ nominal | U202: =SUM(K202:T202) -> 0 | W202: =T202-J202 -> 0 | X202: =IF(J202=0,0,(W202/J202)) -> 0
B204: =B$58 -> Total expenses continuing operations | J204: =SUM(J193:J198,J200:J202) -> 151399000 | K204: =SUM(K193:K198,K200:K202) -> 161113629.9 | L204: 165691320.9 | M204: 176054287.4 | N204: 181098922.7 | O204: 186510911.6 | P204: 191863878.7 | Q204: 197612181.2 | R204: 203299884.4 | S204: 209330579.8 | T204: 215714350.6 | U204: 1888289947 | V204: 0 | W204: 64315350.58 | X204: =IF(J204=0,0,(W204/J204)) -> 0.4248069708
B206: =$B$60 -> Total expenses continuing operations excluding net loss from asset disposals, joint ventures and fair value losses | D206: $ nominal | J206: =J204-SUM(J200:J202) -> 151122000 | K206: 160836629.9 | L206: 165414320.9 | M206: 175777287.4 | N206: 180821922.7 | O206: 186233911.6 | P206: 191586878.7 | Q206: 197335181.2 | R206: 203022884.4 | S206: 209053579.8 | T206: 215437350.6 | U206: =U204-U202 -> 1888289947 | W206: =T206-J206 -> 64315350.58 | X206: =IF(J206=0,0,(W206/J206)) -> 0.4255856234
B208: =B$62 -> Operating results
B210: =B$64 -> Operating result from continuing operations | D210: $ nominal | J210: =J185-J204 -> 10609000 | K210: 6524713.615 | L210: 8826652.722 | M210: 6954423.623 | N210: 4468534.382 | O210: 4274550.67 | P210: 4379222.083 | Q210: 4255259.091 | R210: 4356694.885 | S210: 4281766.4 | T210: 4026551.442 | U210: =SUM(K210:T210) -> 52348368.91 | W210: =T210-J210 -> -6582448.558 | X210: =IF(J210=0,0,(W210/J210)) -> -0.6204589083
B211: =B$65 -> Net operating result before capital grants & contributions | D211: $ nominal | J211: =J187-J204 -> -2778000 | K211: -4225911.385 | L211: -2943289.978 | M211: -4886967.394 | N211: -5292730.08 | O211: -5508805.747 | P211: -5427240.118 | Q211: -5575373.553 | R211: -5499222.583 | S211: -5600604.645 | T211: -5871800.755 | U211: =SUM(K211:T211) -> -50831946.24 | W211: =T211-J211 -> -3093800.755 | X211: =IF(J211=0,0,(W211/J211)) -> 1.113679178
B212: =B$66 -> Net operating result before capital grants & contributions, gains/losses on asset disposals, gains/losses on joint ventures and fair value adjustments | D212: $ nominal | J212: =J189-J206 -> -2501000 | K212: -3948911.385 | L212: -2666289.978 | M212: -4609967.394 | N212: -5015730.08 | O212: -5231805.747 | P212: -5150240.118 | Q212: -5298373.553 | R212: -5222222.583 | S212: -5323604.645 | T212: -5594800.755 | U212: =SUM(K212:T212) -> -48061946.24 | W212: =T212-J212 -> -3093800.755 | X212: =IF(J212=0,0,(W212/J212)) -> 1.237025492
B214: =B$68 -> Increase in rates and annual charges
B216: =B$70 -> $ Increase in rates and annual charges | D216: $ nominal | K216: =K172+K173-J173-J172 -> 3416144.16 | L216: =L172+L173-K173-K172 -> 2877720.01 | M216: 5826694.622 | N216: 3035494.624 | O216: 3132196.694 | P216: 3231983.928 | Q216: 3334954.778 | R216: 3441210.838 | S216: 3550856.939 | T216: 3664001.257 | U216: 912978949.7
B217: =B$71 -> % Increase in rates and annual charges | D217: % | K217: =IF(J172+J173=0,0,SUM(K172:K173)/SUM(J172:J173)-1) -> 0.040929062 | L217: =IF(K172+K173=0,0,SUM(L172:L173)/SUM(K172:K173)-1) -> 0.03312249208 | M217: 0.06491497722 | N217: 0.03175683296 | O217: 0.03175991926 | P217: 0.03176295523 | Q217: 0.03176594127 | R217: 0.03176887777 | S217: 0.03177176512 | T217: 0.03177460372 | U217: =IF(J172+J173=0,0,SUM(T172:T173)/SUM(J172:J173)-1) -> 0.4254628629
B218: check = 0 | K218: =K211-K212-SUM(K181:K183)+SUM(K200:K202) -> 0 | L218: =L211-L212-SUM(L181:L183)+SUM(L200:L202) -> 0 | M218: 0 | N218: 0 | O218: 0 | P218: 0 | Q218: 0 | R218: 0 | S218: 0 | T218: 0
A221: .2(b) | B221: ="Table "&$A$1&A221&": Cashflow Statement - General fund - BASE case scenario ($ nominal) " -> Table 10.2(b): Cashflow Statement - General fund - BASE case scenario ($ nominal)
J222: =J$22 -> Year 0 | K222: =K$22 -> Year 1 | L222: Year 2 | M222: Year 3 | N222: Year 4 | O222: Year 5 | P222: Year 6 | Q222: Year 7 | R222: Year 8 | S222: Year 9 | T222: Year 10
D223: Units | J223: =J$23 -> 2025-26 | K223: =K$23 -> 2026-27 | L223: 2027-28 | M223: 2028-29 | N223: 2029-30 | O223: 2030-31 | P223: 2031-32 | Q223: 2032-33 | R223: 2033-34 | S223: 2034-35 | T223: 2035-36
B224: =B78 -> Cash flow from operating activities
B225: Receipts:
B226: Rates & Annual Charges | D226: $ nominal | J226: 83465000 | K226: 86881144.16 | L226: 89758864.17 | M226: 95585558.79 | N226: 98621053.42 | O226: 101753250.1 | P226: 104985234 | Q226: 108320188.8 | R226: 111761399.7 | S226: 115312256.6 | T226: 118976257.8
B227: User Charges & Fees | D227: $ nominal | J227: 37041708 | K227: 41287262.75 | L227: 43453145.84 | M227: 45448431.81 | N227: 46583642.61 | O227: 47738233.67 | P227: 48930914.51 | Q227: 50153412.38 | R227: 51406472.69 | S227: 52690859.5 | T227: 54007355.99
B228: Interest & Investment Revenue Received | D228: $ nominal | J228: 3912000 | K228: 3717637.869 | L228: 3860493.419 | M228: 3796320.208 | N228: 3584876.024 | O228: 3795743.353 | P228: 4088174.054 | Q228: 4393725.623 | R228: 4705851.45 | S228: 5021589.51 | T228: 5353861.389
B229: Grants & Contributions | D229: $ nominal | J229: 13955625 | K229: 15928104.46 | L229: 17125671.1 | M229: 17350606.06 | N229: 15429396.05 | O229: 15616033.91 | P229: 15809521.95 | Q229: 16010125.83 | R229: 16218118.19 | S229: 16433784.81 | T229: 16645724.65
B230: Bonds & Deposits Received | D230: $ nominal | J230: 3950000 | K230: 3951000 | L230: 3952000 | M230: 3953000 | N230: 3954000 | O230: 3955000 | P230: 3956000 | Q230: 3957000 | R230: 3958000 | S230: 3959000 | T230: 3960000
B231: Other | D231: $ nominal | J231: 18399000 | K231: 19824194.28 | L231: 20319799.14 | M231: 20827794.12 | N231: 21348488.97 | O231: 21882201.19 | P231: 22429256.22 | Q231: 22989987.63 | R231: 23564737.32 | S231: 24153855.75 | T231: 24757702.15
B232: Payments:
B233: Employee Benefits & On-Costs | D233: $ nominal | J233: 57238000 | K233: 61833521.28 | L233: 64680807.38 | M233: 67294414.91 | N233: 69872531.04 | O233: 72546400.19 | P233: 75319582.22 | Q233: 78195769.48 | R233: 81178791.71 | S233: 84272621.16 | T233: 87481377.92
B234: Materials & Contracts | D234: $ nominal | J234: 57185960 | K234: 57900059.83 | L234: 58909208.02 | M234: 65896814.91 | N234: 67550361.62 | O234: 69465835.67 | P234: 71208268.31 | Q234: 73226043.61 | R234: 75062177.21 | S234: 77065917.09 | T234: 79122669.89
B235: Borrowing Costs | D235: $ nominal | J235: 2488000 | K235: 2513018.794 | L235: 2281312.298 | M235: 2054489.463 | N235: 1854172.734 | O235: 1638196.996 | P235: 1410962.479 | Q235: 1174100.756 | R235: 924166.4909 | S235: 710848.7753 | T235: 654005.21
